Workbook

Sheet ÚVOD
A1: Úvodní informace k Formuláři SR
A2: změna verze 2025/03 | B2: V nové verzi formuláře již nedochází k dopočítání inflace u cenové soustavy OTSKP za Aktuální rok.
B3: V nové verzi formuláře byla upravena výše % sazby inflace za roky 2024 (2,4%), 2025 (2,4%), 2026 (2,1%) a od roku 2027 (2,0%)
A4: změna verze 2024/09 | B4: V nové verzi formuláře došlo k úpravě stanovení nákladu výpočtem u staveb s CIN nad 5, 10 a 18 miliard Kč.
B5: V nové verzi formuláře byla doplněna do komentářů výše % sazby položek stanovených Výpočtem u CIN nad 5 miliard Kč
B6: V nové verzi formuláře došlo k vyřazení možnosti stanovení nákladů výpočtem u položek: - A.2.1.1.1 Geodetické práce a mapové podklady - A.2.1.1.2 Průzkumné práce pro předprojektové dokumentace - A.2.1.1.4 Inženýrská činnost pro předprojektové dokumentace - A.2.1.3 Dokumentace pro územní řízení - A.2.2.3 Projektová dokumentace pro stavební povolení U výše uvedených položek lze uvést náklady stanovené pouze smluvně nebo individuálně, viz popis v komentářích příslušných položek.
B7: V nové verzi formuláře došlo k doplnění procentních sazeb pro výpočet nákladů položek: - A.2.2.1.1 Geodetické práce a mapové podklady - A.2.2.1.2 Geotechnický průzkum - A.2.2.1.4 Inženýrská činnost pro projektové dokumentace U výše uvedených položek lze uvést náklady stanovené výpočtem pouze v případech, kdy pro uvedené položky nejsou uvedené náklady v obdobných položkách části A.2.1.1. Stanovení nákladů výpočtem se neprování pro variantu s využitím existujících nákladů uvedených v položkách A.2.1.1, náklady v uvedených položkách lze stanovit pouze individuální kalkulací, viz popis v komentářích příslušných položek.
B8: V nové verzi formuláře došlo do položky A.2.2.2 (viz roletovací menu položky) k doplnění možnosti stanovení nákladů pro dokumentaci pro povolení stavby DPS (dle vyhlášky č. 227/2024 Sb.).
B9: V nové verzi formuláře došlo k omezení výše hodnoty položky B.3.1 Osvědčení o shodě notifikovanou osobou v realizaci, viz komentář k příslušné položce.
A10: změna verze 2024/04 | B10: V nové verzi formuláře došlo k omezení stanovení nákladu výpočtem u staveb s CIN nad 10 miliard Kč. Náklady je nutno stanovit individuálně.
B11: V nové verzi formuláře byla upravena výše % sazby inflace za roky 2023 (6,6%) a 2024 (2,6%)
B12: V nové verzi formuláře došlo k doplnění stanovení PHVZ pro stavby zadávané v realizace formou D&B. V Krycím listu SR je nutno v poli I23 provést volbu ANO/NE a následně při volbě ANO vybrat které činnosti v přípravě budou předmětem smlouvy se zhotovitelem D&B.
B13: V nové verzi formuláře v listu 3PS byla doplněna hdnota pro výpočet rezervy nákladů 10%. Hodnotu lze dle charakteru stavby snížit, a to jak v listu 3SO, tak v listu 3PS. Snížení hodnoty rezervy musí být opodstatněné.
B14: V nové verzi formuláře byl upraven výpočet nákladů na dokumentaci PDPS v případě zadání tohoto stupně dokumentace bez předchozí projektové nebo předprojektové přípravy.
A15: změna verze 2023/11 | B15: V nové verzi formuláře je upraven výpočet inflace nákladů stavby: - v Aktuálním roce budou inflatované náklady pouze cenových soustav - OTSKP - SŽ DUR - SPOŽES - u ostatních cenových soustav, včetně individuálních kalkulací se má za to, že v nákladech stavby je již hodnota inflace za Aktuální rok zohledněná v položkových rozpočtech. Výběr cenových soustav použitých pro jednotlivé SO/PS musí být uveden u každého objektu v listech 3SO a 3PS. Rok použité cenové soustavy OTSKP,SŽ DUR, SPOŽES bude uveden v Krycím listu v poli H5. Rok použitých ostatních cenových soustav, včetně individuálních kalkulací bude uveden v Krycím listu v poli F5.
A16: změna verze 2023/10 | B16: V nové verzi formuláře je vložen automatický výpočet pro režim BIM - položka A.2.4.4. Zařazení stavby do režimu BIM se provádí standardně v listě 1A volbou "Výpočtem" v případě stanovení nákladů procentní sazbou. V případně individuální kalkulace se provede stanovení nákladů po koordinaci s odborem SŽ O26. Po stanovení nákladů se v poli F37 provede v roletovacím menu výběr: - "Příprava/Realizace" - stavba bude v režimu BIM prováděná jak v přípravě, tak v realizaci. - "Realizace" - - stavba bude v režimu BIM prováděná pouze v realizaci.
A17: (1) | B17: Formulář reprezentuje Souhrnný rozpočet stavby (dále jen SR), který je souhrnem všech nákladů, které jsou nutné k přípravě, zabezpečení a realizaci stavby včetně příjmů generovaných stavbou a nákladů provozních přímo souvisejících s realizací stavby – Celkové náklady stavby CNS.
A18: (2) | B18: Hlavní prioritou SR je stanovení Celkových investičních nákladů CIN, které jsou v rámci Souhrnného rozpočtu rozčleněny do částí:
B19: - | C19: A. – Příprava a celkové zabezpečení stavby
B20: - | C20: B. – Realizace stavby
B21: Část C. tvoří primárně souhrn nákladů zařazených v částech A. a B. s doplněním o položky, které nevstupují do CIN, ale až do CNS .
A22: (3) | B22: CIN i CNS se stanovují v Aktuální cenové úrovni a ve Smíšené cenové úrovni se zohledněním vývoje inflace v plánovaných letech provádění stavby. Za tímto účelem je Formulář SR rozdělen do částí:
B23: - | C23: 1A. 1.B 1C. – náklady v Aktuální cenové úrovni
B24: - | C24: 2A. 2.B 2C. – náklady ve Smíšené cenové úrovni
A25: (4) | B25: Náklady, uvedené v SR, vychází z rozpočtů stavby jednotlivých Objektů, které jsou začleněné do Formuláře SR v listech:
B26: - | C26: 3SO. – náklady na objekty Stavební části
B27: - | C27: 3PS. – náklady na objekty Technické a Technologické části
A28: (5) | B28: Za účelem schvalování i zajišťování financování stavby jsou náklady uvedené v SR sdružované do různých tabulkových přehledů, uvedených v listech:
B29: - | C29: FR; Komentář FR; PN – finanční rozpočet, který je součástí přílohy k žádosti na spolufinancování stavby z dotačních zdrojů
B30: - | C30: VZOR 80; VZOR 81; VZOR 83 – přehled nákladů, který je součástí Záměru projektu (ZP) nebo Aktualizace záměru projektu (AZP).
A31: (6) | B31: Podrobný postup vyplnění Formuláře je uveden v samostatném dokumentu Manuál k Formuláři SR, případně u vyplňovaných položek v komentářích k těmto položkám, kterým je potřebné věnovat pozornost.
A32: (7) | B32: Změny položek nového Formuláře a zařazování stávajících položek z dříve zpracovaných formulářů do nového Formuláře jsou uvedené v listu Změna.
A33: (8) | B33: Formuláře jsou vzájemně provázaná a pole určené k vyplnění jsou označené žlutě. Pole, které nelze vyplnit jsou uzamčená.
A34: (9) | B34: Listy ÚVOD, Změna jsou pouze informativní a nejsou určené k tisku nebo schválení. Listy VZOR 80 - 83 se odevzdávají jako součást SR pouze při pracování ZP nebo AZP. Listy FR, Komentář FR, PN se odevzdávají jako součást SR v případě, že není stanoveno jinak. Listy 1A až 3PS včetně Krycího listu jsou součástí SR vždy a jsou předmětem schválení.
A35: (10) | B35: V CIN je zohleňovaná inflace následovně:
B36: Zohlednění inflace do Aktuálního roku: (již do listú 1A až 1C) v případě, že byly stanovené stavební náklady v SR rozpočtu, uvedené listech 3SO a 3PS před Aktuálním rokem bude cena objektů z listech 3SO a 3PS automaticky doinflatovaná na úroveň Aktuálního roku výší inflace stanovené pro příslušné roky dle zprávy o měnové politice – ČNB. Pro určení správné hodnoty stavebních nákladů v Aktuálním roce je potřebné, aby zpracovatel Formuláře uvedl následující informace:
B37: - | C37: v listech 3SO a 3PS u každého Objektu uvést cenovou databázi ve sloupci „N“ dle výběrového pole:
C38: * | D38: OTSKP - v případě ocenění dle této cenové soustavy
C39: * | D39: Jiná - v případě ocenění dle ostatních veřejně dostupných cenových soustav
C40: * | D40: Kalkulace - v případě, že nebyla použitá veřejně dostupná cenová soustava a položky pro ocenění Objektů vychází pouze z individuální kalkulace
B41: - | C41: v Krycím listu uvést:
C42: * | D42: v poli F5 – rok ocenění stavebních náklady Objektů v rozmezí od roku 2015 do Aktuálního roku. Náklady u Objektů s označením „cenové soustavy“ Jiná nebo Kalkulace budou doinflatované na Aktuální cenovou úroveň. Rok se uvede i v případech shodné hodnoty v Aktuálním roku.
C43: * | D43: v poli H5 – v případě použité cenové soustavy OTSKP její rok vydání, i když je shodný s rokem uvedeným v poli F5. Náklady u Objektů s označením „cenové soustavy“ Jiná nebo Kalkulace budou doinflatované na Aktuální cenovou úroveň
B44: Zohlednění inflace od Aktuálního roku: (do listů 2A až 2C) Při zohlednění vývoje míry inflace ve stavebních nákladech bude použitá hodnota predikce celkové inflace z dokumentu České národní banky (ČNB), nazvaného a Zpráva o měnové politice – zima a současně dlouhodobý inflační cíl stanovenému ČNB, následovně:
B45: - | C45: v prvních dvou letech, tj. aktuální rok a rok následující, bude použita hodnota predikce inflačního koeficientu stanoveného ČNB.
B46: - | C46: v následujících letech bude použita hodnota dlouhodobé ho inflačního cíle, které aktuálně činí 2%.
B47: Ve stádiích přípravy se inflace zohledňuje v listech 2A následovně:
B48: - | C48: ve Stádiu 1 z hodnoty nákladů předprojektové a projektové přípravy (A.2.1; A.2.2; A.2.3 a A.2.4)
B49: - | C49: ve Stádiu 2 z hodnoty nákladů projektové přípravy (A.2.2; A.2.3 a A.2.4)
B50: - | C50: ve Stádiu 3 inflace se nezohledňuje
B52: V CIN se inflace zohledňuje AUTOMATICKY VÝPOČTEM FORMULÁŘE po správném zadání všech polí.

Sheet Změna
A1: Změny listu 1A
A2: Stávající verze Formuláře | F2: Popis změny | H2: Nová verze Formuláře
A3: A.1 | B3: Náklady investorsko - inženýrské činnosti ve výstavbě | F3: součtová položka | H3: A.1 | I3: Náklady investorsko - inženýrské činnosti ve výstavbě
A4: A.2 | B4: Náklady na dokumentace stavby | F4: součtová položka | H4: A.2 | I4: Náklady na dokumentace stavby
A5: A.2.1 | B5: z toho | C5: Náklady na předprojektové dokumentace pro přípravu stavby | F5: součtová položka | H5: A.2.1 | I5: z toho | J5: Náklady na předprojektové dokumentace pro přípravu stavby
A6: A.2.1.1 | C6: z toho | D6: Práce prováděné pro zpracování předprojektových dokumentací | F6: součtová položka | H6: A.2.1.1 | J6: z toho | K6: Práce prováděné pro zpracování předprojektových dokumentací
A7: A.2.1.1.1 | D7: z toho | E7: Geodetické práce a mapové podklady | F7: =A7 -> A.2.1.1.1 | G7: shodně | H7: A.2.1.1.1 | K7: z toho | L7: Geodetické práce a mapové podklady
A8: A.2.1.1.2 | E8: Průzkumné práce pro předprojektové dokumentace | F8: =A8 -> A.2.1.1.2 | G8: shodně | H8: A.2.1.1.2 | L8: Průzkumné práce pro předprojektové dokumentace
A9: A.2.1.1.3 | E9: Posouzení vlivu stavby na životní prostředí | F9: A.2.1.1.3 | G9: shodně | H9: A.2.1.1.3 | L9: Posouzení vlivu stavby na životní prostředí
A10: A.2.1.1.4 | E10: Inženýrská činnost pro předprojektové dokumentace | F10: A.2.1.1.4 | G10: shodně | H10: A.2.1.1.4 | L10: Inženýrská činnost pro předprojektové dokumentace
A11: A.2.1.1.5 | E11: Ostatní náklady pro předprojektové dokumentace | F11: A.2.1.1.5 | G11: shodně | H11: A.2.1.1.5 | L11: Ostatní náklady pro předprojektové dokumentace
A12: A.2.1.2 | D12: Záměr projektu | G12: součtová položka | H12: A.2.1.2 | K12: Záměr projektu
F13: rozděleno na: | G13: A.2.1.2.1 | H13: A.2.1.2.1 | K13: z toho | L13: Záměr projektu, povinný obsah
G14: A.2.1.2.2 | H14: A.2.1.2.2 | L14: Doprovodná dokumentace
A15: A.2.1.3 | D15: Dokumentace pro územní řízení | F15: =A15 -> A.2.1.3 | G15: shodně | H15: A.2.1.3 | K15: Dokumentace pro územní řízení
A16: A.2.1.4 | C16: zrušeno | D16: Dodatky k předprojektovým dokumentacím pro přípravu stavby | F16: náklady v A.2.2.5
A17: A.2.2 | C17: Náklady na projektové dokumentace | F17: součtová položka | H17: A.2.2 | J17: Náklady na projektové dokumentace
A18: A.2.2.1 | C18: z toho | D18: Práce prováděné pro zpracování projektových dokumentací | F18: součtová položka | H18: A.2.2.1 | J18: z toho | K18: Práce prováděné pro zpracování projektových dokumentací
A19: A.2.2.1.1 | D19: z toho | E19: Geodetické práce a mapové podklady | F19: =A19 -> A.2.2.1.1 | G19: shodně | H19: A.2.2.1.1 | K19: z toho | L19: Geodetické práce a mapové podklady
A20: A.2.2.1.2 | E20: Geotechnický průzkum | F20: A.2.2.1.2 | G20: shodně | H20: A.2.2.1.2 | L20: Geotechnický průzkum
A21: A.2.2.1.3 | E21: Ostatní průzkumné práce | F21: A.2.2.1.3 | G21: shodně | H21: A.2.2.1.3 | L21: Ostatní průzkumné práce
A22: A.2.2.1.4 | E22: Inženýrská činnost pro projektové dokumentace | F22: A.2.2.1.4 | G22: shodně | H22: A.2.2.1.4 | L22: Inženýrská činnost pro projektové dokumentace
A23: A.2.2.1.5 | E23: Ostatní náklady pro projektové dokumentace | F23: A.2.2.1.5 | G23: shodně | H23: A.2.2.1.5 | L23: Ostatní náklady pro projektové dokumentace
A24: A.2.2.2 | C24: zrušeno | D24: Projektová dokumentace pro ohlášení stavby | F24: náklady v A.2.2.3 | G24: nová položka | H24: A.2.2.2 | K24: Projektová dokumentace společné povolení
A25: A.2.2.3 | D25: Projektová dokumentace pro stavební povolení | F25: =A25 -> A.2.2.3 | G25: shodně | H25: A.2.2.3 | K25: Projektová dokumentace pro stavební povolení
A26: A.2.2.4 | D26: Projektová dokumentace pro provádění stavby | F26: =A26 -> A.2.2.4 | G26: shodně | H26: A.2.2.4 | K26: Projektová dokumentace pro provádění stavby
A27: A.2.2.5 | D27: Dodatky k projektové dokumentaci | F27: =A27 -> A.2.2.5 | G27: shodně | H27: A.2.2.5 | K27: Ostatní náklady na základí služby
A28: A.2.3 | C28: Autorský dozor | F28: A.2.3 | G28: shodně | H28: A.2.3 | J28: Autorský dozor
A29: A.2.4 | C29: Ostatní náklady pro přípravu stavby | F29: součtová položka | H29: A.2.4 | J29: Ostatní náklady pro přípravu stavby
A30: A.2.4.1 | C30: z toho | D30: Osvědčení o shodě notifikovanou osobou v přípravě | F30: =A30 -> A.2.4.1 | G30: shodně | H30: A.2.4.1 | J30: z toho | K30: Osvědčení o shodě notifikovanou osobou v přípravě
A31: A.2.4.2 | D31: Koordinátor BOZP v přípravě | F31: A.2.4.2 | G31: shodně | H31: A.2.4.2 | K31: Koordinátor BOZP v přípravě
A32: A.2.4.3 | D32: Zpracování žádosti o spolufinancování stavby | F32: A.2.4.3 | G32: shodně | H32: A.2.4.3 | K32: Zpracování žádosti o spolufinancování stavby
A33: A.2.4.4 | C33: zrušeno | D33: Ostatní nezařazené činnosti v přípravě | F33: náklady v A.2.2.5 | G33: nová položka | H33: A.2.4.4 | K33: Zpracování v režimu BIM
A34: A.2.5 | C34: Dokumentace skutečného provedení | F34: součtová položka | H34: A.2.5 | J34: Dokumentace skutečného provedení | M34: DSPS
A35: A.2.5.1 | C35: z toho | D35: Geodetická dokumentace skutečného provedení stavby | F35: =A35 -> A.2.5.1 | G35: shodně | H35: A.2.5.1 | J35: z toho | K35: Dokumentace skutečného provedení stavby, geodetická část
A36: A.2.5.2 | D36: Dokumentace skutečného provedení v listinné formě | F36: A.2.5.2 | G36: shodně | H36: A.2.5.2 | K36: Dokumentace skutečného provedení stavby, technická část
A37: A.2.5.3 | C37: zrušeno | D37: Dokumentace skutečného provedení v elektronické formě | F37: náklady v A.2.5.2 | G37: nová položka | H37: A.2.5.3 | K37: Dokumentace skutečného provedení stavby, dokladová část
A38: A.3 | B38: Výkupy a zatížení nemovitých věcí | F38: součtová položka | H38: A.3 | I38: Výkupy a zatížení nemovitých věcí
A39: A.3.1 | B39: z toho | C39: Výkupy pozemků | F39: =A39 -> A.3.1 | G39: shodně | H39: A.3.1 | I39: z toho | J39: Výkupy pozemků
A40: A.3.2 | C40: Výkupy staveb | F40: A.3.2 | G40: shodně | H40: A.3.2 | J40: Výkupy staveb
A41: A.3.3 | C41: Věcná břemena a služebnosti | F41: A.3.3 | G41: shodně | H41: A.3.3 | J41: Věcná břemena a služebnosti
A42: A.4 | B42: Nájmy pro účely stavby | F42: součtová položka | H42: A.4 | I42: Nájmy pro účely stavby
A43: A.4.1 | B43: z toho | C43: Nájmy hrazené investorem přímo | F43: =A43 -> A.4.1 | G43: shodně | H43: A.4.1 | I43: z toho | J43: Nájmy hrazené investorem přímo
A44: A.4.2 | C44: Nájmy hrazené zhotovitelem stavby | F44: A.4.2 | G44: shodně | H44: A.4.2 | J44: Nájmy hrazené zhotovitelem stavby
A45: A.5 | B45: Jiné náklady přípravy a zabezpečení stavby | F45: součtová položka | H45: A.5 | I45: Jiné náklady přípravy a zabezpečení stavby
A46: A.5.1 | B46: z toho | C46: Poradenské firmy pro přípravu a zabezpečení stavby | F46: součtová položka | H46: A.5.1 | I46: z toho | J46: Poradenské firmy pro přípravu a zabezpečení stavby
A47: A.5.1.1 | C47: zrušeno | D47: Supervizor | F47: náklady v B.3.9 | G47: nová položka | H47: A.5.1.1 | J47: z toho | K47: Technická podpora investora
A48: A.5.1.2 | D48: Poradenské firmy pro geotechnický průzkum | F48: =A48 -> A.5.1.2 | G48: shodně | H48: A.5.1.2 | K48: Poradenské firmy pro geotechnický průzkum
A49: A.5.1.3 | D49: Ostatní poradenské firmy | F49: =A49 -> A.5.1.3 | G49: shodně | H49: A.5.1.3 | K49: Ostatní poradenské firmy
A50: A.5.2 | C50: Soutěže a zadávací řízení | F50: sloučeno do: | G50: A.5.2 | H50: A.5.2 | K50: Soutěže a zadávací řízení
A51: A.5.2.1 | C51: z toho | D51: Soutěže a zadávací řízení na předprojektovou přípravu
A52: A.5.2.2 | D52: Soutěže a zadávací řízení na projektovou přípravu
A53: A.5.2.3 | D53: Soutěže a zadávací řízení na zhotovení stavby
A54: A.5.3 | C54: Ostatní náklady pro zabezpečení stavby | F54: součtová položka | H54: A.5.3 | J54: Ostatní náklady pro zabezpečení stavby
A55: A.5.3.1 | C55: z toho | D55: Správní a místní poplatky | F55: =A55 -> A.5.3.1 | G55: shodně | H55: A.5.3.1 | J55: z toho | K55: Poplatky
A56: A.5.3.2 | D56: Záchranný archeologický výzkum | F56: A.5.3.2 | G56: shodně | H56: A.5.3.2 | K56: Záchranný archeologický výzkum
A57: A.5.3.3 | D57: Publicita stavby | F57: součtová položka | H57: A.5.3.3 | K57: Publicita stavby
A58: A.5.3.3.1 | D58: z toho | E58: Publicita povinná | F58: =A58 -> A.5.3.3.1 | G58: shodně | H58: A.5.3.3.1 | K58: z toho | L58: Publicita povinná
A59: A.5.3.3.2 | E59: Publicta nepovinná | F59: A.5.3.3.2 | G59: shodně | H59: A.5.3.3.2 | L59: Publicta nepovinná
A60: A.5.3.4 | D60: Monitoring stavby | F60: A.5.3.4 | G60: shodně | H60: A.5.3.4 | K60: Monitoring stavby
A61: A.5.3.5 | D61: Vyhodnocení stavby | F61: A.5.3.5 | G61: shodně | H61: A.5.3.5 | K61: Vyhodnocení stavby
A62: A.5.4 | B62: zrušeno | C62: Odvody za odnětí ZPF a LPF | F62: náklady v A.5.3.1
A63: A.5.4.1 | C63: z toho | D63: Odvody za trvalé odnětí ZPF a LPF
A64: A.5.4.2 | D64: Odvody za dočasné odnětí ZPF a LPF
A67: Změny listu 1B
A68: Stávající verze Formuláře | F68: Popis změny | H68: Nová verze Formuláře
A69: B.1 | B69: Stavební část | F69: součtová položka | H69: B.1 | I69: Stavební část
A70: B.1.1 | B70: z toho | C70: Stavební objekty dodávané zhotoviteli | F70: součtová položka | H70: B.1.1 | I70: z toho | J70: Stavební objekty dodávané zhotoviteli
A71: B.1.1.1 | C71: z toho | D71: Základní rozpočtové náklady jednotlivých SO (ZRN) | F71: nově položka bez inflace | H71: B.1.1.1 | J71: z toho | K71: Základní rozpočtové náklady jednotlivých SO (ZRN)
A72: B.1.1.2 | D72: Vedlejší rozpočtové náklady nezahrnuté do jednotlivých SO (VRN) | F72: nově VRN zohleňováno | H72: B.1.1.2 | K72: Vedlejší rozpočtové náklady dle indexu jednotlivých SO (VRN)
A73: B.1.2 | C73: Stavební část zajišťovaná přímo investorem | F73: součtová položka | H73: B.1.2 | J73: Stavební část zajišťovaná přímo investorem
A74: B.1.2.1 | C74: z toho | D74: Stavební objekty zajišťované přímo investorem | F74: =A74 -> B.1.2.1 | G74: shodně | H74: B.1.2.1 | J74: z toho | K74: Stavební objekty zajišťované přímo investorem
A75: B.1.2.2 | D75: Stavební práce a dodávky zajišťované přímo investorem | F75: B.1.2.2 | G75: shodně | H75: B.1.2.2 | K75: Stavební práce a dodávky zajišťované přímo investorem
A76: B.1.2.3 | D76: Zkoušky, revize a měření zajišťované přímo investorem | F76: =A76 -> B.1.2.3 | G76: shodně | H76: B.1.2.3 | K76: Zkoušky, revize a měření zajišťované přímo investorem
A77: B.2 | B77: Technologická část | F77: součtová položka | H77: B.2 | I77: Technologická část
A78: B.2.1 | B78: z toho | C78: Provozní soubory dodávané zhotoviteli | F78: součtová položka | H78: B.2.1 | I78: z toho | J78: Provozní soubory dodávané zhotoviteli
A79: B.2.1.1 | C79: z toho | D79: Základní rozpočtové náklady jednotlivých PS (ZRN) | F79: nově položka bez inflace | H79: B.2.1.1 | J79: z toho | K79: Základní rozpočtové náklady jednotlivých PS (ZRN)
A80: B.2.1.2 | D80: Vedlejší rozpočtové náklady nezahrnute do jednotlivých PS (VRN) | F80: nově VRN zohleňováno | H80: B.2.1.2 | K80: Vedlejší rozpočtové náklady dle indexu jednotlivých PS (VRN)
A81: B.2.2 | C81: Technologické část zajišťovaná přímo investorem | F81: součtová položka | H81: B.2.2 | J81: Technologické část zajišťovaná přímo investorem
A82: B.2.2.1 | C82: z toho | D82: Provozní soubory zajišťované přímo investorem | F82: =A82 -> B.2.2.1 | G82: shodně | H82: B.2.2.1 | J82: z toho | K82: Provozní soubory zajišťované přímo investorem
A83: B.2.2.2 | D83: Technologické práce a dodávky zajišťované přímo investorem | F83: B.2.2.2 | G83: shodně | H83: B.2.2.2 | K83: Technologické práce a dodávky zajišťované přímo investorem
A84: B.2.2.3 | D84: Revize a měření zajišťované investorem | F84: B.2.2.3 | G84: shodně | H84: B.2.2.3 | K84: Revize a měření zajišťované investorem
A85: B.3 | B85: Ostatní náklady pro zajištění realizace stavby | F85: součtová položka | H85: B.3 | I85: Ostatní náklady pro zajištění realizace stavby
A86: B.3.1 | B86: z toho | C86: Osvědčení o shodě notifikovanou osobou v realizaci | F86: =A86 -> B.3.1 | G86: shodně | H86: B.3.1 | I86: z toho | J86: Osvědčení o shodě notifikovanou osobou v realizaci
A87: B.3.2 | C87: Koordinátor BOZP v realizaci | F87: B.3.2 | G87: shodně | H87: B.3.2 | J87: Koordinátor BOZP v realizaci
A88: B.3.3 | C88: Osvědčení o bezpečnosti před uvedením do provozu | F88: B.3.3 | G88: shodně | H88: B.3.3 | J88: Osvědčení o bezpečnosti před uvedením do provozu
A89: B.3.4 | B89: zrušeno | C89: Rekultivace | F89: součást SO-D.2.4 | G89: nová položka | H89: B.3.4 | J89: Geodetická vytyčovací síť celé stavby
A90: B.3.5 | B90: zrušeno | C90: Zajištění veřejných zájmů | F90: součást SO-D.2.4.3 | G90: nová položka | H90: B.3.5 | J90: Odborné dozory, dohledy a průzkumy zajišťované zhotovitelem
A91: B.3.6 | C91: Hlukové měření pro účely realizace stavby | F91: =A91 -> B.3.6 | G91: shodně | H91: B.3.6 | J91: Hlukové měření pro účely realizace stavby
A92: B.3.7 | C92: Náhrady | F92: součtová položka | H92: B.3.7 | J92: Náhrady
A93: B.3.7.1 | C93: z toho | D93: Náhrady za omezení hospodaření | F93: =A93 -> B.3.7.1 | G93: shodně | H93: B.3.7.1 | J93: z toho | K93: Náhrady za omezení hospodaření
A94: B.3.7.2 | D94: Náhrady za omezení provozu | F94: B.3.7.2 | G94: shodně | H94: B.3.7.2 | K94: Náhrady za omezení provozu
A95: B.3.7.3 | D95: Ostatní náhrady v realizaci | F95: B.3.7.3 | G95: shodně | H95: B.3.7.3 | K95: Ostatní náhrady v realizaci
A96: B.3.8 | C96: Zabezpečovací a konzervační práce | F96: B.3.8 | G96: shodně | H96: B.3.8 | J96: Zabezpečovací a konzervační práce
A97: B.3.9 | C97: Ostatní nezařazené náklady v realizaci | F97: B.3.9 | G97: shodně | H97: B.3.9 | J97: Ostatní nezařazené náklady v realizaci
A98: B.3.10 | C98: Jiné náklady v realizaci | F98: B.3.10 | G98: shodně | H98: B.3.10 | J98: Jiné náklady v realizaci
A99: B.3.11 | C99: Stavební náklady z rozdílu stádia přípravy a realizace | F99: B.3.11 | G99: shodně | H99: B.3.11 | J99: Stavební náklady z rozdílu stádia přípravy a realizace
A100: B.4 | B100: Příspěvky jiným investorům | F100: součtová položka | H100: B.4 | I100: Příspěvky jiným investorům
A101: B.4.1 | B101: z toho | C101: Podíl na účelně vynaložených nákl. ve smyslu zák. č.458/00 Sb. | F101: =A101 -> B.4.1 | G101: shodně | H101: B.4.1 | I101: z toho | J101: Podíl na účelně vynaložených nákl. ve smyslu zák. č.458/00 Sb.
A102: B.4.2 | C102: Podíl na účelně vynaložených nákladech dle zákona č. 127/2005 Sb. | F102: B.4.2 | G102: shodně | H102: B.4.2 | J102: Podíl na účelně vynaložených nákladech dle zákona č. 127/2005 Sb.
A103: B.4.3 | C103: Ostatní příspěvky | F103: B.4.3 | G103: shodně | H103: B.4.3 | J103: Ostatní příspěvky
A104: B.5 | B104: Rezerva | F104: B.5 | G104: shodně | H104: B.5 | I104: Rezerva
A105: B.6 | B105: Náklady na realizaci stavby bez rezervy | F105: součtová položka nově bez inflace | H105: B.6 | I105: Náklady na realizaci stavby bez rezervy a inflace
A106: B.7 | B106: Náklady na realizaci stavby celkem s rezervou | F106: nově položka bez inflace | H106: B.7 | I106: Náklady na realizaci stavby celkem s rezervou a bez inflace
G107: nová položka | H107: B.8 | I107: Náklady na realizaci stavby celkem s rezervou a inflací
H108: z toho
I109: B.8.1 | J109: inflace ze ZRN jednotlivých SO
I110: B.8.2 | J110: inflace ze ZRN jednotlivých PS
I111: B.8.3 | J111: inflace z rezervy stavby

Sheet Krycí list SR
B1: Souhrnný rozpočet stavby v přípravě | G1: Krycí list SR | H1: SRP/2025/03 | V1: Souhrnný rozpočet stavby v přípravě | AA1: Krycí list SR | AB1: SRP/2024/02 | AD1: =IF(PN!J62="ANO","Stádium 3",IF(E3="Stádium 3","Stádium 3","PHVZ nezobrazena")) -> PHVZ nezobrazena
A2: Název stavby: | I2: =IF(B2="","<= Zadat název stavby","") -> <= Zadat název stavby | U2: Název stavby: | AD2: Zástupce investor pro výběr v řádku "D": | AF2: STÁDIUM - vybrat v poli E3 | AI2: Podmínky pro rok výběrového řízení
A3: ISPROFIN: | C3: Označení (S-kód): | F3: =IF($E$3="","<= vybrat Stádium v poli E3",LOOKUP($E$3,$AF$3:$AF$6,$AG$3:$AG$6)) -> <= vybrat Stádium v poli E3 | I3: =IF(B3="","<= Zadat ISPROFIN v poli B3",IF(D3="","<= Zadat Označení (S kód) stavby v poli D3",IF(E3="","<=Vybrat stádium v poli E3",IF(E3="Stádium 3",IF(H3="-","<= Vybrat typ projektové dokumentace v poli H3",IF(H3="","<= Vybrat typ projektové dokumentace v poli H3","")),"")))) -> <= Zadat ISPROFIN v poli B3 | U3: ISPROFIN: | W3: Označení (S-kód): | Z3: =IF($E$3="","<= vybrat Stádium v poli E3",LOOKUP($E$3,$AF$3:$AF$6,$AG$3:$AG$6)) -> <= vybrat Stádium v poli E3 | AD3: Stavební správa západ, Ke Štvanici 656/3,186 00 Praha 8 | AF3: Stádium 0 | AG3: před zahájením přípravy | AI3: =IF(E3="Stádium 3",IF(G7="","Vybrat předpokládané čtvrteltí z roku v kterém bude zahájeno výběrové řízení na realizaci - v poli G7.",""),"") ->  | AJ3: =IF(E3="Stádium 3",IF(H7="","Vyplnit předpokládaný rok zahájení výběrového řízení na realizaci v poli H7.",""),"") ->  | AK3: =IF(E3="Stádium 3",IF(H7="","",IF(H7<H4,"Zahájení výběrového řízení nemůže být uvedeno před Aktuálním rokem.","")),"") ->  | AL3: =IF((AI4+AJ4+AK4)=0,"","<=") -> 
A4: Investor: | B4: Správa železnic, státní organizace | E4: Zahájení přípravy stavby (první fakturace) | G4: Aktuální rok | H4: 2025 | I4: =IF(H4="","<= Určit aktuální rok",(IF(F4="","<= Vyplnit rok zahájení přípravy stavby dle proběhlé první fakturace SŽ",""))) -> <= Vyplnit rok zahájení přípravy stavby dle proběhlé první fakturace SŽ | U4: Investor: | V4: Správa železnic, státní organizace | Y4: Zahájení přípravy stavby (první fakturace) | AA4: Aktuální rok | AD4: Stavební správa východ, Nerudova 773/1, 772 58 Olomouc | AF4: Stádium 1 | AG4: záměr projektu (ZP) | AI4: =IF(AI3="",0,1) -> 0 | AJ4: =IF(AJ3="",0,1) -> 0 | AK4: =IF(AK3="",0,1) -> 0
A5: =IF(B5="","Vybrat zástupce investora =>","Zástupce investora:") -> Vybrat zástupce investora => | E5: Rok ocenění stavebních nákladů SO/PS: (mimo OTSKP viz komentář) | G5: =IF(('3SO'!V4+'3PS'!V4)>0,"Rok OTSKP/SŽ DUR/SPOŽES:*)","") ->  | H5: 2025 | I5: =IF(H4="","",IF(F5="","<= Vyplnit pole F5, tj. rok vypracování položkových rozpočtů v listech 3SO a 3PS",IF(('3SO'!V4+'3PS'!V4)>0,IF(H5="","<= Vyplnit pole H5, tj. rok vydání cenové soustavy OTSKP použité v položkových rozpočtech",IF((IF(F5>H4,1,IF(H5>H4,1,0)))=1,"<= !Chyba - Nelze uvést výše než Aktuální rok, nebo není Aktuální rok zadán","")),""))) -> <= Vyplnit pole F5, tj. rok vypracování položkových rozpočtů v listech 3SO a 3PS | U5: =IF(V5="","Vybrat zástupce investora =>","Zástupce investora:") -> Vybrat zástupce investora => | Y5: Rok ocenění stavebních nákladů SO/PS: (mimo OTSKP viz komentář) | AA5: =IF(('3SO'!AP4+'3PS'!AP4)>0,"Rok OTSKP/SŽ DUR/SPOŽES:*)","") ->  | AB5: 2023 | AD5: Stavební správa vysokorychlostních tratí, V Celnici 1028/10, 110 00 Praha 1 | AF5: Stádium 2 | AG5: dokumentace pro územní řízení DUR/povolení záměru dle NSZ
A6: =IF(B6="","Vybrat pracoviště =>","Pracoviště:") -> Vybrat pracoviště => | E6: Předpokládané období realizace stavby: | U6: =IF(V6="","Vybrat pracoviště =>","Pracoviště:") -> Vybrat pracoviště => | Y6: Předpokládané období realizace stavby: | AD6: Oblastní ředitelství | AF6: Stádium 3 | AG6: projektová dokumentace
A7: Jiný investor: | B7: - | E7: =IF(E3="Stádium 3","Výběrové řízení na realizaci: (čtvrtletí/rok)","") ->  | G7: 4.Q | H7: 2024 | I7: =IF(AK4=1,CONCATENATE(AL3," ",AK3),CONCATENATE(AL3," ",AJ3," ",AI3)) ->  | U7: Jiný investor: | V7: - | Y7: =IF(Y3="Stádium 3","Výběrové řízení na realizaci: (čtvrtletí/rok)","") ->  | AA7: 1.Q | AB7: 2024 | AD7: SŽ Facility, Dlážděná1003/7, 110 00 Praha 1
A8: Majetek: | B8: =IF(('1C'!J19+'1C'!K19)=0,"",IF(('3SO'!D7+'3SO'!D9+'3PS'!D7+'3PS'!D9)>0,"SŽ a Ostatní","SŽ")) ->  | C8: IČO: | D8: 70994234 | E8: Zahájení realizace stavby zhotovitelem: | G8: =IF(MIN('3SO'!E9,'3PS'!E9)=0,"",MIN('3SO'!E9,'3PS'!E9)) ->  | U8: Majetek: | V8: =IF(('1C'!AD19+'1C'!AE19)=0,"",IF(('3SO'!X7+'3SO'!X9+'3PS'!X7+'3PS'!X9)>0,"SŽ a Ostatní","SŽ")) ->  | W8: IČO: | X8: 70994234 | Y8: Zahájení realizace stavby zhotovitelem: | AA8: =IF(MIN('3SO'!Y9,'3PS'!Y9)=0,"",MIN('3SO'!Y9,'3PS'!Y9)) -> 
A9: =IF(B9="","Kategorie dráhy =>","Kategorie dráhy:") -> Kategorie dráhy => | C9: DIČ: | D9: CZ70994234 | E9: Ukončení stavebních prací v realizaci stavby: | G9: =IF(MAX('3SO'!F9,'3PS'!F9)=0,"",MAX('3SO'!F9,'3PS'!F9)) ->  | U9: =IF(V9="","Kategorie dráhy =>","Kategorie dráhy:") -> Kategorie dráhy => | W9: DIČ: | X9: CZ70994234 | Y9: Ukončení stavebních prací v realizaci stavby: | AA9: =IF(MAX('3SO'!Z9,'3PS'!Z9)=0,"",MAX('3SO'!Z9,'3PS'!Z9)) -> 
A10: =IF(B10="","Kraj =>","Kraj:") -> Kraj => | C10: - | D10: - | E10: =IF(A11="Vyplnit listy 3SO a 3PS","Ukončení stavby - vyplnit listy 3SO a 3PS","Ukončení stavby:") -> Ukončení stavby - vyplnit listy 3SO a 3PS | G10: =IF(G9="","",G9+'2A'!G38+'2A'!G62) ->  | U10: =IF(V10="","Kraj =>","Kraj:") -> Kraj => | W10: - | X10: - | Y10: =IF(U11="Vyplnit listy 3SO a 3PS","Ukončení stavby - vyplnit listy 3SO a 3PS","Ukončení stavby:") -> Ukončení stavby: | AA10: =IF(AA9="","",AA9+'2A'!AA38+'2A'!AA62) -> 
A11: =IF(H4="","",IF(('3SO'!G6+'3PS'!G6)=0,"Vyplnit listy 3SO a 3PS",IF(F4="","",IF(G10="","",CONCATENATE("Smíšená cenová úroveň ",F4," / ",YEAR(G10)))))) -> Vyplnit listy 3SO a 3PS | G11: náklady v Kč | U11: =IF(AB4="","",IF(('3SO'!AA6+'3PS'!AA6)=0,"Vyplnit listy 3SO a 3PS",IF(Z4="","",IF(AA10="","",CONCATENATE("Smíšená cenová úroveň ",Z4," / ",YEAR(AA10)))))) ->  | AA11: náklady v Kč
A12: C.1 | B12: Pořizovací investiční náklady | F12: PIN | G12: ='2C'!H7 -> 0 | I12: =IF('Krycí list SR'!H4="","",IF(('3SO'!G6+'3PS'!G6)=0,"<=Pro výpočet CIN je nutné vyplnit listy 3SO a 3PS","")) -> <=Pro výpočet CIN je nutné vyplnit listy 3SO a 3PS | U12: C.1 | V12: Pořizovací investiční náklady | Z12: PIN | AA12: ='2C'!AB7 -> 0
A13: C.1.1 | B13: Celkové investiční náklady z plánovaných investičních zdrojů | F13: CIN | G13: ='2C'!H8 -> 0 | U13: C.1.1 | V13: Celkové investiční náklady z plánovaných investičních zdrojů | Z13: CIN | AA13: ='2C'!AB8 -> 0
B14: z toho | C14: Náklady na přípravu a celkové zabezpečení výstavby | G14: ='2C'!H9 -> 0 | V14: z toho | W14: Náklady na přípravu a celkové zabezpečení výstavby | AA14: ='2C'!AB9 -> 0
C15: Náklady na realizaci stavby bez rezervy | G15: ='2C'!H10 -> 0 | W15: Náklady na realizaci stavby bez rezervy | AA15: ='2C'!AB10 -> 0
C16: Rezerva stavby | G16: ='2C'!H11 -> 0 | W16: Rezerva stavby | AA16: ='2C'!AB11 -> 0
C17: Předpokládaná výše inflace | G17: ='2C'!H12 -> 0 | W17: Předpokládaná výše inflace | AA17: ='2C'!AB12 -> 0
A18: C.1.2 | B18: Hodnota zůstatkového majetku SŽ, který bude stavbou odstraněn | G18: ='2C'!H13 -> 0 | U18: C.1.2 | V18: Hodnota zůstatkového majetku SŽ, který bude stavbou odstraněn | AA18: ='2C'!AB13 -> 0
A19: C.2 | B19: Provozní náklady | F19: PRN | G19: ='2C'!H14 -> 0 | U19: C.2 | V19: Provozní náklady | Z19: PRN | AA19: ='2C'!AB14 -> 0
A20: C.3 | B20: Příjmy generované stavbou | G20: ='2C'!H15 -> 0 | U20: C.3 | V20: Příjmy generované stavbou | AA20: ='2C'!AB15 -> 0
A22: C.4 | B22: Celkové náklady stavby bez DPH | F22: CNS | G22: ='2C'!H19 -> 0 | U22: C.4 | V22: Celkové náklady stavby bez DPH | Z22: CNS | AA22: ='2C'!AB19 -> 0
A23: C.5 | B23: Daň z přidané hodnoty | F23: DPH | G23: ='2C'!H21 -> 0 | I23: NE | J23: Bude stavba zadávaná v režimu D&B? | L23: =IF($AD$1="Stádium 3",SUM(M26:M37),"") ->  | U23: C.5 | V23: Daň z přidané hodnoty | Z23: DPH | AA23: ='2C'!AB21 -> 0
A24: C.6 | B24: Celkové náklady stavby vč. DPH | F24: CNS | G24: ='2C'!H23 -> 0 | I24: =IF(PN!$J$62="ANO","pro stanovení PHVZ je nutné vybrat činnosti které budou předmětem plnění zhotovitele u D&B na projektové práce:","") ->  | U24: C.6 | V24: Celkové náklady stavby vč. DPH | Z24: CNS | AA24: ='2C'!AB23 -> 0
I25: =IF(PN!$J$62="ANO","Proveď volbu ANO/NE","") -> 
A26: Poznámka: | J26: =IF(PN!$J$62="ANO",PN!B63,"") ->  | K26: =IF(PN!$J$62="ANO",PN!C63,"") ->  | M26: =PN!F63 -> 0 | U26: Poznámka:
A27: *) V případě rozdílu mezi rokem použité cenové soustavy případně rokem ocenění stavebních nákladů a Aktuálním rokem je v cenách SO/PS zohledněna míra inflace rozdílu let. | J27: =IF(PN!$J$62="ANO",PN!B64,"") ->  | K27: =IF(PN!$J$62="ANO",PN!C64,"") ->  | M27: =PN!F64 -> 0 | U27: *) V případě rozdílu mezi rokem použité cenové soustavy případně rokem ocenění stavebních nákladů a Aktuálním rokem je v cenách SO/PS zohledněna míra inflace rozdílu let.
A28: =IF('3SO'!Q10="Chyba","Chyba v listu 3SO není u některých nákladů přiřazená cenová soustava!",IF('3PS'!Q10="Chyba","Chyba v listu 3PS není u některých nákladů přiřazená cenová soustava!","")) ->  | J28: =IF(PN!$J$62="ANO",PN!B65,"") ->  | K28: =IF(PN!$J$62="ANO",PN!C65,"") ->  | M28: =PN!F65 -> 0 | U28: =IF('3SO'!AK10="Chyba","Chyba v listu 3SO není u některých nákladů přiřazená cenová soustava!",IF('3PS'!AK10="Chyba","Chyba v listu 3PS není u některých nákladů přiřazená cenová soustava!","")) -> 
J29: =IF(PN!$J$62="ANO",PN!B66,"") ->  | K29: =IF(PN!$J$62="ANO",PN!C66,"") ->  | M29: =PN!F66 -> 0
J30: =IF(PN!$J$62="ANO",PN!B67,"") ->  | K30: =IF(PN!$J$62="ANO",PN!C67,"") ->  | M30: =PN!F67 -> 0
J31: =IF(PN!$J$62="ANO",PN!B68,"") ->  | K31: =IF(PN!$J$62="ANO",PN!C68,"") ->  | M31: =PN!F68 -> 0
J32: =IF(PN!$J$62="ANO",PN!B69,"") ->  | K32: =IF(PN!$J$62="ANO",PN!C69,"") ->  | M32: =PN!F69 -> 0
J33: =IF(PN!$J$62="ANO",PN!B70,"") ->  | K33: =IF(PN!$J$62="ANO",PN!C70,"") ->  | M33: =PN!F70 -> 0
J34: =IF(PN!$J$62="ANO",PN!B71,"") ->  | K34: =IF(PN!$J$62="ANO",PN!C71,"") ->  | M34: =PN!F71 -> 0
J35: =IF(PN!$J$62="ANO",PN!B72,"") ->  | K35: =IF(PN!$J$62="ANO",PN!C72,"") ->  | M35: =PN!F72 -> 0
J36: =IF(PN!$J$62="ANO",PN!B73,"") ->  | K36: =IF(PN!$J$62="ANO",PN!C73,"") ->  | M36: =PN!F73 -> 0
J37: =IF(PN!$J$62="ANO",PN!B74,"") ->  | K37: =IF(PN!$J$62="ANO",PN!C74,"") ->  | M37: =PN!F74 -> 0
A38: =IF(PN!J62="ANO","Předpokládaná hodnota veřejné zákázky na D&B v rozčlenění:",IF($AD$1="Stádium 3","Předpokládaná hodnota veřejné zákázky na zhotovení stavby v rozčlenění:","")) ->  | G38: =IF(AD1="Stádium 3",(G39+G44),"") ->  | I38: =IF($AD$1="Stádium 3","Předpokládaná hodnota veřejné zakázky na zhotovení stavby dle aktuálního SR:","") ->  | U38: =IF(PN!AD62="ANO","Předpokládaná hodnota veřejné zákázky na D&B v rozčlenění:",IF($AD$1="Stádium 3","Předpokládaná hodnota veřejné zákázky na zhotovení stavby v rozčlenění:","")) ->  | AA38: =IF(AX1="Stádium 3",(AA39+AA44),"") -> 
A39: =IF($AD$1="Stádium 3","z toho","") ->  | B39: =IF($AD$1="Stádium 3","Náklady zhotovitelem oceněných prací","") ->  | G39: =IF(AD1="Stádium 3",SUM(G40:H43)-G47,"") ->  | I39: =IF($AD$1="Stádium 3","Od celkového součtu je odečtená hodnota vyhrazených dodávek a prací z v položkových rozpočtů SO/PS pro JŘSU (viz hodnota v poli H45)","") ->  | U39: =IF($AD$1="Stádium 3","z toho","") ->  | V39: =IF($AD$1="Stádium 3","Náklady zhotovitelem oceněných prací","") ->  | AA39: =IF(AX1="Stádium 3",SUM(AA40:AB43)-AA47,"") -> 
A40: =IF($I$21="ANO",IF($E$3="Stádium 2",IF('1A'!I28>0,'1A'!A28,IF('1A'!I29>0,'1A'!A29,"")),""),"") ->  | B40: =IF($AD$1="Stádium 3","z toho","") ->  | C40: =IF($AD$1="Stádium 3","B.1.1.1 a B.1.1.2 - ZRN a VRN (SO) a poměrná část inflace dle zahájení výběrového řízení","") ->  | G40: =IF(AD1="Stádium 3",'3SO'!G6+'3SO'!M9+'3SO'!Y4-'3SO'!AH8,"") ->  | I40: =IF($AD$1="Stádium 3"," - B.1.1.1 (ZRN) + B.1.1.2 (VRN) - součet nákladů za SO, které bude zhotovitel oceňovat v soupisech prací.","") ->  | U40: =IF($I$21="ANO",IF($E$3="Stádium 2",IF('1A'!AD28>0,'1A'!V28,IF('1A'!AD29>0,'1A'!V29,"")),""),"") ->  | V40: =IF($AD$1="Stádium 3","z toho","") ->  | W40: =IF($AD$1="Stádium 3","B.1.1.1 a B.1.1.2 - ZRN a VRN (SO) a poměrná část inflace dle zahájení výběrového řízení","") ->  | AA40: =IF(AX1="Stádium 3",'3SO'!AA6+'3SO'!AG9+'3SO'!AS4-'3SO'!BB8,"") -> 
A41: =IF($I$21="ANO",IF($E$3="Stádium 2",IF('1A'!I34>0,'1A'!A34,""),""),"") ->  | C41: =IF($AD$1="Stádium 3","B.2.1.1 a B.2.1.2 - ZRN a VRN (PS) a poměrná část inflace dle zahájení výběrového řízení","") ->  | G41: =IF(AD1="Stádium 3",'3PS'!G6+'3PS'!M9+'3PS'!Y4-'3PS'!AH8,"") ->  | I41: =IF($AD$1="Stádium 3"," - B.2.1.1 (ZRN) + B.2.1.2 (VRN) - součet nákladů za PS, které bude zhotovitel oceňovat v soupisech prací.","") ->  | U41: =IF($I$21="ANO",IF($E$3="Stádium 2",IF('1A'!AD34>0,'1A'!V34,""),""),"") ->  | W41: =IF($AD$1="Stádium 3","B.2.1.1 a B.2.1.2 - ZRN a VRN (PS) a poměrná část inflace dle zahájení výběrového řízení","") ->  | AA41: =IF(AX1="Stádium 3",'3PS'!AA6+'3PS'!AG9+'3PS'!AS4-'3PS'!BB8,"") -> 
A42: =IF($I$21="ANO",IF($E$3="Stádium 2",IF('1A'!I35>0,'1A'!A35,""),""),"") ->  | C42: =IF($AD$1="Stádium 3","Všeobecný objekt","") ->  | G42: =IF(AD1="Stádium 3",PN!F61,"") ->  | I42: =IF($AD$1="Stádium 3","- v případě, že jsou vybrané činnosti (nezahrnuté v SO a PS) předmětem plnění zhotovitele musí být pro správné načtení v sloupci G listů 1A a 1B označení Všeobecný objekt."&" Jedná se o položky: A.2.2.4; A.2.5; A.4.2; A.5.1.1; A.5.3.3; B.3.1; B.3.3; B.3.4; B.3.5; B.3.6; B.3.7.1; B.3.9)","") ->  | U42: =IF($I$21="ANO",IF($E$3="Stádium 2",IF('1A'!AD35>0,'1A'!V35,""),""),"") ->  | W42: =IF($AD$1="Stádium 3","Všeobecný objekt","") ->  | AA42: =IF(AX1="Stádium 3",PN!Z61,"") -> 
A43: =IF($I$21="ANO",IF($E$3="Stádium 2",IF('1A'!I36>0,'1A'!A36,""),""),"") ->  | C43: =IF(PN!$J$62="ANO","Příprava pro D&B","") ->  | G43: =IF(PN!$J$62="ANO",PN!F75,"") ->  | I43: =IF($AD$1="Stádium 3","- pole pro projektovou přípravu pro D&B","") ->  | U43: =IF($I$21="ANO",IF($E$3="Stádium 2",IF('1A'!AD36>0,'1A'!V36,""),""),"") ->  | W43: =IF(PN!$J$62="ANO","Příprava pro D&B","") ->  | AA43: =IF(PN!$J$62="ANO",PN!Z75,"") -> 
A44: =IF($I$21="ANO",IF($AD$1="Stádium 3","z toho",IF($E$3="Stádium 2",IF('1A'!I36>0,'1A'!A36,""),"")),"") ->  | B44: =IF($AD$1="Stádium 3","Předpokládaná hodnota souvisejících plnění","") ->  | G44: =IF(AD1="Stádium 3",SUM(G45:H50),"") ->  | U44: =IF($I$21="ANO",IF($AD$1="Stádium 3","z toho",IF($E$3="Stádium 2",IF('1A'!AD36>0,'1A'!V36,""),"")),"") ->  | V44: =IF($AD$1="Stádium 3","Předpokládaná hodnota souvisejících plnění","") ->  | AA44: =IF(AX1="Stádium 3",SUM(AA45:AB50),"") -> 
A45: =IF($I$21="ANO",IF($E$3="Stádium 2",IF('1A'!I37>0,'1A'!A37,""),""),"") ->  | B45: =IF($AD$1="Stádium 3","z toho","") ->  | C45: =IF($AD$1="Stádium 3","Vyhrazené změny závazků ze smlouvy (např. doměrky RED FIDIC)","") ->  | G45: =IF(AD1="Stádium 3",IF(F45="nezařazeno",0,IF(F45="zařazeno",4%*('2B'!H9+'2B'!H17),"")),"") ->  | I45: =IF($AD$1="Stádium 3","- v poli F45 zvol zda je zařazeno. Dopočítá se automaticky 40% z rezervy B.5","") ->  | M45: =IF(F45="",1,2) -> 1 | U45: =IF($I$21="ANO",IF($E$3="Stádium 2",IF('1A'!AD37>0,'1A'!V37,""),""),"") ->  | V45: =IF($AD$1="Stádium 3","z toho","") ->  | W45: =IF($AD$1="Stádium 3","Vyhrazené změny závazků ze smlouvy (např. doměrky RED FIDIC)","") ->  | AA45: =IF(AX1="Stádium 3",IF(Z45="nezařazeno",0,IF(Z45="zařazeno",4%*('2B'!AB9+'2B'!AB17),"")),"") -> 
B46: =IF($I$21="ANO",IF($AD$1="Stádium 3","z toho",""),"") ->  | C46: =IF($AD$1="Stádium 3","Hodnota zadavatelem poskytnutých služeb/stavebních prací, které jsou nezbytné pro plnění zakázky","") ->  | G46: =IF(AD1="Stádium 3",'3SO'!I8+'3PS'!I8,"") ->  | I46: =IF($AD$1="Stádium 3","- zařazeno v položkách B.1.2 nebo B.2.2.","") ->  | V46: =IF($I$21="ANO",IF($AD$1="Stádium 3","z toho",""),"") ->  | W46: =IF($AD$1="Stádium 3","Hodnota zadavatelem poskytnutých služeb/stavebních prací, které jsou nezbytné pro plnění zakázky","") ->  | AA46: =IF(AX1="Stádium 3",'3SO'!AC8+'3PS'!AC8,"") -> 
C47: =IF($AD$1="Stádium 3","Hodnotu nákladů na nové práce, na jejichž poskytnutí si zadavatel vyhrazuje možnost použití JŘBU","") ->  | I47: =IF($AD$1="Stádium 3","- jedná se o náklady na činnosti, vyhrazené jako opce (§66 ZZVZ) např. následná směrová a výšková úprava, náklady jsou standardně zahrnuté v B.1.1.1 nebo B.2.1.1 a automaticky se odečítají od Předpokládané hodnoty plnění zhotovitele","") ->  | W47: =IF($AD$1="Stádium 3","Hodnotu nákladů na nové práce, na jejichž poskytnutí si zadavatel vyhrazuje možnost použití JŘBU","") -> 
C48: =IF($AD$1="Stádium 3","Hodnota vývoje inflace v letech po odečtení zohledněné poměrné části v ZRN SO/PS","") ->  | G48: =IF(AD1="Stádium 3",('2B'!H46+'2B'!H48)-('3SO'!Y4+'3PS'!Y4)+('3SO'!AH8+'3PS'!AH8),"") ->  | W48: =IF($AD$1="Stádium 3","Hodnota vývoje inflace v letech po odečtení zohledněné poměrné části v ZRN SO/PS","") ->  | AA48: =IF(AX1="Stádium 3",('2B'!AB46+'2B'!AB48)-('3SO'!AS4+'3PS'!AS4)+('3SO'!BB8+'3PS'!BB8),"") -> 
C49: =IF($AD$1="Stádium 3","Poskytování součinnost na dobu 25 let od dokončení stavby","") ->  | I49: =IF($AD$1="Stádium 3","- náklady vyčíslené nad rámec CIN určené na činnosti pro zajištění součinnosti týkající se všech zabezpečovacích zařízení a všech návazných zařízení, která mají rozhraní se zabezpečovacím zařízením, dodaných v rámci stavby","") ->  | W49: =IF($AD$1="Stádium 3","Poskytování součinnost na dobu 25 let od dokončení stavby","") -> 
C50: =IF($AD$1="Stádium 3","Inflace na dobu 25 let od dokončení Díla pro činnosti související s poskytováním součinnosti","") ->  | I50: =IF($AD$1="Stádium 3","- inflace k nákladům pro zajištění součinnosti pro období nad 25 let od dokončení stavby","") ->  | W50: =IF($AD$1="Stádium 3","Inflace na dobu 25 let od dokončení Díla pro činnosti související s poskytováním součinnosti","") -> 
A51: Vypracoval : | D51: Zástupce investora kontroloval: | I51: =IF(AD1="Stádium 3","Všeobecný objekt musí zahrnovat níže uvedené nenulové položky:","") ->  | M51: =IF($AD$1="Stádium 3",SUM(I52:I65),"") ->  | U51: Vypracoval : | X51: Zástupce investora kontroloval:
I52: =IF($AD$1="Stádium 3",(IF('2A'!G37>0,'2A'!G37,"")),"") ->  | J52: =IF($AD$1="Stádium 3",'1A'!A37,"") ->  | K52: =IF($AD$1="Stádium 3",'1A'!D37,"") ->  | M52: =IF($AD$1="Stádium 3",IF(I52="","Nezařazeno","Zařazeno"),"") -> 
A53: Datum : | D53: Datum : | I53: =IF($AD$1="Stádium 3",(IF('1A'!G38="Všeobecný objekt",'1A'!J38,"")),"") ->  | J53: =IF($AD$1="Stádium 3",'1A'!A38,"") ->  | K53: =IF($AD$1="Stádium 3",'1A'!C38,"") ->  | M53: =IF($AD$1="Stádium 3",IF(I53="","Nezařazeno","Zařazeno"),"") ->  | U53: Datum : | X53: Datum :
A54: Podpis: | D54: Podpis: | I54: =IF($AD$1="Stádium 3",(IF('1A'!G43="Všeobecný objekt",'1A'!O43,"")),"") ->  | J54: =IF($AD$1="Stádium 3",'1A'!A43,"") ->  | K54: =IF($AD$1="Stádium 3",'1A'!C43,"") ->  | U54: Podpis: | X54: Podpis:
I55: =IF($AD$1="Stádium 3",(IF('1A'!G44="Všeobecný objekt",'1A'!O44,"")),"") ->  | J55: =IF($AD$1="Stádium 3",'1A'!A44,"") ->  | K55: =IF($AD$1="Stádium 3",'1A'!C44,"") -> 
A56: GŘ SŽ s.o.: | I56: =IF($AD$1="Stádium 3",(IF('1A'!G45="Všeobecný objekt",'1A'!O45,"")),"") ->  | J56: =IF($AD$1="Stádium 3",'1A'!A45,"") ->  | K56: =IF($AD$1="Stádium 3",'1A'!C45,"") ->  | U56: GŘ SŽ s.o.:
I57: =IF($AD$1="Stádium 3",(IF('1A'!G48="Všeobecný objekt",'1A'!O48,"")),"") ->  | J57: =IF($AD$1="Stádium 3",'1A'!A48,"") ->  | K57: =IF($AD$1="Stádium 3",'1A'!C48,"") -> 
I58: =IF($AD$1="Stádium 3",'1A'!H58,"") ->  | J58: =IF($AD$1="Stádium 3",'1A'!A58,"") ->  | K58: =IF($AD$1="Stádium 3",'1A'!D58,"") ->  | M58: =IF($AD$1="Stádium 3",IF(I58=0,"Nezařazeno","Zařazeno"),"") -> 
I59: =IF($AD$1="Stádium 3",(IF('1B'!G25="Všeobecný objekt",'1B'!N25,"")),"") ->  | J59: =IF($AD$1="Stádium 3",'1B'!A25,"") ->  | K59: =IF($AD$1="Stádium 3",'1B'!C25,"") ->  | M59: =IF($AD$1="Stádium 3",IF(I59="","Nezařazeno","Zařazeno"),"") -> 
I60: =IF($AD$1="Stádium 3",(IF('1B'!G27="Všeobecný objekt",'1B'!N27,"")),"") ->  | J60: =IF($AD$1="Stádium 3",'1B'!A27,"") ->  | K60: =IF($AD$1="Stádium 3",'1B'!C27,"") -> 
I61: =IF($AD$1="Stádium 3",(IF('1B'!G28="Všeobecný objekt",'1B'!N28,"")),"") ->  | J61: =IF($AD$1="Stádium 3",'1B'!A28,"") ->  | K61: =IF($AD$1="Stádium 3",'1B'!C28,"") -> 
I62: =IF($AD$1="Stádium 3",(IF('1B'!G29="Všeobecný objekt",'1B'!N29,"")),"") ->  | J62: =IF($AD$1="Stádium 3",'1B'!A29,"") ->  | K62: =IF($AD$1="Stádium 3",'1B'!C29,"") -> 
I63: =IF($AD$1="Stádium 3",(IF('1B'!G30="Všeobecný objekt",'1B'!N30,"")),"") ->  | J63: =IF($AD$1="Stádium 3",'1B'!A30,"") ->  | K63: =IF($AD$1="Stádium 3",'1B'!C30,"") -> 
I64: =IF($AD$1="Stádium 3",(IF('1B'!G32="Všeobecný objekt",'1B'!N32,"")),"") ->  | J64: =IF($AD$1="Stádium 3",'1B'!A32,"") ->  | K64: =IF($AD$1="Stádium 3",'1B'!D32,"") -> 
I65: =IF($AD$1="Stádium 3",(IF('1B'!G36="Všeobecný objekt",'1B'!N36,"")),"") ->  | J65: =IF($AD$1="Stádium 3",'1B'!A36,"") ->  | K65: =IF($AD$1="Stádium 3",'1B'!C36,"") -> 

Sheet 1A_PHVZ (hidden)
A1: =CONCATENATE("Náklady stavby v aktuálním roce: ",IF('Krycí list SR'!H4="","",'Krycí list SR'!H4)) -> Náklady stavby v aktuálním roce: 2025 | G1: Stanovení předpokládané hodnoty veřejné zakázky v přípravě | L1: ='Krycí list SR'!$H$1 -> SRP/2025/03 | P1: CIN: | R1: ='Krycí list SR'!G13 -> 0 | AK1: náklady A.3 + A.4 | AM1: =K47+K51 -> 0 | AN1: NÁKLADY VÝPOČTEM | AU1: =CONCATENATE("Náklady stavby v aktuálním roce: ",IF('Krycí list SR'!BA4="","",'Krycí list SR'!BA4)) -> Náklady stavby v aktuálním roce: | BE1: Formulář 1.A | BF1: ='Krycí list SR'!$H$1 -> SRP/2025/03 | BI1: 0 | BJ1: =V6 -> 50 | BK1: 200 | BL1: 1000 | BM1: 2000 | BN1: =AA6 -> 5000
A2: Název stavby: | C2: =IF('Krycí list SR'!B2="","",'Krycí list SR'!B2) ->  | P2: Podklad pro kontrolu výpočtu individuální kalkulace | AA2: =AO2 -> 0 | AH2: =AM1+AM2+AM4+AO3+AO4+AQ3 -> 0 | AK2: předpokládané nestavební náklady | AM2: =AM3*(AO4+AO3) -> 0 | AN2: Teoretický CIN | AO2: =AM1+AM2+AM4+AO3+AO4+AQ3 -> 0 | AP2: rozdíl mezi teoretickým CIM a skutečným | AQ2: ='1A'!AO2/'Krycí list SR'!G13-100% ->  | AU2: Název stavby: | AW2: =IF('Krycí list SR'!AU2="","",'Krycí list SR'!AU2) ->  | BI2: 1 | BJ2: 2 | BK2: 3 | BL2: 4 | BM2: 5 | BN2: 7
A3: ISPROFIN: | C3: =IF('Krycí list SR'!$B$3="","",'Krycí list SR'!$B$3) ->  | E3: Označení (S-kód): | G3: =IF('Krycí list SR'!D3="","",'Krycí list SR'!D3) ->  | I3: =IF('Krycí list SR'!E3="","",'Krycí list SR'!E3) ->  | K3: =IF('Krycí list SR'!F3="<= vybrat Stádium v poli E3","",'Krycí list SR'!F3) ->  | P3: CIN Aktuální rok: | R3: ='1C'!I9 -> 0 | T3: B.1 | U3: =AO3 -> 0 | AM3: =IF(($AO$3+$AO$4)<50000000,23%,IF(($AO$3+AO4)>2000000000,8%,23%-(((($AO$3+AO4)/2000000000)*((23%-8%)))))) -> 0.23 | AN3: B.1 (SO) | AO3: =IF('3SO'!G6=0,0,'1B'!K8) -> 0 | AP3: rezerva | AQ3: ='1B'!K43 -> 0 | AU3: ISPROFIN: | AW3: =IF('Krycí list SR'!$B$3="","",'Krycí list SR'!$B$3) ->  | AY3: Označení (S-kód): | BA3: =IF('Krycí list SR'!AW3="","",'Krycí list SR'!AW3) ->  | BC3: =IF('Krycí list SR'!AX3="","",'Krycí list SR'!AX3) ->  | BE3: ='Krycí list SR'!AY3 -> 0
A4: Investor: | B4: SŽ | D4: =IF('Krycí list SR'!$B$5="","",'Krycí list SR'!$B$5) ->  | I4: IČO: | J4: ='Krycí list SR'!$D$8 -> 70994234 | K4: DIČ: | L4: ='Krycí list SR'!D9 -> CZ70994234 | T4: B.2 | U4: =AO4 -> 0 | AK4: hodnota z inflace - pro PHVZ se neuvažuje | AN4: B.2 (PS) | AO4: =IF('3PS'!G6=0,0,'1B'!K16) -> 0 | AU4: Investor: | AV4: SŽ | AX4: =IF('Krycí list SR'!$B$5="","",'Krycí list SR'!$B$5) ->  | BC4: IČO: | BD4: ='Krycí list SR'!$D$8 -> 70994234 | BE4: DIČ: | BF4: ='Krycí list SR'!AW9 -> 0 | BH4: Definice intervalu | BI4: =HLOOKUP($AO$2/1000000,BI1:BN2,2,TRUE) -> 1
A5: Jiný investor: | C5: =IF('Krycí list SR'!$B$7="","neurčen",'Krycí list SR'!$B$7) -> - | F5: Doplňující informace k stanovení nákladů | I5: Náklady dle rozdělení v Kč | P5: Tabulky stanovení nákladů | U5: Rozhraní pro procentní sazby (v mil. Kč) | AB5: =AB31+AB32 -> 0 | AC5: =AC31+AC32 -> 0 | AK5: dolní hranice | AL5: horní hranice | AM5: % stavebních nákladů z rozmezí | AN5: rozdíl min/max | AO5: Kč | AP5: Postupná redukce | AR5: redukce % sazby | AS5: redukce % sazby - VÝPOČET | AU5: Jiný investor: | AW5: =IF('Krycí list SR'!$B$7="","neurčen",'Krycí list SR'!$B$7) -> - | AZ5: Doplňující informace k stanovení nákladů | BC5: Náklady dle rozdělení v Kč | BO5: % stavebních nákladů z rozmezí | BP5: % stavebních nákladů ORIG | BQ5: Kč | BR5: Kč ORIG | BS5: Rozdíly!
A6: A | B6: Příprava a celkové zabezpečení stavby | F6: Doplňující informace | H6: Stanovení nákladů | I6: Kalkulací | J6: Výpočtem | K6: Souhrn nákladů | L6: Použitá položka | M6: Pole pro pracovní výpočty bez tisku | N6: procentní sazba | O6: Součet nákladů | P6: sloupec I | U6: 0 | V6: 50 | W6: 200 | X6: 1000 | Y6: 2000 | Z6: 3000 | AA6: 5000 | AB6: maximální hodnota | AC6: Minimální hodnota | AD6: max % | AE6: min% | AF6: % z B.1 | AG6: % z B.2 | AH6: Kontrola překročení llimitní hranice % sazby | AM6: % stavebních nákladů z rozmezí | AP6: =((AO2/5000000000)) -> 0 | AR6: =IF($AO$2>18000000000,(((18000)-(AA6/1000))^2)/1000000000,(((AO2/1000000)-(AA6/1000))^2)/1000000000) -> 2.5e-08 | AS6: =(((18000)-(AA6/1000))^2)/1000000000 -> 0.323820025 | AU6: A | AV6: Příprava a celkové zabezpečení stavby | AZ6: Doplňující informace | BB6: Stanovení nákladů | BC6: Kalkulací Smluvně | BD6: Výpočtem | BE6: Souhrn nákladů | BF6: z toho podíl za Ostatní subjekty
F7: =IF(T111="Chyba","Nelze stanovit výpočtem DUR a DUSL/DUSP",IF(X111="Chyba","Nelze stanovit výpočtem DUSL/DUSP a DSP","")) ->  | P7: Formáty | Q7: 4 | R7: 1 | S7: 2 | U7: =IF(U6*1000000=$AK$8,1,IF(U6*1000000=$AL$8,1,0)) -> 1 | V7: 1 | W7: 0 | X7: 0 | Y7: 0 | Z7: 0 | AA7: 0 | AP7: redukce | AQ7: % nad 5 miliard | AR7: nad 18 miliard | AZ7: =IF(#REF!="Chyba","Nelze stanovit výpočtem DUR a DUSL/DUSP",IF(#REF!="Chyba","Nelze stanovit výpočtem DUSL/DUSP a DSP","")) ->  | BI7: 1 | BJ7: 2 | BK7: 3 | BL7: 4 | BM7: 5 | BN7: 7
A8: A.1 | B8: Náklady investorsko - inženýrské činnosti ve výstavbě | H8: Nezařazeno | J8: =IF(H8="Výpočtem",AO8,0) -> 0 | K8: =O8 -> 0 | L8: =IF(H8="Nezařazeno","NE",IF(I8+J8>0,"ANO","NE")) -> NE | O8: =IF(H8="Nezařazeno",0,IF(H8="Výpočtem",J8,I8)) -> 0 | P8: =IF((IF(H8="Individuálně",1,IF(H8="Smluvně",1,IF(H8="Nezařazeno",2,2))))=1,IF(I8=0,3,1),IF(H8="Výpočtem",4,2)) -> 2 | Q8: Výpočtem | R8: Individuálně | S8: Nezařazeno | U8: 0.08 | V8: 0.08 | W8: 0.07 | X8: 0.05 | Y8: 0.03 | Z8: 0.028 | AA8: 0.02 | AB8: =($U$3*$AF8*AD8+$U$4*$AD8*AG8) -> 0 | AC8: =($U$3*$AF8*AE8+$U$4*$AE8*AG8) -> 0 | AD8: =IF($AO$2>5000000000,AA8,IF($AO$2>2000000000,Y8,IF($AO$2>($X$6*1000000),X8,IF($AO$2>($W$6*1000000),W8,IF($AO$2>($V$6*1000000),V8,U8))))) -> 0.08 | AE8: =IF($AO$2>5000000000,AA8,IF($AO$2>2000000000,Z8,IF($AO$2>($X$6*1000000),Y8,IF($AO$2>($W$6*1000000),X8,IF($AO$2>($V$6*1000000),W8,V8))))) -> 0.08 | AF8: 1 | AG8: 1 | AH8: =IF(I8>AB8,IF(H8="Aktualizace","PŘEKROČENÉ %",IF(H8="Individuálně","PŘEKROČENÉ","OK")),"OK") -> OK | AI8: =IF(AH8="PŘEKROČENÉ %",IF(H8="Výpočtem",0,IF(H8="Smluvně",0,IF(H8="Nezařazeno",0,IF(H8="Individuálně",IF(AH8="PŘEKROČENÉ %",100,1),1)))),0) -> 0 | AJ8: =IF(AH8="PŘEKROČENÉ %",IF(H8="Výpočtem",0,IF(H8="Smluvně",0,IF(H8="Nezařazeno",0,IF(H8="Individuálně",IF(AI8="PŘEKROČENÉ %",0,0),1)))),0) -> 0 | AK8: =IF($AO$2>$Y$6*1000000,$Y$6*1000000,IF($AO$2>($X$6*1000000),$X$6*1000000,IF($AO$2>($W$6*1000000),$W$6*1000000,IF($AO$2>($V$6*1000000),$V$6*1000000,0)))) -> 0 | AL8: =IF($AO$2>$Y$6*1000000,$AA$6*1000000,IF($AO$2>($X$6*1000000),$Y$6*1000000,IF($AO$2>($W$6*1000000),$X$6*1000000,IF($AO$2>($V$6*1000000),$W$6*1000000,$V$6*1000000)))) -> 50000000 | AM8: =IF($AO$2>5000000000,AQ8,IF($AO$2>$AA$6*1000000,AA8,IF($AO$2<Y$6*1000000,(Y8+(((V8-Y8)/($Y$6*1000000))*($Y$6*1000000-$AO$2))),IF($AO$2>$Y$6*1000000,IF($AO$2<$Z$6*1000000,Y8,(AA8+(((Y8-AA8)/($AA$6*1000000))*($AA$6*1000000-$AO$2)))),AA8)))) -> 0.08 | AN8: =IF(AO8=0,0,IF(AM8=0,0,100%-((AB8-AO8)/AB8))) -> 0 | AO8: =ROUND(AM8*(O9+O47+O51+O54+'1B'!I44),0) -> 0 | AP8: =$AA$6*AA8 -> 100 | AQ8: =IF($AO$2>18000000000,AR8,(((AP8-(AP8*$AR$6))*$AP$6/($AO$2/1000000)))) ->  | AR8: =AA8*(1-$AS$6) -> 0.0135235995 | AS8: =H8 -> Nezařazeno | AU8: A.1 | AV8: Náklady investorsko - inženýrské činnosti ve výstavbě | BB8: Výpočtem | BD8: =IF(BB8="Výpočtem",CJ8,0) -> 0 | BE8: =BI8 -> 0.08 | BF8: =BI8*hide!$D$59 -> 0 | BH8: A.1 | BI8: =IF($BI$4=$BI$7,U8,0) -> 0.08
A9: A.2 | B9: Náklady na dokumentace stavby | K9: =O9 -> 0 | L9: =IF(H9="Nezařazeno","NE",IF(I9+J9>0,"ANO","NE")) -> NE | O9: =O10+O21+O35+O37+O42+O46+O36 -> 0 | AI9: =IF(AH9="PŘEKROČENÉ %",IF(H9="Smluvně",0,IF(H9="Nezařazeno",0,IF(H9="Individuálně",IF(AH9="PŘEKROČENÉ %",100,1),1))),0) -> 0 | AJ9: =IF(AH9="PŘEKROČENÉ %",IF(H9="Smluvně",0,IF(H9="Nezařazeno",0,IF(H9="Individuálně",IF(AI9="PŘEKROČENÉ %",0,0),1))),0) -> 0 | AO9: =ROUND(AM9*($AO$3*AF9+$AO$4*AG9),0) -> 0 | AS9: =H9 -> 0 | AU9: A.2 | AV9: Náklady na dokumentace stavby | BE9: =BI9 -> 0 | BF9: =BF10+BF21+BF34+BF37+BF42 -> 0 | BH9: A.2
A10: A.2.1 | B10: z toho | C10: Náklady na předprojektové dokumentace pro přípravu stavby | J10: =O10 -> 0 | L10: NE | O10: =O11+O17+O20 -> 0 | AI10: =IF(AH10="PŘEKROČENÉ %",IF(H10="Smluvně",0,IF(H10="Nezařazeno",0,IF(H10="Individuálně",IF(AH10="PŘEKROČENÉ %",100,1),1))),0) -> 0 | AJ10: =IF(AH10="PŘEKROČENÉ %",IF(H10="Smluvně",0,IF(H10="Nezařazeno",0,IF(H10="Individuálně",IF(AI10="PŘEKROČENÉ %",0,0),1))),0) -> 0 | AO10: =ROUND(AM10*($AO$3*AF10+$AO$4*AG10),0) -> 0 | AS10: 0 | AU10: A.2.1 | AV10: z toho | AW10: Náklady na předprojektové dokumentace pro přípravu stavby | BD10: =BI10 -> 0 | BF10: =BF11+BF17+BF20 -> 0 | BH10: A.2.1
A11: A.2.1.1 | C11: z toho | D11: Práce prováděné pro zpracování předprojektových dokumentací | J11: =O11 -> 0 | L11: NE | O11: =SUM(O12:O16) -> 0 | AI11: =IF(AH11="PŘEKROČENÉ %",IF(H11="Smluvně",0,IF(H11="Nezařazeno",0,IF(H11="Individuálně",IF(AH11="PŘEKROČENÉ %",100,1),1))),0) -> 0 | AJ11: =IF(AH11="PŘEKROČENÉ %",IF(H11="Smluvně",0,IF(H11="Nezařazeno",0,IF(H11="Individuálně",IF(AI11="PŘEKROČENÉ %",0,0),1))),0) -> 0 | AS11: 0 | AU11: A.2.1.1 | AW11: z toho | AX11: Práce prováděné pro zpracování předprojektových dokumentací | BD11: =BI11 -> 0 | BF11: =BD11*hide!$D$59 -> 0 | BH11: A.2.1.1
A12: A.2.1.1.1 | B12: =IF(P12=4,IF(P25=4,IF($O$30>0,"Výpočtem jen v A.2.2.1.1",""),""),"") ->  | D12: z toho | E12: Geodetické práce a mapové podklady | H12: Nezařazeno | J12: =IF(H12="Výpočtem",(IF($I$3="",0,IF($I$3="Stádium 3",0,IF($I$3="Stádium 2",0,AO12)))),0) -> 0 | K12: =IF($I$3="Stádium 0","",IF($I$3="Stádium 1","",IF($I$3="","",IF(P12=4,CONCATENATE("Nelze ve ",$I$3),"")))) ->  | L12: NE | O12: =IF(H12="Nezařazeno",0,IF(H12="Výpočtem",J12,I12)) -> 0 | P12: =IF((IF(H12="Individuálně",1,IF(H12="Smluvně",1,IF(H12="Nezařazeno",2,2))))=1,IF(I12=0,3,1),IF(H12="Výpočtem",4,2)) -> 2 | R12: Individuálně | S12: Nezařazeno | U12: 0.0038 | V12: 0.0038 | W12: 0.0035 | X12: 0.0021 | Y12: 0.0005 | Z12: 0.0005 | AA12: 0.0005 | AB12: =($U$3*$AF12*AD12+$U$4*$AD12*AG12) -> 0 | AC12: =($U$3*$AF12*AE12+$U$4*$AE12*AG12) -> 0 | AD12: =IF($AO$2>5000000000,AA12,IF($AO$2>2000000000,Y12,IF($AO$2>($X$6*1000000),X12,IF($AO$2>($W$6*1000000),W12,IF($AO$2>($V$6*1000000),V12,U12))))) -> 0.0038 | AE12: =IF($AO$2>5000000000,AA12,IF($AO$2>2000000000,Z12,IF($AO$2>($X$6*1000000),Y12,IF($AO$2>($W$6*1000000),X12,IF($AO$2>($V$6*1000000),W12,V12))))) -> 0.0038 | AF12: 1 | AG12: 1 | AH12: =IF(I12>AB12,IF(H12="Aktualizace","PŘEKROČENÉ %",IF(H12="Individuálně","PŘEKROČENÉ","OK")),"OK") -> OK | AI12: =IF(AH12="PŘEKROČENÉ %",IF(H12="Výpočtem",0,IF(H12="Smluvně",0,IF(H12="Nezařazeno",0,IF(H12="Individuálně",IF(AH12="PŘEKROČENÉ %",100,1),1)))),0) -> 0 | AJ12: =IF(AH12="PŘEKROČENÉ %",IF(H12="Výpočtem",0,IF(H12="Smluvně",0,IF(H12="Nezařazeno",0,IF(H12="Individuálně",IF(AI12="PŘEKROČENÉ %",0,0),1)))),0) -> 0 | AK12: =IF($AO$2>$Y$6*1000000,$Y$6*1000000,IF($AO$2>($X$6*1000000),$X$6*1000000,IF($AO$2>($W$6*1000000),$W$6*1000000,IF($AO$2>($V$6*1000000),$V$6*1000000,0)))) -> 0 | AL12: =IF($AO$2>$Y$6*1000000,$AA$6*1000000,IF($AO$2>($X$6*1000000),$Y$6*1000000,IF($AO$2>($W$6*1000000),$X$6*1000000,IF($AO$2>($V$6*1000000),$W$6*1000000,$V$6*1000000)))) -> 50000000 | AM12: =IF($AO$2>5000000000,AQ12,IF($AO$2>$AA$6*1000000,AA12,IF($AO$2<Y$6*1000000,(Y12+(((V12-Y12)/($Y$6*1000000))*($Y$6*1000000-$AO$2))),IF($AO$2>$Y$6*1000000,IF($AO$2<$Z$6*1000000,Y12,(AA12+(((Y12-AA12)/($AA$6*1000000))*($AA$6*1000000-$AO$2)))),AA12)))) -> 0.0038 | AN12: =IF(AO12=0,0,IF(AM12=0,0,100%-((AB12-AO12)/AB12))) -> 0 | AO12: =ROUND(AM12*($AO$3*AF12+$AO$4*AG12),0) -> 0 | AP12: =$AA$6*AA12 -> 2.5 | AQ12: =IF($AO$2>18000000000,AR12,(((AP12-(AP12*$AR$6))*$AP$6/($AO$2/1000000)))) ->  | AR12: =AA12*(1-$AS$6) -> 0.0003380899875 | AS12: Nezařazeno | AU12: A.2.1.1.1 | AV12: =IF(BJ12=4,IF(BJ25=4,IF($O$30>0,"Výpočtem jen v A.2.2.1.1",""),""),"") ->  | AX12: z toho | AY12: Geodetické práce a mapové podklady | BB12: Smluvně | BD12: =IF(BB12="Výpočtem",(IF($I$3="",0,IF($I$3="Stádium 3",0,IF($I$3="Stádium 2",0,CJ12)))),0) -> 0 | BE12: =IF($I$3="Stádium 0","",IF($I$3="Stádium 1","",IF($I$3="","",IF(BJ12=4,CONCATENATE("Nelze ve ",$I$3),"")))) ->  | BF12: =BI12*hide!$D$59 -> 0 | BH12: A.2.1.1.1 | BI12: =IF($BI$4=$BI$7,U12,0) -> 0.0038
A13: A.2.1.1.2 | B13: =IF(P13=4,IF(P26=4,IF($O$30>0,"Výpočtem jen v A.2.2.1.2",""),""),"") ->  | E13: Průzkumné práce pro předprojektové dokumentace | H13: Nezařazeno | J13: =IF(H13="Výpočtem",(IF($I$3="",0,IF($I$3="Stádium 3",0,IF($I$3="Stádium 2",0,AO13)))),0) -> 0 | K13: =IF($I$3="Stádium 0","",IF($I$3="Stádium 1","",IF($I$3="","",IF(P13=4,CONCATENATE("Nelze ve ",$I$3),"")))) ->  | L13: NE | O13: =IF(H13="Nezařazeno",0,IF(H13="Výpočtem",J13,I13)) -> 0 | P13: =IF((IF(H13="Individuálně",1,IF(H13="Smluvně",1,IF(H13="Nezařazeno",2,2))))=1,IF(I13=0,3,1),IF(H13="Výpočtem",4,2)) -> 2 | R13: Individuálně | S13: Nezařazeno | U13: 0.0104 | V13: 0.0104 | W13: 0.0098 | X13: 0.0072 | Y13: 0.0042 | Z13: 0.0042 | AA13: 0.0042 | AB13: =($U$3*$AF13*AD13+$U$4*$AD13*AG13) -> 0 | AC13: =($U$3*$AF13*AE13+$U$4*$AE13*AG13) -> 0 | AD13: =IF($AO$2>5000000000,AA13,IF($AO$2>2000000000,Y13,IF($AO$2>($X$6*1000000),X13,IF($AO$2>($W$6*1000000),W13,IF($AO$2>($V$6*1000000),V13,U13))))) -> 0.0104 | AE13: =IF($AO$2>5000000000,AA13,IF($AO$2>2000000000,Z13,IF($AO$2>($X$6*1000000),Y13,IF($AO$2>($W$6*1000000),X13,IF($AO$2>($V$6*1000000),W13,V13))))) -> 0.0104 | AF13: 1 | AG13: 0.05 | AH13: =IF(I13>AB13,IF(H13="Aktualizace","PŘEKROČENÉ %",IF(H13="Individuálně","PŘEKROČENÉ","OK")),"OK") -> OK | AI13: =IF(AH13="PŘEKROČENÉ %",IF(H13="Výpočtem",0,IF(H13="Smluvně",0,IF(H13="Nezařazeno",0,IF(H13="Individuálně",IF(AH13="PŘEKROČENÉ %",100,1),1)))),0) -> 0 | AJ13: =IF(AH13="PŘEKROČENÉ %",IF(H13="Výpočtem",0,IF(H13="Smluvně",0,IF(H13="Nezařazeno",0,IF(H13="Individuálně",IF(AI13="PŘEKROČENÉ %",0,0),1)))),0) -> 0 | AK13: =IF($AO$2>$Y$6*1000000,$Y$6*1000000,IF($AO$2>($X$6*1000000),$X$6*1000000,IF($AO$2>($W$6*1000000),$W$6*1000000,IF($AO$2>($V$6*1000000),$V$6*1000000,0)))) -> 0 | AL13: =IF($AO$2>$Y$6*1000000,$AA$6*1000000,IF($AO$2>($X$6*1000000),$Y$6*1000000,IF($AO$2>($W$6*1000000),$X$6*1000000,IF($AO$2>($V$6*1000000),$W$6*1000000,$V$6*1000000)))) -> 50000000 | AM13: =IF($AO$2>5000000000,AQ13,IF($AO$2>$AA$6*1000000,AA13,IF($AO$2<Y$6*1000000,(Y13+(((V13-Y13)/($Y$6*1000000))*($Y$6*1000000-$AO$2))),IF($AO$2>$Y$6*1000000,IF($AO$2<$Z$6*1000000,Y13,(AA13+(((Y13-AA13)/($AA$6*1000000))*($AA$6*1000000-$AO$2)))),AA13)))) -> 0.0104 | AN13: =IF(AO13=0,0,IF(AM13=0,0,100%-((AB13-AO13)/AB13))) -> 0 | AO13: =ROUND(AM13*($AO$3*AF13+$AO$4*AG13),0) -> 0 | AP13: =$AA$6*AA13 -> 21 | AQ13: =IF($AO$2>18000000000,AR13,(((AP13-(AP13*$AR$6))*$AP$6/($AO$2/1000000)))) ->  | AR13: =AA13*(1-$AS$6) -> 0.002839955895 | AS13: Nezařazeno | AU13: A.2.1.1.2 | AV13: =IF(BJ13=4,IF(BJ26=4,IF($O$30>0,"Výpočtem jen v A.2.2.1.2",""),""),"") ->  | AY13: Průzkumné práce pro předprojektové dokumentace | BB13: Individuálně | BD13: =IF(BB13="Výpočtem",(IF($I$3="",0,IF($I$3="Stádium 3",0,IF($I$3="Stádium 2",0,CJ13)))),0) -> 0 | BE13: =IF($I$3="Stádium 0","",IF($I$3="Stádium 1","",IF($I$3="","",IF(BJ13=4,CONCATENATE("Nelze ve ",$I$3),"")))) ->  | BF13: =BI13*hide!$D$59 -> 0 | BH13: A.2.1.1.2 | BI13: =IF($BI$4=$BI$7,U13,0) -> 0.0104
A14: A.2.1.1.3 | E14: Posouzení vlivu stavby na životní prostředí | H14: Nezařazeno | L14: NE | O14: =IF(H14="Nezařazeno",0,IF(H14="Výpočtem",J14,I14)) -> 0 | P14: =IF((IF(H14="Předpoklad",1,IF(H14="Smluvně",1,IF(H14="Nezařazeno",2,2))))=1,IF(I14=0,3,1),IF(H14="Výpočtem",4,2)) -> 2 | R14: Předpoklad | S14: Nezařazeno | U14: není určena | AI14: =IF(AH14="PŘEKROČENÉ %",IF(H14="Smluvně",0,IF(H14="Nezařazeno",0,IF(H14="Individuálně",IF(AH14="PŘEKROČENÉ %",100,1),1))),0) -> 0 | AJ14: =IF(AH14="PŘEKROČENÉ %",IF(H14="Smluvně",0,IF(H14="Nezařazeno",0,IF(H14="Individuálně",IF(AI14="PŘEKROČENÉ %",0,0),1))),0) -> 0 | AS14: Nezařazeno | AU14: A.2.1.1.3 | AV14: =IF(BI14>0,IF($H$16="Nezařazeno","DUR Nezařazená",""),"") ->  | AY14: Posouzení vlivu stavby na životní prostředí | BB14: Smluvně | BF14: =BI14*hide!$D$59 -> 0 | BH14: A.2.1.1.3
A15: A.2.1.1.4 | B15: =IF(P15=4,IF(P28=4,IF($O$30>0,"Výpočtem jen v A.2.2.1.4",""),""),"") ->  | E15: Inženýrská činnost pro předprojektové dokumentace | H15: Nezařazeno | J15: =IF(H15="Výpočtem",(IF($I$3="",0,IF($I$3="Stádium 3",0,IF($I$3="Stádium 2",0,AO15)))),0) -> 0 | K15: =IF($I$3="Stádium 0","",IF($I$3="Stádium 1","",IF($I$3="","",IF(P15=4,CONCATENATE("Nelze ve ",$I$3),"")))) ->  | L15: NE | O15: =IF(H15="Nezařazeno",0,IF(H15="Výpočtem",J15,I15)) -> 0 | P15: =IF((IF(H15="Individuálně",1,IF(H15="Smluvně",1,IF(H15="Nezařazeno",2,2))))=1,IF(I15=0,3,1),IF(H15="Výpočtem",4,2)) -> 2 | R15: Individuálně | S15: Nezařazeno | U15: 0.0035 | V15: 0.0027 | W15: 0.0026 | X15: 0.002 | Y15: 0.0014 | Z15: 0.0013 | AA15: 0.0012 | AB15: =($U$3*$AF15*AD15+$U$4*$AD15*AG15) -> 0 | AC15: =($U$3*$AF15*AE15+$U$4*$AE15*AG15) -> 0 | AD15: =IF($AO$2>5000000000,AA15,IF($AO$2>2000000000,Y15,IF($AO$2>($X$6*1000000),X15,IF($AO$2>($W$6*1000000),W15,IF($AO$2>($V$6*1000000),V15,U15))))) -> 0.0035 | AE15: =IF($AO$2>5000000000,AA15,IF($AO$2>2000000000,Z15,IF($AO$2>($X$6*1000000),Y15,IF($AO$2>($W$6*1000000),X15,IF($AO$2>($V$6*1000000),W15,V15))))) -> 0.0027 | AF15: 1 | AG15: 0.7 | AH15: =IF(I15>AB15,IF(H15="Aktualizace","PŘEKROČENÉ %",IF(H15="Individuálně","PŘEKROČENÉ","OK")),"OK") -> OK | AI15: =IF(AH15="PŘEKROČENÉ %",IF(H15="Výpočtem",0,IF(H15="Smluvně",0,IF(H15="Nezařazeno",0,IF(H15="Individuálně",IF(AH15="PŘEKROČENÉ %",100,1),1)))),0) -> 0 | AJ15: =IF(AH15="PŘEKROČENÉ %",IF(H15="Výpočtem",0,IF(H15="Smluvně",0,IF(H15="Nezařazeno",0,IF(H15="Individuálně",IF(AI15="PŘEKROČENÉ %",0,0),1)))),0) -> 0 | AK15: =IF($AO$2>$Y$6*1000000,$Y$6*1000000,IF($AO$2>($X$6*1000000),$X$6*1000000,IF($AO$2>($W$6*1000000),$W$6*1000000,IF($AO$2>($V$6*1000000),$V$6*1000000,0)))) -> 0 | AL15: =IF($AO$2>$Y$6*1000000,$AA$6*1000000,IF($AO$2>($X$6*1000000),$Y$6*1000000,IF($AO$2>($W$6*1000000),$X$6*1000000,IF($AO$2>($V$6*1000000),$W$6*1000000,$V$6*1000000)))) -> 50000000 | AM15: =IF($AO$2>5000000000,AQ15,IF($AO$2>$AA$6*1000000,AA15,IF($AO$2<Y$6*1000000,(Y15+(((V15-Y15)/($Y$6*1000000))*($Y$6*1000000-$AO$2))),IF($AO$2>$Y$6*1000000,IF($AO$2<$Z$6*1000000,Y15,(AA15+(((Y15-AA15)/($AA$6*1000000))*($AA$6*1000000-$AO$2)))),AA15)))) -> 0.0027 | AN15: =IF(AO15=0,0,IF(AM15=0,0,100%-((AB15-AO15)/AB15))) -> 0 | AO15: =ROUND(AM15*($AO$3*AF15+$AO$4*AG15),0) -> 0 | AP15: =$AA$6*AA15 -> 6 | AQ15: =IF($AO$2>18000000000,AR15,(((AP15-(AP15*$AR$6))*$AP$6/($AO$2/1000000)))) ->  | AS15: Nezařazeno | AU15: A.2.1.1.4 | AV15: =IF(BJ15=4,IF(BJ28=4,IF($O$30>0,"Výpočtem jen v A.2.2.1.4",""),""),"") ->  | AY15: Inženýrská činnost pro předprojektové dokumentace | BB15: Individuálně | BD15: =IF(BB15="Výpočtem",(IF($I$3="",0,IF($I$3="Stádium 3",0,IF($I$3="Stádium 2",0,CJ15)))),0) -> 0 | BE15: =IF($I$3="Stádium 0","",IF($I$3="Stádium 1","",IF($I$3="","",IF(BJ15=4,CONCATENATE("Nelze ve ",$I$3),"")))) ->  | BF15: =BI15*hide!$D$59 -> 0 | BH15: A.2.1.1.4 | BI15: 0.0035
A16: A.2.1.1.5 | E16: Ostatní náklady pro předprojektové dokumentace | H16: Nezařazeno | K16: =IF($I$3="Stádium 1","",IF($I$3="","",IF(P16=4,"Nelze Výpočtem v stádiu",""))) ->  | L16: NE | O16: =IF(H16="Nezařazeno",0,IF(H16="Výpočtem",J16,I16)) -> 0 | P16: =IF((IF(H16="Individuálně",1,IF(H16="Smluvně",1,IF(H16="Nezařazeno",2,2))))=1,IF(I16=0,3,1),IF(H16="Výpočtem",4,2)) -> 2 | R16: Individuálně | S16: Nezařazeno | U16: není určena | AI16: =IF(AH16="PŘEKROČENÉ %",IF(H16="Smluvně",0,IF(H16="Nezařazeno",0,IF(H16="Individuálně",IF(AH16="PŘEKROČENÉ %",100,1),1))),0) -> 0 | AJ16: =IF(AH16="PŘEKROČENÉ %",IF(H16="Smluvně",0,IF(H16="Nezařazeno",0,IF(H16="Individuálně",IF(AI16="PŘEKROČENÉ %",0,0),1))),0) -> 0 | AS16: Nezařazeno | AU16: A.2.1.1.5 | AY16: Ostatní náklady pro předprojektové dokumentace | BB16: Nezařazeno | BE16: =IF($I$3="Stádium 1","",IF($I$3="","",IF(BJ16=4,"Nelze Výpočtem v stádiu",""))) ->  | BF16: =BI16*hide!$D$59 -> 0 | BH16: A.2.1.1.5
A17: A.2.1.2 | D17: Záměr projektu | J17: =O17 -> 0 | K17: =IF($I$3="Stádium 1","",IF($I$3="","",IF(P17=4,"Nelze Výpočtem v stádiu",""))) ->  | L17: =IF(AND(H18="Nezařazeno",H19="Nezařazeno")=TRUE,"NE",IF(SUM(I18:J19)>0,"ANO","NE")) -> NE | O17: =SUM(O18:O19) -> 0 | AI17: =IF(AH17="PŘEKROČENÉ %",IF(H17="Smluvně",0,IF(H17="Nezařazeno",0,IF(H17="Individuálně",IF(AH17="PŘEKROČENÉ %",100,1),1))),0) -> 0 | AJ17: =IF(AH17="PŘEKROČENÉ %",IF(H17="Smluvně",0,IF(H17="Nezařazeno",0,IF(H17="Individuálně",IF(AI17="PŘEKROČENÉ %",0,0),1))),0) -> 0 | AS17: 0 | AU17: A.2.1.2 | AX17: Záměr projektu | BD17: =BI17 -> 0 | BE17: =IF($I$3="Stádium 1","",IF($I$3="","",IF(BJ17=4,"Nelze Výpočtem v stádiu",""))) ->  | BF17: =SUM(BF18:BF19) -> 0 | BH17: A.2.1.2
A18: A.2.1.2.1 | D18: z toho | E18: Záměr projektu, povinný obsah | G18: ZP | H18: Nezařazeno | J18: =IF(H18="Výpočtem",(IF($I$3="",0,IF($I$3="Stádium 3",0,IF($I$3="Stádium 2",0,AO18)))),0) -> 0 | K18: =IF($I$3="Stádium 0","",IF($I$3="Stádium 1","",IF($I$3="","",IF(P18=4,CONCATENATE("Nelze ve ",$I$3),"")))) ->  | L18: NE | N18: =IFERROR((I18+J18)/($K$75+$K$76),0) -> 0 | O18: =IF(H18="Nezařazeno",0,IF(H18="Výpočtem",J18,I18)) -> 0 | P18: =IF((IF(H18="Individuálně",1,IF(H18="Smluvně",1,IF(H18="Nezařazeno",2,2))))=1,IF(I18=0,3,1),IF(H18="Výpočtem",4,2)) -> 2 | Q18: Výpočtem | R18: Individuálně | S18: Nezařazeno | V18: 0.0025 | W18: 0.0015 | X18: 0.001 | Y18: 0.0008 | Z18: 0.0008 | AA18: 0.0005 | AB18: =($U$3*$AF18*AD18+$U$4*$AD18*AG18) -> 0 | AC18: =($U$3*$AF18*AE18+$U$4*$AE18*AG18) -> 0 | AD18: =IF($AO$2>5000000000,AA18,IF($AO$2>2000000000,Y18,IF($AO$2>($X$6*1000000),X18,IF($AO$2>($W$6*1000000),W18,IF($AO$2>($V$6*1000000),V18,V18))))) -> 0.0025 | AE18: =IF($AO$2>5000000000,AA18,IF($AO$2>2000000000,Z18,IF($AO$2>($X$6*1000000),Y18,IF($AO$2>($W$6*1000000),X18,IF($AO$2>($V$6*1000000),W18,V18))))) -> 0.0025 | AF18: 1 | AG18: 1 | AH18: =IF(I18>AB18,IF(H18="Aktualizace","PŘEKROČENÉ %",IF(H18="Individuálně","PŘEKROČENÉ","OK")),"OK") -> OK | AI18: =IF(AH18="PŘEKROČENÉ %",IF(H18="Smluvně",0,IF(H18="Nezařazeno",0,IF(H18="Individuálně",IF(AH18="PŘEKROČENÉ %",100,1),1))),0) -> 0 | AJ18: =IF(AH18="PŘEKROČENÉ %",IF(H18="Smluvně",0,IF(H18="Nezařazeno",0,IF(H18="Individuálně",IF(AI18="PŘEKROČENÉ %",0,0),1))),0) -> 0 | AK18: =IF($AO$2>$Y$6*1000000,$Y$6*1000000,IF($AO$2>($X$6*1000000),$X$6*1000000,IF($AO$2>($W$6*1000000),$W$6*1000000,IF($AO$2>($V$6*1000000),$V$6*1000000,0)))) -> 0 | AL18: =IF($AO$2>$Y$6*1000000,$AA$6*1000000,IF($AO$2>($X$6*1000000),$Y$6*1000000,IF($AO$2>($W$6*1000000),$X$6*1000000,IF($AO$2>($V$6*1000000),$W$6*1000000,$V$6*1000000)))) -> 50000000 | AM18: =IF($AO$2>=5000000000,AQ18,BO18) -> 0 | AN18: =IF(AO18=0,0,IF(AM18=0,0,100%-((AB18-AO18)/AB18))) -> 0 | AO18: =ROUND(AM18*($AO$3*AF18+$AO$4*AG18),0) -> 0 | AP18: =$AA$6*AA18 -> 2.5 | AQ18: =IF($AO$2>18000000000,AR18,(((AP18-(AP18*$AR$6))*$AP$6/($AO$2/1000000)))) ->  | AR18: =AA18*(1-$AS$6) -> 0.0003380899875 | AS18: Nezařazeno | AU18: A.2.1.2.1 | AX18: z toho | AY18: Záměr projektu, povinný obsah | BA18: ZP | BB18: Výpočtem | BD18: =IF(BB18="Výpočtem",(IF($I$3="",0,IF($I$3="Stádium 3",0,IF($I$3="Stádium 2",0,CJ18)))),0) -> 0 | BE18: =IF($I$3="Stádium 0","",IF($I$3="Stádium 1","",IF($I$3="","",IF(BJ18=4,CONCATENATE("Nelze ve ",$I$3),"")))) ->  | BF18: =BI18*hide!$D$59 -> 0 | BH18: A.2.1.2.1 | BI18: =IF($BI$4=$BI$7,U18,0) -> 0 | BJ18: =IF($BI$4=BJ$7,((W18-V18)/(W$6-V$6))*$AO$2/1000000+V18-((W18-V18)/(W$6-V$6))*V$6) -> FALSE | BK18: =IF($BI$4=BK$7,((X18-W18)/(X$6-W$6))*$AO$2/1000000+W18-((X18-W18)/(X$6-W$6))*W$6) -> FALSE | BL18: =IF($BI$4=BL$7,((Y18-X18)/(Y$6-X$6))*$AO$2/1000000+X18-((Y18-X18)/(Y$6-X$6))*X$6) -> FALSE | BM18: =IF($BI$4=BM$7,((AA18-Y18)/(AA$6-Y$6))*$AO$2/1000000+Y18-((AA18-Y18)/(AA$6-Y$6))*Y$6) -> FALSE | BO18: =SUM(BI18:BN18) -> 0 | BP18: =AM18 -> 0 | BQ18: =ROUND(BO18*($AO$3*AF18+$AO$4*AG18),0) -> 0 | BR18: =AO18 -> 0 | BS18: =AO18-BQ18 -> 0
A19: A.2.1.2.2 | E19: Doprovodná dokumentace | G19: DD | H19: Nezařazeno | L19: NE | O19: =IF(H19="Nezařazeno",0,IF(H19="Výpočtem",J19,I19)) -> 0 | P19: =IF((IF(H19="Předpoklad",1,IF(H19="Smluvně",1,IF(H19="Nezařazeno",2,2))))=1,IF(I19=0,3,1),IF(H19="Výpočtem",4,2)) -> 2 | R19: Předpoklad | S19: Nezařazeno | U19: není určena | AI19: =IF(AH19="PŘEKROČENÉ %",IF(H19="Smluvně",0,IF(H19="Nezařazeno",0,IF(H19="Individuálně",IF(AH19="PŘEKROČENÉ %",100,1),1))),0) -> 0 | AJ19: =IF(AH19="PŘEKROČENÉ %",IF(H19="Smluvně",0,IF(H19="Nezařazeno",0,IF(H19="Individuálně",IF(AI19="PŘEKROČENÉ %",0,0),1))),0) -> 0 | AS19: Nezařazeno | AU19: A.2.1.2.2 | AY19: Doprovodná dokumentace | BA19: DD | BB19: Smluvně | BF19: =BI19*hide!$D$59 -> 0 | BH19: A.2.1.2.2
A20: A.2.1.3 | C20: =IF($T$111="Chyba","=>","") ->  | D20: Dokumentace pro územní řízení | G20: DUR | H20: Nezařazeno | J20: =IF(T111="Chyba",0,IF(H20="Výpočtem",(IF($I$3="",0,IF($I$3="Stádium 3",0,IF($I$3="Stádium 2",0,AO20)))),0)) -> 0 | K20: =IF($I$3="Stádium 0","",IF($I$3="Stádium 1","",IF($I$3="","",IF(P20=4,CONCATENATE("Nelze ve ",$I$3),"")))) ->  | L20: NE | O20: =IF(H20="Nezařazeno",0,IF(H20="Výpočtem",J20,I20)) -> 0 | P20: =IF((IF(H20="Individuálně",1,IF(H20="Smluvně",1,IF(H20="Nezařazeno",2,2))))=1,IF(I20=0,3,1),IF(H20="Výpočtem",4,2)) -> 2 | R20: Individuálně | S20: Nezařazeno | U20: 0.03 | V20: =V74 -> 0.022 | W20: =W74 -> 0.018 | X20: =X74 -> 0.012 | Y20: 0.008 | Z20: 0.007 | AA20: 0.006 | AB20: =($U$3*$AF20*AD20+$U$4*$AD20*AG20) -> 0 | AC20: =($U$3*$AF20*AE20+$U$4*$AE20*AG20) -> 0 | AD20: =IF($AO$2>5000000000,AA20,IF($AO$2>2000000000,Y20,IF($AO$2>($X$6*1000000),X20,IF($AO$2>($W$6*1000000),W20,IF($AO$2>($V$6*1000000),V20,U20))))) -> 0.03 | AE20: =IF($AO$2>5000000000,AA20,IF($AO$2>2000000000,Z20,IF($AO$2>($X$6*1000000),Y20,IF($AO$2>($W$6*1000000),X20,IF($AO$2>($V$6*1000000),W20,V20))))) -> 0.022 | AF20: 1 | AG20: 1 | AH20: =IF(I20>AB20,IF(H20="Aktualizace","PŘEKROČENÉ %",IF(H20="Individuálně","PŘEKROČENÉ","OK")),"OK") -> OK | AI20: =IF(AH20="PŘEKROČENÉ %",IF(H20="Výpočtem",0,IF(H20="Smluvně",0,IF(H20="Nezařazeno",0,IF(H20="Individuálně",IF(AH20="PŘEKROČENÉ %",100,1),1)))),0) -> 0 | AJ20: =IF(AH20="PŘEKROČENÉ %",IF(H20="Výpočtem",0,IF(H20="Smluvně",0,IF(H20="Nezařazeno",0,IF(H20="Individuálně",IF(AI20="PŘEKROČENÉ %",0,0),1)))),0) -> 0 | AK20: =IF($AO$2>$Y$6*1000000,$Y$6*1000000,IF($AO$2>($X$6*1000000),$X$6*1000000,IF($AO$2>($W$6*1000000),$W$6*1000000,IF($AO$2>($V$6*1000000),$V$6*1000000,0)))) -> 0 | AL20: =IF($AO$2>$Y$6*1000000,$AA$6*1000000,IF($AO$2>($X$6*1000000),$Y$6*1000000,IF($AO$2>($W$6*1000000),$X$6*1000000,IF($AO$2>($V$6*1000000),$W$6*1000000,$V$6*1000000)))) -> 50000000 | AM20: =IF($AO$2>5000000000,AQ20,IF($AO$2>$AA$6*1000000,AA20,IF($AO$2<Y$6*1000000,(Y20+(((V20-Y20)/($Y$6*1000000))*($Y$6*1000000-$AO$2))),IF($AO$2>$Y$6*1000000,IF($AO$2<$Z$6*1000000,Y20,(AA20+(((Y20-AA20)/($AA$6*1000000))*($AA$6*1000000-$AO$2)))),AA20)))) -> 0.022 | AN20: =IF(AO20=0,0,IF(AM20=0,0,100%-((AB20-AO20)/AB20))) -> 0 | AO20: =ROUND(AM20*($AO$3*AF20+$AO$4*AG20),0) -> 0 | AP20: =$AA$6*AA20 -> 30 | AQ20: =IF($AO$2>18000000000,AR20,(((AP20-(AP20*$AR$6))*$AP$6/($AO$2/1000000)))) ->  | AR20: =AA20*(1-$AS$6) -> 0.00405707985 | AS20: Nezařazeno | AU20: A.2.1.3 | AW20: =IF($T$111="Chyba","=>","") ->  | AX20: Dokumentace pro územní řízení | BA20: DUR | BB20: Smluvně | BD20: =IF(BN110="Chyba",0,IF(BB20="Výpočtem",(IF($I$3="",0,IF($I$3="Stádium 3",0,IF($I$3="Stádium 2",0,CJ20)))),0)) -> 0 | BE20: =IF($I$3="Stádium 0","",IF($I$3="Stádium 1","",IF($I$3="","",IF(BJ20=4,CONCATENATE("Nelze ve ",$I$3),"")))) ->  | BF20: =BI20*hide!$D$59 -> 0 | BH20: A.2.1.3
A21: A.2.2 | C21: Náklady na projektové dokumentace | J21: =O21 -> 0 | L21: =IF(J21>0,"ANO","NE") -> NE | O21: =O24+O30+O31+O32+O33 -> 0 | AI21: =IF(AH21="PŘEKROČENÉ %",IF(H21="Smluvně",0,IF(H21="Nezařazeno",0,IF(H21="Individuálně",IF(AH21="PŘEKROČENÉ %",100,1),1))),0) -> 0 | AJ21: =IF(AH21="PŘEKROČENÉ %",IF(H21="Smluvně",0,IF(H21="Nezařazeno",0,IF(H21="Individuálně",IF(AI21="PŘEKROČENÉ %",0,0),1))),0) -> 0 | AS21: 0 | AU21: A.2.2 | AW21: Náklady na projektové dokumentace | BD21: =BI21 -> 0 | BF21: =BF24+BF30+BF31+BF32+BF33 -> 0 | BH21: A.2.2
E22: Bude podkladová dokumentace | G22: Bude podklad. dok.? | H22: Ne | L22: =IF(H22="Ano","ANO","NE") -> NE | AS22: Ne
E23: Odhad procentního využití dokumentace | G23: Odhad % využití dok.? | H23: - | L23: =IF(H23<>"-",IF(H22="ANO","ANO","NE"),"NE") -> NE | AS23: -
A24: A.2.2.1 | C24: z toho | D24: Práce prováděné pro zpracování projektových dokumentací | J24: =O24 -> 0 | L24: NE | O24: =SUM(O25:O29) -> 0 | AI24: =IF(AH24="PŘEKROČENÉ %",IF(H24="Smluvně",0,IF(H24="Nezařazeno",0,IF(H24="Individuálně",IF(AH24="PŘEKROČENÉ %",100,1),1))),0) -> 0 | AJ24: =IF(AH24="PŘEKROČENÉ %",IF(H24="Smluvně",0,IF(H24="Nezařazeno",0,IF(H24="Individuálně",IF(AI24="PŘEKROČENÉ %",0,0),1))),0) -> 0 | AS24: 0 | AU24: A.2.2.1 | AW24: z toho | AX24: Práce prováděné pro zpracování projektových dokumentací | BD24: =BI24 -> 0 | BF24: =SUM(BF25:BF29) -> 0 | BH24: A.2.2.1
A25: A.2.2.1.1 | B25: =IF(P12=4,IF(P25=4,IF($O$30>0,"=>",""),""),"") ->  | D25: z toho | E25: Geodetické práce a mapové podklady | H25: Nezařazeno | J25: =IF(H25="Výpočtem",(IF($I$3="",0,IF($I$3="Stádium 3",0,AO25))),0) -> 0 | K25: =IF(U114="ANO",IF(P25=4,"Nelze výpočtem",""),"") ->  | L25: NE | N25: =IFERROR((I25+J25)/($K$75+$K$76),0) -> 0 | O25: =IF(H25="Nezařazeno",0,IF(H25="Výpočtem",J25,I25)) -> 0 | P25: =IF((IF(H25="Individuálně",1,IF(H25="Smluvně",1,IF(H25="Nezařazeno",2,2))))=1,IF(I25=0,3,1),IF(H25="Výpočtem",4,2)) -> 2 | Q25: Výpočtem | R25: Individuálně | S25: Nezařazeno | U25: =U101 -> 0.005 | V25: 0.005 | W25: 0.0046 | X25: 0.0028 | Y25: 0.0007 | Z25: 0.0007 | AA25: 0.0007 | AB25: =($U$3*$AF25*AD25+$U$4*$AD25*AG25) -> 0 | AC25: =($U$3*$AF25*AE25+$U$4*$AE25*AG25) -> 0 | AD25: =IF($AO$2>5000000000,AA25,IF($AO$2>2000000000,Y25,IF($AO$2>($X$6*1000000),X25,IF($AO$2>($W$6*1000000),W25,IF($AO$2>($V$6*1000000),V25,U25))))) -> 0.005 | AE25: =IF($AO$2>5000000000,AA25,IF($AO$2>2000000000,Z25,IF($AO$2>($X$6*1000000),Y25,IF($AO$2>($W$6*1000000),X25,IF($AO$2>($V$6*1000000),W25,V25))))) -> 0.005 | AF25: 1 | AG25: 1 | AH25: =IF(I25>AB25,IF(H25="Aktualizace","PŘEKROČENÉ %",IF(H25="Individuálně","PŘEKROČENÉ","OK")),"OK") -> OK | AI25: =IF(AH25="PŘEKROČENÉ %",IF(H25="Výpočtem",0,IF(H25="Smluvně",0,IF(H25="Nezařazeno",0,IF(H25="Individuálně",IF(AH25="PŘEKROČENÉ %",100,1),1)))),0) -> 0 | AJ25: =IF(AH25="PŘEKROČENÉ %",IF(H25="Výpočtem",0,IF(H25="Smluvně",0,IF(H25="Nezařazeno",0,IF(H25="Individuálně",IF(AI25="PŘEKROČENÉ %",0,0),1)))),0) -> 0 | AK25: =IF($AO$2>$Y$6*1000000,$Y$6*1000000,IF($AO$2>($X$6*1000000),$X$6*1000000,IF($AO$2>($W$6*1000000),$W$6*1000000,IF($AO$2>($V$6*1000000),$V$6*1000000,0)))) -> 0 | AL25: =IF($AO$2>$Y$6*1000000,$AA$6*1000000,IF($AO$2>($X$6*1000000),$Y$6*1000000,IF($AO$2>($W$6*1000000),$X$6*1000000,IF($AO$2>($V$6*1000000),$W$6*1000000,$V$6*1000000)))) -> 50000000 | AM25: =IF($AO$2>=5000000000,AQ25,BO25) -> 0.005 | AN25: =IF(AO25=0,0,IF(AM25=0,0,100%-((AB25-AO25)/AB25))) -> 0 | AO25: =ROUND(AM25*($AO$3*AF25+$AO$4*AG25),0) -> 0 | AP25: =$AA$6*AA25 -> 3.5 | AQ25: =IF($AO$2>18000000000,AR25,(((AP25-(AP25*$AR$6))*$AP$6/($AO$2/1000000)))) ->  | AR25: =AA25*(1-$AS$6) -> 0.0004733259825 | AS25: Nezařazeno | AU25: A.2.2.1.1 | AV25: =IF(BJ12=4,IF(BJ25=4,IF($O$30>0,"=>",""),""),"") ->  | AX25: z toho | AY25: Geodetické práce a mapové podklady | BB25: Individuálně | BD25: =IF(BB25="Výpočtem",(IF($I$3="",0,IF($I$3="Stádium 3",0,CJ25))),0) -> 0 | BE25: =IF(BO113="ANO",IF(BJ25=4,"Nelze výpočtem",""),"") ->  | BF25: =BI25*hide!$D$59 -> 0 | BH25: A.2.2.1.1 | BI25: =IF($BI$4=$BI$7,U25,0) -> 0.005 | BJ25: =IF($BI$4=BJ$7,((W25-V25)/(W$6-V$6))*$AO$2/1000000+V25-((W25-V25)/(W$6-V$6))*V$6) -> FALSE | BK25: =IF($BI$4=BK$7,((X25-W25)/(X$6-W$6))*$AO$2/1000000+W25-((X25-W25)/(X$6-W$6))*W$6) -> FALSE | BL25: =IF($BI$4=BL$7,((Y25-X25)/(Y$6-X$6))*$AO$2/1000000+X25-((Y25-X25)/(Y$6-X$6))*X$6) -> FALSE | BM25: =IF($BI$4=BM$7,((AA25-Y25)/(AA$6-Y$6))*$AO$2/1000000+Y25-((AA25-Y25)/(AA$6-Y$6))*Y$6) -> FALSE | BO25: =SUM(BI25:BN25) -> 0.005 | BP25: =AM25 -> 0.005 | BQ25: =ROUND(BO25*($AO$3*AF25+$AO$4*AG25),0) -> 0 | BR25: =AO25 -> 0 | BS25: =AO25-BQ25 -> 0
A26: A.2.2.1.2 | B26: =IF(P13=4,IF(P26=4,IF($O$30>0,"=>",""),""),"") ->  | E26: Geotechnický průzkum | H26: Nezařazeno | J26: =IF(H26="Výpočtem",(IF($I$3="",0,IF($I$3="Stádium 3",0,AO26))),0) -> 0 | K26: =IF(U115="ANO",IF(P26=4,"Nelze výpočtem",""),"") ->  | L26: NE | N26: =IFERROR((I26+J26)/($K$75+5%*$K$76),0) -> 0 | O26: 0 | P26: 2 | Q26: Výpočtem | R26: Individuálně | S26: Nezařazeno | U26: 0.02 | V26: 0.016 | W26: 0.015 | X26: 0.0111 | Y26: 0.0064 | Z26: 0.0045 | AA26: 0.0045 | AB26: =($U$3*$AF26*AD26+$U$4*$AD26*AG26) -> 0 | AC26: =($U$3*$AF26*AE26+$U$4*$AE26*AG26) -> 0 | AD26: =IF($AO$2>5000000000,AA26,IF($AO$2>2000000000,Y26,IF($AO$2>($X$6*1000000),X26,IF($AO$2>($W$6*1000000),W26,IF($AO$2>($V$6*1000000),V26,U26))))) -> 0.02 | AE26: =IF($AO$2>5000000000,AA26,IF($AO$2>2000000000,Z26,IF($AO$2>($X$6*1000000),Y26,IF($AO$2>($W$6*1000000),X26,IF($AO$2>($V$6*1000000),W26,V26))))) -> 0.016 | AF26: 1 | AG26: 0.05 | AH26: =IF(I26>AB26,IF(H26="Aktualizace","PŘEKROČENÉ %",IF(H26="Individuálně","PŘEKROČENÉ","OK")),"OK") -> OK | AI26: =IF(AH26="PŘEKROČENÉ %",IF(H26="Výpočtem",0,IF(H26="Smluvně",0,IF(H26="Nezařazeno",0,IF(H26="Individuálně",IF(AH26="PŘEKROČENÉ %",100,1),1)))),0) -> 0 | AJ26: =IF(AH26="PŘEKROČENÉ %",IF(H26="Výpočtem",0,IF(H26="Smluvně",0,IF(H26="Nezařazeno",0,IF(H26="Individuálně",IF(AI26="PŘEKROČENÉ %",0,0),1)))),0) -> 0 | AK26: =IF($AO$2>$Y$6*1000000,$Y$6*1000000,IF($AO$2>($X$6*1000000),$X$6*1000000,IF($AO$2>($W$6*1000000),$W$6*1000000,IF($AO$2>($V$6*1000000),$V$6*1000000,0)))) -> 0 | AL26: =IF($AO$2>$Y$6*1000000,$AA$6*1000000,IF($AO$2>($X$6*1000000),$Y$6*1000000,IF($AO$2>($W$6*1000000),$X$6*1000000,IF($AO$2>($V$6*1000000),$W$6*1000000,$V$6*1000000)))) -> 50000000 | AM26: =IF($AO$2>=5000000000,AQ26,BO26) -> 0.02 | AN26: =IF(AO26=0,0,IF(AM26=0,0,100%-((AB26-AO26)/AB26))) -> 0 | AO26: =ROUND(AM26*($AO$3*AF26+$AO$4*AG26),0) -> 0 | AP26: 22.5 | AQ26: =IF($AO$2>18000000000,AR26,(((AP26-(AP26*$AR$6))*$AP$6/($AO$2/1000000)))) ->  | AR26: =AA26*(1-$AS$6) -> 0.003042809887 | AS26: Výpočtem | AU26: A.2.2.1.2 | AV26: =IF(BJ13=4,IF(BJ26=4,IF($O$30>0,"=>",""),""),"") ->  | AY26: Geotechnický průzkum | BB26: Výpočtem | BD26: =IF(BB26="Výpočtem",(IF($I$3="",0,IF($I$3="Stádium 3",0,CJ26))),0) -> 0 | BE26: =IF(BO114="ANO",IF(BJ26=4,"Nelze výpočtem",""),"") ->  | BF26: =BI26*hide!$D$59 -> 0 | BH26: A.2.2.1.2 | BI26: 0.02 | BJ26: FALSE | BK26: FALSE | BL26: FALSE | BM26: FALSE | BO26: =SUM(BI26:BN26) -> 0.02 | BP26: =AM26 -> 0.02 | BQ26: =ROUND(BO26*($AO$3*AF26+$AO$4*AG26),0) -> 0 | BR26: =AO26 -> 0 | BS26: =AO26-BQ26 -> 0
A27: A.2.2.1.3 | E27: Ostatní průzkumné práce | H27: Nezařazeno | J27: =IF(H27="Výpočtem",(IF($I$3="",0,IF($I$3="Stádium 3",0,AO27))),0) -> 0 | K27: =IF($I$3="Stádium 3",IF($I$3="","",IF(P27=4,CONCATENATE("Nelze ve ",$I$3),"")),"") ->  | L27: NE | O27: 0 | P27: 2 | Q27: Výpočtem | R27: Individuálně | S27: Nezařazeno | U27: 0.02 | V27: 0.012 | W27: 0.01 | X27: 0.008 | Y27: 0.005 | Z27: 0.005 | AA27: 0.005 | AB27: =(PN!L20+PN!L23+PN!L26+PN!L27/2)*AD27 -> 0 | AC27: =(PN!L20+PN!L23+PN!L26+PN!L27/2)*AE27 -> 0 | AD27: =IF($AO$2>5000000000,AA27,IF($AO$2>2000000000,Y27,IF($AO$2>($X$6*1000000),X27,IF($AO$2>($W$6*1000000),W27,IF($AO$2>($V$6*1000000),V27,U27))))) -> 0.02 | AE27: =IF($AO$2>5000000000,AA27,IF($AO$2>2000000000,Z27,IF($AO$2>($X$6*1000000),Y27,IF($AO$2>($W$6*1000000),X27,IF($AO$2>($V$6*1000000),W27,V27))))) -> 0.012 | AH27: =IF(I27>AB27,IF(H27="Aktualizace","PŘEKROČENÉ %",IF(H27="Individuálně","PŘEKROČENÉ","OK")),"OK") -> OK | AI27: =IF(AH27="PŘEKROČENÉ %",IF(H27="Výpočtem",0,IF(H27="Smluvně",0,IF(H27="Nezařazeno",0,IF(H27="Individuálně",IF(AH27="PŘEKROČENÉ %",100,1),1)))),0) -> 0 | AJ27: =IF(AH27="PŘEKROČENÉ %",IF(H27="Výpočtem",0,IF(H27="Smluvně",0,IF(H27="Nezařazeno",0,IF(H27="Individuálně",IF(AI27="PŘEKROČENÉ %",0,0),1)))),0) -> 0 | AK27: =IF($AO$2>$Y$6*1000000,$Y$6*1000000,IF($AO$2>($X$6*1000000),$X$6*1000000,IF($AO$2>($W$6*1000000),$W$6*1000000,IF($AO$2>($V$6*1000000),$V$6*1000000,0)))) -> 0 | AL27: =IF($AO$2>$Y$6*1000000,$AA$6*1000000,IF($AO$2>($X$6*1000000),$Y$6*1000000,IF($AO$2>($W$6*1000000),$X$6*1000000,IF($AO$2>($V$6*1000000),$W$6*1000000,$V$6*1000000)))) -> 50000000 | AM27: =IF($AO$2>5000000000,AQ27,IF($AO$2>$AA$6*1000000,AA27,IF($AO$2<Y$6*1000000,(Y27+(((V27-Y27)/($Y$6*1000000))*($Y$6*1000000-$AO$2))),IF($AO$2>$Y$6*1000000,IF($AO$2<$Z$6*1000000,Y27,(AA27+(((Y27-AA27)/($AA$6*1000000))*($AA$6*1000000-$AO$2)))),AA27)))) -> 0.012 | AN27: =IF(AO27=0,0,IF(AM27=0,0,100%-((AB27-AO27)/AB27))) -> 0 | AO27: =ROUND(AM27*(PN!L20+PN!L23+PN!L26+PN!L27/2),0) -> 0 | AP27: 25 | AQ27: =IF($AO$2>18000000000,AR27,(((AP27-(AP27*$AR$6))*$AP$6/($AO$2/1000000)))) ->  | AR27: =AA27*(1-$AS$6) -> 0.003380899875 | AS27: Nezařazeno | AU27: A.2.2.1.3 | AY27: Ostatní průzkumné práce | BB27: Výpočtem | BD27: =IF(BB27="Výpočtem",(IF($I$3="",0,IF($I$3="Stádium 3",0,CJ27))),0) -> 0 | BE27: =IF($I$3="Stádium 3",IF($I$3="","",IF(BJ27=4,CONCATENATE("Nelze ve ",$I$3),"")),"") ->  | BF27: =BI27*hide!$D$59 -> 0 | BH27: A.2.2.1.3 | BI27: 0.02
A28: A.2.2.1.4 | B28: =IF(P15=4,IF(P28=4,IF($O$30>0,"=>",""),""),"") ->  | E28: Inženýrská činnost pro projektové dokumentace | H28: Nezařazeno | J28: =IF(H28="Výpočtem",(IF($I$3="",0,IF($I$3="Stádium 3",0,AO28))),0) -> 0 | K28: =IF(U116="ANO",IF(P28=4,"Nelze výpočtem",""),"") ->  | L28: NE | N28: =(IFERROR((I28+J28)/($K$75+70%*$K$76),0)) -> 0 | O28: 0 | P28: 2 | Q28: Výpočtem | R28: Individuálně | S28: Nezařazeno | U28: =U103 -> 0.0058 | V28: 0.0045 | W28: 0.0043 | X28: 0.0034 | Y28: 0.0023 | Z28: 0.0023 | AA28: 0.0023 | AB28: =($U$3*$AF28*AD28+$U$4*$AD28*AG28) -> 0 | AC28: =($U$3*$AF28*AE28+$U$4*$AE28*AG28) -> 0 | AD28: =IF($AO$2>5000000000,AA28,IF($AO$2>2000000000,Y28,IF($AO$2>($X$6*1000000),X28,IF($AO$2>($W$6*1000000),W28,IF($AO$2>($V$6*1000000),V28,U28))))) -> 0.0058 | AE28: =IF($AO$2>5000000000,AA28,IF($AO$2>2000000000,Z28,IF($AO$2>($X$6*1000000),Y28,IF($AO$2>($W$6*1000000),X28,IF($AO$2>($V$6*1000000),W28,V28))))) -> 0.0045 | AF28: 1 | AG28: 0.7 | AH28: =IF(I28>AB28,IF(H28="Aktualizace","PŘEKROČENÉ %",IF(H28="Individuálně","PŘEKROČENÉ","OK")),"OK") -> OK | AI28: =IF(AH28="PŘEKROČENÉ %",IF(H28="Výpočtem",0,IF(H28="Smluvně",0,IF(H28="Nezařazeno",0,IF(H28="Individuálně",IF(AH28="PŘEKROČENÉ %",100,1),1)))),0) -> 0 | AJ28: =IF(AH28="PŘEKROČENÉ %",IF(H28="Výpočtem",0,IF(H28="Smluvně",0,IF(H28="Nezařazeno",0,IF(H28="Individuálně",IF(AI28="PŘEKROČENÉ %",0,0),1)))),0) -> 0 | AK28: =IF($AO$2>$Y$6*1000000,$Y$6*1000000,IF($AO$2>($X$6*1000000),$X$6*1000000,IF($AO$2>($W$6*1000000),$W$6*1000000,IF($AO$2>($V$6*1000000),$V$6*1000000,0)))) -> 0 | AL28: =IF($AO$2>$Y$6*1000000,$AA$6*1000000,IF($AO$2>($X$6*1000000),$Y$6*1000000,IF($AO$2>($W$6*1000000),$X$6*1000000,IF($AO$2>($V$6*1000000),$W$6*1000000,$V$6*1000000)))) -> 50000000 | AM28: =IF($AO$2>=5000000000,AQ28,BO28) -> 0.0058 | AN28: =IF(AO28=0,0,IF(AM28=0,0,100%-((AB28-AO28)/AB28))) -> 0 | AO28: =ROUND(AM28*($AO$3*AF28+$AO$4*AG28),0) -> 0 | AP28: 11.5 | AQ28: =IF($AO$2>18000000000,AR28,(((AP28-(AP28*$AR$6))*$AP$6/($AO$2/1000000)))) ->  | AR28: =AA28*(1-$AS$6) -> 0.001555213942 | AS28: Nezařazeno | AU28: A.2.2.1.4 | AV28: =IF(BJ15=4,IF(BJ28=4,IF($O$30>0,"=>",""),""),"") ->  | AY28: Inženýrská činnost pro projektové dokumentace | BB28: Výpočtem | BD28: =IF(BB28="Výpočtem",(IF($I$3="",0,IF($I$3="Stádium 3",0,CJ28))),0) -> 0 | BE28: =IF(BO115="ANO",IF(BJ28=4,"Nelze výpočtem",""),"") ->  | BF28: =BI28*hide!$D$59 -> 0 | BH28: A.2.2.1.4 | BI28: 0.0058 | BJ28: =IF($BI$4=BJ$7,((W28-V28)/(W$6-V$6))*$AO$2/1000000+V28-((W28-V28)/(W$6-V$6))*V$6) -> FALSE | BK28: =IF($BI$4=BK$7,((X28-W28)/(X$6-W$6))*$AO$2/1000000+W28-((X28-W28)/(X$6-W$6))*W$6) -> FALSE | BL28: =IF($BI$4=BL$7,((Y28-X28)/(Y$6-X$6))*$AO$2/1000000+X28-((Y28-X28)/(Y$6-X$6))*X$6) -> FALSE | BM28: =IF($BI$4=BM$7,((AA28-Y28)/(AA$6-Y$6))*$AO$2/1000000+Y28-((AA28-Y28)/(AA$6-Y$6))*Y$6) -> FALSE | BO28: =SUM(BI28:BN28) -> 0.0058 | BP28: =AM28 -> 0.0058 | BQ28: =ROUND(BO28*($AO$3*AF28+$AO$4*AG28),0) -> 0 | BR28: =AO28 -> 0 | BS28: =AO28-BQ28 -> 0
A29: A.2.2.1.5 | E29: Ostatní náklady pro projektové dokumentace | H29: Nezařazeno | L29: NE | N29: =IFERROR((I29+J29)/($K$75+$K$76),0) -> 0 | O29: 0 | P29: 2 | R29: Individuálně | S29: Nezařazeno | U29: není určena | AI29: =IF(AH29="PŘEKROČENÉ %",IF(H29="Smluvně",0,IF(H29="Nezařazeno",0,IF(H29="Individuálně",IF(AH29="PŘEKROČENÉ %",100,1),1))),0) -> 0 | AJ29: =IF(AH29="PŘEKROČENÉ %",IF(H29="Smluvně",0,IF(H29="Nezařazeno",0,IF(H29="Individuálně",IF(AI29="PŘEKROČENÉ %",0,0),1))),0) -> 0 | AS29: Nezařazeno | AU29: A.2.2.1.5 | AY29: Ostatní náklady pro projektové dokumentace | BB29: Nezařazeno | BF29: =BI29*hide!$D$59 -> 0 | BH29: A.2.2.1.5 | BO29: =SUM(BI29:BN29) -> 0
A30: A.2.2.2 | B30: =IF(B25="",IF(B26="",IF(B28="","","DUSP/L"),"DUSP/L"),"DUSP/L") ->  | C30: =IF($T$111="Chyba","=>","") ->  | D30: Projektová dokumentace společné povolení | G30: DPS | H30: Nezařazeno | J30: =IF(T111="Chyba",0,IF(X111="Chyba",0,IF(H30="Výpočtem",AO30,0))) -> 0 | K30: =IF($V$110="Výpočtem",IF($X$111="Chyba","Nelze výpočtem",IF($T$111="Chyba","Nelze výpočtem","")),"") ->  | L30: NE | N30: =IFERROR((I30+J30)/(60%*$K$75+60%*$K$76),0) -> 0 | O30: 0 | P30: 2 | Q30: Výpočtem | R30: Individuálně | S30: Nezařazeno | U30: =U104 -> 0.0492 | V30: =V104 -> 0.0492 | W30: 0.0444 | X30: 0.0408 | Y30: 0.0312 | Z30: 0.024 | AA30: 0.024 | AB30: =($U$3*$AF30*AD30+$U$4*$AD30*AG30) -> 0 | AC30: =($U$3*$AF30*AE30+$U$4*$AE30*AG30) -> 0 | AD30: =IF($AO$2>5000000000,AA30,IF($AO$2>2000000000,Y30,IF($AO$2>($X$6*1000000),X30,IF($AO$2>($W$6*1000000),W30,IF($AO$2>($V$6*1000000),V30,U30))))) -> 0.0492 | AE30: =IF($AO$2>5000000000,AA30,IF($AO$2>2000000000,Z30,IF($AO$2>($X$6*1000000),Y30,IF($AO$2>($W$6*1000000),X30,IF($AO$2>($V$6*1000000),W30,V30))))) -> 0.0492 | AF30: 0.6 | AG30: 0.6 | AH30: =IF(I30>AB30,IF(H30="Aktualizace","PŘEKROČENÉ %",IF(H30="Individuálně","PŘEKROČENÉ","OK")),"OK") -> OK | AI30: =IF(AH30="PŘEKROČENÉ %",IF(H30="Výpočtem",0,IF(H30="Smluvně",0,IF(H30="Nezařazeno",0,IF(H30="Individuálně",IF(AH30="PŘEKROČENÉ %",100,1),1)))),0) -> 0 | AJ30: =IF(AH30="PŘEKROČENÉ %",IF(H30="Výpočtem",0,IF(H30="Smluvně",0,IF(H30="Nezařazeno",0,IF(H30="Individuálně",IF(AI30="PŘEKROČENÉ %",0,0),1)))),0) -> 0 | AK30: =IF($AO$2>$Y$6*1000000,$Y$6*1000000,IF($AO$2>($X$6*1000000),$X$6*1000000,IF($AO$2>($W$6*1000000),$W$6*1000000,IF($AO$2>($V$6*1000000),$V$6*1000000,0)))) -> 0 | AL30: =IF($AO$2>$Y$6*1000000,$AA$6*1000000,IF($AO$2>($X$6*1000000),$Y$6*1000000,IF($AO$2>($W$6*1000000),$X$6*1000000,IF($AO$2>($V$6*1000000),$W$6*1000000,$V$6*1000000)))) -> 50000000 | AM30: =IF($AO$2>=5000000000,AQ30,BO30) -> 0.0492 | AN30: =IF(AO30=0,0,IF(AM30=0,0,100%-((AB30-AO30)/AB30))) -> 0 | AO30: =ROUND((AM30*($AO$3*AF30+$AO$4*AG30)),0) -> 0 | AP30: =$AA$6*AA30 -> 120 | AQ30: =IF($AO$2>18000000000,AR30,(((AP30-(AP30*$AR$6))*$AP$6/($AO$2/1000000)))) ->  | AR30: =IF(AND(H22="Ano",H23<>"-"),1.1%,1.62%) -> 0.0162 | AS30: Nezařazeno | AU30: A.2.2.2 | AV30: =IF(AV25="",IF(AV26="",IF(AV28="","","DUSP/L"),"DUSP/L"),"DUSP/L") ->  | AW30: =IF($T$111="Chyba","=>","") ->  | AX30: Projektová dokumentace společné povolení | BA30: DPS | BB30: Individuálně | BD30: =IF(BN110="Chyba",0,IF(BT110="Chyba",0,IF(BB30="Výpočtem",CJ30,0))) -> 0 | BE30: =IF($V$110="Výpočtem",IF($X$111="Chyba","Nelze výpočtem",IF($T$111="Chyba","Nelze výpočtem","")),"") ->  | BF30: =BI30*hide!$D$59 -> 0 | BH30: A.2.2.2 | BI30: 0.0492 | BJ30: =IF($BI$4=BJ$7,((W30-V30)/(W$6-V$6))*$AO$2/1000000+V30-((W30-V30)/(W$6-V$6))*V$6) -> FALSE | BK30: =IF($BI$4=BK$7,((X30-W30)/(X$6-W$6))*$AO$2/1000000+W30-((X30-W30)/(X$6-W$6))*W$6) -> FALSE | BL30: =IF($BI$4=BL$7,((Y30-X30)/(Y$6-X$6))*$AO$2/1000000+X30-((Y30-X30)/(Y$6-X$6))*X$6) -> FALSE | BM30: =IF($BI$4=BM$7,((AA30-Y30)/(AA$6-Y$6))*$AO$2/1000000+Y30-((AA30-Y30)/(AA$6-Y$6))*Y$6) -> FALSE | BO30: =SUM(BI30:BN30) -> 0.0492 | BP30: =AM30 -> 0.0492 | BQ30: =ROUND(BO30*($AO$3*AF30+$AO$4*AG30),0) -> 0 | BR30: =AO30 -> 0 | BS30: =AO30-BQ30 -> 0
A31: A.2.2.3 | D31: Projektová dokumentace pro stavební povolení | G31: DSP | H31: Nezařazeno | J31: =IF(H31="Výpočtem",(IF($I$3="",0,IF($I$3="Stádium 3",0,AO31))),0) -> 0 | K31: =IF($T$111="Chyba","",(IF($I$3="Stádium 3",IF($I$3="","",IF(P31=4,CONCATENATE("Nelze ve ",$I$3),"")),""))) ->  | L31: NE | O31: 0 | P31: 2 | R31: Individuálně | S31: Nezařazeno | U31: 0.09 | V31: =V75 -> 0.072 | W31: =W75 -> 0.068 | X31: =X75 -> 0.055 | Y31: 0.04 | Z31: 0.03 | AA31: 0.02 | AB31: =($U$3*$AF31*AD31+$U$4*$AD31*AG31) -> 0 | AC31: =($U$3*$AF31*AE31+$U$4*$AE31*AG31) -> 0 | AD31: =IF($AO$2>5000000000,AA31,IF($AO$2>2000000000,Y31,IF($AO$2>($X$6*1000000),X31,IF($AO$2>($W$6*1000000),W31,IF($AO$2>($V$6*1000000),V31,U31))))) -> 0.09 | AE31: =IF($AO$2>5000000000,AA31,IF($AO$2>2000000000,Z31,IF($AO$2>($X$6*1000000),Y31,IF($AO$2>($W$6*1000000),X31,IF($AO$2>($V$6*1000000),W31,V31))))) -> 0.072 | AF31: 0.6 | AG31: 0.6 | AH31: =IF(I31>AB31,IF(H31="Aktualizace","PŘEKROČENÉ %",IF(H31="Individuálně","PŘEKROČENÉ","OK")),"OK") -> OK | AI31: =IF(AH31="PŘEKROČENÉ %",IF(H31="Výpočtem",0,IF(H31="Smluvně",0,IF(H31="Nezařazeno",0,IF(H31="Individuálně",IF(AH31="PŘEKROČENÉ %",100,1),1)))),0) -> 0 | AJ31: =IF(AH31="PŘEKROČENÉ %",IF(H31="Výpočtem",0,IF(H31="Smluvně",0,IF(H31="Nezařazeno",0,IF(H31="Individuálně",IF(AI31="PŘEKROČENÉ %",0,0),1)))),0) -> 0 | AK31: =IF($AO$2>$Y$6*1000000,$Y$6*1000000,IF($AO$2>($X$6*1000000),$X$6*1000000,IF($AO$2>($W$6*1000000),$W$6*1000000,IF($AO$2>($V$6*1000000),$V$6*1000000,0)))) -> 0 | AL31: =IF($AO$2>$Y$6*1000000,$AA$6*1000000,IF($AO$2>($X$6*1000000),$Y$6*1000000,IF($AO$2>($W$6*1000000),$X$6*1000000,IF($AO$2>($V$6*1000000),$W$6*1000000,$V$6*1000000)))) -> 50000000 | AM31: =IF($AO$2>5000000000,AQ31,IF($AO$2>$AA$6*1000000,AA31,IF($AO$2<Y$6*1000000,(Y31+(((V31-Y31)/($Y$6*1000000))*($Y$6*1000000-$AO$2))),IF($AO$2>$Y$6*1000000,IF($AO$2<$Z$6*1000000,Y31,(AA31+(((Y31-AA31)/($AA$6*1000000))*($AA$6*1000000-$AO$2)))),AA31)))) -> 0.072 | AN31: =IF(AO31=0,0,IF(AM31=0,0,100%-((AB31-AO31)/AB31))) -> 0 | AO31: =ROUND(AM31*($AO$3*AF31+$AO$4*AG31),0) -> 0 | AP31: 100 | AQ31: =IF($AO$2>18000000000,AR31,(((AP31-(AP31*$AR$6))*$AP$6/($AO$2/1000000)))) ->  | AS31: Nezařazeno | AU31: A.2.2.3 | AX31: Projektová dokumentace pro stavební povolení | BA31: DSP | BB31: Smluvně | BD31: =IF(BB31="Výpočtem",(IF($I$3="",0,IF($I$3="Stádium 3",0,CJ31))),0) -> 0 | BE31: =IF($T$111="Chyba","",(IF($I$3="Stádium 3",IF($I$3="","",IF(BJ31=4,CONCATENATE("Nelze ve ",$I$3),"")),""))) ->  | BF31: =BI31*hide!$D$59 -> 0 | BH31: A.2.2.3 | BI31: 0.09 | BJ31: FALSE | BK31: FALSE | BL31: FALSE | BM31: FALSE | BO31: =SUM(BI31:BN31) -> 0.09 | BP31: =AM31 -> 0.072 | BQ31: =ROUND(BO31*($AO$3*AF31+$AO$4*AG31),0) -> 0 | BR31: =AO31 -> 0 | BS31: =AO31-BQ31 -> 0
A32: A.2.2.4 | D32: Projektová dokumentace pro provádění stavby | G32: PDPS | H32: Nezařazeno | J32: =IF(H32="Výpočtem",(IF($I$3="",0,IF($I$3="Stádium 3",0,AO32))),0) -> 0 | K32: =IF($I$3="Stádium 3",IF($I$3="","",IF(P32=4,CONCATENATE("Nelze ve ",$I$3),"")),"") ->  | L32: NE | N32: =IFERROR(IF(SUM(I30:J31)>0,((I32+J32)/(40%*$K$75+20%*$K$76)),((I32+J32)/(60%*$K$75+40%*$K$76))),0) -> 0 | O32: 0 | P32: 2 | Q32: Výpočtem | R32: Individuálně | S32: Nezařazeno | U32: =U105 -> 0.1212 | V32: 0.11808 | W32: 0.1098 | X32: 0.0774 | Y32: 0.0522 | Z32: 0.036 | AA32: 0.036 | AB32: =($U$3*$AF32*AD32+$U$4*$AD32*AG32) -> 0 | AC32: =($U$3*$AF32*AE32+$U$4*$AE32*AG32) -> 0 | AD32: =IF($AO$2>5000000000,AA32,IF($AO$2>2000000000,Y32,IF($AO$2>($X$6*1000000),X32,IF($AO$2>($W$6*1000000),W32,IF($AO$2>($V$6*1000000),V32,U32))))) -> 0.1212 | AE32: =IF($AO$2>5000000000,AA32,IF($AO$2>2000000000,Z32,IF($AO$2>($X$6*1000000),Y32,IF($AO$2>($W$6*1000000),X32,IF($AO$2>($V$6*1000000),W32,V32))))) -> 0.11808 | AF32: =IF(S105="PDPS samostatně",0.6,0.4) -> 0.4 | AG32: =IF(S105="PDPS samostatně",0.4,0.2) -> 0.2 | AH32: =IF(I32>AB32,IF(H32="Aktualizace","PŘEKROČENÉ %",IF(H32="Individuálně","PŘEKROČENÉ","OK")),"OK") -> OK | AI32: =IF(AH32="PŘEKROČENÉ %",IF(H32="Výpočtem",0,IF(H32="Smluvně",0,IF(H32="Nezařazeno",0,IF(H32="Individuálně",IF(AH32="PŘEKROČENÉ %",100,1),1)))),0) -> 0 | AJ32: =IF(AH32="PŘEKROČENÉ %",IF(H32="Výpočtem",0,IF(H32="Smluvně",0,IF(H32="Nezařazeno",0,IF(H32="Individuálně",IF(AI32="PŘEKROČENÉ %",0,0),1)))),0) -> 0 | AK32: =IF($AO$2>$Y$6*1000000,$Y$6*1000000,IF($AO$2>($X$6*1000000),$X$6*1000000,IF($AO$2>($W$6*1000000),$W$6*1000000,IF($AO$2>($V$6*1000000),$V$6*1000000,0)))) -> 0 | AL32: =IF($AO$2>$Y$6*1000000,$AA$6*1000000,IF($AO$2>($X$6*1000000),$Y$6*1000000,IF($AO$2>($W$6*1000000),$X$6*1000000,IF($AO$2>($V$6*1000000),$W$6*1000000,$V$6*1000000)))) -> 50000000 | AM32: =IF($AO$2>=5000000000,AQ32,BO32) -> 0.1212 | AN32: =IF(AO32=0,0,IF(AM32=0,0,100%-((AB32-AO32)/AB32))) -> 0 | AO32: 0 | AP32: 180 | AQ32: =IF($AO$2>18000000000,AR32,(((AP32-(AP32*$AR$6))*$AP$6/($AO$2/1000000)))) ->  | AR32: =IF(S105="PDPS samostatně",3.66%,2.43489564%) -> 0.0243489564 | AS32: Nezařazeno | AU32: A.2.2.4 | AX32: Projektová dokumentace pro provádění stavby | BA32: PDPS | BB32: Výpočtem | BD32: =IF(BB32="Výpočtem",(IF($I$3="",0,IF($I$3="Stádium 3",0,CJ32))),0) -> 0 | BE32: =IF($I$3="Stádium 3",IF($I$3="","",IF(BJ32=4,CONCATENATE("Nelze ve ",$I$3),"")),"") ->  | BF32: =BI32*hide!$D$59 -> 0 | BH32: A.2.2.4 | BI32: 0.1212 | BJ32: FALSE | BK32: FALSE | BL32: FALSE | BM32: FALSE | BO32: =SUM(BI32:BN32) -> 0.1212 | BP32: =AM32 -> 0.1212 | BQ32: =ROUND(BO32*($AO$3*AF32+$AO$4*AG32),0) -> 0 | BR32: =AO32 -> 0 | BS32: =AO32-BQ32 -> 0
A33: A.2.2.5 | D33: Ostatní náklady na základní služby | H33: Nezařazeno | J33: =IF(H33="Výpočtem",AO33,0) -> 0 | L33: NE | O33: 0 | P33: 2 | Q33: Výpočtem | R33: Individuálně | S33: Nezařazeno | U33: 0.005 | V33: 0.005 | W33: 0.004 | X33: 0.003 | Y33: 0.002 | Z33: 0.002 | AA33: 0.002 | AB33: =($U$3*$AF33*AD33+$U$4*$AD33*AG33) -> 0 | AC33: =($U$3*$AF33*AE33+$U$4*$AE33*AG33) -> 0 | AD33: =IF($AO$2>5000000000,AA33,IF($AO$2>2000000000,Y33,IF($AO$2>($X$6*1000000),X33,IF($AO$2>($W$6*1000000),W33,IF($AO$2>($V$6*1000000),V33,U33))))) -> 0.005 | AE33: =IF($AO$2>5000000000,AA33,IF($AO$2>2000000000,Z33,IF($AO$2>($X$6*1000000),Y33,IF($AO$2>($W$6*1000000),X33,IF($AO$2>($V$6*1000000),W33,V33))))) -> 0.005 | AF33: 1 | AG33: 1 | AH33: =IF(I33>AB33,IF(H33="Aktualizace","PŘEKROČENÉ %",IF(H33="Individuálně","PŘEKROČENÉ","OK")),"OK") -> OK | AI33: =IF(AH33="PŘEKROČENÉ %",IF(H33="Smluvně",0,IF(H33="Nezařazeno",0,IF(H33="Individuálně",IF(AH33="PŘEKROČENÉ %",100,1),1))),0) -> 0 | AJ33: =IF(AH33="PŘEKROČENÉ %",IF(H33="Smluvně",0,IF(H33="Nezařazeno",0,IF(H33="Individuálně",IF(AI33="PŘEKROČENÉ %",0,0),1))),0) -> 0 | AK33: =IF($AO$2>$Y$6*1000000,$Y$6*1000000,IF($AO$2>($X$6*1000000),$X$6*1000000,IF($AO$2>($W$6*1000000),$W$6*1000000,IF($AO$2>($V$6*1000000),$V$6*1000000,0)))) -> 0 | AL33: =IF($AO$2>$Y$6*1000000,$AA$6*1000000,IF($AO$2>($X$6*1000000),$Y$6*1000000,IF($AO$2>($W$6*1000000),$X$6*1000000,IF($AO$2>($V$6*1000000),$W$6*1000000,$V$6*1000000)))) -> 50000000 | AM33: =IF($AO$2>5000000000,AQ33,IF($AO$2>$AA$6*1000000,AA33,IF($AO$2<Y$6*1000000,(Y33+(((V33-Y33)/($Y$6*1000000))*($Y$6*1000000-$AO$2))),IF($AO$2>$Y$6*1000000,IF($AO$2<$Z$6*1000000,Y33,(AA33+(((Y33-AA33)/($AA$6*1000000))*($AA$6*1000000-$AO$2)))),AA33)))) -> 0.005 | AN33: 0 | AO33: 0 | AP33: 10 | AQ33: =IF($AO$2>18000000000,AR33,(((AP33-(AP33*$AR$6))*$AP$6/($AO$2/1000000)))) ->  | AR33: =AA33*(1-$AS$6) -> 0.00135235995 | AS33: Nezařazeno | AU33: A.2.2.5 | AX33: Ostatní náklady na základní služby | BB33: Nezařazeno | BD33: =IF(BB33="Výpočtem",CJ33,0) -> 0 | BF33: =BI33*hide!$D$59 -> 0 | BH33: A.2.2.5 | BI33: 0.005
A34: A.2.3 | C34: Dozor projektanta | J34: =IF(H34="Výpočtem",AO34,0) -> 0 | L34: =IF(AND(H35="Nezařazeno",H36="Nezařazeno")=TRUE,"NE",IF(SUM(I35:J36)>0,"ANO","NE")) -> NE | O34: 0 | AO34: 0 | AP34: 0 | AS34: 0 | AU34: A.2.3 | AW34: Dozor projektanta | BD34: =IF(BB34="Výpočtem",CJ34,0) -> 0 | BF34: =BI34*hide!$D$59 -> 0 | BH34: A.2.3
A35: A.2.3.1 | E35: Dozor projektanta pro PDPS | H35: Nezařazeno | J35: =IF(H35="Výpočtem",(IF($I$3="",0,IF($I$3="Stádium 3",0,AO35))),0) -> 0 | L35: NE | N35: =IFERROR((I35+J35)/($K$75+$K$76),0) -> 0 | O35: 0 | P35: 2 | Q35: Výpočtem | R35: Individuálně | S35: Nezařazeno | U35: 0.0006 | V35: 0.0006 | W35: 0.0003 | X35: 0.00018 | Y35: 0.00012 | Z35: 6e-05 | AA35: 5e-05 | AB35: =($U$3*$AF35*AD35+$U$4*$AD35*AG35) -> 0 | AC35: =($U$3*$AF35*AE35+$U$4*$AE35*AG35) -> 0 | AD35: =IF($AO$2>5000000000,AA35,IF($AO$2>2000000000,Y35,IF($AO$2>($X$6*1000000),X35,IF($AO$2>($W$6*1000000),W35,IF($AO$2>($V$6*1000000),V35,U35))))) -> 0.0006 | AE35: =IF($AO$2>5000000000,AA35,IF($AO$2>2000000000,Z35,IF($AO$2>($X$6*1000000),Y35,IF($AO$2>($W$6*1000000),X35,IF($AO$2>($V$6*1000000),W35,V35))))) -> 0.0006 | AF35: 1 | AG35: 1 | AK35: =IF($AO$2>$Y$6*1000000,$Y$6*1000000,IF($AO$2>($X$6*1000000),$X$6*1000000,IF($AO$2>($W$6*1000000),$W$6*1000000,IF($AO$2>($V$6*1000000),$V$6*1000000,0)))) -> 0 | AL35: =IF($AO$2>$Y$6*1000000,$AA$6*1000000,IF($AO$2>($X$6*1000000),$Y$6*1000000,IF($AO$2>($W$6*1000000),$X$6*1000000,IF($AO$2>($V$6*1000000),$W$6*1000000,$V$6*1000000)))) -> 50000000 | AM35: =IF($AO$2>=5000000000,AQ35,BO35) -> 0.0006 | AN35: =IF(AO35=0,0,IF(AM35=0,0,100%-((AB35-AO35)/AB35))) -> 0 | AO35: 0 | AP35: =$AA$6*AA35 -> 0.25 | AQ35: =IF($AO$2>18000000000,AR35,(((AP35-(AP35*$AR$6))*$AP$6/($AO$2/1000000)))) ->  | AR35: =AA35*(1-$AS$6) -> 3.380899875e-05 | AS35: Nezařazeno | AU35: A.2.3.1 | AY35: Dozor projektanta pro PDPS | BB35: Výpočtem | BH35: A.2.3.1 | BI35: =IF($BI$4=$BI$7,U35,0) -> 0.0006 | BJ35: =IF($BI$4=BJ$7,((W35-V35)/(W$6-V$6))*$AO$2/1000000+V35-((W35-V35)/(W$6-V$6))*V$6) -> FALSE | BK35: =IF($BI$4=BK$7,((X35-W35)/(X$6-W$6))*$AO$2/1000000+W35-((X35-W35)/(X$6-W$6))*W$6) -> FALSE | BL35: =IF($BI$4=BL$7,((Y35-X35)/(Y$6-X$6))*$AO$2/1000000+X35-((Y35-X35)/(Y$6-X$6))*X$6) -> FALSE | BM35: =IF($BI$4=BM$7,((AA35-Y35)/(AA$6-Y$6))*$AO$2/1000000+Y35-((AA35-Y35)/(AA$6-Y$6))*Y$6) -> FALSE | BO35: =SUM(BI35:BN35) -> 0.0006 | BP35: =AM35 -> 0.0006 | BQ35: =ROUND(BO35*($AO$3*AF35+$AO$4*AG35),0) -> 0 | BR35: =AO35 -> 0 | BS35: =AO35-BQ35 -> 0
A36: A.2.3.2 | E36: Dozor projektanta pro realizaci | H36: Nezařazeno | J36: =IF(H36="Výpočtem",(IF($I$3="",0,IF($I$3="Stádium 3",0,AO36))),0) -> 0 | L36: NE | N36: =IFERROR((I36+J36)/($K$75+$K$76),0) -> 0 | O36: 0 | P36: 2 | Q36: Výpočtem | R36: Individuálně | S36: Nezařazeno | U36: 0.02 | V36: 0.02 | W36: 0.01 | X36: 0.006 | Y36: 0.004 | Z36: 0.002 | AA36: 0.0018 | AB36: 0 | AC36: 0 | AD36: =IF($AO$2>5000000000,AA36,IF($AO$2>2000000000,Y36,IF($AO$2>($X$6*1000000),X36,IF($AO$2>($W$6*1000000),W36,IF($AO$2>($V$6*1000000),V36,U36))))) -> 0.02 | AE36: =IF($AO$2>5000000000,AA36,IF($AO$2>2000000000,Z36,IF($AO$2>($X$6*1000000),Y36,IF($AO$2>($W$6*1000000),X36,IF($AO$2>($V$6*1000000),W36,V36))))) -> 0.02 | AF36: 1 | AG36: 1 | AK36: =IF($AO$2>$Y$6*1000000,$Y$6*1000000,IF($AO$2>($X$6*1000000),$X$6*1000000,IF($AO$2>($W$6*1000000),$W$6*1000000,IF($AO$2>($V$6*1000000),$V$6*1000000,0)))) -> 0 | AL36: =IF($AO$2>$Y$6*1000000,$AA$6*1000000,IF($AO$2>($X$6*1000000),$Y$6*1000000,IF($AO$2>($W$6*1000000),$X$6*1000000,IF($AO$2>($V$6*1000000),$W$6*1000000,$V$6*1000000)))) -> 50000000 | AM36: =IF($AO$2>=5000000000,AQ36,BO36) -> 0.02 | AN36: 0 | AO36: 0 | AP36: 9 | AQ36: =IF($AO$2>18000000000,AR36,(((AP36-(AP36*$AR$6))*$AP$6/($AO$2/1000000)))) ->  | AR36: 0.001217123955 | AS36: Nezařazeno | AU36: A.2.3.2 | AY36: Dozor projektanta pro realizaci | BB36: Výpočtem | BH36: A.2.3.2 | BI36: 0.02 | BJ36: FALSE | BK36: FALSE | BL36: FALSE | BM36: FALSE | BO36: =SUM(BI36:BN36) -> 0.02 | BP36: =AM36 -> 0.02 | BQ36: =ROUND(BO36*($AO$3*AF36+$AO$4*AG36),0) -> 0 | BR36: =AO36 -> 0 | BS36: =AO36-BQ36 -> 0
A37: A.2.4 | C37: Ostatní náklady pro přípravu stavby | J37: =O37 -> 0 | L37: NE | O37: =SUM(O38:O41) -> 0 | AI37: =IF(AH37="PŘEKROČENÉ %",IF(H37="Smluvně",0,IF(H37="Nezařazeno",0,IF(H37="Individuálně",IF(AH37="PŘEKROČENÉ %",100,1),1))),0) -> 0 | AJ37: =IF(AH37="PŘEKROČENÉ %",IF(H37="Smluvně",0,IF(H37="Nezařazeno",0,IF(H37="Individuálně",IF(AI37="PŘEKROČENÉ %",0,0),1))),0) -> 0 | AS37: 0 | AU37: A.2.4 | AW37: Ostatní náklady pro přípravu stavby | BD37: =BI37 -> 0 | BF37: =SUM(BF38:BF41) -> 0 | BH37: A.2.4
A38: A.2.4.1 | C38: z toho | D38: Osvědčení o shodě notifikovanou osobou v přípravě | H38: Nezařazeno | J38: =IF(H38="Výpočtem",AO38,0) -> 0 | L38: NE | N38: =IFERROR((I38+J38)/($K$75+$K$76),0) -> 0 | O38: =IF(H38="Nezařazeno",0,IF(H38="Výpočtem",J38,I38)) -> 0 | P38: =IF((IF(H38="Individuálně",1,IF(H38="Smluvně",1,IF(H38="Nezařazeno",2,2))))=1,IF(I38=0,3,1),IF(H38="Výpočtem",4,2)) -> 2 | Q38: Výpočtem | R38: Individuálně | S38: Nezařazeno | U38: 0.003 | V38: 0.003 | W38: 0.002 | X38: 0.0013 | Y38: 0.001 | Z38: 0.0008 | AA38: 0.0008 | AB38: =($U$3*$AF38*AD38+$U$4*$AD38*AG38) -> 0 | AC38: =($U$3*$AF38*AE38+$U$4*$AE38*AG38) -> 0 | AD38: =IF($AO$2>5000000000,AA38,IF($AO$2>2000000000,Y38,IF($AO$2>($X$6*1000000),X38,IF($AO$2>($W$6*1000000),W38,IF($AO$2>($V$6*1000000),V38,U38))))) -> 0.003 | AE38: =IF($AO$2>5000000000,AA38,IF($AO$2>2000000000,Z38,IF($AO$2>($X$6*1000000),Y38,IF($AO$2>($W$6*1000000),X38,IF($AO$2>($V$6*1000000),W38,V38))))) -> 0.003 | AF38: 1 | AG38: 1 | AH38: =IF(I38>AB38,IF(H38="Aktualizace","PŘEKROČENÉ %",IF(H38="Individuálně","PŘEKROČENÉ","OK")),"OK") -> OK | AI38: =IF(AH38="PŘEKROČENÉ %",IF(H38="Výpočtem",0,IF(H38="Smluvně",0,IF(H38="Nezařazeno",0,IF(H38="Individuálně",IF(AH38="PŘEKROČENÉ %",100,1),1)))),0) -> 0 | AJ38: =IF(AH38="PŘEKROČENÉ %",IF(H38="Výpočtem",0,IF(H38="Smluvně",0,IF(H38="Nezařazeno",0,IF(H38="Individuálně",IF(AI38="PŘEKROČENÉ %",0,0),1)))),0) -> 0 | AK38: =IF($AO$2>$Y$6*1000000,$Y$6*1000000,IF($AO$2>($X$6*1000000),$X$6*1000000,IF($AO$2>($W$6*1000000),$W$6*1000000,IF($AO$2>($V$6*1000000),$V$6*1000000,0)))) -> 0 | AL38: =IF($AO$2>$Y$6*1000000,$AA$6*1000000,IF($AO$2>($X$6*1000000),$Y$6*1000000,IF($AO$2>($W$6*1000000),$X$6*1000000,IF($AO$2>($V$6*1000000),$W$6*1000000,$V$6*1000000)))) -> 50000000 | AM38: =IF($AO$2>=5000000000,AQ38,BO38) -> 0.003 | AN38: 0 | AO38: =ROUND(AM38*($AO$3*AF38+$AO$4*AG38),0) -> 0 | AP38: =$AA$6*AA38 -> 4 | AQ38: =IF($AO$2>18000000000,AR38,(((AP38-(AP38*$AR$6))*$AP$6/($AO$2/1000000)))) ->  | AR38: =AA38*(1-$AS$6) -> 0.00054094398 | AS38: Nezařazeno | AU38: A.2.4.1 | AW38: z toho | AX38: Osvědčení o shodě notifikovanou osobou v přípravě | BB38: Výpočtem | BD38: =IF(BB38="Výpočtem",CJ38,0) -> 0 | BF38: =BI38*hide!$D$59 -> 0 | BH38: A.2.4.1 | BI38: 0.003 | BJ38: =IF($BI$4=BJ$7,((W38-V38)/(W$6-V$6))*$AO$2/1000000+V38-((W38-V38)/(W$6-V$6))*V$6) -> FALSE | BK38: =IF($BI$4=BK$7,((X38-W38)/(X$6-W$6))*$AO$2/1000000+W38-((X38-W38)/(X$6-W$6))*W$6) -> FALSE | BL38: =IF($BI$4=BL$7,((Y38-X38)/(Y$6-X$6))*$AO$2/1000000+X38-((Y38-X38)/(Y$6-X$6))*X$6) -> FALSE | BM38: =IF($BI$4=BM$7,((AA38-Y38)/(AA$6-Y$6))*$AO$2/1000000+Y38-((AA38-Y38)/(AA$6-Y$6))*Y$6) -> FALSE | BO38: =SUM(BI38:BN38) -> 0.003 | BP38: =AM38 -> 0.003 | BQ38: =ROUND(BO38*($AO$3*AF38+$AO$4*AG38),0) -> 0 | BR38: =AO38 -> 0 | BS38: =AO38-BQ38 -> 0
A39: A.2.4.2 | D39: Koordinátor BOZP v přípravě | H39: Nezařazeno | J39: =IF(H39="Výpočtem",AO39,0) -> 0 | L39: NE | N39: =IFERROR((I39+J39)/($K$75+$K$76),0) -> 0 | O39: =IF(H39="Nezařazeno",0,IF(H39="Výpočtem",J39,I39)) -> 0 | P39: =IF((IF(H39="Individuálně",1,IF(H39="Smluvně",1,IF(H39="Nezařazeno",2,2))))=1,IF(I39=0,3,1),IF(H39="Výpočtem",4,2)) -> 2 | Q39: Výpočtem | R39: Individuálně | S39: Nezařazeno | U39: 0.0012 | V39: 0.0012 | W39: 0.0009 | X39: 0.0008 | Y39: 0.0005 | Z39: 0.0005 | AA39: 0.0004 | AB39: =($U$3*$AF39*AD39+$U$4*$AD39*AG39) -> 0 | AC39: =($U$3*$AF39*AE39+$U$4*$AE39*AG39) -> 0 | AD39: 0.0012 | AE39: 0.0012 | AF39: 1 | AG39: 1 | AH39: =IF(I39>AB39,IF(H39="Aktualizace","PŘEKROČENÉ %",IF(H39="Individuálně","PŘEKROČENÉ","OK")),"OK") -> OK | AI39: =IF(AH39="PŘEKROČENÉ %",IF(H39="Výpočtem",0,IF(H39="Smluvně",0,IF(H39="Nezařazeno",0,IF(H39="Individuálně",IF(AH39="PŘEKROČENÉ %",100,1),1)))),0) -> 0 | AJ39: =IF(AH39="PŘEKROČENÉ %",IF(H39="Výpočtem",0,IF(H39="Smluvně",0,IF(H39="Nezařazeno",0,IF(H39="Individuálně",IF(AI39="PŘEKROČENÉ %",0,0),1)))),0) -> 0 | AK39: =IF($AO$2>$Y$6*1000000,$Y$6*1000000,IF($AO$2>($X$6*1000000),$X$6*1000000,IF($AO$2>($W$6*1000000),$W$6*1000000,IF($AO$2>($V$6*1000000),$V$6*1000000,0)))) -> 0 | AL39: =IF($AO$2>$Y$6*1000000,$AA$6*1000000,IF($AO$2>($X$6*1000000),$Y$6*1000000,IF($AO$2>($W$6*1000000),$X$6*1000000,IF($AO$2>($V$6*1000000),$W$6*1000000,$V$6*1000000)))) -> 50000000 | AM39: =IF($AO$2>=5000000000,AQ39,BO39) -> 0.0012 | AN39: 0 | AO39: 0 | AP39: 2 | AQ39: =IF($AO$2>18000000000,AR39,(((AP39-(AP39*$AR$6))*$AP$6/($AO$2/1000000)))) ->  | AR39: 0.00027047199 | AS39: Nezařazeno | AU39: A.2.4.2 | AX39: Koordinátor BOZP v přípravě | BB39: Výpočtem | BD39: =IF(BB39="Výpočtem",CJ39,0) -> 0 | BF39: =BI39*hide!$D$59 -> 0 | BH39: A.2.4.2 | BI39: 0.0012 | BJ39: FALSE | BK39: FALSE | BL39: FALSE | BM39: FALSE | BO39: =SUM(BI39:BN39) -> 0.0012 | BP39: =AM39 -> 0.0012 | BQ39: =ROUND(BO39*($AO$3*AF39+$AO$4*AG39),0) -> 0 | BR39: =AO39 -> 0 | BS39: =AO39-BQ39 -> 0
A40: A.2.4.3 | D40: Zpracování žádosti o spolufinancování stavby | H40: Nezařazeno | J40: =IF(H40="Výpočtem",AO40,0) -> 0 | L40: NE | N40: =IFERROR((I40+J40)/($K$75+$K$76),0) -> 0 | O40: =IF(H40="Nezařazeno",0,IF(H40="Výpočtem",J40,I40)) -> 0 | P40: =IF((IF(H40="Individuálně",1,IF(H40="Smluvně",1,IF(H40="Nezařazeno",2,2))))=1,IF(I40=0,3,1),IF(H40="Výpočtem",4,2)) -> 2 | Q40: Výpočtem | R40: Individuálně | S40: Nezařazeno | U40: 0.0008 | V40: 0.0008 | W40: 0.0006 | X40: 0.0003 | Y40: 0.00012 | Z40: 0.0001 | AA40: 0.0001 | AB40: =($U$3*$AF40*AD40+$U$4*$AD40*AG40) -> 0 | AC40: =($U$3*$AF40*AE40+$U$4*$AE40*AG40) -> 0 | AD40: 0.0008 | AE40: 0.0008 | AF40: 1 | AG40: 1 | AH40: =IF(I40>AB40,IF(H40="Aktualizace","PŘEKROČENÉ %",IF(H40="Individuálně","PŘEKROČENÉ","OK")),"OK") -> OK | AI40: =IF(AH40="PŘEKROČENÉ %",IF(H40="Výpočtem",0,IF(H40="Smluvně",0,IF(H40="Nezařazeno",0,IF(H40="Individuálně",IF(AH40="PŘEKROČENÉ %",100,1),1)))),0) -> 0 | AJ40: =IF(AH40="PŘEKROČENÉ %",IF(H40="Výpočtem",0,IF(H40="Smluvně",0,IF(H40="Nezařazeno",0,IF(H40="Individuálně",IF(AI40="PŘEKROČENÉ %",0,0),1)))),0) -> 0 | AK40: =IF($AO$2>$Y$6*1000000,$Y$6*1000000,IF($AO$2>($X$6*1000000),$X$6*1000000,IF($AO$2>($W$6*1000000),$W$6*1000000,IF($AO$2>($V$6*1000000),$V$6*1000000,0)))) -> 0 | AL40: =IF($AO$2>$Y$6*1000000,$AA$6*1000000,IF($AO$2>($X$6*1000000),$Y$6*1000000,IF($AO$2>($W$6*1000000),$X$6*1000000,IF($AO$2>($V$6*1000000),$W$6*1000000,$V$6*1000000)))) -> 50000000 | AM40: =IF($AO$2>=5000000000,AQ40,BO40) -> 0.0008 | AN40: 0 | AO40: 0 | AP40: 0.5 | AQ40: =IF($AO$2>18000000000,AR40,(((AP40-(AP40*$AR$6))*$AP$6/($AO$2/1000000)))) ->  | AR40: 6.76179975e-05 | AS40: Nezařazeno | AU40: A.2.4.3 | AX40: Zpracování žádosti o spolufinancování stavby | BB40: Výpočtem | BD40: =IF(BB40="Výpočtem",CJ40,0) -> 0 | BF40: =BI40*hide!$D$59 -> 0 | BH40: A.2.4.3 | BI40: 0.0008 | BJ40: FALSE | BK40: FALSE | BL40: FALSE | BM40: FALSE | BO40: =SUM(BI40:BN40) -> 0.0008 | BP40: =AM40 -> 0.0008 | BQ40: =ROUND(BO40*($AO$3*AF40+$AO$4*AG40),0) -> 0 | BR40: =AO40 -> 0 | BS40: =AO40-BQ40 -> 0
A41: A.2.4.4 | D41: Zpracování v režimu BIM | F41: Příprava | G41: =IF(F41="Příprava",CONCATENATE("v přípravě ",100-$S$42, "%"),"") -> v přípravě 100% | H41: Nezařazeno | J41: =IF(H41="Výpočtem",AO41*(1-S42/100),0) -> 0 | L41: NE | N41: =IFERROR((I41+J41)/($K$75+$K$76),0) -> 0 | O41: =IF(H41="Nezařazeno",0,IF(H41="Výpočtem",J41,I41)) -> 0 | P41: =IF((IF(H41="Individuálně",1,IF(H41="Smluvně",1,IF(H41="Nezařazeno",2,2))))=1,IF(I41=0,3,1),IF(H41="Výpočtem",4,2)) -> 2 | Q41: Výpočtem | R41: Předpoklad | S41: Nezařazeno | U41: =IF($F$41="Realizace",0.8%,1.85%) -> 0.0185 | V41: =IF($F$41="Realizace",0.8%,1.85%) -> 0.0185 | W41: =IF($F$41="Realizace",0.7%,1.7%) -> 0.017 | X41: =IF($F$41="Realizace",0.5%,1.3%) -> 0.013 | Y41: =IF($F$41="Realizace",0.4%,1%) -> 0.01 | Z41: =IF($F$41="Realizace",0.3%,0.7%) -> 0.007 | AA41: =IF($F$41="Realizace",0.3%,0.7%) -> 0.007 | AB41: =($U$3*$AF41*AD41+$U$4*$AD41*AG41) -> 0 | AC41: =($U$3*$AF41*AE41+$U$4*$AE41*AG41) -> 0 | AD41: 0.0185 | AE41: 0.0185 | AF41: 1 | AG41: 1 | AH41: =IF(I41>AB41,IF(H41="Aktualizace","PŘEKROČENÉ %",IF(H41="Individuálně","PŘEKROČENÉ","OK")),"OK") -> OK | AI41: =IF(AH41="PŘEKROČENÉ %",IF(H41="Výpočtem",0,IF(H41="Smluvně",0,IF(H41="Nezařazeno",0,IF(H41="Individuálně",IF(AH41="PŘEKROČENÉ %",100,1),1)))),0) -> 0 | AJ41: =IF(AH41="PŘEKROČENÉ %",IF(H41="Výpočtem",0,IF(H41="Smluvně",0,IF(H41="Nezařazeno",0,IF(H41="Individuálně",IF(AI41="PŘEKROČENÉ %",0,0),1)))),0) -> 0 | AK41: =IF($AO$2>$Y$6*1000000,$Y$6*1000000,IF($AO$2>($X$6*1000000),$X$6*1000000,IF($AO$2>($W$6*1000000),$W$6*1000000,IF($AO$2>($V$6*1000000),$V$6*1000000,0)))) -> 0 | AL41: =IF($AO$2>$Y$6*1000000,$AA$6*1000000,IF($AO$2>($X$6*1000000),$Y$6*1000000,IF($AO$2>($W$6*1000000),$X$6*1000000,IF($AO$2>($V$6*1000000),$W$6*1000000,$V$6*1000000)))) -> 50000000 | AM41: =IF($AO$2>=5000000000,AQ41,BO41) -> 0.0185 | AN41: 0 | AO41: 0 | AP41: 35 | AQ41: =IF($AO$2>18000000000,AR41,(((AP41-(AP41*$AR$6))*$AP$6/($AO$2/1000000)))) ->  | AR41: 0.004733259825 | AS41: Nezařazeno | AU41: A.2.4.4 | AX41: Zpracování v režimu BIM | AZ41: Příprava | BA41: =IF(AZ41="Příprava",CONCATENATE("v přípravě ",100-$S$42, "%"),"") -> v přípravě 100% | BB41: Výpočtem | BD41: =IF(BB41="Výpočtem",CJ41,0) -> 0 | BF41: =BI41*hide!$D$59 -> 0 | BH41: A.2.4.4 | BI41: 0.0185 | BJ41: FALSE | BK41: FALSE | BL41: FALSE | BM41: FALSE | BO41: =SUM(BI41:BN41) -> 0.0185 | BP41: =AM41 -> 0.0185 | BQ41: =ROUND(BO41*($AO$3*AF41+$AO$4*AG41),0) -> 0 | BR41: =AO41 -> 0 | BS41: =AO41-BQ41 -> 0
A42: A.2.5 | C42: Dokumentace skutečného provedení | F42: DSPS | G42: - | J42: =O42 -> 0 | L42: NE | O42: =SUM(O43:O45) -> 0 | Q42: do řádku BIM | S42: =IF(AO41=0,0,ROUND((AO42/AO41)*100,0)) -> 0 | U42: 0.008 | V42: 0.008 | W42: 0.007 | X42: 0.005 | Y42: 0.004 | Z42: 0.003 | AA42: 0.003 | AB42: =($U$3*$AF42+$U$4*$AG42)*AD42 -> 0 | AC42: =($U$3*$AF42+$U$4*$AG42)*AE42 -> 0 | AD42: 0.008 | AE42: 0.008 | AF42: 1 | AG42: 1 | AI42: =IF(AH42="PŘEKROČENÉ %",IF(H42="Smluvně",0,IF(H42="Nezařazeno",0,IF(H42="Individuálně",IF(AH42="PŘEKROČENÉ %",100,1),1))),0) -> 0 | AJ42: =IF(AH42="PŘEKROČENÉ %",IF(H42="Smluvně",0,IF(H42="Nezařazeno",0,IF(H42="Individuálně",IF(AI42="PŘEKROČENÉ %",0,0),1))),0) -> 0 | AK42: =IF($AO$2>5000000000,$Y$6*1000000,IF($AO$2>($X$6*1000000),$X$6*1000000,IF($AO$2>($W$6*1000000),$W$6*1000000,IF($AO$2>($V$6*1000000),$V$6*1000000,0)))) -> 0 | AL42: =IF($AO$2>5000000000,5000000000,IF($AO$2>($X$6*1000000),$Y$6*1000000,IF($AO$2>($W$6*1000000),$X$6*1000000,IF($AO$2>($V$6*1000000),$W$6*1000000,$V$6*1000000)))) -> 50000000 | AM42: =IF($AO$2<Y$6*1000000,(Y42+(((V42-Y42)/($Y$6*1000000))*($Y$6*1000000-$AO$2))),IF($AO$2<$Z$6*1000000,Z42,AA42)) -> 0.008 | AN42: 0 | AO42: 0 | AP42: 15 | AQ42: =AP42/($AO$2/1000000) ->  | AR42: 0.0008335648791 | AS42: 0 | AU42: A.2.5 | AW42: Dokumentace skutečného provedení | AZ42: DSPS | BA42: - | BD42: =BI42 -> 0 | BF42: =SUM(BF43:BF45) -> 0 | BH42: A.2.5
A43: A.2.5.1 | C43: z toho | D43: Dokumentace skutečného provedení stavby, geodetická část | H43: Nezařazeno | J43: =IF(H43="Výpočtem",AO43,0) -> 0 | L43: NE | N43: =IF(H43="Výpočtem",IF(J43>0,AM43,0),0) -> 0 | O43: =IF(H43="Nezařazeno",0,IF(H43="Výpočtem",J43,I43)) -> 0 | P43: =IF((IF(H43="Individuálně",1,IF(H43="Smluvně",1,IF(H43="Nezařazeno",2,2))))=1,IF(I43=0,3,1),IF(H43="Výpočtem",4,2)) -> 2 | Q43: Výpočtem | R43: Individuálně | S43: Nezařazeno | U43: 0.0085 | V43: 0.008 | W43: 0.007 | X43: 0.0055 | Y43: 0.0035 | Z43: 0.003 | AA43: 0.003 | AB43: =($U$3*$AF43*AD43+$U$4*$AD43*AG43) -> 0 | AC43: =($U$3*$AF43*AE43+$U$4*$AE43*AG43) -> 0 | AD43: 0.0085 | AE43: 0.008 | AF43: 1 | AG43: 1 | AH43: =IF(I43>AB43,IF(H43="Aktualizace","PŘEKROČENÉ %",IF(H43="Individuálně","PŘEKROČENÉ","OK")),"OK") -> OK | AI43: =IF(AH43="PŘEKROČENÉ %",IF(H43="Výpočtem",0,IF(H43="Smluvně",0,IF(H43="Nezařazeno",0,IF(H43="Individuálně",IF(AH43="PŘEKROČENÉ %",100,1),1)))),0) -> 0 | AJ43: =IF(AH43="PŘEKROČENÉ %",IF(H43="Výpočtem",0,IF(H43="Smluvně",0,IF(H43="Nezařazeno",0,IF(H43="Individuálně",IF(AI43="PŘEKROČENÉ %",0,0),1)))),0) -> 0 | AK43: =IF($AO$2>$Y$6*1000000,$Y$6*1000000,IF($AO$2>($X$6*1000000),$X$6*1000000,IF($AO$2>($W$6*1000000),$W$6*1000000,IF($AO$2>($V$6*1000000),$V$6*1000000,0)))) -> 0 | AL43: =IF($AO$2>$Y$6*1000000,$AA$6*1000000,IF($AO$2>($X$6*1000000),$Y$6*1000000,IF($AO$2>($W$6*1000000),$X$6*1000000,IF($AO$2>($V$6*1000000),$W$6*1000000,$V$6*1000000)))) -> 50000000 | AM43: =IF($AO$2>=5000000000,AQ43,BO43) -> 0.0085 | AN43: 0 | AO43: 0 | AP43: 15 | AQ43: =IF($AO$2>18000000000,AR43,(((AP43-(AP43*$AR$6))*$AP$6/($AO$2/1000000)))) ->  | AR43: =AA43*(1-$AS$6) -> 0.002028539925 | AS43: Nezařazeno | AU43: A.2.5.1 | AW43: z toho | AX43: Dokumentace skutečného provedení stavby, geodetická část | BB43: Nezařazeno | BD43: =IF(BB43="Výpočtem",CJ43,0) -> 0 | BF43: =BI43*hide!$D$59 -> 0 | BH43: A.2.5.1 | BI43: =IF($BI$4=$BI$7,U43,0) -> 0.0085 | BJ43: =IF($BI$4=BJ$7,((W43-V43)/(W$6-V$6))*$AO$2/1000000+V43-((W43-V43)/(W$6-V$6))*V$6) -> FALSE | BK43: =IF($BI$4=BK$7,((X43-W43)/(X$6-W$6))*$AO$2/1000000+W43-((X43-W43)/(X$6-W$6))*W$6) -> FALSE | BL43: =IF($BI$4=BL$7,((Y43-X43)/(Y$6-X$6))*$AO$2/1000000+X43-((Y43-X43)/(Y$6-X$6))*X$6) -> FALSE | BM43: =IF($BI$4=BM$7,((AA43-Y43)/(AA$6-Y$6))*$AO$2/1000000+Y43-((AA43-Y43)/(AA$6-Y$6))*Y$6) -> FALSE | BO43: =SUM(BI43:BN43) -> 0.0085 | BP43: =AM43 -> 0.0085 | BQ43: =ROUND(BO43*($AO$3*AF43+$AO$4*AG43),0) -> 0 | BR43: =AO43 -> 0 | BS43: =AO43-BQ43 -> 0
A44: A.2.5.2 | D44: Dokumentace skutečného provedení stavby, technická část | H44: Nezařazeno | J44: =IF(H44="Výpočtem",AO44,0) -> 0 | L44: NE | N44: =IF(H44="Výpočtem",IF(J44>0,AM44,0),0) -> 0 | O44: =IF(H44="Nezařazeno",0,IF(H44="Výpočtem",J44,I44)) -> 0 | P44: =IF((IF(H44="Individuálně",1,IF(H44="Smluvně",1,IF(H44="Nezařazeno",2,2))))=1,IF(I44=0,3,1),IF(H44="Výpočtem",4,2)) -> 2 | Q44: Výpočtem | R44: Individuálně | S44: Nezařazeno | U44: 0.009 | V44: 0.009 | W44: 0.008 | X44: 0.0062 | Y44: 0.0045 | Z44: 0.003 | AA44: 0.003 | AB44: =($U$3*$AF44*AD44+$U$4*$AD44*AG44) -> 0 | AC44: =($U$3*$AF44*AE44+$U$4*$AE44*AG44) -> 0 | AD44: 0.009 | AE44: 0.009 | AF44: 1 | AG44: 1 | AH44: =IF(I44>AB44,IF(H44="Aktualizace","PŘEKROČENÉ %",IF(H44="Individuálně","PŘEKROČENÉ","OK")),"OK") -> OK | AI44: =IF(AH44="PŘEKROČENÉ %",IF(H44="Výpočtem",0,IF(H44="Smluvně",0,IF(H44="Nezařazeno",0,IF(H44="Individuálně",IF(AH44="PŘEKROČENÉ %",100,1),1)))),0) -> 0 | AJ44: =IF(AH44="PŘEKROČENÉ %",IF(H44="Výpočtem",0,IF(H44="Smluvně",0,IF(H44="Nezařazeno",0,IF(H44="Individuálně",IF(AI44="PŘEKROČENÉ %",0,0),1)))),0) -> 0 | AK44: =IF($AO$2>$Y$6*1000000,$Y$6*1000000,IF($AO$2>($X$6*1000000),$X$6*1000000,IF($AO$2>($W$6*1000000),$W$6*1000000,IF($AO$2>($V$6*1000000),$V$6*1000000,0)))) -> 0 | AL44: =IF($AO$2>$Y$6*1000000,$AA$6*1000000,IF($AO$2>($X$6*1000000),$Y$6*1000000,IF($AO$2>($W$6*1000000),$X$6*1000000,IF($AO$2>($V$6*1000000),$W$6*1000000,$V$6*1000000)))) -> 50000000 | AM44: =IF($AO$2>=5000000000,AQ44,BO44) -> 0.009 | AN44: 0 | AO44: 0 | AP44: 15 | AQ44: =IF($AO$2>18000000000,AR44,(((AP44-(AP44*$AR$6))*$AP$6/($AO$2/1000000)))) ->  | AR44: 0.002028539925 | AS44: Nezařazeno | AU44: A.2.5.2 | AX44: Dokumentace skutečného provedení stavby, technická část | BB44: Nezařazeno | BD44: =IF(BB44="Výpočtem",CJ44,0) -> 0 | BF44: =BI44*hide!$D$59 -> 0 | BH44: A.2.5.2 | BI44: 0.009 | BJ44: FALSE | BK44: FALSE | BL44: FALSE | BM44: FALSE | BO44: =SUM(BI44:BN44) -> 0.009 | BP44: =AM44 -> 0.009 | BQ44: =ROUND(BO44*($AO$3*AF44+$AO$4*AG44),0) -> 0 | BR44: =AO44 -> 0 | BS44: =AO44-BQ44 -> 0
A45: A.2.5.3 | D45: Dokumentace skutečného provedení stavby, dokladová část | H45: Nezařazeno | J45: =IF(H45="Výpočtem",AO45,0) -> 0 | L45: NE | N45: =IF(H45="Výpočtem",IF(J45>0,AM45,0),0) -> 0 | O45: =IF(H45="Nezařazeno",0,IF(H45="Výpočtem",J45,I45)) -> 0 | P45: =IF((IF(H45="Individuálně",1,IF(H45="Smluvně",1,IF(H45="Nezařazeno",2,2))))=1,IF(I45=0,3,1),IF(H45="Výpočtem",4,2)) -> 2 | Q45: Výpočtem | R45: Individuálně | S45: Nezařazeno | U45: 0.002 | V45: 0.002 | W45: 0.0018 | X45: 0.0015 | Y45: 0.0009 | Z45: 0.0009 | AA45: 0.0009 | AB45: =($U$3*$AF45*AD45+$U$4*$AD45*AG45) -> 0 | AC45: =($U$3*$AF45*AE45+$U$4*$AE45*AG45) -> 0 | AD45: 0.002 | AE45: 0.002 | AF45: 1 | AG45: 1 | AH45: =IF(I45>AB45,IF(H45="Aktualizace","PŘEKROČENÉ %",IF(H45="Individuálně","PŘEKROČENÉ","OK")),"OK") -> OK | AI45: =IF(AH45="PŘEKROČENÉ %",IF(H45="Výpočtem",0,IF(H45="Smluvně",0,IF(H45="Nezařazeno",0,IF(H45="Individuálně",IF(AH45="PŘEKROČENÉ %",100,1),1)))),0) -> 0 | AJ45: =IF(AH45="PŘEKROČENÉ %",IF(H45="Výpočtem",0,IF(H45="Smluvně",0,IF(H45="Nezařazeno",0,IF(H45="Individuálně",IF(AI45="PŘEKROČENÉ %",0,0),1)))),0) -> 0 | AK45: =IF($AO$2>$Y$6*1000000,$Y$6*1000000,IF($AO$2>($X$6*1000000),$X$6*1000000,IF($AO$2>($W$6*1000000),$W$6*1000000,IF($AO$2>($V$6*1000000),$V$6*1000000,0)))) -> 0 | AL45: =IF($AO$2>$Y$6*1000000,$AA$6*1000000,IF($AO$2>($X$6*1000000),$Y$6*1000000,IF($AO$2>($W$6*1000000),$X$6*1000000,IF($AO$2>($V$6*1000000),$W$6*1000000,$V$6*1000000)))) -> 50000000 | AM45: =IF($AO$2>=5000000000,AQ45,BO45) -> 0.002 | AN45: 0 | AO45: 0 | AP45: 4.5 | AQ45: =IF($AO$2>18000000000,AR45,(((AP45-(AP45*$AR$6))*$AP$6/($AO$2/1000000)))) ->  | AR45: 0.0006085619775 | AS45: Nezařazeno | AU45: A.2.5.3 | AX45: Dokumentace skutečného provedení stavby, dokladová část | BB45: Nezařazeno | BD45: =IF(BB45="Výpočtem",CJ45,0) -> 0 | BF45: =BI45*hide!$D$59 -> 0 | BH45: A.2.5.3 | BI45: 0.002 | BJ45: FALSE | BK45: FALSE | BL45: FALSE | BM45: FALSE | BO45: =SUM(BI45:BN45) -> 0.002 | BP45: =AM45 -> 0.002 | BQ45: =ROUND(BO45*($AO$3*AF45+$AO$4*AG45),0) -> 0 | BR45: =AO45 -> 0 | BS45: =AO45-BQ45 -> 0
A46: A.2.6 | C46: Vyhrazené změny závazků | H46: Nezařazeno | L46: NE | O46: =IF(H46="Nezařazeno",0,I46) -> 0 | R46: Individuálně | S46: Nezařazeno | AS46: Nezařazeno | AU46: A.2.6 | AW46: Vyhrazené změny závazků | BB46: Individuálně | BH46: A.2.6
A47: A.3 | B47: Výkupy a zatížení nemovitých věcí | K47: =O47 -> 0 | L47: NE | N47: =IF(H47="Výpočtem",IF(J47>0,AM47,0),0) -> 0 | O47: =O48+O49+O50 -> 0 | AI47: =IF(AH47="PŘEKROČENÉ %",IF(H47="Smluvně",0,IF(H47="Nezařazeno",0,IF(H47="Individuálně",IF(AH47="PŘEKROČENÉ %",100,1),1))),0) -> 0 | AJ47: =IF(AH47="PŘEKROČENÉ %",IF(H47="Smluvně",0,IF(H47="Nezařazeno",0,IF(H47="Individuálně",IF(AI47="PŘEKROČENÉ %",0,0),1))),0) -> 0 | AS47: 0 | AU47: A.3 | AV47: Výkupy a zatížení nemovitých věcí | BE47: =BI47 -> 0 | BF47: =SUM(BF48:BF50) -> 0 | BH47: A.3
A48: A.3.1 | B48: z toho | C48: Výkupy pozemků | G48: - | H48: Nezařazeno | L48: NE | N48: 0 | O48: =IF(H48="Nezařazeno",0,IF(H48="Výpočtem",J48,I48)) -> 0 | P48: =IF((IF(H48="Předpoklad",1,IF(H48="Smluvně",1,IF(H48="Nezařazeno",2,2))))=1,IF(I48=0,3,1),IF(H48="Výpočtem",4,2)) -> 2 | R48: Předpoklad | S48: Nezařazeno | U48: není určena | AI48: 0 | AJ48: 0 | AS48: Nezařazeno | AU48: A.3.1 | AV48: z toho | AW48: Výkupy pozemků | BA48: - | BB48: Nezařazeno | BF48: =BI48 -> 0 | BH48: A.3.1
A49: A.3.2 | C49: Výkupy staveb | G49: - | H49: Nezařazeno | L49: NE | N49: 0 | O49: =IF(H49="Nezařazeno",0,IF(H49="Výpočtem",J49,I49)) -> 0 | P49: =IF((IF(H49="Předpoklad",1,IF(H49="Smluvně",1,IF(H49="Nezařazeno",2,2))))=1,IF(I49=0,3,1),IF(H49="Výpočtem",4,2)) -> 2 | R49: Předpoklad | S49: Nezařazeno | U49: není určena | AI49: 0 | AJ49: 0 | AS49: Nezařazeno | AU49: A.3.2 | AW49: Výkupy staveb | BA49: - | BB49: Nezařazeno | BF49: =BI49 -> 0 | BH49: A.3.2
A50: A.3.3 | C50: Věcná břemena a služebnosti | G50: - | H50: Nezařazeno | L50: NE | N50: 0 | O50: =IF(H50="Nezařazeno",0,IF(H50="Výpočtem",J50,I50)) -> 0 | P50: =IF((IF(H50="Předpoklad",1,IF(H50="Smluvně",1,IF(H50="Nezařazeno",2,2))))=1,IF(I50=0,3,1),IF(H50="Výpočtem",4,2)) -> 2 | R50: Předpoklad | S50: Nezařazeno | U50: není určena | AI50: 0 | AJ50: 0 | AS50: Nezařazeno | AU50: A.3.3 | AW50: Věcná břemena a služebnosti | BA50: - | BB50: Nezařazeno | BF50: =BI50 -> 0 | BH50: A.3.3
A51: A.4 | B51: Nájmy pro účely stavby | K51: =O51 -> 0 | L51: NE | N51: 0 | O51: =O52+O53 -> 0 | AI51: 0 | AJ51: 0 | AS51: 0 | AU51: A.4 | AV51: Nájmy pro účely stavby | BE51: =BI51 -> 0 | BF51: =SUM(BF52:BF53) -> 0 | BH51: A.4
A52: A.4.1 | B52: z toho | C52: Nájmy hrazené investorem přímo | H52: Nezařazeno | L52: NE | N52: 0 | O52: =IF(H52="Nezařazeno",0,IF(H52="Výpočtem",J52,I52)) -> 0 | P52: =IF((IF(H52="Předpoklad",1,IF(H52="Smluvně",1,IF(H52="Nezařazeno",2,2))))=1,IF(I52=0,3,1),IF(H52="Výpočtem",4,2)) -> 2 | R52: Předpoklad | S52: Nezařazeno | U52: není určena | AI52: 0 | AJ52: 0 | AS52: Nezařazeno | AU52: A.4.1 | AV52: z toho | AW52: Nájmy hrazené investorem přímo | BB52: Nezařazeno | BF52: =BI52 -> 0 | BH52: A.4.1
A53: A.4.2 | C53: Nájmy hrazené zhotovitelem stavby | G53: =IF(O53>0,"Všeobecný objekt","-") -> - | H53: Nezařazeno | L53: NE | N53: 0 | O53: =IF(H53="Nezařazeno",0,IF(H53="Výpočtem",J53,I53)) -> 0 | P53: =IF((IF(H53="Předpoklad",1,IF(H53="Smluvně",1,IF(H53="Nezařazeno",2,2))))=1,IF(I53=0,3,1),IF(H53="Výpočtem",4,2)) -> 2 | R53: Předpoklad | S53: Nezařazeno | U53: není určena | AI53: 0 | AJ53: 0 | AS53: Nezařazeno | AU53: A.4.2 | AW53: Nájmy hrazené zhotovitelem stavby | BA53: =IF(BI53>0,"Všeobecný objekt","-") -> - | BB53: Nezařazeno | BF53: =BI53 -> 0 | BH53: A.4.2
A54: A.5 | B54: Jiné náklady přípravy a zabezpečení stavby | K54: =O54 -> 0 | L54: NE | N54: 0 | O54: =O55+O59+O60 -> 0 | AI54: 0 | AJ54: 0 | AS54: 0 | AU54: A.5 | AV54: Jiné náklady přípravy a zabezpečení stavby | BE54: =BI54 -> 0 | BF54: =BF55+BF59+BF60 -> 0 | BH54: A.5
A55: A.5.1 | B55: z toho | C55: Poradenské firmy pro přípravu a zabezpečení stavby | J55: =O55 -> 0 | L55: NE | N55: 0 | O55: =SUM(O56:O58) -> 0 | AI55: 0 | AJ55: 0 | AS55: 0 | AU55: A.5.1 | AV55: z toho | AW55: Poradenské firmy pro přípravu a zabezpečení stavby | BD55: =BI55 -> 0 | BF55: =SUM(BF56:BF58) -> 0 | BH55: A.5.1
A56: A.5.1.1 | C56: z toho | D56: Technická podpora investora | H56: Nezařazeno | J56: =IF(H56="Výpočtem",AO56,0) -> 0 | L56: NE | N56: 0 | O56: =IF(H56="Nezařazeno",0,IF(H56="Výpočtem",J56,I56)) -> 0 | P56: =IF((IF(H56="Individuálně",1,IF(H56="Smluvně",1,IF(H56="Nezařazeno",2,2))))=1,IF(I56=0,3,1),IF(H56="Výpočtem",4,2)) -> 2 | Q56: Výpočtem | R56: Individuálně | S56: Nezařazeno | U56: 0.0025 | V56: 0.0025 | W56: 0.0023 | X56: 0.002 | Y56: 0.0018 | Z56: 0.0018 | AA56: 0.001 | AB56: =($U$3*$AF56*AD56+$U$4*$AD56*AG56) -> 0 | AC56: =($U$3*$AF56*AE56+$U$4*$AE56*AG56) -> 0 | AD56: =IF($AO$2>5000000000,AA56,IF($AO$2>2000000000,Y56,IF($AO$2>($X$6*1000000),X56,IF($AO$2>($W$6*1000000),W56,IF($AO$2>($V$6*1000000),V56,U56))))) -> 0.0025 | AE56: =IF($AO$2>5000000000,AA56,IF($AO$2>2000000000,Z56,IF($AO$2>($X$6*1000000),Y56,IF($AO$2>($W$6*1000000),X56,IF($AO$2>($V$6*1000000),W56,V56))))) -> 0.0025 | AF56: 1 | AG56: 0.5 | AH56: =IF(I56>AB56,IF(H56="Aktualizace","PŘEKROČENÉ %",IF(H56="Individuálně","PŘEKROČENÉ","OK")),"OK") -> OK | AI56: 0 | AJ56: 0 | AK56: =IF($AO$2>$Y$6*1000000,$Y$6*1000000,IF($AO$2>($X$6*1000000),$X$6*1000000,IF($AO$2>($W$6*1000000),$W$6*1000000,IF($AO$2>($V$6*1000000),$V$6*1000000,0)))) -> 0 | AL56: =IF($AO$2>$Y$6*1000000,$AA$6*1000000,IF($AO$2>($X$6*1000000),$Y$6*1000000,IF($AO$2>($W$6*1000000),$X$6*1000000,IF($AO$2>($V$6*1000000),$W$6*1000000,$V$6*1000000)))) -> 50000000 | AM56: =IF($AO$2>=5000000000,AQ56,BO56) -> 0.0025 | AN56: =IF(AM56=0,0,100%-((AB56-AO56)/AB56)) ->  | AO56: =ROUND(AM56*($AO$3*AF56+$AO$4*AG56),0) -> 0 | AP56: =$AA$6*AA56 -> 5 | AQ56: =IF($AO$2>18000000000,AR56,(((AP56-(AP56*$AR$6))*$AP$6/($AO$2/1000000)))) ->  | AR56: =AA56*(1-$AS$6) -> 0.000676179975 | AS56: Nezařazeno | AU56: A.5.1.1 | AW56: z toho | AX56: Technická podpora investora | BB56: Výpočtem | BD56: =IF(BB56="Výpočtem",CJ56,0) -> 0 | BF56: =BI56*hide!$D$59 -> 0 | BH56: A.5.1.1 | BI56: =IF($BI$4=$BI$7,U56,0) -> 0.0025 | BJ56: =IF($BI$4=BJ$7,((W56-V56)/(W$6-V$6))*$AO$2/1000000+V56-((W56-V56)/(W$6-V$6))*V$6) -> FALSE | BK56: =IF($BI$4=BK$7,((X56-W56)/(X$6-W$6))*$AO$2/1000000+W56-((X56-W56)/(X$6-W$6))*W$6) -> FALSE | BL56: =IF($BI$4=BL$7,((Y56-X56)/(Y$6-X$6))*$AO$2/1000000+X56-((Y56-X56)/(Y$6-X$6))*X$6) -> FALSE | BM56: =IF($BI$4=BM$7,((AA56-Y56)/(AA$6-Y$6))*$AO$2/1000000+Y56-((AA56-Y56)/(AA$6-Y$6))*Y$6) -> FALSE | BO56: =SUM(BI56:BN56) -> 0.0025 | BP56: =AM56 -> 0.0025 | BQ56: =ROUND(BO56*($AO$3*AF56+$AO$4*AG56),0) -> 0 | BR56: =AO56 -> 0 | BS56: =AO56-BQ56 -> 0
A57: A.5.1.2 | D57: Poradenské firmy pro geotechnický průzkum | H57: Nezařazeno | J57: =IF(H57="Výpočtem",AO57,0) -> 0 | L57: NE | N57: 0 | O57: =IF(H57="Nezařazeno",0,IF(H57="Výpočtem",J57,I57)) -> 0 | P57: =IF((IF(H57="Individuálně",1,IF(H57="Smluvně",1,IF(H57="Nezařazeno",2,2))))=1,IF(I57=0,3,1),IF(H57="Výpočtem",4,2)) -> 2 | Q57: Výpočtem | R57: Individuálně | S57: Nezařazeno | U57: 0.006 | V57: 0.006 | W57: 0.005 | X57: 0.004 | Y57: 0.002 | Z57: 0.002 | AA57: 0.0018 | AB57: =($U$3*$AF57*AD57+$U$4*$AD57*AG57) -> 0 | AC57: =($U$3*$AF57*AE57+$U$4*$AE57*AG57) -> 0 | AD57: =IF($AO$2>5000000000,AA57,IF($AO$2>2000000000,Y57,IF($AO$2>($X$6*1000000),X57,IF($AO$2>($W$6*1000000),W57,IF($AO$2>($V$6*1000000),V57,U57))))) -> 0.006 | AE57: =IF($AO$2>5000000000,AA57,IF($AO$2>2000000000,Z57,IF($AO$2>($X$6*1000000),Y57,IF($AO$2>($W$6*1000000),X57,IF($AO$2>($V$6*1000000),W57,V57))))) -> 0.006 | AF57: 1 | AG57: 0.05 | AH57: =IF(I57>AB57,IF(H57="Aktualizace","PŘEKROČENÉ %",IF(H57="Individuálně","PŘEKROČENÉ","OK")),"OK") -> OK | AI57: =IF(AH57="PŘEKROČENÉ %",IF(H57="Výpočtem",0,IF(H57="Smluvně",0,IF(H57="Nezařazeno",0,IF(H57="Individuálně",IF(AH57="PŘEKROČENÉ %",100,1),1)))),0) -> 0 | AJ57: =IF(AH57="PŘEKROČENÉ %",IF(H57="Výpočtem",0,IF(H57="Smluvně",0,IF(H57="Nezařazeno",0,IF(H57="Individuálně",IF(AI57="PŘEKROČENÉ %",0,0),1)))),0) -> 0 | AK57: =IF($AO$2>$Y$6*1000000,$Y$6*1000000,IF($AO$2>($X$6*1000000),$X$6*1000000,IF($AO$2>($W$6*1000000),$W$6*1000000,IF($AO$2>($V$6*1000000),$V$6*1000000,0)))) -> 0 | AL57: =IF($AO$2>$Y$6*1000000,$AA$6*1000000,IF($AO$2>($X$6*1000000),$Y$6*1000000,IF($AO$2>($W$6*1000000),$X$6*1000000,IF($AO$2>($V$6*1000000),$W$6*1000000,$V$6*1000000)))) -> 50000000 | AM57: =IF($AO$2>=5000000000,AQ57,BO57) -> 0.006 | AN57: =IF(AM57=0,0,100%-((AB57-AO57)/AB57)) ->  | AO57: =ROUND(AM57*($AO$3*AF57+$AO$4*AG57),0) -> 0 | AP57: 9 | AQ57: =IF($AO$2>18000000000,AR57,(((AP57-(AP57*$AR$6))*$AP$6/($AO$2/1000000)))) ->  | AR57: 0.001217123955 | AS57: Nezařazeno | AU57: A.5.1.2 | AX57: Poradenské firmy pro geotechnický průzkum | BB57: Výpočtem | BD57: =IF(BB57="Výpočtem",CJ57,0) -> 0 | BF57: =BI57*hide!$D$59 -> 0 | BH57: A.5.1.2 | BI57: 0.006 | BJ57: FALSE | BK57: FALSE | BL57: FALSE | BM57: FALSE | BO57: =SUM(BI57:BN57) -> 0.006 | BP57: =AM57 -> 0.006 | BQ57: =ROUND(BO57*($AO$3*AF57+$AO$4*AG57),0) -> 0 | BR57: =AO57 -> 0 | BS57: =AO57-BQ57 -> 0
A58: A.5.1.3 | D58: Ostatní poradenské firmy | H58: Nezařazeno | J58: =IF(H58="Výpočtem",AO58,0) -> 0 | L58: NE | N58: 0 | O58: =IF(H58="Nezařazeno",0,IF(H58="Výpočtem",J58,I58)) -> 0 | P58: =IF((IF(H58="Individuálně",1,IF(H58="Smluvně",1,IF(H58="Nezařazeno",2,2))))=1,IF(I58=0,3,1),IF(H58="Výpočtem",4,2)) -> 2 | Q58: Výpočtem | R58: Individuálně | S58: Nezařazeno | U58: 0.0033 | V58: =0.18%+0.15% -> 0.0033 | W58: =0.15%+0.12% -> 0.0027 | X58: =0.11%+0.1% -> 0.0021 | Y58: 0.0018 | Z58: 0.0018 | AA58: 0.0015 | AB58: =($U$3*$AF58*AD58+$U$4*$AD58*AG58) -> 0 | AC58: =($U$3*$AF58*AE58+$U$4*$AE58*AG58) -> 0 | AD58: =IF($AO$2>5000000000,AA58,IF($AO$2>2000000000,Y58,IF($AO$2>($X$6*1000000),X58,IF($AO$2>($W$6*1000000),W58,IF($AO$2>($V$6*1000000),V58,U58))))) -> 0.0033 | AE58: =IF($AO$2>5000000000,AA58,IF($AO$2>2000000000,Z58,IF($AO$2>($X$6*1000000),Y58,IF($AO$2>($W$6*1000000),X58,IF($AO$2>($V$6*1000000),W58,V58))))) -> 0.0033 | AF58: 1 | AG58: 1 | AH58: =IF(I58>AB58,IF(H58="Aktualizace","PŘEKROČENÉ %",IF(H58="Individuálně","PŘEKROČENÉ","OK")),"OK") -> OK | AI58: =IF(AH58="PŘEKROČENÉ %",IF(H58="Výpočtem",0,IF(H58="Smluvně",0,IF(H58="Nezařazeno",0,IF(H58="Individuálně",IF(AH58="PŘEKROČENÉ %",100,1),1)))),0) -> 0 | AJ58: =IF(AH58="PŘEKROČENÉ %",IF(H58="Výpočtem",0,IF(H58="Smluvně",0,IF(H58="Nezařazeno",0,IF(H58="Individuálně",IF(AI58="PŘEKROČENÉ %",0,0),1)))),0) -> 0 | AK58: =IF($AO$2>$Y$6*1000000,$Y$6*1000000,IF($AO$2>($X$6*1000000),$X$6*1000000,IF($AO$2>($W$6*1000000),$W$6*1000000,IF($AO$2>($V$6*1000000),$V$6*1000000,0)))) -> 0 | AL58: =IF($AO$2>$Y$6*1000000,$AA$6*1000000,IF($AO$2>($X$6*1000000),$Y$6*1000000,IF($AO$2>($W$6*1000000),$X$6*1000000,IF($AO$2>($V$6*1000000),$W$6*1000000,$V$6*1000000)))) -> 50000000 | AM58: =IF($AO$2>=5000000000,AQ58,BO58) -> 0.0033 | AN58: =IF(AM58=0,0,100%-((AB58-AO58)/AB58)) ->  | AO58: =ROUND(AM58*($AO$3*AF58+$AO$4*AG58),0) -> 0 | AP58: 7.5 | AQ58: =IF($AO$2>18000000000,AR58,(((AP58-(AP58*$AR$6))*$AP$6/($AO$2/1000000)))) ->  | AR58: 0.001014269962 | AS58: Nezařazeno | AU58: A.5.1.3 | AX58: Ostatní poradenské firmy | BB58: Výpočtem | BD58: =IF(BB58="Výpočtem",CJ58,0) -> 0 | BF58: =BI58*hide!$D$59 -> 0 | BH58: A.5.1.3 | BI58: 0.0033 | BJ58: FALSE | BK58: FALSE | BL58: FALSE | BM58: FALSE | BO58: =SUM(BI58:BN58) -> 0.0033 | BP58: =AM58 -> 0.0033 | BQ58: =ROUND(BO58*($AO$3*AF58+$AO$4*AG58),0) -> 0 | BR58: =AO58 -> 0 | BS58: =AO58-BQ58 -> 0
A59: A.5.2 | C59: Soutěže a zadávací řízení | H59: Nezařazeno | J59: =IF(H59="Výpočtem",AO59,0) -> 0 | L59: NE | N59: 0 | O59: =IF(H59="Nezařazeno",0,IF(H59="Výpočtem",J59,I59)) -> 0 | P59: =IF((IF(H59="Individuálně",1,IF(H59="Smluvně",1,IF(H59="Nezařazeno",2,2))))=1,IF(I59=0,3,1),IF(H59="Výpočtem",4,2)) -> 2 | Q59: Výpočtem | R59: Individuálně | S59: Nezařazeno | U59: 0.00055 | V59: 0.00055 | W59: 0.0003 | X59: 0.00016 | Y59: 0.0001 | Z59: 0.0001 | AA59: 5e-05 | AB59: =($U$3*$AF59*AD59+$U$4*$AD59*AG59) -> 0 | AC59: =($U$3*$AF59*AE59+$U$4*$AE59*AG59) -> 0 | AD59: =IF($AO$2>5000000000,AA59,IF($AO$2>2000000000,Y59,IF($AO$2>($X$6*1000000),X59,IF($AO$2>($W$6*1000000),W59,IF($AO$2>($V$6*1000000),V59,U59))))) -> 0.00055 | AE59: =IF($AO$2>5000000000,AA59,IF($AO$2>2000000000,Z59,IF($AO$2>($X$6*1000000),Y59,IF($AO$2>($W$6*1000000),X59,IF($AO$2>($V$6*1000000),W59,V59))))) -> 0.00055 | AF59: 1 | AG59: 1 | AH59: =IF(I59>AB59,IF(H59="Aktualizace","PŘEKROČENÉ %",IF(H59="Individuálně","PŘEKROČENÉ","OK")),"OK") -> OK | AI59: =IF(AH59="PŘEKROČENÉ %",IF(H59="Výpočtem",0,IF(H59="Smluvně",0,IF(H59="Nezařazeno",0,IF(H59="Individuálně",IF(AH59="PŘEKROČENÉ %",100,1),1)))),0) -> 0 | AJ59: =IF(AH59="PŘEKROČENÉ %",IF(H59="Výpočtem",0,IF(H59="Smluvně",0,IF(H59="Nezařazeno",0,IF(H59="Individuálně",IF(AI59="PŘEKROČENÉ %",0,0),1)))),0) -> 0 | AK59: =IF($AO$2>$Y$6*1000000,$Y$6*1000000,IF($AO$2>($X$6*1000000),$X$6*1000000,IF($AO$2>($W$6*1000000),$W$6*1000000,IF($AO$2>($V$6*1000000),$V$6*1000000,0)))) -> 0 | AL59: =IF($AO$2>$Y$6*1000000,$AA$6*1000000,IF($AO$2>($X$6*1000000),$Y$6*1000000,IF($AO$2>($W$6*1000000),$X$6*1000000,IF($AO$2>($V$6*1000000),$W$6*1000000,$V$6*1000000)))) -> 50000000 | AM59: =IF($AO$2>=5000000000,AQ59,BO59) -> 0 | AN59: =IF(AM59=0,0,100%-((AB59-AO59)/AB59)) -> 0 | AO59: =ROUND(AM59*($AO$3*AF59+$AO$4*AG59),0) -> 0 | AP59: 0.25 | AQ59: =IF($AO$2>18000000000,AR59,(((AP59-(AP59*$AR$6))*$AP$6/($AO$2/1000000)))) ->  | AR59: 3.380899875e-05 | AS59: Nezařazeno | AU59: A.5.2 | AW59: Soutěže a zadávací řízení | BB59: Výpočtem | BD59: =IF(BB59="Výpočtem",CJ59,0) -> 0 | BF59: =BI59*hide!$D$59 -> 0 | BH59: A.5.2
A60: A.5.3 | C60: Ostatní náklady pro zabezpečení stavby | J60: =O60 -> 0 | L60: NE | N60: 0 | O60: =O61+O62+O63+O66+O67 -> 0 | AI60: =IF(AH60="PŘEKROČENÉ %",IF(H60="Smluvně",0,IF(H60="Nezařazeno",0,IF(H60="Individuálně",IF(AH60="PŘEKROČENÉ %",100,1),1))),0) -> 0 | AJ60: =IF(AH60="PŘEKROČENÉ %",IF(H60="Smluvně",0,IF(H60="Nezařazeno",0,IF(H60="Individuálně",IF(AI60="PŘEKROČENÉ %",0,0),1))),0) -> 0 | AS60: 0 | AU60: A.5.3 | AW60: Ostatní náklady pro zabezpečení stavby | BD60: =BI60 -> 0 | BF60: =SUM(BF61:BF63,BF66:BF67) -> 0 | BH60: A.5.3
A61: A.5.3.1 | C61: z toho | D61: Poplatky | H61: Nezařazeno | L61: NE | N61: 0 | O61: =IF(H61="Nezařazeno",0,IF(H61="Výpočtem",J61,I61)) -> 0 | P61: =IF((IF(H61="Individuálně",1,IF(H61="Smluvně",1,IF(H61="Nezařazeno",2,2))))=1,IF(I61=0,3,1),IF(H61="Výpočtem",4,2)) -> 2 | R61: Individuálně | S61: Nezařazeno | U61: není určena | AI61: =IF(AH61="PŘEKROČENÉ %",IF(H61="Smluvně",0,IF(H61="Nezařazeno",0,IF(H61="Individuálně",IF(AH61="PŘEKROČENÉ %",100,1),1))),0) -> 0 | AJ61: =IF(AH61="PŘEKROČENÉ %",IF(H61="Smluvně",0,IF(H61="Nezařazeno",0,IF(H61="Individuálně",IF(AI61="PŘEKROČENÉ %",0,0),1))),0) -> 0 | AS61: Nezařazeno | AU61: A.5.3.1 | AW61: z toho | AX61: Poplatky | BB61: Nezařazeno | BF61: =BI61*hide!$D$59 -> 0 | BH61: A.5.3.1
A62: A.5.3.2 | D62: Záchranný archeologický výzkum | H62: Nezařazeno | L62: NE | N62: 0 | O62: =IF(H62="Nezařazeno",0,IF(H62="Výpočtem",J62,I62)) -> 0 | P62: =IF((IF(H62="Předpoklad",1,IF(H62="Smluvně",1,IF(H62="Nezařazeno",2,2))))=1,IF(I62=0,3,1),IF(H62="Výpočtem",4,2)) -> 2 | R62: Předpoklad | S62: Nezařazeno | U62: není určena | AI62: =IF(AH62="PŘEKROČENÉ %",IF(H62="Smluvně",0,IF(H62="Nezařazeno",0,IF(H62="Individuálně",IF(AH62="PŘEKROČENÉ %",100,1),1))),0) -> 0 | AJ62: =IF(AH62="PŘEKROČENÉ %",IF(H62="Smluvně",0,IF(H62="Nezařazeno",0,IF(H62="Individuálně",IF(AI62="PŘEKROČENÉ %",0,0),1))),0) -> 0 | AS62: Nezařazeno | AU62: A.5.3.2 | AX62: Záchranný archeologický výzkum | BB62: Nezařazeno | BF62: =BI62*hide!$D$59 -> 0 | BH62: A.5.3.2
A63: A.5.3.3 | D63: Publicita stavby | F63: z toho zhotovitel v realizaci (Všeobecný objekt): | H63: =J63 -> 0 | J63: =O63 -> 0 | L63: NE | N63: 0 | O63: =SUM(O64:O65) -> 0 | AI63: =IF(AH63="PŘEKROČENÉ %",IF(H64="Smluvně",0,IF(H64="Nezařazeno",0,IF(H64="Individuálně",IF(AH63="PŘEKROČENÉ %",100,1),1))),0) -> 0 | AJ63: =IF(AH63="PŘEKROČENÉ %",IF(H64="Smluvně",0,IF(H64="Nezařazeno",0,IF(H64="Individuálně",IF(AI63="PŘEKROČENÉ %",0,0),1))),0) -> 0 | AS63: 0 | AU63: A.5.3.3 | AX63: Publicita stavby | AZ63: z toho zhotovitel v realizaci (Všeobecný objekt): | BD63: =BI63 -> 0 | BF63: =SUM(BF64:BF65) -> 0 | BH63: A.5.3.3
A64: A.5.3.3.1 | D64: z toho | E64: Publicita povinná | G64: - | H64: Nezařazeno | J64: =IF(H64="Výpočtem",AO64,0) -> 0 | L64: NE | N64: 0 | O64: =IF(H64="Nezařazeno",0,IF(H64="Výpočtem",J64,I64)) -> 0 | P64: =IF((IF(H64="Individuálně",1,IF(H64="Smluvně",1,IF(H64="Nezařazeno",2,2))))=1,IF(I64=0,3,1),IF(H64="Výpočtem",4,2)) -> 2 | Q64: Výpočtem | R64: Individuálně | S64: Nezařazeno | U64: 0.0022 | V64: 0.0018 | W64: 0.0011 | X64: 0.0007 | Y64: 0.0004 | Z64: 0.0004 | AA64: 5e-05 | AB64: =($U$3*$AF64*AD64+$U$4*$AD64*AG64) -> 0 | AC64: =($U$3*$AF64*AE64+$U$4*$AE64*AG64) -> 0 | AD64: =IF($AO$2>5000000000,AA64,IF($AO$2>2000000000,Y64,IF($AO$2>($X$6*1000000),X64,IF($AO$2>($W$6*1000000),W64,IF($AO$2>($V$6*1000000),V64,U64))))) -> 0.0022 | AE64: =IF($AO$2>5000000000,AA64,IF($AO$2>2000000000,Z64,IF($AO$2>($X$6*1000000),Y64,IF($AO$2>($W$6*1000000),X64,IF($AO$2>($V$6*1000000),W64,V64))))) -> 0.0018 | AF64: 1 | AG64: 1 | AH64: =IF(I64>AB64,IF(H64="Aktualizace","PŘEKROČENÉ %",IF(H64="Individuálně","PŘEKROČENÉ","OK")),"OK") -> OK | AK64: =IF($AO$2>$Y$6*1000000,$Y$6*1000000,IF($AO$2>($X$6*1000000),$X$6*1000000,IF($AO$2>($W$6*1000000),$W$6*1000000,IF($AO$2>($V$6*1000000),$V$6*1000000,0)))) -> 0 | AL64: =IF($AO$2>$Y$6*1000000,$AA$6*1000000,IF($AO$2>($X$6*1000000),$Y$6*1000000,IF($AO$2>($W$6*1000000),$X$6*1000000,IF($AO$2>($V$6*1000000),$W$6*1000000,$V$6*1000000)))) -> 50000000 | AM64: =IF($AO$2>5000000000,AQ64,IF($AO$2>$AA$6*1000000,AA64,IF($AO$2<Y$6*1000000,(Y64+(((V64-Y64)/($Y$6*1000000))*($Y$6*1000000-$AO$2))),IF($AO$2>$Y$6*1000000,IF($AO$2<$Z$6*1000000,Y64,(AA64+(((Y64-AA64)/($AA$6*1000000))*($AA$6*1000000-$AO$2)))),AA64)))) -> 0.0018 | AN64: =IF(AM64=0,0,100%-((AB64-AO64)/AB64)) ->  | AO64: 450000 | AP64: =$AA$6*AA64 -> 0.25 | AQ64: =IF($AO$2>18000000000,AR64,(((AP64-(AP64*$AR$6))*$AP$6/($AO$2/1000000)))) ->  | AR64: =AA64*(1-$AS$6) -> 3.380899875e-05 | AS64: Nezařazeno | AU64: A.5.3.3.1 | AX64: z toho | AY64: Publicita povinná | BA64: Všeobecný objekt | BB64: Výpočtem | BD64: =IF(BB64="Výpočtem",CJ64,0) -> 0 | BF64: =BI64*hide!$D$59 -> 0 | BH64: A.5.3.3.1 | BI64: =IF($BI$4=$BI$7,U64,0) -> 0.0022 | BJ64: =IF($BI$4=BJ$7,((W64-V64)/(W$6-V$6))*$AO$2/1000000+V64-((W64-V64)/(W$6-V$6))*V$6) -> FALSE | BK64: =IF($BI$4=BK$7,((X64-W64)/(X$6-W$6))*$AO$2/1000000+W64-((X64-W64)/(X$6-W$6))*W$6) -> FALSE | BL64: =IF($BI$4=BL$7,((Y64-X64)/(Y$6-X$6))*$AO$2/1000000+X64-((Y64-X64)/(Y$6-X$6))*X$6) -> FALSE | BM64: =IF($BI$4=BM$7,((AA64-Y64)/(AA$6-Y$6))*$AO$2/1000000+Y64-((AA64-Y64)/(AA$6-Y$6))*Y$6) -> FALSE | BO64: =SUM(BI64:BN64) -> 0.0022 | BP64: =AM64 -> 0.0018 | BQ64: =ROUND(BO64*($AO$3*AF64+$AO$4*AG64),0) -> 0 | BR64: =AO64 -> 450000 | BS64: =AO64-BQ64 -> 450000
A65: A.5.3.3.2 | E65: Publicita nepovinná | G65: - | H65: Nezařazeno | J65: =IF(H65="Výpočtem",AO65,0) -> 0 | L65: NE | N65: 0 | O65: =IF(H65="Nezařazeno",0,IF(H65="Výpočtem",J65,I65)) -> 0 | P65: =IF((IF(H65="Individuálně",1,IF(H65="Smluvně",1,IF(H65="Nezařazeno",2,2))))=1,IF(I65=0,3,1),IF(H65="Výpočtem",4,2)) -> 2 | Q65: Výpočtem | R65: Individuálně | S65: Nezařazeno | U65: 0.01 | V65: 0.01 | W65: 0.008 | X65: 0.005 | Y65: 0.002 | Z65: 0.002 | AA65: 0.002 | AB65: =($U$3*$AF65*AD65+$U$4*$AD65*AG65) -> 0 | AC65: =($U$3*$AF65*AE65+$U$4*$AE65*AG65) -> 0 | AD65: =IF($AO$2>5000000000,AA65,IF($AO$2>2000000000,Y65,IF($AO$2>($X$6*1000000),X65,IF($AO$2>($W$6*1000000),W65,IF($AO$2>($V$6*1000000),V65,U65))))) -> 0.01 | AE65: =IF($AO$2>5000000000,AA65,IF($AO$2>2000000000,Z65,IF($AO$2>($X$6*1000000),Y65,IF($AO$2>($W$6*1000000),X65,IF($AO$2>($V$6*1000000),W65,V65))))) -> 0.01 | AF65: 1 | AG65: 0.7 | AH65: =IF(I65>AB65,IF(H65="Aktualizace","PŘEKROČENÉ %",IF(H65="Individuálně","PŘEKROČENÉ","OK")),"OK") -> OK | AK65: =IF($AO$2>$Y$6*1000000,$Y$6*1000000,IF($AO$2>($X$6*1000000),$X$6*1000000,IF($AO$2>($W$6*1000000),$W$6*1000000,IF($AO$2>($V$6*1000000),$V$6*1000000,0)))) -> 0 | AL65: =IF($AO$2>$Y$6*1000000,$AA$6*1000000,IF($AO$2>($X$6*1000000),$Y$6*1000000,IF($AO$2>($W$6*1000000),$X$6*1000000,IF($AO$2>($V$6*1000000),$W$6*1000000,$V$6*1000000)))) -> 50000000 | AM65: =IF($AO$2>=5000000000,AQ65,BO65) -> 0.01 | AN65: =IF(AM65=0,0,100%-((AB65-AO65)/AB65)) ->  | AO65: =IF((ROUND(AM65*($AO$3*AF65+$AO$4*AG65),0))>4000000,4000000,ROUND(AM65*($AO$3*AF65+$AO$4*AG65),0)) -> 0 | AP65: 10 | AQ65: =IF($AO$2>18000000000,AR65,(((AP65-(AP65*$AR$6))*$AP$6/($AO$2/1000000)))) ->  | AR65: 0.00135235995 | AS65: Nezařazeno | AU65: A.5.3.3.2 | AY65: Publicita nepovinná | BA65: Všeobecný objekt | BB65: Výpočtem | BD65: =IF(BB65="Výpočtem",CJ65,0) -> 0 | BF65: =BI65*hide!$D$59 -> 0 | BH65: A.5.3.3.2 | BI65: 0.01 | BJ65: FALSE | BK65: FALSE | BL65: FALSE | BM65: FALSE | BO65: =SUM(BI65:BN65) -> 0.01 | BP65: 0.01 | BQ65: =ROUND(BO65*($AO$3*AF65+$AO$4*AG65),0) -> 0 | BR65: 0 | BS65: =AO65-BQ65 -> 0
A66: A.5.3.4 | D66: Monitoring stavby | H66: Nezařazeno | J66: =IF(H66="Výpočtem",AO66,0) -> 0 | L66: NE | N66: 0 | O66: =IF(H66="Nezařazeno",0,IF(H66="Výpočtem",J66,I66)) -> 0 | P66: =IF((IF(H66="Individuálně",1,IF(H66="Smluvně",1,IF(H66="Nezařazeno",2,2))))=1,IF(I66=0,3,1),IF(H66="Výpočtem",4,2)) -> 2 | Q66: Výpočtem | R66: Individuálně | S66: Nezařazeno | U66: 0.002 | V66: 0.002 | W66: 0.001 | X66: 0.0005 | Y66: 0.0004 | Z66: 0.0004 | AA66: 0.0004 | AB66: =($U$3*$AF66*AD66+$U$4*$AD66*AG66) -> 0 | AC66: =($U$3*$AF66*AE66+$U$4*$AE66*AG66) -> 0 | AD66: =IF($AO$2>5000000000,AA66,IF($AO$2>2000000000,Y66,IF($AO$2>($X$6*1000000),X66,IF($AO$2>($W$6*1000000),W66,IF($AO$2>($V$6*1000000),V66,U66))))) -> 0.002 | AE66: =IF($AO$2>5000000000,AA66,IF($AO$2>2000000000,Z66,IF($AO$2>($X$6*1000000),Y66,IF($AO$2>($W$6*1000000),X66,IF($AO$2>($V$6*1000000),W66,V66))))) -> 0.002 | AF66: 1 | AG66: 1 | AH66: =IF(I66>AB66,IF(H66="Aktualizace","PŘEKROČENÉ %",IF(H66="Individuálně","PŘEKROČENÉ","OK")),"OK") -> OK | AI66: =IF(AH66="PŘEKROČENÉ %",IF(H66="Výpočtem",0,IF(H66="Smluvně",0,IF(H66="Nezařazeno",0,IF(H66="Individuálně",IF(AH66="PŘEKROČENÉ %",100,1),1)))),0) -> 0 | AJ66: =IF(AH66="PŘEKROČENÉ %",IF(H66="Výpočtem",0,IF(H66="Smluvně",0,IF(H66="Nezařazeno",0,IF(H66="Individuálně",IF(AI66="PŘEKROČENÉ %",0,0),1)))),0) -> 0 | AK66: =IF($AO$2>$Y$6*1000000,$Y$6*1000000,IF($AO$2>($X$6*1000000),$X$6*1000000,IF($AO$2>($W$6*1000000),$W$6*1000000,IF($AO$2>($V$6*1000000),$V$6*1000000,0)))) -> 0 | AL66: =IF($AO$2>$Y$6*1000000,$AA$6*1000000,IF($AO$2>($X$6*1000000),$Y$6*1000000,IF($AO$2>($W$6*1000000),$X$6*1000000,IF($AO$2>($V$6*1000000),$W$6*1000000,$V$6*1000000)))) -> 50000000 | AM66: =IF($AO$2>=5000000000,AQ66,BO66) -> 0.002 | AN66: =IF(AM66=0,0,100%-((AB66-AO66)/AB66)) ->  | AO66: =ROUND(AM66*($AO$3*AF66+$AO$4*AG66),0) -> 0 | AP66: 2 | AQ66: =IF($AO$2>18000000000,AR66,(((AP66-(AP66*$AR$6))*$AP$6/($AO$2/1000000)))) ->  | AR66: 0.00027047199 | AS66: Nezařazeno | AU66: A.5.3.4 | AX66: Monitoring stavby | BB66: Výpočtem | BD66: =IF(BB66="Výpočtem",CJ66,0) -> 0 | BF66: =BI66*hide!$D$59 -> 0 | BH66: A.5.3.4 | BI66: 0.002 | BJ66: FALSE | BK66: FALSE | BL66: FALSE | BM66: FALSE | BO66: =SUM(BI66:BN66) -> 0.002 | BP66: 0.002 | BQ66: =ROUND(BO66*($AO$3*AF66+$AO$4*AG66),0) -> 0 | BR66: 0 | BS66: =AO66-BQ66 -> 0
A67: A.5.3.5 | D67: Vyhodnocení stavby | H67: Nezařazeno | J67: =IF(H67="Výpočtem",AO67,0) -> 0 | L67: NE | N67: 0 | O67: =IF(H67="Nezařazeno",0,IF(H67="Výpočtem",J67,I67)) -> 0 | P67: =IF((IF(H67="Individuálně",1,IF(H67="Smluvně",1,IF(H67="Nezařazeno",2,2))))=1,IF(I67=0,3,1),IF(H67="Výpočtem",4,2)) -> 2 | Q67: Výpočtem | R67: Individuálně | S67: Nezařazeno | U67: 0.001 | V67: 0.001 | W67: 0.0005 | X67: 0.00025 | Y67: 0.0002 | Z67: 0.0002 | AA67: 0.0002 | AB67: =($U$3*$AF67*AD67+$U$4*$AD67*AG67) -> 0 | AC67: =($U$3*$AF67*AE67+$U$4*$AE67*AG67) -> 0 | AD67: =IF($AO$2>5000000000,AA67,IF($AO$2>2000000000,Y67,IF($AO$2>($X$6*1000000),X67,IF($AO$2>($W$6*1000000),W67,IF($AO$2>($V$6*1000000),V67,U67))))) -> 0.001 | AE67: =IF($AO$2>5000000000,AA67,IF($AO$2>2000000000,Z67,IF($AO$2>($X$6*1000000),Y67,IF($AO$2>($W$6*1000000),X67,IF($AO$2>($V$6*1000000),W67,V67))))) -> 0.001 | AF67: 1 | AG67: 1 | AH67: =IF(I67>AB67,IF(H67="Aktualizace","PŘEKROČENÉ %",IF(H67="Individuálně","PŘEKROČENÉ","OK")),"OK") -> OK | AI67: =IF(AH67="PŘEKROČENÉ %",IF(H67="Výpočtem",0,IF(H67="Smluvně",0,IF(H67="Nezařazeno",0,IF(H67="Individuálně",IF(AH67="PŘEKROČENÉ %",100,1),1)))),0) -> 0 | AJ67: =IF(AH67="PŘEKROČENÉ %",IF(H67="Výpočtem",0,IF(H67="Smluvně",0,IF(H67="Nezařazeno",0,IF(H67="Individuálně",IF(AI67="PŘEKROČENÉ %",0,0),1)))),0) -> 0 | AK67: =IF($AO$2>$Y$6*1000000,$Y$6*1000000,IF($AO$2>($X$6*1000000),$X$6*1000000,IF($AO$2>($W$6*1000000),$W$6*1000000,IF($AO$2>($V$6*1000000),$V$6*1000000,0)))) -> 0 | AL67: =IF($AO$2>$Y$6*1000000,$AA$6*1000000,IF($AO$2>($X$6*1000000),$Y$6*1000000,IF($AO$2>($W$6*1000000),$X$6*1000000,IF($AO$2>($V$6*1000000),$W$6*1000000,$V$6*1000000)))) -> 50000000 | AM67: =IF($AO$2>=5000000000,AQ67,BO67) -> 0.001 | AN67: =IF(AM67=0,0,100%-((AB67-AO67)/AB67)) ->  | AO67: =ROUND(AM67*($AO$3*AF67+$AO$4*AG67),0) -> 0 | AP67: 1 | AQ67: =IF($AO$2>18000000000,AR67,(((AP67-(AP67*$AR$6))*$AP$6/($AO$2/1000000)))) ->  | AR67: 0.000135235995 | AS67: Nezařazeno | AU67: A.5.3.5 | AX67: Vyhodnocení stavby | BB67: Výpočtem | BD67: =IF(BB67="Výpočtem",CJ67,0) -> 0 | BF67: =BI67*hide!$D$59 -> 0 | BH67: A.5.3.5 | BI67: 0.001 | BJ67: FALSE | BK67: FALSE | BL67: FALSE | BM67: FALSE | BO67: =SUM(BI67:BN67) -> 0.001 | BP67: 0.001 | BQ67: =ROUND(BO67*($AO$3*AF67+$AO$4*AG67),0) -> 0 | BR67: 0 | BS67: =AO67-BQ67 -> 0
A68: Požadavek inflační doložky | H68: Ne | L68: =IF(L69="ANO","ANO","NE") -> NE | AO68: =SUM(AO8:AO67) -> 450000 | AS68: Ne | AU68: A.6 | AV68: Náklady na přípravu a celkové zabezpečení stavby celkem | BC68: =BE54+BE51+BE47+BE9+BE8 -> 0.08 | BF68: =BF54+BF51+BF47+BF9+BF8 -> 0 | BH68: A.6
A69: _ | B69: Předpokládané zahájení zadávané projektové přípravy: | H69: =IF($H$68="Ano","Zahájení","Nezařazeno") -> Nezařazeno | L69: =IF(H69="Nezařazeno","NE",IF(I69+J69>0,"ANO","NE")) -> NE | P69: =IF((IF(H69="Zahájení",1,IF(H69="Zahájení",1,IF(H69="Nezařazeno",2,2))))=1,IF(I69=0,3,1),IF(H69="Výpočtem",4,2)) -> 2
A70: _ | B70: Předpokládané ukončení zadávané projektové přípravy: | H70: =IF($H$68="Ano","Ukončení","Nezařazeno") -> Nezařazeno | L70: NE | P70: =IF((IF(H70="Ukončení",1,IF(H70="Ukončení",1,IF(H70="Nezařazeno",2,2))))=1,IF(I70=0,3,1),IF(H70="Výpočtem",4,2)) -> 2 | S70: % SAZBY PRO PROJEKTOVÉ PRÁCE DUR/DSP(DUSP/L)/PDPS | BQ70: =SUM(BQ8:BQ67) -> 0 | BR70: =SUM(BR8:BR67) -> 450000 | BS70: =SUM(BS8:BS67) -> 450000
A71: A.6 | B71: Náklady na přípravu a celkové zabezpečení stavby celkem | K71: =K72+K74 -> 0 | L71: =IF(K71>0,"ANO","NE") -> NE | S71: ROZMEZÍ | U71: 0 | V71: 50 | W71: 200 | X71: 1000 | Y71: 2000 | Z71: 3000 | AA71: >5000 | AS71: =1.9%*(1-AS6) -> 0.01284741952 | AU71: Poznámka k nákladům na přípravu a zabezpečení stavby - (A):
A72: z toho | B72: A.6.1 | C72: Náklady na přípravu a celkové zabezpečení stavby bez inflace (předpoklad zhotovitele) | K72: =K54+K51+K47+K9+K8 -> 0 | L72: NE | S72: DUR/DSP/PDPS | AK72: Výpočtem | AU72: rozpis položky | BE72: v příloze A: | BF72: náklady v Kč
D73: Z toho vyhrazené změny závazku (VZZ) | K73: =IF(H46="Nezařazeno",0,I46) -> 0 | L73: NE | AK73: Výpočtem
A74: _ | B74: A.6.2 | C74: Inflace k vybraným nákladům na přípravu stavby | K74: =IFERROR(IF((DATEDIF(I69,I70,"M"))=0,0,IF(H68="Ano",'2A_PHVZ'!H67,0)),0) -> 0 | L74: NE | S74: DUR | U74: 0.03 | V74: 0.022 | W74: 0.018 | X74: 0.012 | Y74: 0.008 | Z74: 0.005 | AA74: 0.005 | AK74: Výpočtem
A75: B.1 | B75: Stavební část (náklady bez inflace) | K75: ='1B'!K8 -> 0 | L75: NE | S75: DSP | U75: 0.072 | V75: 0.072 | W75: 0.068 | X75: 0.055 | Y75: 0.04 | Z75: 0.03 | AA75: 0.03 | AH75: DUSL/PDPS | AK75: Výpočtem
A76: B.2 | B76: Technologická část (náklady bez inflace) | K76: ='1B'!J17 -> 0 | L76: NE | S76: PDPS pro DSP | U76: 0.071 | V76: 0.0656 | W76: 0.0619 | X76: 0.0373 | Y76: 0.0227 | Z76: 0.014 | AA76: 0.014 | AH76: DUSP/PDPS | AK76: Nezařazeno
L77: ANO | AH77: DSP/PDPS | AK77: Nezařazeno
L78: =IF(COUNTA(A78:K78)=0,"NE","ANO") -> NE | S78: Související činnosti k DUR/DSP/PDPS | AH78: PDPS | AK78: Nezařazeno
L79: NE | S79: A.2.1.1.1 | T79: Geodet/DUR | U79: 0.0038 | V79: 0.0038 | W79: 0.0035 | X79: 0.0021 | Y79: 0.0005 | Z79: 0.0005 | AA79: 0.0005 | AK79: Nezařazeno
L80: NE | S80: A.2.1.1.2 | T80: Průzkum/DUR | U80: 0.0104 | V80: 0.0104 | W80: 0.0098 | X80: 0.0072 | Y80: 0.0042 | Z80: 0.0042 | AA80: 0.0042 | AK80: Nezařazeno
L81: NE | S81: A.2.1.1.4 | T81: Inž.č./DUR | U81: 0.0035 | V81: 0.0027 | W81: 0.0026 | X81: 0.002 | Y81: 0.0014 | Z81: 0.0014 | AA81: 0.0014 | AK81: Výpočtem
L82: NE | S82: A.2.2.1.1 | T82: Geodet/DSP | U82: 0.0013 | V82: 0.0013 | W82: 0.0012 | X82: 0.0007 | Y82: 0.0002 | Z82: 0.0002 | AA82: 0.0002
L83: NE | S83: A.2.2.1.2 | T83: Průzkum/DSP | U83: 0.0056 | V83: 0.0056 | W83: 0.0053 | X83: 0.0039 | Y83: 0.0022 | Z83: 0.0022 | AA83: 0.0022 | AC83: AKTUÁLNÍ VÝPOČETNÍ SAZBA - není DUR
L84: NE | S84: A.2.2.1.4 | T84: Inž.č./DSP | U84: 0.0023 | V84: 0.0018 | W84: 0.0017 | X84: 0.0014 | Y84: 0.0009 | Z84: 0.0009 | AA84: 0.0009 | AC84: ROZMEZÍ | AE84: 0 | AF84: 50 | AG84: 200 | AH84: 1000 | AI84: 2000 | AJ84: 3000 | AK84: >5000
L85: NE | S85: DUSL/PDPS | AC85: A.2.2.1.1 | AD85: Geodet | AE85: 0.005 | AF85: 0.005 | AG85: 0.0046 | AH85: 0.0028 | AI85: 0.0007 | AJ85: 0.0007 | AK85: 0.0007
L86: NE | S86: DUSL | U86: 0.06 | V86: 0.0492 | W86: 0.0444 | X86: 0.0408 | Y86: 0.0312 | Z86: 0.024 | AA86: 0.024 | AC86: A.2.2.1.2 | AD86: Průzkum | AE86: 0.02 | AF86: 0.016 | AG86: 0.015 | AH86: 0.0111 | AI86: 0.0064 | AJ86: 0.0045 | AK86: 0.0045
L87: NE | S87: PDPS pro DUSL | U87: =(U91-U86)+20%*(U91-U86) -> 0.1212 | V87: 0.11808 | W87: 0.1098 | X87: 0.0774 | Y87: 0.0522 | Z87: 0.036 | AA87: 0.036 | AC87: A.2.2.1.4 | AD87: Inž.čin. | AE87: 0.0058 | AF87: 0.0045 | AG87: 0.0043 | AH87: 0.0034 | AI87: 0.0023 | AJ87: 0.0023 | AK87: 0.0023
L88: NE | S88: DUSP/PDPS | AC88: Společné povolení | AE88: 0.0492 | AF88: 0.0492 | AG88: 0.0444 | AH88: 0.0408 | AI88: 0.0312 | AJ88: 0.024 | AK88: 0.024
L89: NE | S89: DUSP | U89: 0.09 | V89: 0.082 | W89: 0.074 | X89: 0.068 | Y89: 0.052 | Z89: 0.04 | AA89: 0.04 | AC89: PDPS | AE89: 0.1212 | AF89: 0.11808 | AG89: 0.1098 | AH89: 0.0774 | AI89: 0.0522 | AJ89: 0.036 | AK89: 0.036
L90: NE | S90: PDPS pro DUSP | U90: =U91-U89 -> 0.071 | V90: =V91-V89 -> 0.0656 | W90: 0.0619 | X90: 0.0373 | Y90: 0.0227 | Z90: 0.014 | AA90: 0.014
L91: NE | S91: Součet DUSP + PDPS (k PDPS u DUSL +10%) | U91: 0.161 | V91: 0.1476 | W91: 0.1359 | X91: 0.1053 | Y91: 0.0747 | Z91: 0.054 | AA91: 0.054
L92: NE | S92: pouze PDPS
L93: NE | S93: PDPS (bez předešlé přípravy) | U93: 0.15 | V93: 0.147 | W93: 0.136 | X93: 0.105 | Y93: 0.0747 | Z93: 0.054 | AA93: 0.054 | AC93: VÝPOČETNÍ SAZBA - pokud je DUR
L94: NE | S94: Související činnosti k DUSL/DPS nebo PDPS samostatně bez využití DUR | AC94: ROZMEZÍ | AE94: 0 | AF94: 50 | AG94: 200 | AH94: 1000 | AI94: 2000 | AJ94: 3000 | AK94: >5000
L95: NE | S95: A.2.2.1.1 | T95: Geodet/celek | U95: 0.005 | V95: 0.005 | W95: 0.0046 | X95: 0.0028 | Y95: 0.0007 | Z95: 0.0007 | AA95: 0.0007 | AC95: A.2.2.1.1 | AD95: Geodet | AE95: 0.0013 | AF95: 0.0013 | AG95: 0.0012 | AH95: 0.0007 | AI95: 0.0002 | AJ95: =AI95 -> 0.0002 | AK95: 0.0002
L96: NE | S96: A.2.2.1.2 | T96: Průzkum/celek | U96: 0.02 | V96: 0.016 | W96: 0.015 | X96: 0.0111 | Y96: 0.0064 | Z96: 0.0045 | AA96: 0.0045 | AC96: A.2.2.1.2 | AD96: Průzkum | AE96: 0.0056 | AF96: 0.0056 | AG96: 0.0053 | AH96: 0.0039 | AI96: 0.0022 | AJ96: 0.0022 | AK96: 0.0022
L97: NE | Q97: BezPDPS | S97: A.2.2.1.4 | T97: Inž.č./celek | U97: 0.0058 | V97: 0.0045 | W97: 0.0043 | X97: 0.0034 | Y97: 0.0023 | Z97: 0.0023 | AA97: 0.0023 | AC97: A.2.2.1.4 | AD97: Inž.čin. | AE97: 0.0018 | AF97: 0.0018 | AG97: 0.0017 | AH97: 0.0014 | AI97: 0.0009 | AJ97: 0.0009 | AK97: 0.0009
L98: NE | Q98: S PDPS | S98: Společné povolení | U98: 0.0492 | V98: 0.0492 | W98: 0.0444 | X98: 0.0408 | Y98: 0.0312 | Z98: 0.024 | AA98: 0.024 | AC98: Společné povolení | AE98: 0.03 | AF98: 0.03 | AG98: 0.0272 | AH98: 0.0264 | AI98: 0.0232 | AJ98: 0.019 | AK98: 0.019
L99: NE | Q99: PDPS | S99: AKTUÁLNÍ VÝPOČETNÍ SAZBA
L100: NE | Q100: =IF(H32="Nezařazeno","BezPDPS",IF(AND(OR(H32="Výpočtem",H32="Individuálně"),OR(H30="Výpočtem",H30="Individuálně")),"S PDPS","PDPS")) -> BezPDPS | S100: ROZMEZÍ | U100: 0 | V100: 50 | W100: 200 | X100: 1000 | Y100: 2000 | Z100: 3000 | AA100: >5000
L101: NE | O101: A.2.2.1.1 | P101: Geodet | Q101: =IF(AND($H$30="Nezařazeno",$H$32="Nezařazeno"),100%,IF($Q$100="PDPS",25%,IF($Q$100="S PDPS",100%,75%))) -> 1 | S101: A.2.2.1.1 | T101: Geodet | U101: =IF($H$22="Ano",AE95+AE107,AE85)*$Q$101 -> 0.005 | V101: =IF($H$22="Ano",AF95+AF107,AF85)*$Q$101 -> 0.005 | W101: 0.0046 | X101: 0.0028 | Y101: 0.0007 | Z101: 0.0007 | AA101: 0.0007
B102: …................................... | F102: …................................... | J102: …................................... | L102: ANO | O102: A.2.2.1.2 | P102: Průzkum | Q102: =IF(AND($H$30="Nezařazeno",$H$32="Nezařazeno"),100%,IF($Q$100="PDPS",17%,IF($Q$100="S PDPS",100%,62%))) -> 1 | S102: A.2.2.1.2 | T102: Průzkum | U102: =IF($H$22="Ano",AE96+AE108,AE86)*$Q$102 -> 0.02 | V102: =IF($H$22="Ano",AF96+AF108,AF86)*$Q$102 -> 0.016 | W102: 0.015 | X102: 0.0111 | Y102: 0.0064 | Z102: 0.0045 | AA102: 0.0045
B103: Zpracoval | F103: Kontroloval | J103: Technický náměstek | L103: ANO | O103: A.2.2.1.4 | P103: Inž.čin. | Q103: =IF(AND($H$30="Nezařazeno",$H$32="Nezařazeno"),100%,IF($Q$100="PDPS",40%,IF($Q$100="S PDPS",100%,60%))) -> 1 | S103: A.2.2.1.4 | T103: Inž.čin. | U103: =IF($H$22="Ano",AE97+AE109,AE87)*$Q$103 -> 0.0058 | V103: =IF($H$22="Ano",AF97+AF109,AF87)*$Q$103 -> 0.0045 | W103: 0.0043 | X103: 0.0034 | Y103: 0.0023 | Z103: 0.0023 | AA103: 0.0023
S104: Společné povolení | U104: =IF($H$22="Ano",AE98+AE110,U98) -> 0.0492 | V104: 0.0492 | W104: 0.0444 | X104: 0.0408 | Y104: 0.0312 | Z104: 0.024 | AA104: 0.024
S105: =IF((O20+O30+O31)=0,IF(H32="Výpočtem","PDPS samostatně","PDPS"),"PDPS") -> PDPS | U105: =IF($S$105="PDPS samostatně",U93,U87) -> 0.1212 | V105: =IF($S$105="PDPS samostatně",V93,V87) -> 0.11808 | W105: 0.1098 | X105: 0.0774 | Y105: 0.0522 | Z105: 0.036 | AA105: 0.036
AC106: Přírůstky - dle využití dokumenatce
T107: Souběh zadání DUR-DUSP(L)-DSP | AC107: A.2.2.1.1 | AD107: Geodet | AE107: =IF($H$23="-",0,IF($H$22="Ano",(100-$H$23)/100*(AE85-AE95),0)) -> 0 | AF107: =IF($H$23="-",0,IF($H$22="Ano",(100-$H$23)/100*(AF85-AF95),0)) -> 0 | AG107: 0 | AH107: 0 | AI107: 0 | AJ107: 0 | AK107: 0
T108: DUR | V108: DUSL/DPS | X108: DSP | AC108: A.2.2.1.2 | AD108: Průzkum | AE108: =IF($H$23="-",0,IF($H$22="Ano",(100-$H$23)/100*(AE86-AE96),0)) -> 0 | AF108: =IF($H$23="-",0,IF($H$22="Ano",(100-$H$23)/100*(AF86-AF96),0)) -> 0 | AG108: 0 | AH108: 0 | AI108: 0 | AJ108: 0 | AK108: 0
T109: =O20 -> 0 | V109: =IF(V110="Výpočtem",4,0) -> 0 | W109: =IF(V110="Nezařazeno",0,IF(V110="Výpočtem",0,1)) -> 0 | X109: =IF(X110="Výpočtem",4,0) -> 0 | Y109: =IF(X110="Nezařazeno",0,IF(X110="Výpočtem",0,1)) -> 0 | AC109: A.2.2.1.4 | AD109: Inž.čin. | AE109: 0 | AF109: =IF($H$23="-",0,IF($H$22="Ano",(100-$H$23)/100*(AF87-AF97),0)) -> 0 | AG109: 0 | AH109: 0 | AI109: 0 | AJ109: 0 | AK109: 0
T110: =H20 -> Nezařazeno | V110: =H30 -> Nezařazeno | X110: =H31 -> Nezařazeno | AC110: Společné povolení | AE110: 0 | AF110: =IF($H$23="-",0,IF($H$22="Ano",(100-$H$23)/100*(AF88-AF98),0)) -> 0 | AG110: 0 | AH110: 0 | AI110: 0 | AJ110: 0 | AK110: 0
T111: =IF(T109>0,IF(V110="Výpočtem","Chyba","OK"),"OK") -> OK | V111: =IF(V110="Nezařazeno","",G30) ->  | X111: =IF(SUM(V109:Y109)>4,"Chyba","OK") -> OK
S113: Související činnosti k využití DUR k DUSP/DPS
S114: A.2.2.1.1 | T114: Geodet | U114: =IF(O12>0,"ANO","NE") -> NE
S115: A.2.2.1.2 | T115: Průzkum | U115: =IF(O13>0,"ANO","NE") -> NE
S116: A.2.2.1.4 | T116: Inž.činnost | U116: =IF(O15>0,"ANO","NE") -> NE

Sheet PHVZ_R (hidden)
A2: Stanovení PHVZ | B2: REALIZACE
A5: Název zakázky:
A8: ISPROFIN / ISPROFOND:
A9: CIN:
A11: Položky | F11: Částka | G11: Poznámka
A12: A.2.4.4 | B12: Zpracování v režimu BIM - realizační část | G12: Viz 2A buňka G37.
A13: A.2.5 | B13: Dokumentace skutečného provedení stavby
A14: A.4.2 | B14: Nájmy hrazené zhotovitelem stavby
A15: A.5.3.3 | B15: Publicita stavby zhotovitele
A17: B.1.1 | B17: Stavební objekty dodávané zhotovitelem (ZRN+VRN) | G17: Viz Krycí list SR buňka G40. U staveb bez inflační doložky bude navíc přičtena i inflace (list Krycí list SR buňka G48).
A18: B.2.1 | B18: Provozní soubory dodávané zhotovitelem (ZRN+VRN) | G18: Viz Krycí list SR buňka G41. U staveb bez inflační doložky bude navíc přičtena i inflace (list Krycí list SR buňka G48).
A19: B.3.1 | B19: Osvědčení o shodě notifikovanou osobou v realizaci
A20: B.3.3 | B20: Osvědčení o bezpečnosti před uvedením do provozu
A21: B.3.4 | B21: Geodetická vytyčovací síť celé stavby
A22: B.3.5 | B22: Odborné dozory, dohledy a průzkumy zajišťované zhotovitelem
A23: B.3.6 | B23: Hlukové měření pro účely realizace stavby
A24: B.3.7.1 | B24: Náhrady za omezení hospodaření
A25: B.3.9 | B25: Ostatní nezařazené náklady v realizaci
B26: Vyhrazené změny závazků ze smlouvy (např. doměrky - 4% ze ZRN)
B27: Hodnota zadavatelem poskytnutých služeb/stavebních prací, které jsou nezbytné pro plnění zakázky - CNM
B28: Náklady na stav. práce při použití jednacího řízení bez uveřejnění - JŘBU (např: následná úprava směrového a výškového uspořádání koleje)
B29: Předpokládaný vývoj inflace | G29: Viz Krycí list SR buňka G46 - u staveb bez inflační doložky bude za nula.
B30: Poskytování součinnost na dobu 25 let od dokončení stavby | G30: Náklady určené na činnosti pro zajištění součinnosti týkající se všech zabezpečovacích zařízení a všech návazných zařízení, která mají rozhraní se zabezpečovacím zařízením, dodaných v rámci stavby.
B31: Inflace na dobu 25 let od dokončení Díla pro činnosti související s poskytováním součinnosti | G31: Inflace k nákladům pro zajištění součinnosti pro období nad 25 let od dokončení stavby.
A33: Náklady na Realizaci celkem: | F33: =SUM(F12:F15)+SUM(F17:F31) -> 0
A35: =IF(A2="Stanovení PHVZ","Předpokládaná hodnota veřejné zakázky v rozčlenění","Limitní cena v rozčlenění") -> Předpokládaná hodnota veřejné zakázky v rozčlenění | F35: =F36+F40 -> 0
A36: Náklady zhotovitelem oceněných prací: | F36: =SUM(F37:F39) -> 0
A37: z toho | B37: ZRN a VRN jednotlivých SO + poměrná část dle zahájení výběrového řízení | E37: B.1.1.1 + B.1.1.2 | F37: =F17 -> 0
B38: ZRN a VRN jednotlivých PS + poměrná část dle zahájení výběrového řízení | E38: B.2.1.1 + B.2.1.2 | F38: =F18 -> 0
B39: Všeobecný objekt | F39: =SUM(F12:F15)+SUM(F19:F25) -> 0
A40: Předpokládaná hodnota souvisejících plnění: | F40: =SUM(F41:F45) -> 0
A41: z toho | B41: Vyhrazené změny závazků ze smlouvy, např. doměrky (4% ze ZRN) | F41: =F26 -> 0
B42: Hodnota zadavatelem poskytnutých služeb/stavebních prací, které jsou nezbytné pro plnění zakázky - CNM | F42: =F27 -> 0
B43: Hodnotu nákladů na nové práce, na jejichž poskytnutí si zadavatel vyhrazuje možnost použití JŘBU | F43: =F28 -> 0
B44: Hodnota vývoje inflace v letech po odečtení vlivu zahájení výběrového řízení | F44: =F29 -> 0
B45: Poskytování součinnost na dobu 25 let od dokončení stavby včetně uvažované inflace | F45: =F30+F31 -> 0
B50: …................................... | E50: …...................................
B51: Zpracoval | E51: Kontroloval
A54: …...................................
A55: Technický náměstek

Sheet PHVZ_D+B (hidden)
A2: Stanovení PHVZ | B2: D+B (Design & Build)
A5: Název zakázky:
A8: ISPROFIN / ISPROFOND:
A9: CIN:
A11: Položky | F11: Částka | G11: Poznámka
A12: A.2.2.1 | B12: Práce prováděné pro zpracování projektových dokumentací
A13: A.2.2.x | B13: Projektová dokumenatce (DOS/DSP/DUSL/DUSP)
A14: A.2.2.4 | B14: Projektová dokumentace pro provádění stavby (PDPS)
A15: A.2.3 | B15: Dozor projektanta
A16: A.2.4.4 | B16: Zpracování v režimu BIM | G16: Nutno uvést, zda náklady jsou pouze za Realizaci BIMu nebo za Přípravu/Realizaci BIMu.
A17: A.2.5 | B17: Dokumentace skutečného provedení stavby
A18: A.4.2 | B18: Nájmy hrazené zhotovitelem stavby
A19: A.5.3.3 | B19: Publicita stavby zhotovitele
A21: B.1.1 | B21: Stavební objekty dodávané zhotovitelem (ZRN+VRN) | G21: Viz Krycí list SR buňka G40. U staveb bez inflační doložky bude navíc přičtena i inflace (list Krycí list SR buňka G48).
A22: B.2.1 | B22: Provozní soubory dodávané zhotovitelem (ZRN+VRN) | G22: Viz Krycí list SR buňka G41. U staveb bez inflační doložky bude navíc přičtena i inflace (list Krycí list SR buňka G48).
A23: B.3.1 | B23: Osvědčení o shodě notifikovanou osobou v realizaci
A24: B.3.3 | B24: Osvědčení o bezpečnosti před uvedením do provozu
A25: B.3.4 | B25: Geodetická vytyčovací síť celé stavby
A26: B.3.5 | B26: Odborné dozory, dohledy a průzkumy zajišťované zhotovitelem
A27: B.3.6 | B27: Hlukové měření pro účely realizace stavby
A28: B.3.7.1 | B28: Náhrady za omezení hospodaření
A29: B.3.9 | B29: Ostatní nezařazené náklady v realizaci
B30: Hodnota zadavatelem poskytnutých služeb/stavebních prací, které jsou nezbytné pro plnění zakázky - CNM
B31: Náklady na stav. práce při použití jednacího řízení bez uveřejnění - JŘBU (např: následná úprava směrového a výškového uspořádání koleje)
B32: Poskytování součinnost na dobu 25 let od dokončení stavby | G32: Náklady určené na činnosti pro zajištění součinnosti týkající se všech zabezpečovacích zařízení a všech návazných zařízení, která mají rozhraní se zabezpečovacím zařízením, dodaných v rámci stavby.
B33: Inflace na dobu 25 let od dokončení Díla pro činnosti související s poskytováním součinnosti | G33: Inflace k nákladům pro zajištění součinnosti pro období nad 25 let od dokončení stavby.
A35: Náklady na D+B celkem: | F35: =SUM(F12:F19)+SUM(F21:F33) -> 0
A37: =IF(A2="Stanovení PHVZ","Předpokládaná hodnota veřejné zakázky v rozčlenění","Limitní cena v rozčlenění") -> Předpokládaná hodnota veřejné zakázky v rozčlenění | F37: =F39+F46 -> 0
A38: Předpokládaná hodnota plnění zhotovitele: | F38: =F39+F32 -> 0
A39: Náklady zhotovitelem oceněné v Požadavcích na výkon a funkci: | F39: =SUM(F40:F45) -> 0
A40: z toho | B40: Práce prováděné pro zpracování projektových dokumentací | F40: =F12 -> 0
B41: Projektová dokumentace (Dokumentace pro povolení + PDPS) | F41: =F13+F14 -> 0
B42: Dozor projektanta | E42: A.2.3 | F42: =F15 -> 0
B43: ZRN a VRN jednotlivých SO | E43: B.1.1.1 + B.1.1.2 | F43: =F21 -> 0
B44: ZRN a VRN jednotlivých PS | E44: B.2.1.1 + B.2.1.2 | F44: =F22 -> 0
B45: Všeobecný objekt | F45: =SUM(F16:F19)+SUM(F23:F29) -> 0
A46: Předpokládaná hodnota souvisejících plnění: | F46: =SUM(F47:F49) -> 0
B47: Hodnota zadavatelem poskytnutých služeb/stavebních prací, které jsou nezbytné pro plnění zakázky - CNM | F47: =F30 -> 0
B48: Hodnotu nákladů na nové práce, na jejichž poskytnutí si zadavatel vyhrazuje možnost použití JŘBU | F48: =F31 -> 0
B49: Poskytování součinnost na dobu 25 let od dokončení stavby včetně uvažované inflace | F49: =F32+F33 -> 0
B54: …................................... | E54: …...................................
B55: Zpracoval | E55: Kontroloval
A58: …...................................
A59: Technický náměstek

Sheet 2A_PHVZ (hidden)
A1: Náklady stavby ve smíšené CÚ: | E1: ='Krycí list SR'!F4 -> 0 | F1: - | G1: ='Krycí list SR'!G10 ->  | H1: Formulář 2.A | I1: Náklady v letech výstavby | S1: ='Krycí list SR'!$H$1 -> SRP/2025/03
A2: Název stavby: | C2: =IF('Krycí list SR'!B2="","",'Krycí list SR'!B2) ->  | I2: Do 31.12 | J2: Aktuální rok | K2: v roce | L2: v roce | M2: v roce | N2: v roce | O2: v roce | P2: v roce | Q2: v roce | R2: v roce | S2: v letech | AI2: ='Krycí list SR'!E5 -> Rok ocenění stavebních nákladů SO/PS: (mimo OTSKP viz komentář)
A3: ISPROFIN: | C3: =IF('Krycí list SR'!$B$3="","",'Krycí list SR'!$B$3) ->  | E3: Označení (S-kód): | G3: =IF('Krycí list SR'!D3="","",'Krycí list SR'!D3) ->  | W3: Výběr dokumentací pro inflaci | AI3: ='Krycí list SR'!F5 -> 0
A4: Investor: | B4: SŽ | D4: =IF('Krycí list SR'!$B$5="","",'Krycí list SR'!$B$5) ->  | H4: =IF('Krycí list SR'!E3="","",'Krycí list SR'!E3) ->  | I4: =J4-1 -> 2024 | J4: ='Krycí list SR'!H4 -> 2025 | K4: =J4+1 -> 2026 | L4: 2027 | M4: 2028 | N4: 2029 | O4: 2030 | P4: 2031 | Q4: 2032 | R4: 2033 | S4: =CONCATENATE("po ",R4) -> po 2033 | W4: Stádium | X4: =H4 ->  | Y4: =IF(X4="",0,IF(X4="Stádium 3",0,IF(X4="Stádium 2",2,1))) -> 0 | AI4: ='Krycí list SR'!G4 -> Aktuální rok
A5: Jiný investor: | C5: =IF('Krycí list SR'!$B$7="","neurčen",'Krycí list SR'!$B$7) -> - | H5: =IF(MIN(J7:S64)<0,"Chyba: rozdělení nákladů v letech","") ->  | K5: Inflační koeficient pro daný rok | AI5: ='Krycí list SR'!H4 -> 2025
A6: A | B6: Příprava a celkové zabezpečení stavby | H6: náklady v Kč celkem | J6: =SUMIF($AI$8:$AI$39,J4,$AJ$8:$AJ$39) -> 0.024 | K6: =SUMIF($AI$8:$AI$39,K4,$AJ$8:$AJ$39) -> 0.021 | L6: =SUMIF($AI$8:$AI$39,L4,$AJ$8:$AJ$39) -> 0.02 | M6: =SUMIF($AI$8:$AI$39,M4,$AJ$8:$AJ$39) -> 0.02 | N6: 0.02 | O6: 0.02 | P6: 0.02 | Q6: 0.02 | R6: 0.02 | S6: =SUMIF($AI$8:$AI$39,(R4+1),$AJ$8:$AJ$39) -> 0.02 | T6: Pole pro pracovní výpočty bez tisku | W6: Podklad pro opravu formátování
A7: A.1 | B7: ='1A_PHVZ'!B8 -> Náklady investorsko - inženýrské činnosti ve výstavbě | F7: z toho ve stádiu realizace | G7: 0.6 | H7: ='1A_PHVZ'!O8 -> 0 | AI7: rok | AJ7: inflace
J8: ='1A_PHVZ'!O8-I7-SUM(K7:S8) -> 0 | K8: =ROUND(((('1A_PHVZ'!$O8)*$G$7)*SUMIF(hide!$H$74:$H$83,K$4,hide!$L$74:$L$83)),0) -> 0 | L8: =ROUND(((('1A_PHVZ'!$O8)*$G$7)*SUMIF(hide!$H$74:$H$83,L$4,hide!$L$74:$L$83)),0) -> 0 | M8: =ROUND(((('1A_PHVZ'!$O8)*$G$7)*SUMIF(hide!$H$74:$H$83,M$4,hide!$L$74:$L$83)),0) -> 0 | N8: =ROUND(((('1A_PHVZ'!$O8)*$G$7)*SUMIF(hide!$H$74:$H$83,N$4,hide!$L$74:$L$83)),0) -> 0 | O8: =ROUND(((('1A_PHVZ'!$O8)*$G$7)*SUMIF(hide!$H$74:$H$83,O$4,hide!$L$74:$L$83)),0) -> 0 | P8: =ROUND(((('1A_PHVZ'!$O8)*$G$7)*SUMIF(hide!$H$74:$H$83,P$4,hide!$L$74:$L$83)),0) -> 0 | Q8: =ROUND(((('1A_PHVZ'!$O8)*$G$7)*SUMIF(hide!$H$74:$H$83,Q$4,hide!$L$74:$L$83)),0) -> 0 | R8: =ROUND(((('1A_PHVZ'!$O8)*$G$7)*SUMIF(hide!$H$74:$H$83,R$4,hide!$L$74:$L$83)),0) -> 0 | S8: =ROUND(((('1A_PHVZ'!$O8)*$G$7)*SUMIF(hide!$H$74:$H$83,S$4,hide!$L$74:$L$83)),0) -> 0 | X8: ='1A_PHVZ'!AC8-W7-SUM(Y7:AG8) -> 0 | Y8: =ROUND(((('1A_PHVZ'!$O8)*$G$7)*SUMIF(hide!$H$74:$H$83,Y$4,hide!$L$74:$L$83)),0) -> 0 | Z8: =ROUND(((('1A_PHVZ'!$O8)*$G$7)*SUMIF(hide!$H$74:$H$83,Z$4,hide!$L$74:$L$83)),0) -> 0 | AA8: =ROUND(((('1A_PHVZ'!$O8)*$G$7)*SUMIF(hide!$H$74:$H$83,AA$4,hide!$L$74:$L$83)),0) -> 0 | AB8: =ROUND(((('1A_PHVZ'!$O8)*$G$7)*SUMIF(hide!$H$74:$H$83,AB$4,hide!$L$74:$L$83)),0) -> 0 | AC8: =ROUND(((('1A_PHVZ'!$O8)*$G$7)*SUMIF(hide!$H$74:$H$83,AC$4,hide!$L$74:$L$83)),0) -> 0 | AD8: =ROUND(((('1A_PHVZ'!$O8)*$G$7)*SUMIF(hide!$H$74:$H$83,AD$4,hide!$L$74:$L$83)),0) -> 0 | AE8: =ROUND(((('1A_PHVZ'!$O8)*$G$7)*SUMIF(hide!$H$74:$H$83,AE$4,hide!$L$74:$L$83)),0) -> 0 | AF8: =ROUND(((('1A_PHVZ'!$O8)*$G$7)*SUMIF(hide!$H$74:$H$83,AF$4,hide!$L$74:$L$83)),0) -> 0 | AG8: =ROUND(((('1A_PHVZ'!$O8)*$G$7)*SUMIF(hide!$H$74:$H$83,AG$4,hide!$L$74:$L$83)),0) -> 0 | AI8: ='hide inflace'!A3 -> 2015 | AJ8: ='hide inflace'!C3 -> 0
A9: A.2 | B9: ='1A_PHVZ'!B9 -> Náklady na dokumentace stavby | H9: =SUM(I9:S9) -> 0 | I9: =I10+I21+I32+I35+I40 -> 0 | J9: 0 | K9: 0 | L9: 0 | M9: 0 | N9: 0 | O9: 0 | P9: 0 | Q9: 0 | R9: 0 | S9: 0 | W9: =W10+W21+W32+W35+W40 -> 0 | X9: 0 | Y9: 0 | Z9: 0 | AA9: 0 | AB9: 0 | AC9: 0 | AD9: 0 | AE9: 0 | AF9: 0 | AG9: 0 | AI9: ='hide inflace'!A4 -> 2016 | AJ9: ='hide inflace'!C4 -> 0
A10: A.2.1 | B10: z toho | C10: ='1A_PHVZ'!C10 -> Náklady na předprojektové dokumentace pro přípravu stavby | H10: =SUM(I10:S10) -> 0 | I10: =SUM(I11,I17,I20) -> 0 | J10: =J11+J17+J20 -> 0 | K10: =K11+K17+K20 -> 0 | L10: 0 | M10: 0 | N10: 0 | O10: 0 | P10: 0 | Q10: 0 | R10: 0 | S10: 0 | W10: =SUM(W11,W17,W20) -> 0 | X10: =X11+X17+X20 -> 0 | Y10: =Y11+Y17+Y20 -> 0 | Z10: 0 | AA10: 0 | AB10: 0 | AC10: 0 | AD10: 0 | AE10: 0 | AF10: 0 | AG10: 0 | AI10: ='hide inflace'!A5 -> 2017 | AJ10: ='hide inflace'!C5 -> 0.015
A11: A.2.1.1 | C11: z toho | D11: ='1A_PHVZ'!D11 -> Práce prováděné pro zpracování předprojektových dokumentací | H11: =SUM(I11:S11) -> 0 | I11: =SUM(I12:I16) -> 0 | J11: =SUM(J12:J16) -> 0 | K11: =SUM(K12:K16) -> 0 | L11: =SUM(L12:L16) -> 0 | M11: =SUM(M12:M16) -> 0 | N11: 0 | O11: 0 | P11: 0 | Q11: 0 | R11: 0 | S11: 0 | W11: =SUM(W12:W16) -> 0 | X11: =SUM(X12:X16) -> 0 | Y11: =SUM(Y12:Y16) -> 0 | Z11: =SUM(Z12:Z16) -> 0 | AA11: =SUM(AA12:AA16) -> 0 | AB11: 0 | AC11: 0 | AD11: 0 | AE11: 0 | AF11: 0 | AG11: 0 | AI11: ='hide inflace'!A6 -> 2018 | AJ11: ='hide inflace'!C6 -> 0.031
A12: A.2.1.1.1 | D12: z toho | E12: ='1A_PHVZ'!E12 -> Geodetické práce a mapové podklady | H12: =SUM(I12:S12) -> 0 | J12: ='1A_PHVZ'!O12-SUM(I12,K12:S12) -> 0 | K12: =IFERROR(('1A_PHVZ'!$I12+'1A_PHVZ'!$J12)*'2A_PHVZ'!K$72/'2A_PHVZ'!$H$72,0) -> 0 | L12: =IFERROR(('1A_PHVZ'!$I12+'1A_PHVZ'!$J12)*'2A_PHVZ'!L$72/'2A_PHVZ'!$H$72,0) -> 0 | M12: =IFERROR(('1A_PHVZ'!$I12+'1A_PHVZ'!$J12)*'2A_PHVZ'!M$72/'2A_PHVZ'!$H$72,0) -> 0 | N12: =IFERROR(('1A_PHVZ'!$I12+'1A_PHVZ'!$J12)*'2A_PHVZ'!N$72/'2A_PHVZ'!$H$72,0) -> 0 | O12: =IFERROR(('1A_PHVZ'!$I12+'1A_PHVZ'!$J12)*'2A_PHVZ'!O$72/'2A_PHVZ'!$H$72,0) -> 0 | P12: =IFERROR(('1A_PHVZ'!$I12+'1A_PHVZ'!$J12)*'2A_PHVZ'!P$72/'2A_PHVZ'!$H$72,0) -> 0 | Q12: =IFERROR(('1A_PHVZ'!$I12+'1A_PHVZ'!$J12)*'2A_PHVZ'!Q$72/'2A_PHVZ'!$H$72,0) -> 0 | R12: =IFERROR(('1A_PHVZ'!$I12+'1A_PHVZ'!$J12)*'2A_PHVZ'!R$72/'2A_PHVZ'!$H$72,0) -> 0 | S12: =IFERROR(('1A_PHVZ'!$I12+'1A_PHVZ'!$J12)*'2A_PHVZ'!S$72/'2A_PHVZ'!$H$72,0) -> 0 | X12: ='1A_PHVZ'!AC12-SUM(W12,Y12:AG12) -> 0 | AI12: ='hide inflace'!A7 -> 2019 | AJ12: ='hide inflace'!C7 -> 0.047
A13: A.2.1.1.2 | E13: ='1A_PHVZ'!E13 -> Průzkumné práce pro předprojektové dokumentace | H13: =SUM(I13:S13) -> 0 | J13: ='1A_PHVZ'!O13-SUM(I13,K13:S13) -> 0 | K13: =IFERROR(('1A_PHVZ'!$I13+'1A_PHVZ'!$J13)*'2A_PHVZ'!K$72/'2A_PHVZ'!$H$72,0) -> 0 | L13: =IFERROR(('1A_PHVZ'!$I13+'1A_PHVZ'!$J13)*'2A_PHVZ'!L$72/'2A_PHVZ'!$H$72,0) -> 0 | M13: =IFERROR(('1A_PHVZ'!$I13+'1A_PHVZ'!$J13)*'2A_PHVZ'!M$72/'2A_PHVZ'!$H$72,0) -> 0 | N13: =IFERROR(('1A_PHVZ'!$I13+'1A_PHVZ'!$J13)*'2A_PHVZ'!N$72/'2A_PHVZ'!$H$72,0) -> 0 | O13: =IFERROR(('1A_PHVZ'!$I13+'1A_PHVZ'!$J13)*'2A_PHVZ'!O$72/'2A_PHVZ'!$H$72,0) -> 0 | P13: =IFERROR(('1A_PHVZ'!$I13+'1A_PHVZ'!$J13)*'2A_PHVZ'!P$72/'2A_PHVZ'!$H$72,0) -> 0 | Q13: =IFERROR(('1A_PHVZ'!$I13+'1A_PHVZ'!$J13)*'2A_PHVZ'!Q$72/'2A_PHVZ'!$H$72,0) -> 0 | R13: =IFERROR(('1A_PHVZ'!$I13+'1A_PHVZ'!$J13)*'2A_PHVZ'!R$72/'2A_PHVZ'!$H$72,0) -> 0 | S13: =IFERROR(('1A_PHVZ'!$I13+'1A_PHVZ'!$J13)*'2A_PHVZ'!S$72/'2A_PHVZ'!$H$72,0) -> 0 | X13: ='1A_PHVZ'!AC13-SUM(W13,Y13:AG13) -> 0 | AI13: ='hide inflace'!A8 -> 2020 | AJ13: ='hide inflace'!C8 -> 0.037
A14: A.2.1.1.3 | E14: ='1A_PHVZ'!E14 -> Posouzení vlivu stavby na životní prostředí | H14: 0 | J14: ='1A_PHVZ'!O14-SUM(I14,K14:S14) -> 0 | K14: =IFERROR(('1A_PHVZ'!$I14+'1A_PHVZ'!$J14)*'2A_PHVZ'!K$72/'2A_PHVZ'!$H$72,0) -> 0 | L14: =IFERROR(('1A_PHVZ'!$I14+'1A_PHVZ'!$J14)*'2A_PHVZ'!L$72/'2A_PHVZ'!$H$72,0) -> 0 | M14: =IFERROR(('1A_PHVZ'!$I14+'1A_PHVZ'!$J14)*'2A_PHVZ'!M$72/'2A_PHVZ'!$H$72,0) -> 0 | N14: =IFERROR(('1A_PHVZ'!$I14+'1A_PHVZ'!$J14)*'2A_PHVZ'!N$72/'2A_PHVZ'!$H$72,0) -> 0 | O14: =IFERROR(('1A_PHVZ'!$I14+'1A_PHVZ'!$J14)*'2A_PHVZ'!O$72/'2A_PHVZ'!$H$72,0) -> 0 | P14: =IFERROR(('1A_PHVZ'!$I14+'1A_PHVZ'!$J14)*'2A_PHVZ'!P$72/'2A_PHVZ'!$H$72,0) -> 0 | Q14: =IFERROR(('1A_PHVZ'!$I14+'1A_PHVZ'!$J14)*'2A_PHVZ'!Q$72/'2A_PHVZ'!$H$72,0) -> 0 | R14: =IFERROR(('1A_PHVZ'!$I14+'1A_PHVZ'!$J14)*'2A_PHVZ'!R$72/'2A_PHVZ'!$H$72,0) -> 0 | S14: =IFERROR(('1A_PHVZ'!$I14+'1A_PHVZ'!$J14)*'2A_PHVZ'!S$72/'2A_PHVZ'!$H$72,0) -> 0 | X14: ='1A_PHVZ'!AC14-SUM(W14,Y14:AG14) -> 0 | AI14: ='hide inflace'!A9 -> 2021 | AJ14: ='hide inflace'!C9 -> 0.044
A15: A.2.1.1.4 | E15: ='1A_PHVZ'!E15 -> Inženýrská činnost pro předprojektové dokumentace | H15: 0 | J15: ='1A_PHVZ'!O15-SUM(I15,K15:S15) -> 0 | K15: =IFERROR(('1A_PHVZ'!$I15+'1A_PHVZ'!$J15)*'2A_PHVZ'!K$72/'2A_PHVZ'!$H$72,0) -> 0 | L15: =IFERROR(('1A_PHVZ'!$I15+'1A_PHVZ'!$J15)*'2A_PHVZ'!L$72/'2A_PHVZ'!$H$72,0) -> 0 | M15: =IFERROR(('1A_PHVZ'!$I15+'1A_PHVZ'!$J15)*'2A_PHVZ'!M$72/'2A_PHVZ'!$H$72,0) -> 0 | N15: =IFERROR(('1A_PHVZ'!$I15+'1A_PHVZ'!$J15)*'2A_PHVZ'!N$72/'2A_PHVZ'!$H$72,0) -> 0 | O15: =IFERROR(('1A_PHVZ'!$I15+'1A_PHVZ'!$J15)*'2A_PHVZ'!O$72/'2A_PHVZ'!$H$72,0) -> 0 | P15: =IFERROR(('1A_PHVZ'!$I15+'1A_PHVZ'!$J15)*'2A_PHVZ'!P$72/'2A_PHVZ'!$H$72,0) -> 0 | Q15: =IFERROR(('1A_PHVZ'!$I15+'1A_PHVZ'!$J15)*'2A_PHVZ'!Q$72/'2A_PHVZ'!$H$72,0) -> 0 | R15: =IFERROR(('1A_PHVZ'!$I15+'1A_PHVZ'!$J15)*'2A_PHVZ'!R$72/'2A_PHVZ'!$H$72,0) -> 0 | S15: =IFERROR(('1A_PHVZ'!$I15+'1A_PHVZ'!$J15)*'2A_PHVZ'!S$72/'2A_PHVZ'!$H$72,0) -> 0 | X15: ='1A_PHVZ'!AC15-SUM(W15,Y15:AG15) -> 0 | AI15: ='hide inflace'!A10 -> 2022 | AJ15: ='hide inflace'!C10 -> 0.119
A16: A.2.1.1.5 | E16: ='1A_PHVZ'!E16 -> Ostatní náklady pro předprojektové dokumentace | H16: 0 | J16: ='1A_PHVZ'!O16-SUM(I16,K16:S16) -> 0 | K16: =IFERROR(('1A_PHVZ'!$I16+'1A_PHVZ'!$J16)*'2A_PHVZ'!K$72/'2A_PHVZ'!$H$72,0) -> 0 | L16: =IFERROR(('1A_PHVZ'!$I16+'1A_PHVZ'!$J16)*'2A_PHVZ'!L$72/'2A_PHVZ'!$H$72,0) -> 0 | M16: =IFERROR(('1A_PHVZ'!$I16+'1A_PHVZ'!$J16)*'2A_PHVZ'!M$72/'2A_PHVZ'!$H$72,0) -> 0 | N16: =IFERROR(('1A_PHVZ'!$I16+'1A_PHVZ'!$J16)*'2A_PHVZ'!N$72/'2A_PHVZ'!$H$72,0) -> 0 | O16: =IFERROR(('1A_PHVZ'!$I16+'1A_PHVZ'!$J16)*'2A_PHVZ'!O$72/'2A_PHVZ'!$H$72,0) -> 0 | P16: =IFERROR(('1A_PHVZ'!$I16+'1A_PHVZ'!$J16)*'2A_PHVZ'!P$72/'2A_PHVZ'!$H$72,0) -> 0 | Q16: =IFERROR(('1A_PHVZ'!$I16+'1A_PHVZ'!$J16)*'2A_PHVZ'!Q$72/'2A_PHVZ'!$H$72,0) -> 0 | R16: =IFERROR(('1A_PHVZ'!$I16+'1A_PHVZ'!$J16)*'2A_PHVZ'!R$72/'2A_PHVZ'!$H$72,0) -> 0 | S16: =IFERROR(('1A_PHVZ'!$I16+'1A_PHVZ'!$J16)*'2A_PHVZ'!S$72/'2A_PHVZ'!$H$72,0) -> 0 | X16: ='1A_PHVZ'!AC16-SUM(W16,Y16:AG16) -> 0 | AI16: ='hide inflace'!A11 -> 2023 | AJ16: ='hide inflace'!C11 -> 0.066
A17: A.2.1.2 | D17: ='1A_PHVZ'!D17 -> Záměr projektu | H17: =SUM(I17:S17) -> 0 | I17: =SUM(I18:I19) -> 0 | J17: =SUM(J18:J19) -> 0 | K17: =SUM(K18:K19) -> 0 | L17: 0 | M17: 0 | N17: 0 | O17: 0 | P17: 0 | Q17: 0 | R17: 0 | S17: 0 | W17: =SUM(W18:W19) -> 0 | X17: =SUM(X18:X19) -> 0 | Y17: =SUM(Y18:Y19) -> 0 | Z17: 0 | AA17: 0 | AB17: 0 | AC17: 0 | AD17: 0 | AE17: 0 | AF17: 0 | AG17: 0 | AI17: ='hide inflace'!A12 -> 2024 | AJ17: ='hide inflace'!C12 -> 0.024
A18: A.2.1.2.1 | D18: z toho | E18: ='1A_PHVZ'!E18 -> Záměr projektu, povinný obsah | G18: ZP | H18: 0 | J18: ='1A_PHVZ'!O18-SUM(I18,K18:S18) -> 0 | K18: =IFERROR(('1A_PHVZ'!$I18+'1A_PHVZ'!$J18)*'2A_PHVZ'!K$72/'2A_PHVZ'!$H$72,0) -> 0 | L18: =IFERROR(('1A_PHVZ'!$I18+'1A_PHVZ'!$J18)*'2A_PHVZ'!L$72/'2A_PHVZ'!$H$72,0) -> 0 | M18: =IFERROR(('1A_PHVZ'!$I18+'1A_PHVZ'!$J18)*'2A_PHVZ'!M$72/'2A_PHVZ'!$H$72,0) -> 0 | N18: =IFERROR(('1A_PHVZ'!$I18+'1A_PHVZ'!$J18)*'2A_PHVZ'!N$72/'2A_PHVZ'!$H$72,0) -> 0 | O18: =IFERROR(('1A_PHVZ'!$I18+'1A_PHVZ'!$J18)*'2A_PHVZ'!O$72/'2A_PHVZ'!$H$72,0) -> 0 | P18: =IFERROR(('1A_PHVZ'!$I18+'1A_PHVZ'!$J18)*'2A_PHVZ'!P$72/'2A_PHVZ'!$H$72,0) -> 0 | Q18: =IFERROR(('1A_PHVZ'!$I18+'1A_PHVZ'!$J18)*'2A_PHVZ'!Q$72/'2A_PHVZ'!$H$72,0) -> 0 | R18: =IFERROR(('1A_PHVZ'!$I18+'1A_PHVZ'!$J18)*'2A_PHVZ'!R$72/'2A_PHVZ'!$H$72,0) -> 0 | S18: =IFERROR(('1A_PHVZ'!$I18+'1A_PHVZ'!$J18)*'2A_PHVZ'!S$72/'2A_PHVZ'!$H$72,0) -> 0 | X18: ='1A_PHVZ'!AC18-SUM(W18,Y18:AG18) -> 0 | AI18: ='hide inflace'!A13 -> 2025 | AJ18: ='hide inflace'!C13 -> 0.024
A19: A.2.1.2.2 | E19: ='1A_PHVZ'!E19 -> Doprovodná dokumentace | G19: DD | H19: 0 | J19: ='1A_PHVZ'!O19-SUM(I19,K19:S19) -> 0 | K19: =IFERROR(('1A_PHVZ'!$I19+'1A_PHVZ'!$J19)*'2A_PHVZ'!K$72/'2A_PHVZ'!$H$72,0) -> 0 | L19: =IFERROR(('1A_PHVZ'!$I19+'1A_PHVZ'!$J19)*'2A_PHVZ'!L$72/'2A_PHVZ'!$H$72,0) -> 0 | M19: =IFERROR(('1A_PHVZ'!$I19+'1A_PHVZ'!$J19)*'2A_PHVZ'!M$72/'2A_PHVZ'!$H$72,0) -> 0 | N19: =IFERROR(('1A_PHVZ'!$I19+'1A_PHVZ'!$J19)*'2A_PHVZ'!N$72/'2A_PHVZ'!$H$72,0) -> 0 | O19: =IFERROR(('1A_PHVZ'!$I19+'1A_PHVZ'!$J19)*'2A_PHVZ'!O$72/'2A_PHVZ'!$H$72,0) -> 0 | P19: =IFERROR(('1A_PHVZ'!$I19+'1A_PHVZ'!$J19)*'2A_PHVZ'!P$72/'2A_PHVZ'!$H$72,0) -> 0 | Q19: =IFERROR(('1A_PHVZ'!$I19+'1A_PHVZ'!$J19)*'2A_PHVZ'!Q$72/'2A_PHVZ'!$H$72,0) -> 0 | R19: =IFERROR(('1A_PHVZ'!$I19+'1A_PHVZ'!$J19)*'2A_PHVZ'!R$72/'2A_PHVZ'!$H$72,0) -> 0 | S19: =IFERROR(('1A_PHVZ'!$I19+'1A_PHVZ'!$J19)*'2A_PHVZ'!S$72/'2A_PHVZ'!$H$72,0) -> 0 | X19: ='1A_PHVZ'!AC19-SUM(W19,Y19:AG19) -> 0 | AI19: ='hide inflace'!A14 -> 2026 | AJ19: ='hide inflace'!C14 -> 0.021
A20: A.2.1.3 | D20: ='1A_PHVZ'!D20 -> Dokumentace pro územní řízení | G20: DUR | H20: =SUM(I20:S20) -> 0 | J20: ='1A_PHVZ'!O20-SUM(I20,K20:S20) -> 0 | K20: =IFERROR(('1A_PHVZ'!$I20+'1A_PHVZ'!$J20)*'2A_PHVZ'!K$72/'2A_PHVZ'!$H$72,0) -> 0 | L20: =IFERROR(('1A_PHVZ'!$I20+'1A_PHVZ'!$J20)*'2A_PHVZ'!L$72/'2A_PHVZ'!$H$72,0) -> 0 | M20: =IFERROR(('1A_PHVZ'!$I20+'1A_PHVZ'!$J20)*'2A_PHVZ'!M$72/'2A_PHVZ'!$H$72,0) -> 0 | N20: =IFERROR(('1A_PHVZ'!$I20+'1A_PHVZ'!$J20)*'2A_PHVZ'!N$72/'2A_PHVZ'!$H$72,0) -> 0 | O20: =IFERROR(('1A_PHVZ'!$I20+'1A_PHVZ'!$J20)*'2A_PHVZ'!O$72/'2A_PHVZ'!$H$72,0) -> 0 | P20: =IFERROR(('1A_PHVZ'!$I20+'1A_PHVZ'!$J20)*'2A_PHVZ'!P$72/'2A_PHVZ'!$H$72,0) -> 0 | Q20: =IFERROR(('1A_PHVZ'!$I20+'1A_PHVZ'!$J20)*'2A_PHVZ'!Q$72/'2A_PHVZ'!$H$72,0) -> 0 | R20: =IFERROR(('1A_PHVZ'!$I20+'1A_PHVZ'!$J20)*'2A_PHVZ'!R$72/'2A_PHVZ'!$H$72,0) -> 0 | S20: =IFERROR(('1A_PHVZ'!$I20+'1A_PHVZ'!$J20)*'2A_PHVZ'!S$72/'2A_PHVZ'!$H$72,0) -> 0 | X20: ='1A_PHVZ'!AC20-SUM(W20,Y20:AG20) -> 0 | AI20: ='hide inflace'!A15 -> 2027 | AJ20: ='hide inflace'!C15 -> 0.02
A21: A.2.2 | C21: ='1A_PHVZ'!C21 -> Náklady na projektové dokumentace | H21: =SUM(I21:S21) -> 0 | I21: =I22+I28+I29+I30+I31 -> 0 | J21: =J22+J28+J29+J30+J31 -> 0 | K21: =K22+K28+K29+K30+K31 -> 0 | L21: =L22+L28+L29+L30+L31 -> 0 | M21: =M22+M28+M29+M30+M31 -> 0 | N21: 0 | O21: 0 | P21: 0 | Q21: 0 | R21: 0 | S21: 0 | W21: =W22+W28+W29+W30+W31 -> 0 | X21: =X22+X28+X29+X30+X31 -> 0 | Y21: =Y22+Y28+Y29+Y30+Y31 -> 0 | Z21: =Z22+Z28+Z29+Z30+Z31 -> 0 | AA21: =AA22+AA28+AA29+AA30+AA31 -> 0 | AB21: 0 | AC21: 0 | AD21: 0 | AE21: 0 | AF21: 0 | AG21: 0 | AI21: ='hide inflace'!A16 -> 2028 | AJ21: ='hide inflace'!C16 -> 0.02
A22: A.2.2.1 | C22: z toho | D22: ='1A_PHVZ'!D24 -> Práce prováděné pro zpracování projektových dokumentací | H22: =SUM(I22:S22) -> 0 | I22: =SUM(I23:I27) -> 0 | J22: =SUM(J23:J27) -> 0 | K22: =SUM(K23:K27) -> 0 | L22: =SUM(L23:L27) -> 0 | M22: =SUM(M23:M27) -> 0 | N22: 0 | O22: 0 | P22: 0 | Q22: 0 | R22: 0 | S22: 0 | W22: =SUM(W23:W27) -> 0 | X22: =SUM(X23:X27) -> 0 | Y22: =SUM(Y23:Y27) -> 0 | Z22: =SUM(Z23:Z27) -> 0 | AA22: =SUM(AA23:AA27) -> 0 | AB22: 0 | AC22: 0 | AD22: 0 | AE22: 0 | AF22: 0 | AG22: 0 | AI22: ='hide inflace'!A17 -> 2029 | AJ22: ='hide inflace'!C17 -> 0.02
A23: A.2.2.1.1 | D23: z toho | E23: ='1A_PHVZ'!E25 -> Geodetické práce a mapové podklady | H23: =SUM(I23:S23) -> 0 | J23: ='1A_PHVZ'!O25-SUM(I23,K23:S23) -> 0 | K23: =IFERROR(('1A_PHVZ'!$I25+'1A_PHVZ'!$J25)*'2A_PHVZ'!K$72/'2A_PHVZ'!$H$72,0) -> 0 | L23: =IFERROR(('1A_PHVZ'!$I25+'1A_PHVZ'!$J25)*'2A_PHVZ'!L$72/'2A_PHVZ'!$H$72,0) -> 0 | M23: =IFERROR(('1A_PHVZ'!$I25+'1A_PHVZ'!$J25)*'2A_PHVZ'!M$72/'2A_PHVZ'!$H$72,0) -> 0 | N23: =IFERROR(('1A_PHVZ'!$I25+'1A_PHVZ'!$J25)*'2A_PHVZ'!N$72/'2A_PHVZ'!$H$72,0) -> 0 | O23: =IFERROR(('1A_PHVZ'!$I25+'1A_PHVZ'!$J25)*'2A_PHVZ'!O$72/'2A_PHVZ'!$H$72,0) -> 0 | P23: =IFERROR(('1A_PHVZ'!$I25+'1A_PHVZ'!$J25)*'2A_PHVZ'!P$72/'2A_PHVZ'!$H$72,0) -> 0 | Q23: =IFERROR(('1A_PHVZ'!$I25+'1A_PHVZ'!$J25)*'2A_PHVZ'!Q$72/'2A_PHVZ'!$H$72,0) -> 0 | R23: =IFERROR(('1A_PHVZ'!$I25+'1A_PHVZ'!$J25)*'2A_PHVZ'!R$72/'2A_PHVZ'!$H$72,0) -> 0 | S23: =IFERROR(('1A_PHVZ'!$I25+'1A_PHVZ'!$J25)*'2A_PHVZ'!S$72/'2A_PHVZ'!$H$72,0) -> 0 | X23: ='1A_PHVZ'!AC25-SUM(W23,Y23:AG23) -> 0 | AI23: ='hide inflace'!A18 -> 2030 | AJ23: ='hide inflace'!C18 -> 0.02
A24: A.2.2.1.2 | E24: ='1A_PHVZ'!E26 -> Geotechnický průzkum | H24: 0 | J24: ='1A_PHVZ'!O26-SUM(I24,K24:S24) -> 0 | K24: =IFERROR(('1A_PHVZ'!$I26+'1A_PHVZ'!$J26)*'2A_PHVZ'!K$72/'2A_PHVZ'!$H$72,0) -> 0 | L24: =IFERROR(('1A_PHVZ'!$I26+'1A_PHVZ'!$J26)*'2A_PHVZ'!L$72/'2A_PHVZ'!$H$72,0) -> 0 | M24: =IFERROR(('1A_PHVZ'!$I26+'1A_PHVZ'!$J26)*'2A_PHVZ'!M$72/'2A_PHVZ'!$H$72,0) -> 0 | N24: =IFERROR(('1A_PHVZ'!$I26+'1A_PHVZ'!$J26)*'2A_PHVZ'!N$72/'2A_PHVZ'!$H$72,0) -> 0 | O24: =IFERROR(('1A_PHVZ'!$I26+'1A_PHVZ'!$J26)*'2A_PHVZ'!O$72/'2A_PHVZ'!$H$72,0) -> 0 | P24: =IFERROR(('1A_PHVZ'!$I26+'1A_PHVZ'!$J26)*'2A_PHVZ'!P$72/'2A_PHVZ'!$H$72,0) -> 0 | Q24: =IFERROR(('1A_PHVZ'!$I26+'1A_PHVZ'!$J26)*'2A_PHVZ'!Q$72/'2A_PHVZ'!$H$72,0) -> 0 | R24: =IFERROR(('1A_PHVZ'!$I26+'1A_PHVZ'!$J26)*'2A_PHVZ'!R$72/'2A_PHVZ'!$H$72,0) -> 0 | S24: =IFERROR(('1A_PHVZ'!$I26+'1A_PHVZ'!$J26)*'2A_PHVZ'!S$72/'2A_PHVZ'!$H$72,0) -> 0 | X24: ='1A_PHVZ'!AC26-SUM(W24,Y24:AG24) -> 0 | AI24: ='hide inflace'!A19 -> 2031 | AJ24: ='hide inflace'!C19 -> 0.02
A25: A.2.2.1.3 | E25: ='1A_PHVZ'!E27 -> Ostatní průzkumné práce | H25: 0 | J25: ='1A_PHVZ'!O27-SUM(I25,K25:S25) -> 0 | K25: =IFERROR(('1A_PHVZ'!$I27+'1A_PHVZ'!$J27)*'2A_PHVZ'!K$72/'2A_PHVZ'!$H$72,0) -> 0 | L25: =IFERROR(('1A_PHVZ'!$I27+'1A_PHVZ'!$J27)*'2A_PHVZ'!L$72/'2A_PHVZ'!$H$72,0) -> 0 | M25: =IFERROR(('1A_PHVZ'!$I27+'1A_PHVZ'!$J27)*'2A_PHVZ'!M$72/'2A_PHVZ'!$H$72,0) -> 0 | N25: =IFERROR(('1A_PHVZ'!$I27+'1A_PHVZ'!$J27)*'2A_PHVZ'!N$72/'2A_PHVZ'!$H$72,0) -> 0 | O25: =IFERROR(('1A_PHVZ'!$I27+'1A_PHVZ'!$J27)*'2A_PHVZ'!O$72/'2A_PHVZ'!$H$72,0) -> 0 | P25: =IFERROR(('1A_PHVZ'!$I27+'1A_PHVZ'!$J27)*'2A_PHVZ'!P$72/'2A_PHVZ'!$H$72,0) -> 0 | Q25: =IFERROR(('1A_PHVZ'!$I27+'1A_PHVZ'!$J27)*'2A_PHVZ'!Q$72/'2A_PHVZ'!$H$72,0) -> 0 | R25: =IFERROR(('1A_PHVZ'!$I27+'1A_PHVZ'!$J27)*'2A_PHVZ'!R$72/'2A_PHVZ'!$H$72,0) -> 0 | S25: =IFERROR(('1A_PHVZ'!$I27+'1A_PHVZ'!$J27)*'2A_PHVZ'!S$72/'2A_PHVZ'!$H$72,0) -> 0 | X25: ='1A_PHVZ'!AC27-SUM(W25,Y25:AG25) -> 0 | AI25: ='hide inflace'!A20 -> 2032 | AJ25: ='hide inflace'!C20 -> 0.02
A26: A.2.2.1.4 | E26: ='1A_PHVZ'!E28 -> Inženýrská činnost pro projektové dokumentace | H26: 0 | J26: ='1A_PHVZ'!O28-SUM(I26,K26:S26) -> 0 | K26: =IFERROR(('1A_PHVZ'!$I28+'1A_PHVZ'!$J28)*'2A_PHVZ'!K$72/'2A_PHVZ'!$H$72,0) -> 0 | L26: =IFERROR(('1A_PHVZ'!$I28+'1A_PHVZ'!$J28)*'2A_PHVZ'!L$72/'2A_PHVZ'!$H$72,0) -> 0 | M26: =IFERROR(('1A_PHVZ'!$I28+'1A_PHVZ'!$J28)*'2A_PHVZ'!M$72/'2A_PHVZ'!$H$72,0) -> 0 | N26: =IFERROR(('1A_PHVZ'!$I28+'1A_PHVZ'!$J28)*'2A_PHVZ'!N$72/'2A_PHVZ'!$H$72,0) -> 0 | O26: =IFERROR(('1A_PHVZ'!$I28+'1A_PHVZ'!$J28)*'2A_PHVZ'!O$72/'2A_PHVZ'!$H$72,0) -> 0 | P26: =IFERROR(('1A_PHVZ'!$I28+'1A_PHVZ'!$J28)*'2A_PHVZ'!P$72/'2A_PHVZ'!$H$72,0) -> 0 | Q26: =IFERROR(('1A_PHVZ'!$I28+'1A_PHVZ'!$J28)*'2A_PHVZ'!Q$72/'2A_PHVZ'!$H$72,0) -> 0 | R26: =IFERROR(('1A_PHVZ'!$I28+'1A_PHVZ'!$J28)*'2A_PHVZ'!R$72/'2A_PHVZ'!$H$72,0) -> 0 | S26: =IFERROR(('1A_PHVZ'!$I28+'1A_PHVZ'!$J28)*'2A_PHVZ'!S$72/'2A_PHVZ'!$H$72,0) -> 0 | X26: ='1A_PHVZ'!AC28-SUM(W26,Y26:AG26) -> 0 | AI26: ='hide inflace'!A21 -> 2033 | AJ26: ='hide inflace'!C21 -> 0.02
A27: A.2.2.1.5 | E27: ='1A_PHVZ'!E29 -> Ostatní náklady pro projektové dokumentace | H27: 0 | J27: ='1A_PHVZ'!O29-SUM(I27,K27:S27) -> 0 | K27: =IFERROR(('1A_PHVZ'!$I29+'1A_PHVZ'!$J29)*'2A_PHVZ'!K$72/'2A_PHVZ'!$H$72,0) -> 0 | L27: =IFERROR(('1A_PHVZ'!$I29+'1A_PHVZ'!$J29)*'2A_PHVZ'!L$72/'2A_PHVZ'!$H$72,0) -> 0 | M27: =IFERROR(('1A_PHVZ'!$I29+'1A_PHVZ'!$J29)*'2A_PHVZ'!M$72/'2A_PHVZ'!$H$72,0) -> 0 | N27: =IFERROR(('1A_PHVZ'!$I29+'1A_PHVZ'!$J29)*'2A_PHVZ'!N$72/'2A_PHVZ'!$H$72,0) -> 0 | O27: =IFERROR(('1A_PHVZ'!$I29+'1A_PHVZ'!$J29)*'2A_PHVZ'!O$72/'2A_PHVZ'!$H$72,0) -> 0 | P27: =IFERROR(('1A_PHVZ'!$I29+'1A_PHVZ'!$J29)*'2A_PHVZ'!P$72/'2A_PHVZ'!$H$72,0) -> 0 | Q27: =IFERROR(('1A_PHVZ'!$I29+'1A_PHVZ'!$J29)*'2A_PHVZ'!Q$72/'2A_PHVZ'!$H$72,0) -> 0 | R27: =IFERROR(('1A_PHVZ'!$I29+'1A_PHVZ'!$J29)*'2A_PHVZ'!R$72/'2A_PHVZ'!$H$72,0) -> 0 | S27: =IFERROR(('1A_PHVZ'!$I29+'1A_PHVZ'!$J29)*'2A_PHVZ'!S$72/'2A_PHVZ'!$H$72,0) -> 0 | X27: ='1A_PHVZ'!AC29-SUM(W27,Y27:AG27) -> 0 | AI27: ='hide inflace'!A22 -> 2034 | AJ27: ='hide inflace'!C22 -> 0.02
A28: A.2.2.2 | D28: ='1A_PHVZ'!D30 -> Projektová dokumentace společné povolení | H28: 0 | J28: ='1A_PHVZ'!O30-SUM(I28,K28:S28) -> 0 | K28: =IFERROR(('1A_PHVZ'!$I30+'1A_PHVZ'!$J30)*'2A_PHVZ'!K$72/'2A_PHVZ'!$H$72,0) -> 0 | L28: =IFERROR(('1A_PHVZ'!$I30+'1A_PHVZ'!$J30)*'2A_PHVZ'!L$72/'2A_PHVZ'!$H$72,0) -> 0 | M28: =IFERROR(('1A_PHVZ'!$I30+'1A_PHVZ'!$J30)*'2A_PHVZ'!M$72/'2A_PHVZ'!$H$72,0) -> 0 | N28: =IFERROR(('1A_PHVZ'!$I30+'1A_PHVZ'!$J30)*'2A_PHVZ'!N$72/'2A_PHVZ'!$H$72,0) -> 0 | O28: =IFERROR(('1A_PHVZ'!$I30+'1A_PHVZ'!$J30)*'2A_PHVZ'!O$72/'2A_PHVZ'!$H$72,0) -> 0 | P28: =IFERROR(('1A_PHVZ'!$I30+'1A_PHVZ'!$J30)*'2A_PHVZ'!P$72/'2A_PHVZ'!$H$72,0) -> 0 | Q28: =IFERROR(('1A_PHVZ'!$I30+'1A_PHVZ'!$J30)*'2A_PHVZ'!Q$72/'2A_PHVZ'!$H$72,0) -> 0 | R28: =IFERROR(('1A_PHVZ'!$I30+'1A_PHVZ'!$J30)*'2A_PHVZ'!R$72/'2A_PHVZ'!$H$72,0) -> 0 | S28: =IFERROR(('1A_PHVZ'!$I30+'1A_PHVZ'!$J30)*'2A_PHVZ'!S$72/'2A_PHVZ'!$H$72,0) -> 0 | X28: ='1A_PHVZ'!AC30-SUM(W28,Y28:AG28) -> 0 | AI28: ='hide inflace'!A23 -> 2035 | AJ28: ='hide inflace'!C23 -> 0.02
A29: A.2.2.3 | D29: ='1A_PHVZ'!D31 -> Projektová dokumentace pro stavební povolení | H29: 0 | J29: ='1A_PHVZ'!O31-SUM(I29,K29:S29) -> 0 | K29: =IFERROR(('1A_PHVZ'!$I31+'1A_PHVZ'!$J31)*'2A_PHVZ'!K$72/'2A_PHVZ'!$H$72,0) -> 0 | L29: =IFERROR(('1A_PHVZ'!$I31+'1A_PHVZ'!$J31)*'2A_PHVZ'!L$72/'2A_PHVZ'!$H$72,0) -> 0 | M29: =IFERROR(('1A_PHVZ'!$I31+'1A_PHVZ'!$J31)*'2A_PHVZ'!M$72/'2A_PHVZ'!$H$72,0) -> 0 | N29: =IFERROR(('1A_PHVZ'!$I31+'1A_PHVZ'!$J31)*'2A_PHVZ'!N$72/'2A_PHVZ'!$H$72,0) -> 0 | O29: =IFERROR(('1A_PHVZ'!$I31+'1A_PHVZ'!$J31)*'2A_PHVZ'!O$72/'2A_PHVZ'!$H$72,0) -> 0 | P29: =IFERROR(('1A_PHVZ'!$I31+'1A_PHVZ'!$J31)*'2A_PHVZ'!P$72/'2A_PHVZ'!$H$72,0) -> 0 | Q29: =IFERROR(('1A_PHVZ'!$I31+'1A_PHVZ'!$J31)*'2A_PHVZ'!Q$72/'2A_PHVZ'!$H$72,0) -> 0 | R29: =IFERROR(('1A_PHVZ'!$I31+'1A_PHVZ'!$J31)*'2A_PHVZ'!R$72/'2A_PHVZ'!$H$72,0) -> 0 | S29: =IFERROR(('1A_PHVZ'!$I31+'1A_PHVZ'!$J31)*'2A_PHVZ'!S$72/'2A_PHVZ'!$H$72,0) -> 0 | X29: ='1A_PHVZ'!AC31-SUM(W29,Y29:AG29) -> 0 | AI29: ='hide inflace'!A24 -> 2036 | AJ29: ='hide inflace'!C24 -> 0.02
A30: A.2.2.4 | D30: ='1A_PHVZ'!D32 -> Projektová dokumentace pro provádění stavby | H30: 0 | J30: ='1A_PHVZ'!O32-SUM(I30,K30:S30) -> 0 | K30: =IFERROR(('1A_PHVZ'!$I32+'1A_PHVZ'!$J32)*'2A_PHVZ'!K$72/'2A_PHVZ'!$H$72,0) -> 0 | L30: =IFERROR(('1A_PHVZ'!$I32+'1A_PHVZ'!$J32)*'2A_PHVZ'!L$72/'2A_PHVZ'!$H$72,0) -> 0 | M30: =IFERROR(('1A_PHVZ'!$I32+'1A_PHVZ'!$J32)*'2A_PHVZ'!M$72/'2A_PHVZ'!$H$72,0) -> 0 | N30: =IFERROR(('1A_PHVZ'!$I32+'1A_PHVZ'!$J32)*'2A_PHVZ'!N$72/'2A_PHVZ'!$H$72,0) -> 0 | O30: =IFERROR(('1A_PHVZ'!$I32+'1A_PHVZ'!$J32)*'2A_PHVZ'!O$72/'2A_PHVZ'!$H$72,0) -> 0 | P30: =IFERROR(('1A_PHVZ'!$I32+'1A_PHVZ'!$J32)*'2A_PHVZ'!P$72/'2A_PHVZ'!$H$72,0) -> 0 | Q30: =IFERROR(('1A_PHVZ'!$I32+'1A_PHVZ'!$J32)*'2A_PHVZ'!Q$72/'2A_PHVZ'!$H$72,0) -> 0 | R30: =IFERROR(('1A_PHVZ'!$I32+'1A_PHVZ'!$J32)*'2A_PHVZ'!R$72/'2A_PHVZ'!$H$72,0) -> 0 | S30: =IFERROR(('1A_PHVZ'!$I32+'1A_PHVZ'!$J32)*'2A_PHVZ'!S$72/'2A_PHVZ'!$H$72,0) -> 0 | X30: ='1A_PHVZ'!AC32-SUM(W30,Y30:AG30) -> 0 | AI30: ='hide inflace'!A25 -> 2037 | AJ30: ='hide inflace'!C25 -> 0.02
A31: A.2.2.5 | D31: ='1A_PHVZ'!D33 -> Ostatní náklady na základní služby | H31: 0 | J31: ='1A_PHVZ'!O33-SUM(I31,K31:S31) -> 0 | K31: =IFERROR(('1A_PHVZ'!$I33+'1A_PHVZ'!$J33)*'2A_PHVZ'!K$72/'2A_PHVZ'!$H$72,0) -> 0 | L31: =IFERROR(('1A_PHVZ'!$I33+'1A_PHVZ'!$J33)*'2A_PHVZ'!L$72/'2A_PHVZ'!$H$72,0) -> 0 | M31: =IFERROR(('1A_PHVZ'!$I33+'1A_PHVZ'!$J33)*'2A_PHVZ'!M$72/'2A_PHVZ'!$H$72,0) -> 0 | N31: =IFERROR(('1A_PHVZ'!$I33+'1A_PHVZ'!$J33)*'2A_PHVZ'!N$72/'2A_PHVZ'!$H$72,0) -> 0 | O31: =IFERROR(('1A_PHVZ'!$I33+'1A_PHVZ'!$J33)*'2A_PHVZ'!O$72/'2A_PHVZ'!$H$72,0) -> 0 | P31: =IFERROR(('1A_PHVZ'!$I33+'1A_PHVZ'!$J33)*'2A_PHVZ'!P$72/'2A_PHVZ'!$H$72,0) -> 0 | Q31: =IFERROR(('1A_PHVZ'!$I33+'1A_PHVZ'!$J33)*'2A_PHVZ'!Q$72/'2A_PHVZ'!$H$72,0) -> 0 | R31: =IFERROR(('1A_PHVZ'!$I33+'1A_PHVZ'!$J33)*'2A_PHVZ'!R$72/'2A_PHVZ'!$H$72,0) -> 0 | S31: =IFERROR(('1A_PHVZ'!$I33+'1A_PHVZ'!$J33)*'2A_PHVZ'!S$72/'2A_PHVZ'!$H$72,0) -> 0 | X31: ='1A_PHVZ'!AC33-SUM(W31,Y31:AG31) -> 0 | AI31: ='hide inflace'!A26 -> 2038 | AJ31: ='hide inflace'!C26 -> 0.02
A32: A.2.3 | C32: ='1A_PHVZ'!C34 -> Dozor projektanta | H32: ='1A_PHVZ'!O34 -> 0 | J32: =J33+J34 -> 0 | K32: =K33+K34 -> 0 | L32: 0 | M32: 0 | N32: 0 | O32: 0 | P32: 0 | Q32: 0 | R32: 0 | S32: 0 | X32: ='1A_PHVZ'!AC34-SUM(W32,Y32:AG32) -> 0 | Y32: ='1A_PHVZ'!$O$34*SUMIF(hide!$H$74:$H$83,Y$4,hide!$L$74:$L$83) -> 0 | Z32: ='1A_PHVZ'!$O$34*SUMIF(hide!$H$74:$H$83,Z$4,hide!$L$74:$L$83) -> 0 | AA32: ='1A_PHVZ'!$O$34*SUMIF(hide!$H$74:$H$83,AA$4,hide!$L$74:$L$83) -> 0 | AB32: ='1A_PHVZ'!$O$34*SUMIF(hide!$H$74:$H$83,AB$4,hide!$L$74:$L$83) -> 0 | AC32: ='1A_PHVZ'!$O$34*SUMIF(hide!$H$74:$H$83,AC$4,hide!$L$74:$L$83) -> 0 | AD32: ='1A_PHVZ'!$O$34*SUMIF(hide!$H$74:$H$83,AD$4,hide!$L$74:$L$83) -> 0 | AE32: ='1A_PHVZ'!$O$34*SUMIF(hide!$H$74:$H$83,AE$4,hide!$L$74:$L$83) -> 0 | AF32: ='1A_PHVZ'!$O$34*SUMIF(hide!$H$74:$H$83,AF$4,hide!$L$74:$L$83) -> 0 | AG32: ='1A_PHVZ'!$O$34*SUMIF(hide!$H$74:$H$83,AG$4,hide!$L$74:$L$83) -> 0 | AI32: ='hide inflace'!A27 -> 2039 | AJ32: ='hide inflace'!C27 -> 0.02
A33: A.2.3.1 | E33: Dozor projektanta pro PDPS | H33: 0 | J33: ='1A_PHVZ'!O35-SUM(I33,K33:S33) -> 0
A34: A.2.3.2 | E34: Dozor projektanta pro realizaci | H34: 0 | J34: ='1A_PHVZ'!O36-SUM(I34,K34:S34) -> 0 | K34: =IFERROR(('1A_PHVZ'!$I36+'1A_PHVZ'!$J36)*'2A_PHVZ'!K$79/'2A_PHVZ'!$H$79,0) -> 0 | L34: =IFERROR(('1A_PHVZ'!$I36+'1A_PHVZ'!$J36)*'2A_PHVZ'!L$79/'2A_PHVZ'!$H$79,0) -> 0 | M34: =IFERROR(('1A_PHVZ'!$I36+'1A_PHVZ'!$J36)*'2A_PHVZ'!M$79/'2A_PHVZ'!$H$79,0) -> 0 | N34: =IFERROR(('1A_PHVZ'!$I36+'1A_PHVZ'!$J36)*'2A_PHVZ'!N$79/'2A_PHVZ'!$H$79,0) -> 0 | O34: =IFERROR(('1A_PHVZ'!$I36+'1A_PHVZ'!$J36)*'2A_PHVZ'!O$79/'2A_PHVZ'!$H$79,0) -> 0 | P34: =IFERROR(('1A_PHVZ'!$I36+'1A_PHVZ'!$J36)*'2A_PHVZ'!P$79/'2A_PHVZ'!$H$79,0) -> 0 | Q34: =IFERROR(('1A_PHVZ'!$I36+'1A_PHVZ'!$J36)*'2A_PHVZ'!Q$79/'2A_PHVZ'!$H$79,0) -> 0 | R34: =IFERROR(('1A_PHVZ'!$I36+'1A_PHVZ'!$J36)*'2A_PHVZ'!R$79/'2A_PHVZ'!$H$79,0) -> 0 | S34: =IFERROR(('1A_PHVZ'!$I36+'1A_PHVZ'!$J36)*'2A_PHVZ'!S$79/'2A_PHVZ'!$H$79,0) -> 0
A35: A.2.4 | C35: ='1A_PHVZ'!C37 -> Ostatní náklady pro přípravu stavby | H35: =SUM(I35:S35) -> 0 | I35: =SUM(I36:I39) -> 0 | J35: =SUM(J36:J39) -> 0 | K35: =SUM(K36:K39) -> 0 | L35: =SUM(L36:L39) -> 0 | M35: =SUM(M36:M39) -> 0 | N35: 0 | O35: 0 | P35: 0 | Q35: 0 | R35: 0 | S35: 0 | W35: =SUM(W36:W39) -> 0 | X35: =SUM(X36:X39) -> 0 | Y35: =SUM(Y36:Y39) -> 0 | Z35: =SUM(Z36:Z39) -> 0 | AA35: =SUM(AA36:AA39) -> 0 | AB35: 0 | AC35: 0 | AD35: 0 | AE35: 0 | AF35: 0 | AG35: 0 | AI35: ='hide inflace'!A28 -> 2040 | AJ35: ='hide inflace'!C28 -> 0.02
A36: A.2.4.1 | C36: z toho | D36: ='1A_PHVZ'!D38 -> Osvědčení o shodě notifikovanou osobou v přípravě | H36: 0 | J36: ='1A_PHVZ'!O38-SUM(I36,K36:S36) -> 0 | K36: =IFERROR(('1A_PHVZ'!$I38+'1A_PHVZ'!$J38)*'2A_PHVZ'!K$72/'2A_PHVZ'!$H$72,0) -> 0 | L36: =IFERROR(('1A_PHVZ'!$I38+'1A_PHVZ'!$J38)*'2A_PHVZ'!L$72/'2A_PHVZ'!$H$72,0) -> 0 | M36: =IFERROR(('1A_PHVZ'!$I38+'1A_PHVZ'!$J38)*'2A_PHVZ'!M$72/'2A_PHVZ'!$H$72,0) -> 0 | N36: =IFERROR(('1A_PHVZ'!$I38+'1A_PHVZ'!$J38)*'2A_PHVZ'!N$72/'2A_PHVZ'!$H$72,0) -> 0 | O36: =IFERROR(('1A_PHVZ'!$I38+'1A_PHVZ'!$J38)*'2A_PHVZ'!O$72/'2A_PHVZ'!$H$72,0) -> 0 | P36: =IFERROR(('1A_PHVZ'!$I38+'1A_PHVZ'!$J38)*'2A_PHVZ'!P$72/'2A_PHVZ'!$H$72,0) -> 0 | Q36: =IFERROR(('1A_PHVZ'!$I38+'1A_PHVZ'!$J38)*'2A_PHVZ'!Q$72/'2A_PHVZ'!$H$72,0) -> 0 | R36: =IFERROR(('1A_PHVZ'!$I38+'1A_PHVZ'!$J38)*'2A_PHVZ'!R$72/'2A_PHVZ'!$H$72,0) -> 0 | S36: =IFERROR(('1A_PHVZ'!$I38+'1A_PHVZ'!$J38)*'2A_PHVZ'!S$72/'2A_PHVZ'!$H$72,0) -> 0 | X36: ='1A_PHVZ'!AC38-SUM(W36,Y36:AG36) -> 0 | AI36: ='hide inflace'!A29 -> 2041 | AJ36: ='hide inflace'!C29 -> 0.02
A37: A.2.4.2 | D37: ='1A_PHVZ'!D39 -> Koordinátor BOZP v přípravě | H37: 0 | J37: ='1A_PHVZ'!O39-SUM(I37,K37:S37) -> 0 | K37: =IFERROR(('1A_PHVZ'!$I39+'1A_PHVZ'!$J39)*'2A_PHVZ'!K$72/'2A_PHVZ'!$H$72,0) -> 0 | L37: =IFERROR(('1A_PHVZ'!$I39+'1A_PHVZ'!$J39)*'2A_PHVZ'!L$72/'2A_PHVZ'!$H$72,0) -> 0 | M37: =IFERROR(('1A_PHVZ'!$I39+'1A_PHVZ'!$J39)*'2A_PHVZ'!M$72/'2A_PHVZ'!$H$72,0) -> 0 | N37: =IFERROR(('1A_PHVZ'!$I39+'1A_PHVZ'!$J39)*'2A_PHVZ'!N$72/'2A_PHVZ'!$H$72,0) -> 0 | O37: =IFERROR(('1A_PHVZ'!$I39+'1A_PHVZ'!$J39)*'2A_PHVZ'!O$72/'2A_PHVZ'!$H$72,0) -> 0 | P37: =IFERROR(('1A_PHVZ'!$I39+'1A_PHVZ'!$J39)*'2A_PHVZ'!P$72/'2A_PHVZ'!$H$72,0) -> 0 | Q37: =IFERROR(('1A_PHVZ'!$I39+'1A_PHVZ'!$J39)*'2A_PHVZ'!Q$72/'2A_PHVZ'!$H$72,0) -> 0 | R37: =IFERROR(('1A_PHVZ'!$I39+'1A_PHVZ'!$J39)*'2A_PHVZ'!R$72/'2A_PHVZ'!$H$72,0) -> 0 | S37: =IFERROR(('1A_PHVZ'!$I39+'1A_PHVZ'!$J39)*'2A_PHVZ'!S$72/'2A_PHVZ'!$H$72,0) -> 0 | X37: ='1A_PHVZ'!AC39-SUM(W37,Y37:AG37) -> 0 | AI37: ='hide inflace'!A30 -> 2042 | AJ37: ='hide inflace'!C30 -> 0.02
A38: A.2.4.3 | D38: ='1A_PHVZ'!D40 -> Zpracování žádosti o spolufinancování stavby | H38: 0 | J38: ='1A_PHVZ'!O40-SUM(I38,K38:S38) -> 0 | K38: =IFERROR(('1A_PHVZ'!$I40+'1A_PHVZ'!$J40)*'2A_PHVZ'!K$72/'2A_PHVZ'!$H$72,0) -> 0 | L38: =IFERROR(('1A_PHVZ'!$I40+'1A_PHVZ'!$J40)*'2A_PHVZ'!L$72/'2A_PHVZ'!$H$72,0) -> 0 | M38: =IFERROR(('1A_PHVZ'!$I40+'1A_PHVZ'!$J40)*'2A_PHVZ'!M$72/'2A_PHVZ'!$H$72,0) -> 0 | N38: =IFERROR(('1A_PHVZ'!$I40+'1A_PHVZ'!$J40)*'2A_PHVZ'!N$72/'2A_PHVZ'!$H$72,0) -> 0 | O38: =IFERROR(('1A_PHVZ'!$I40+'1A_PHVZ'!$J40)*'2A_PHVZ'!O$72/'2A_PHVZ'!$H$72,0) -> 0 | P38: =IFERROR(('1A_PHVZ'!$I40+'1A_PHVZ'!$J40)*'2A_PHVZ'!P$72/'2A_PHVZ'!$H$72,0) -> 0 | Q38: =IFERROR(('1A_PHVZ'!$I40+'1A_PHVZ'!$J40)*'2A_PHVZ'!Q$72/'2A_PHVZ'!$H$72,0) -> 0 | R38: =IFERROR(('1A_PHVZ'!$I40+'1A_PHVZ'!$J40)*'2A_PHVZ'!R$72/'2A_PHVZ'!$H$72,0) -> 0 | S38: =IFERROR(('1A_PHVZ'!$I40+'1A_PHVZ'!$J40)*'2A_PHVZ'!S$72/'2A_PHVZ'!$H$72,0) -> 0 | X38: ='1A_PHVZ'!AC40-SUM(W38,Y38:AG38) -> 0 | AI38: ='hide inflace'!A31 -> 2043 | AJ38: ='hide inflace'!C31 -> 0.02
A39: A.2.4.4 | D39: ='1A_PHVZ'!D41 -> Zpracování v režimu BIM | F39: =IF(H39=0,"","z toho v přípravě: ") ->  | G39: =ROUND('1A_PHVZ'!O41*'1A_PHVZ'!S42/100,0) -> 0 | H39: 0 | J39: ='1A_PHVZ'!O41-SUM(I39,K39:S39) -> 0 | K39: =IFERROR(('1A_PHVZ'!$I41+'1A_PHVZ'!$J41)*'2A_PHVZ'!K$72/'2A_PHVZ'!$H$72,0) -> 0 | L39: =IFERROR(('1A_PHVZ'!$I41+'1A_PHVZ'!$J41)*'2A_PHVZ'!L$72/'2A_PHVZ'!$H$72,0) -> 0 | M39: =IFERROR(('1A_PHVZ'!$I41+'1A_PHVZ'!$J41)*'2A_PHVZ'!M$72/'2A_PHVZ'!$H$72,0) -> 0 | N39: =IFERROR(('1A_PHVZ'!$I41+'1A_PHVZ'!$J41)*'2A_PHVZ'!N$72/'2A_PHVZ'!$H$72,0) -> 0 | O39: =IFERROR(('1A_PHVZ'!$I41+'1A_PHVZ'!$J41)*'2A_PHVZ'!O$72/'2A_PHVZ'!$H$72,0) -> 0 | P39: =IFERROR(('1A_PHVZ'!$I41+'1A_PHVZ'!$J41)*'2A_PHVZ'!P$72/'2A_PHVZ'!$H$72,0) -> 0 | Q39: =IFERROR(('1A_PHVZ'!$I41+'1A_PHVZ'!$J41)*'2A_PHVZ'!Q$72/'2A_PHVZ'!$H$72,0) -> 0 | R39: =IFERROR(('1A_PHVZ'!$I41+'1A_PHVZ'!$J41)*'2A_PHVZ'!R$72/'2A_PHVZ'!$H$72,0) -> 0 | S39: =IFERROR(('1A_PHVZ'!$I41+'1A_PHVZ'!$J41)*'2A_PHVZ'!S$72/'2A_PHVZ'!$H$72,0) -> 0 | X39: ='1A_PHVZ'!AC41-SUM(W39,Y39:AG39) -> 0 | AI39: ='hide inflace'!A32 -> 2044 | AJ39: ='hide inflace'!C32 -> 0.02
A40: A.2.5 | C40: ='1A_PHVZ'!C42 -> Dokumentace skutečného provedení | F40: doba zpracování: | G40: 180 | H40: 0 | I40: =SUM(I41:I43) -> 0 | J40: =SUM(J41:J43) -> 0 | K40: =SUM(K41:K43) -> 0 | L40: =SUM(L41:L43) -> 0 | M40: =SUM(M41:M43) -> 0 | N40: 0 | O40: 0 | P40: 0 | Q40: 0 | R40: 0 | S40: 0 | W40: =SUM(W41:W43) -> 0 | X40: =SUM(X41:X43) -> 0 | Y40: =SUM(Y41:Y43) -> 0 | Z40: =SUM(Z41:Z43) -> 0 | AA40: =SUM(AA41:AA43) -> 0 | AB40: 0 | AC40: 0 | AD40: 0 | AE40: 0 | AF40: 0 | AG40: 0
A41: A.2.5.1 | C41: z toho | D41: ='1A_PHVZ'!D43 -> Dokumentace skutečného provedení stavby, geodetická část | H41: 0 | J41: ='1A_PHVZ'!O43-SUM(I41,K41:S41) -> 0 | K41: =IF('Krycí list SR'!$G$9<>"",IF(YEAR('Krycí list SR'!$G$9+$G$40)=K$4,'1A_PHVZ'!$O43,0),0) -> 0 | L41: =IF('Krycí list SR'!$G$9<>"",IF(YEAR('Krycí list SR'!$G$9+$G$40)=L$4,'1A_PHVZ'!$O43,0),0) -> 0 | M41: =IF('Krycí list SR'!$G$9<>"",IF(YEAR('Krycí list SR'!$G$9+$G$40)=M$4,'1A_PHVZ'!$O43,0),0) -> 0 | N41: =IF('Krycí list SR'!$G$9<>"",IF(YEAR('Krycí list SR'!$G$9+$G$40)=N$4,'1A_PHVZ'!$O43,0),0) -> 0 | O41: =IF('Krycí list SR'!$G$9<>"",IF(YEAR('Krycí list SR'!$G$9+$G$40)=O$4,'1A_PHVZ'!$O43,0),0) -> 0 | P41: =IF('Krycí list SR'!$G$9<>"",IF(YEAR('Krycí list SR'!$G$9+$G$40)=P$4,'1A_PHVZ'!$O43,0),0) -> 0 | Q41: =IF('Krycí list SR'!$G$9<>"",IF(YEAR('Krycí list SR'!$G$9+$G$40)=Q$4,'1A_PHVZ'!$O43,0),0) -> 0 | R41: =IF('Krycí list SR'!$G$9<>"",IF(YEAR('Krycí list SR'!$G$9+$G$40)=R$4,'1A_PHVZ'!$O43,0),0) -> 0 | S41: =IF('Krycí list SR'!$G$9<>"",IF(YEAR('Krycí list SR'!$G$9+$G$40)>R$4,'1A_PHVZ'!$O43,0),0) -> 0 | X41: ='1A_PHVZ'!AC43-SUM(W41,Y41:AG41) -> 0 | Y41: =IF('Krycí list SR'!$G$9<>"",IF(YEAR('Krycí list SR'!$G$9+$G$40)=Y$4,'1A_PHVZ'!$O43,0),0) -> 0 | Z41: =IF('Krycí list SR'!$G$9<>"",IF(YEAR('Krycí list SR'!$G$9+$G$40)=Z$4,'1A_PHVZ'!$O43,0),0) -> 0 | AA41: =IF('Krycí list SR'!$G$9<>"",IF(YEAR('Krycí list SR'!$G$9+$G$40)=AA$4,'1A_PHVZ'!$O43,0),0) -> 0 | AB41: =IF('Krycí list SR'!$G$9<>"",IF(YEAR('Krycí list SR'!$G$9+$G$40)=AB$4,'1A_PHVZ'!$O43,0),0) -> 0 | AC41: =IF('Krycí list SR'!$G$9<>"",IF(YEAR('Krycí list SR'!$G$9+$G$40)=AC$4,'1A_PHVZ'!$O43,0),0) -> 0 | AD41: =IF('Krycí list SR'!$G$9<>"",IF(YEAR('Krycí list SR'!$G$9+$G$40)=AD$4,'1A_PHVZ'!$O43,0),0) -> 0 | AE41: =IF('Krycí list SR'!$G$9<>"",IF(YEAR('Krycí list SR'!$G$9+$G$40)=AE$4,'1A_PHVZ'!$O43,0),0) -> 0 | AF41: =IF('Krycí list SR'!$G$9<>"",IF(YEAR('Krycí list SR'!$G$9+$G$40)=AF$4,'1A_PHVZ'!$O43,0),0) -> 0 | AG41: =IF('Krycí list SR'!$G$9<>"",IF(YEAR('Krycí list SR'!$G$9+$G$40)>AF$4,'1A_PHVZ'!$O43,0),0) -> 0
A42: A.2.5.2 | D42: ='1A_PHVZ'!D44 -> Dokumentace skutečného provedení stavby, technická část | H42: =SUM(I42:S42) -> 0 | J42: ='1A_PHVZ'!O44-SUM(I42,K42:S42) -> 0 | K42: =IF('Krycí list SR'!$G$9<>"",IF(YEAR('Krycí list SR'!$G$9+$G$40)=K$4,'1A_PHVZ'!$O44,0),0) -> 0 | L42: =IF('Krycí list SR'!$G$9<>"",IF(YEAR('Krycí list SR'!$G$9+$G$40)=L$4,'1A_PHVZ'!$O44,0),0) -> 0 | M42: =IF('Krycí list SR'!$G$9<>"",IF(YEAR('Krycí list SR'!$G$9+$G$40)=M$4,'1A_PHVZ'!$O44,0),0) -> 0 | N42: =IF('Krycí list SR'!$G$9<>"",IF(YEAR('Krycí list SR'!$G$9+$G$40)=N$4,'1A_PHVZ'!$O44,0),0) -> 0 | O42: =IF('Krycí list SR'!$G$9<>"",IF(YEAR('Krycí list SR'!$G$9+$G$40)=O$4,'1A_PHVZ'!$O44,0),0) -> 0 | P42: =IF('Krycí list SR'!$G$9<>"",IF(YEAR('Krycí list SR'!$G$9+$G$40)=P$4,'1A_PHVZ'!$O44,0),0) -> 0 | Q42: =IF('Krycí list SR'!$G$9<>"",IF(YEAR('Krycí list SR'!$G$9+$G$40)=Q$4,'1A_PHVZ'!$O44,0),0) -> 0 | R42: =IF('Krycí list SR'!$G$9<>"",IF(YEAR('Krycí list SR'!$G$9+$G$40)=R$4,'1A_PHVZ'!$O44,0),0) -> 0 | S42: =IF('Krycí list SR'!$G$9<>"",IF(YEAR('Krycí list SR'!$G$9+$G$40)>R$4,'1A_PHVZ'!$O44,0),0) -> 0 | X42: ='1A_PHVZ'!AC44-SUM(W42,Y42:AG42) -> 0 | Y42: =IF('Krycí list SR'!$G$9<>"",IF(YEAR('Krycí list SR'!$G$9+$G$40)=Y$4,'1A_PHVZ'!$O44,0),0) -> 0 | Z42: =IF('Krycí list SR'!$G$9<>"",IF(YEAR('Krycí list SR'!$G$9+$G$40)=Z$4,'1A_PHVZ'!$O44,0),0) -> 0 | AA42: =IF('Krycí list SR'!$G$9<>"",IF(YEAR('Krycí list SR'!$G$9+$G$40)=AA$4,'1A_PHVZ'!$O44,0),0) -> 0 | AB42: =IF('Krycí list SR'!$G$9<>"",IF(YEAR('Krycí list SR'!$G$9+$G$40)=AB$4,'1A_PHVZ'!$O44,0),0) -> 0 | AC42: =IF('Krycí list SR'!$G$9<>"",IF(YEAR('Krycí list SR'!$G$9+$G$40)=AC$4,'1A_PHVZ'!$O44,0),0) -> 0 | AD42: =IF('Krycí list SR'!$G$9<>"",IF(YEAR('Krycí list SR'!$G$9+$G$40)=AD$4,'1A_PHVZ'!$O44,0),0) -> 0 | AE42: =IF('Krycí list SR'!$G$9<>"",IF(YEAR('Krycí list SR'!$G$9+$G$40)=AE$4,'1A_PHVZ'!$O44,0),0) -> 0 | AF42: =IF('Krycí list SR'!$G$9<>"",IF(YEAR('Krycí list SR'!$G$9+$G$40)=AF$4,'1A_PHVZ'!$O44,0),0) -> 0 | AG42: =IF('Krycí list SR'!$G$9<>"",IF(YEAR('Krycí list SR'!$G$9+$G$40)>AF$4,'1A_PHVZ'!$O44,0),0) -> 0
A43: A.2.5.3 | D43: ='1A_PHVZ'!D45 -> Dokumentace skutečného provedení stavby, dokladová část | H43: =SUM(I43:S43) -> 0 | J43: ='1A_PHVZ'!O45-SUM(I43,K43:S43) -> 0 | K43: =IF('Krycí list SR'!$G$9<>"",IF(YEAR('Krycí list SR'!$G$9+$G$40)=K$4,'1A_PHVZ'!$O45,0),0) -> 0 | L43: =IF('Krycí list SR'!$G$9<>"",IF(YEAR('Krycí list SR'!$G$9+$G$40)=L$4,'1A_PHVZ'!$O45,0),0) -> 0 | M43: =IF('Krycí list SR'!$G$9<>"",IF(YEAR('Krycí list SR'!$G$9+$G$40)=M$4,'1A_PHVZ'!$O45,0),0) -> 0 | N43: =IF('Krycí list SR'!$G$9<>"",IF(YEAR('Krycí list SR'!$G$9+$G$40)=N$4,'1A_PHVZ'!$O45,0),0) -> 0 | O43: =IF('Krycí list SR'!$G$9<>"",IF(YEAR('Krycí list SR'!$G$9+$G$40)=O$4,'1A_PHVZ'!$O45,0),0) -> 0 | P43: =IF('Krycí list SR'!$G$9<>"",IF(YEAR('Krycí list SR'!$G$9+$G$40)=P$4,'1A_PHVZ'!$O45,0),0) -> 0 | Q43: =IF('Krycí list SR'!$G$9<>"",IF(YEAR('Krycí list SR'!$G$9+$G$40)=Q$4,'1A_PHVZ'!$O45,0),0) -> 0 | R43: =IF('Krycí list SR'!$G$9<>"",IF(YEAR('Krycí list SR'!$G$9+$G$40)=R$4,'1A_PHVZ'!$O45,0),0) -> 0 | S43: =IF('Krycí list SR'!$G$9<>"",IF(YEAR('Krycí list SR'!$G$9+$G$40)>R$4,'1A_PHVZ'!$O45,0),0) -> 0 | X43: ='1A_PHVZ'!AC45-SUM(W43,Y43:AG43) -> 0 | Y43: =IF('Krycí list SR'!$G$9<>"",IF(YEAR('Krycí list SR'!$G$9+$G$40)=Y$4,'1A_PHVZ'!$O45,0),0) -> 0 | Z43: =IF('Krycí list SR'!$G$9<>"",IF(YEAR('Krycí list SR'!$G$9+$G$40)=Z$4,'1A_PHVZ'!$O45,0),0) -> 0 | AA43: =IF('Krycí list SR'!$G$9<>"",IF(YEAR('Krycí list SR'!$G$9+$G$40)=AA$4,'1A_PHVZ'!$O45,0),0) -> 0 | AB43: =IF('Krycí list SR'!$G$9<>"",IF(YEAR('Krycí list SR'!$G$9+$G$40)=AB$4,'1A_PHVZ'!$O45,0),0) -> 0 | AC43: =IF('Krycí list SR'!$G$9<>"",IF(YEAR('Krycí list SR'!$G$9+$G$40)=AC$4,'1A_PHVZ'!$O45,0),0) -> 0 | AD43: =IF('Krycí list SR'!$G$9<>"",IF(YEAR('Krycí list SR'!$G$9+$G$40)=AD$4,'1A_PHVZ'!$O45,0),0) -> 0 | AE43: =IF('Krycí list SR'!$G$9<>"",IF(YEAR('Krycí list SR'!$G$9+$G$40)=AE$4,'1A_PHVZ'!$O45,0),0) -> 0 | AF43: =IF('Krycí list SR'!$G$9<>"",IF(YEAR('Krycí list SR'!$G$9+$G$40)=AF$4,'1A_PHVZ'!$O45,0),0) -> 0 | AG43: =IF('Krycí list SR'!$G$9<>"",IF(YEAR('Krycí list SR'!$G$9+$G$40)>AF$4,'1A_PHVZ'!$O45,0),0) -> 0
A44: A.3 | B44: ='1A_PHVZ'!B47 -> Výkupy a zatížení nemovitých věcí | H44: 0 | I44: =SUM(I45:I47) -> 0 | J44: =SUM(J45:J47) -> 0 | K44: =SUM(K45:K47) -> 0 | L44: =SUM(L45:L47) -> 0 | M44: =SUM(M45:M47) -> 0 | N44: 0 | O44: 0 | P44: 0 | Q44: 0 | R44: 0 | S44: 0 | W44: =SUM(W45:W47) -> 0 | X44: =SUM(X45:X47) -> 0 | Y44: =SUM(Y45:Y47) -> 0 | Z44: =SUM(Z45:Z47) -> 0 | AA44: =SUM(AA45:AA47) -> 0 | AB44: 0 | AC44: 0 | AD44: 0 | AE44: 0 | AF44: 0 | AG44: 0
A45: A.3.1 | B45: z toho | C45: ='1A_PHVZ'!C48 -> Výkupy pozemků | H45: 0 | J45: ='1A_PHVZ'!O48-SUM(I45,K45:S45) -> 0 | K45: =IFERROR(('1A_PHVZ'!$I48+'1A_PHVZ'!$J48)*'2A_PHVZ'!K$72/'2A_PHVZ'!$H$72,0) -> 0 | L45: =IFERROR(('1A_PHVZ'!$I48+'1A_PHVZ'!$J48)*'2A_PHVZ'!L$72/'2A_PHVZ'!$H$72,0) -> 0 | M45: =IFERROR(('1A_PHVZ'!$I48+'1A_PHVZ'!$J48)*'2A_PHVZ'!M$72/'2A_PHVZ'!$H$72,0) -> 0 | N45: =IFERROR(('1A_PHVZ'!$I48+'1A_PHVZ'!$J48)*'2A_PHVZ'!N$72/'2A_PHVZ'!$H$72,0) -> 0 | O45: =IFERROR(('1A_PHVZ'!$I48+'1A_PHVZ'!$J48)*'2A_PHVZ'!O$72/'2A_PHVZ'!$H$72,0) -> 0 | P45: =IFERROR(('1A_PHVZ'!$I48+'1A_PHVZ'!$J48)*'2A_PHVZ'!P$72/'2A_PHVZ'!$H$72,0) -> 0 | Q45: =IFERROR(('1A_PHVZ'!$I48+'1A_PHVZ'!$J48)*'2A_PHVZ'!Q$72/'2A_PHVZ'!$H$72,0) -> 0 | R45: =IFERROR(('1A_PHVZ'!$I48+'1A_PHVZ'!$J48)*'2A_PHVZ'!R$72/'2A_PHVZ'!$H$72,0) -> 0 | S45: =IFERROR(('1A_PHVZ'!$I48+'1A_PHVZ'!$J48)*'2A_PHVZ'!S$72/'2A_PHVZ'!$H$72,0) -> 0 | X45: ='1A_PHVZ'!AC48-SUM(W45,Y45:AG45) -> 0
A46: A.3.2 | C46: ='1A_PHVZ'!C49 -> Výkupy staveb | H46: 0 | J46: ='1A_PHVZ'!O49-SUM(I46,K46:S46) -> 0 | K46: =IFERROR(('1A_PHVZ'!$I49+'1A_PHVZ'!$J49)*'2A_PHVZ'!K$72/'2A_PHVZ'!$H$72,0) -> 0 | L46: =IFERROR(('1A_PHVZ'!$I49+'1A_PHVZ'!$J49)*'2A_PHVZ'!L$72/'2A_PHVZ'!$H$72,0) -> 0 | M46: =IFERROR(('1A_PHVZ'!$I49+'1A_PHVZ'!$J49)*'2A_PHVZ'!M$72/'2A_PHVZ'!$H$72,0) -> 0 | N46: =IFERROR(('1A_PHVZ'!$I49+'1A_PHVZ'!$J49)*'2A_PHVZ'!N$72/'2A_PHVZ'!$H$72,0) -> 0 | O46: =IFERROR(('1A_PHVZ'!$I49+'1A_PHVZ'!$J49)*'2A_PHVZ'!O$72/'2A_PHVZ'!$H$72,0) -> 0 | P46: =IFERROR(('1A_PHVZ'!$I49+'1A_PHVZ'!$J49)*'2A_PHVZ'!P$72/'2A_PHVZ'!$H$72,0) -> 0 | Q46: =IFERROR(('1A_PHVZ'!$I49+'1A_PHVZ'!$J49)*'2A_PHVZ'!Q$72/'2A_PHVZ'!$H$72,0) -> 0 | R46: =IFERROR(('1A_PHVZ'!$I49+'1A_PHVZ'!$J49)*'2A_PHVZ'!R$72/'2A_PHVZ'!$H$72,0) -> 0 | S46: =IFERROR(('1A_PHVZ'!$I49+'1A_PHVZ'!$J49)*'2A_PHVZ'!S$72/'2A_PHVZ'!$H$72,0) -> 0 | X46: ='1A_PHVZ'!AC49-SUM(W46,Y46:AG46) -> 0
A47: A.3.3 | C47: ='1A_PHVZ'!C50 -> Věcná břemena a služebnosti | H47: 0 | J47: ='1A_PHVZ'!O50-SUM(I47,K47:S47) -> 0 | K47: =IFERROR(('1A_PHVZ'!$I50+'1A_PHVZ'!$J50)*'2A_PHVZ'!K$72/'2A_PHVZ'!$H$72,0) -> 0 | L47: =IFERROR(('1A_PHVZ'!$I50+'1A_PHVZ'!$J50)*'2A_PHVZ'!L$72/'2A_PHVZ'!$H$72,0) -> 0 | M47: =IFERROR(('1A_PHVZ'!$I50+'1A_PHVZ'!$J50)*'2A_PHVZ'!M$72/'2A_PHVZ'!$H$72,0) -> 0 | N47: =IFERROR(('1A_PHVZ'!$I50+'1A_PHVZ'!$J50)*'2A_PHVZ'!N$72/'2A_PHVZ'!$H$72,0) -> 0 | O47: =IFERROR(('1A_PHVZ'!$I50+'1A_PHVZ'!$J50)*'2A_PHVZ'!O$72/'2A_PHVZ'!$H$72,0) -> 0 | P47: =IFERROR(('1A_PHVZ'!$I50+'1A_PHVZ'!$J50)*'2A_PHVZ'!P$72/'2A_PHVZ'!$H$72,0) -> 0 | Q47: =IFERROR(('1A_PHVZ'!$I50+'1A_PHVZ'!$J50)*'2A_PHVZ'!Q$72/'2A_PHVZ'!$H$72,0) -> 0 | R47: =IFERROR(('1A_PHVZ'!$I50+'1A_PHVZ'!$J50)*'2A_PHVZ'!R$72/'2A_PHVZ'!$H$72,0) -> 0 | S47: =IFERROR(('1A_PHVZ'!$I50+'1A_PHVZ'!$J50)*'2A_PHVZ'!S$72/'2A_PHVZ'!$H$72,0) -> 0 | X47: ='1A_PHVZ'!AC50-SUM(W47,Y47:AG47) -> 0
A48: A.4 | B48: ='1A_PHVZ'!B51 -> Nájmy pro účely stavby | H48: 0 | I48: =SUM(I49:I50) -> 0 | J48: =SUM(J49:J50) -> 0 | K48: =SUM(K49:K50) -> 0 | L48: =SUM(L49:L50) -> 0 | M48: =SUM(M49:M50) -> 0 | N48: 0 | O48: 0 | P48: 0 | Q48: 0 | R48: 0 | S48: 0 | W48: =SUM(W49:W50) -> 0 | X48: =SUM(X49:X50) -> 0 | Y48: =SUM(Y49:Y50) -> 0 | Z48: =SUM(Z49:Z50) -> 0 | AA48: =SUM(AA49:AA50) -> 0 | AB48: 0 | AC48: 0 | AD48: 0 | AE48: 0 | AF48: 0 | AG48: 0
A49: A.4.1 | B49: z toho | C49: ='1A_PHVZ'!C52 -> Nájmy hrazené investorem přímo | H49: 0 | J49: ='1A_PHVZ'!O52-SUM(I49,K49:S49) -> 0 | K49: =IFERROR(('1A_PHVZ'!$I52+'1A_PHVZ'!$J52)*'2A_PHVZ'!K$72/'2A_PHVZ'!$H$72,0) -> 0 | L49: =IFERROR(('1A_PHVZ'!$I52+'1A_PHVZ'!$J52)*'2A_PHVZ'!L$72/'2A_PHVZ'!$H$72,0) -> 0 | M49: =IFERROR(('1A_PHVZ'!$I52+'1A_PHVZ'!$J52)*'2A_PHVZ'!M$72/'2A_PHVZ'!$H$72,0) -> 0 | N49: =IFERROR(('1A_PHVZ'!$I52+'1A_PHVZ'!$J52)*'2A_PHVZ'!N$72/'2A_PHVZ'!$H$72,0) -> 0 | O49: =IFERROR(('1A_PHVZ'!$I52+'1A_PHVZ'!$J52)*'2A_PHVZ'!O$72/'2A_PHVZ'!$H$72,0) -> 0 | P49: =IFERROR(('1A_PHVZ'!$I52+'1A_PHVZ'!$J52)*'2A_PHVZ'!P$72/'2A_PHVZ'!$H$72,0) -> 0 | Q49: =IFERROR(('1A_PHVZ'!$I52+'1A_PHVZ'!$J52)*'2A_PHVZ'!Q$72/'2A_PHVZ'!$H$72,0) -> 0 | R49: =IFERROR(('1A_PHVZ'!$I52+'1A_PHVZ'!$J52)*'2A_PHVZ'!R$72/'2A_PHVZ'!$H$72,0) -> 0 | S49: =IFERROR(('1A_PHVZ'!$I52+'1A_PHVZ'!$J52)*'2A_PHVZ'!S$72/'2A_PHVZ'!$H$72,0) -> 0 | X49: ='1A_PHVZ'!AC52-SUM(W49,Y49:AG49) -> 0
A50: A.4.2 | C50: ='1A_PHVZ'!C53 -> Nájmy hrazené zhotovitelem stavby | H50: 0 | J50: ='1A_PHVZ'!O53-SUM(I50,K50:S50) -> 0 | K50: =IFERROR(('1A_PHVZ'!$I53+'1A_PHVZ'!$J53)*'2A_PHVZ'!K$72/'2A_PHVZ'!$H$72,0) -> 0 | L50: =IFERROR(('1A_PHVZ'!$I53+'1A_PHVZ'!$J53)*'2A_PHVZ'!L$72/'2A_PHVZ'!$H$72,0) -> 0 | M50: =IFERROR(('1A_PHVZ'!$I53+'1A_PHVZ'!$J53)*'2A_PHVZ'!M$72/'2A_PHVZ'!$H$72,0) -> 0 | N50: =IFERROR(('1A_PHVZ'!$I53+'1A_PHVZ'!$J53)*'2A_PHVZ'!N$72/'2A_PHVZ'!$H$72,0) -> 0 | O50: =IFERROR(('1A_PHVZ'!$I53+'1A_PHVZ'!$J53)*'2A_PHVZ'!O$72/'2A_PHVZ'!$H$72,0) -> 0 | P50: =IFERROR(('1A_PHVZ'!$I53+'1A_PHVZ'!$J53)*'2A_PHVZ'!P$72/'2A_PHVZ'!$H$72,0) -> 0 | Q50: =IFERROR(('1A_PHVZ'!$I53+'1A_PHVZ'!$J53)*'2A_PHVZ'!Q$72/'2A_PHVZ'!$H$72,0) -> 0 | R50: =IFERROR(('1A_PHVZ'!$I53+'1A_PHVZ'!$J53)*'2A_PHVZ'!R$72/'2A_PHVZ'!$H$72,0) -> 0 | S50: =IFERROR(('1A_PHVZ'!$I53+'1A_PHVZ'!$J53)*'2A_PHVZ'!S$72/'2A_PHVZ'!$H$72,0) -> 0 | X50: ='1A_PHVZ'!AC53-SUM(W50,Y50:AG50) -> 0
A51: A.5 | B51: ='1A_PHVZ'!B54 -> Jiné náklady přípravy a zabezpečení stavby | H51: 0 | I51: =I52+I56+I57 -> 0 | J51: =J52+J56+J57 -> 0 | K51: 0 | L51: 0 | M51: 0 | N51: 0 | O51: 0 | P51: 0 | Q51: 0 | R51: 0 | S51: 0 | W51: =W52+W56+W57 -> 0 | X51: =X52+X56+X57 -> 0 | Y51: 0 | Z51: 0 | AA51: 0 | AB51: 0 | AC51: 0 | AD51: 0 | AE51: 0 | AF51: 0 | AG51: 0
A52: A.5.1 | B52: z toho | C52: ='1A_PHVZ'!C55 -> Poradenské firmy pro přípravu a zabezpečení stavby | H52: 0 | I52: =SUM(I53:I55) -> 0 | J52: =SUM(J53:J55) -> 0 | K52: =SUM(K53:K55) -> 0 | L52: =SUM(L53:L55) -> 0 | M52: =SUM(M53:M55) -> 0 | N52: 0 | O52: 0 | P52: 0 | Q52: 0 | R52: 0 | S52: 0 | W52: =SUM(W53:W55) -> 0 | X52: =SUM(X53:X55) -> 0 | Y52: =SUM(Y53:Y55) -> 0 | Z52: =SUM(Z53:Z55) -> 0 | AA52: =SUM(AA53:AA55) -> 0 | AB52: 0 | AC52: 0 | AD52: 0 | AE52: 0 | AF52: 0 | AG52: 0
A53: A.5.1.1 | C53: z toho | D53: ='1A_PHVZ'!D56 -> Technická podpora investora | H53: ='1A_PHVZ'!O56 -> 0 | J53: ='1A_PHVZ'!O56-SUM(I53,K53:S53) -> 0 | K53: ='1A_PHVZ'!$O$56*SUMIF(hide!$H$74:$H$83,K$4,hide!$L$74:$L$83) -> 0 | L53: ='1A_PHVZ'!$O$56*SUMIF(hide!$H$74:$H$83,L$4,hide!$L$74:$L$83) -> 0 | M53: ='1A_PHVZ'!$O$56*SUMIF(hide!$H$74:$H$83,M$4,hide!$L$74:$L$83) -> 0 | N53: ='1A_PHVZ'!$O$56*SUMIF(hide!$H$74:$H$83,N$4,hide!$L$74:$L$83) -> 0 | O53: ='1A_PHVZ'!$O$56*SUMIF(hide!$H$74:$H$83,O$4,hide!$L$74:$L$83) -> 0 | P53: ='1A_PHVZ'!$O$56*SUMIF(hide!$H$74:$H$83,P$4,hide!$L$74:$L$83) -> 0 | Q53: ='1A_PHVZ'!$O$56*SUMIF(hide!$H$74:$H$83,Q$4,hide!$L$74:$L$83) -> 0 | R53: ='1A_PHVZ'!$O$56*SUMIF(hide!$H$74:$H$83,R$4,hide!$L$74:$L$83) -> 0 | S53: ='1A_PHVZ'!$O$56*SUMIF(hide!$H$74:$H$83,S$4,hide!$L$74:$L$83) -> 0 | X53: ='1A_PHVZ'!AC56-SUM(W53,Y53:AG53) -> 0 | Y53: ='1A_PHVZ'!$O$56*SUMIF(hide!$H$74:$H$83,Y$4,hide!$L$74:$L$83) -> 0 | Z53: ='1A_PHVZ'!$O$56*SUMIF(hide!$H$74:$H$83,Z$4,hide!$L$74:$L$83) -> 0 | AA53: ='1A_PHVZ'!$O$56*SUMIF(hide!$H$74:$H$83,AA$4,hide!$L$74:$L$83) -> 0 | AB53: ='1A_PHVZ'!$O$56*SUMIF(hide!$H$74:$H$83,AB$4,hide!$L$74:$L$83) -> 0 | AC53: ='1A_PHVZ'!$O$56*SUMIF(hide!$H$74:$H$83,AC$4,hide!$L$74:$L$83) -> 0 | AD53: ='1A_PHVZ'!$O$56*SUMIF(hide!$H$74:$H$83,AD$4,hide!$L$74:$L$83) -> 0 | AE53: ='1A_PHVZ'!$O$56*SUMIF(hide!$H$74:$H$83,AE$4,hide!$L$74:$L$83) -> 0 | AF53: ='1A_PHVZ'!$O$56*SUMIF(hide!$H$74:$H$83,AF$4,hide!$L$74:$L$83) -> 0 | AG53: ='1A_PHVZ'!$O$56*SUMIF(hide!$H$74:$H$83,AG$4,hide!$L$74:$L$83) -> 0
A54: A.5.1.2 | D54: ='1A_PHVZ'!D57 -> Poradenské firmy pro geotechnický průzkum | H54: 0 | J54: ='1A_PHVZ'!O57-SUM(I54,K54:S54) -> 0 | K54: =IFERROR(('1A_PHVZ'!$I57+'1A_PHVZ'!$J57)*'2A_PHVZ'!K$72/'2A_PHVZ'!$H$72,0) -> 0 | L54: =IFERROR(('1A_PHVZ'!$I57+'1A_PHVZ'!$J57)*'2A_PHVZ'!L$72/'2A_PHVZ'!$H$72,0) -> 0 | M54: =IFERROR(('1A_PHVZ'!$I57+'1A_PHVZ'!$J57)*'2A_PHVZ'!M$72/'2A_PHVZ'!$H$72,0) -> 0 | N54: =IFERROR(('1A_PHVZ'!$I57+'1A_PHVZ'!$J57)*'2A_PHVZ'!N$72/'2A_PHVZ'!$H$72,0) -> 0 | O54: =IFERROR(('1A_PHVZ'!$I57+'1A_PHVZ'!$J57)*'2A_PHVZ'!O$72/'2A_PHVZ'!$H$72,0) -> 0 | P54: =IFERROR(('1A_PHVZ'!$I57+'1A_PHVZ'!$J57)*'2A_PHVZ'!P$72/'2A_PHVZ'!$H$72,0) -> 0 | Q54: =IFERROR(('1A_PHVZ'!$I57+'1A_PHVZ'!$J57)*'2A_PHVZ'!Q$72/'2A_PHVZ'!$H$72,0) -> 0 | R54: =IFERROR(('1A_PHVZ'!$I57+'1A_PHVZ'!$J57)*'2A_PHVZ'!R$72/'2A_PHVZ'!$H$72,0) -> 0 | S54: =IFERROR(('1A_PHVZ'!$I57+'1A_PHVZ'!$J57)*'2A_PHVZ'!S$72/'2A_PHVZ'!$H$72,0) -> 0 | X54: ='1A_PHVZ'!AC57-SUM(W54,Y54:AG54) -> 0
A55: A.5.1.3 | D55: ='1A_PHVZ'!D58 -> Ostatní poradenské firmy | H55: 0 | J55: ='1A_PHVZ'!O58-SUM(I55,K55:S55) -> 0 | K55: =IFERROR(('1A_PHVZ'!$I58+'1A_PHVZ'!$J58)*'2A_PHVZ'!K$72/'2A_PHVZ'!$H$72,0) -> 0 | L55: =IFERROR(('1A_PHVZ'!$I58+'1A_PHVZ'!$J58)*'2A_PHVZ'!L$72/'2A_PHVZ'!$H$72,0) -> 0 | M55: =IFERROR(('1A_PHVZ'!$I58+'1A_PHVZ'!$J58)*'2A_PHVZ'!M$72/'2A_PHVZ'!$H$72,0) -> 0 | N55: =IFERROR(('1A_PHVZ'!$I58+'1A_PHVZ'!$J58)*'2A_PHVZ'!N$72/'2A_PHVZ'!$H$72,0) -> 0 | O55: =IFERROR(('1A_PHVZ'!$I58+'1A_PHVZ'!$J58)*'2A_PHVZ'!O$72/'2A_PHVZ'!$H$72,0) -> 0 | P55: =IFERROR(('1A_PHVZ'!$I58+'1A_PHVZ'!$J58)*'2A_PHVZ'!P$72/'2A_PHVZ'!$H$72,0) -> 0 | Q55: =IFERROR(('1A_PHVZ'!$I58+'1A_PHVZ'!$J58)*'2A_PHVZ'!Q$72/'2A_PHVZ'!$H$72,0) -> 0 | R55: =IFERROR(('1A_PHVZ'!$I58+'1A_PHVZ'!$J58)*'2A_PHVZ'!R$72/'2A_PHVZ'!$H$72,0) -> 0 | S55: =IFERROR(('1A_PHVZ'!$I58+'1A_PHVZ'!$J58)*'2A_PHVZ'!S$72/'2A_PHVZ'!$H$72,0) -> 0 | X55: ='1A_PHVZ'!AC58-SUM(W55,Y55:AG55) -> 0
A56: A.5.2 | C56: ='1A_PHVZ'!C59 -> Soutěže a zadávací řízení | H56: =SUM(I56:S56) -> 0 | J56: ='1A_PHVZ'!O59-SUM(I56,K56:S56) -> 0 | K56: =IFERROR(('1A_PHVZ'!$I59+'1A_PHVZ'!$J59)*'2A_PHVZ'!K$72/'2A_PHVZ'!$H$72,0) -> 0 | L56: =IFERROR(('1A_PHVZ'!$I59+'1A_PHVZ'!$J59)*'2A_PHVZ'!L$72/'2A_PHVZ'!$H$72,0) -> 0 | M56: =IFERROR(('1A_PHVZ'!$I59+'1A_PHVZ'!$J59)*'2A_PHVZ'!M$72/'2A_PHVZ'!$H$72,0) -> 0 | N56: =IFERROR(('1A_PHVZ'!$I59+'1A_PHVZ'!$J59)*'2A_PHVZ'!N$72/'2A_PHVZ'!$H$72,0) -> 0 | O56: =IFERROR(('1A_PHVZ'!$I59+'1A_PHVZ'!$J59)*'2A_PHVZ'!O$72/'2A_PHVZ'!$H$72,0) -> 0 | P56: =IFERROR(('1A_PHVZ'!$I59+'1A_PHVZ'!$J59)*'2A_PHVZ'!P$72/'2A_PHVZ'!$H$72,0) -> 0 | Q56: =IFERROR(('1A_PHVZ'!$I59+'1A_PHVZ'!$J59)*'2A_PHVZ'!Q$72/'2A_PHVZ'!$H$72,0) -> 0 | R56: =IFERROR(('1A_PHVZ'!$I59+'1A_PHVZ'!$J59)*'2A_PHVZ'!R$72/'2A_PHVZ'!$H$72,0) -> 0 | S56: =IFERROR(('1A_PHVZ'!$I59+'1A_PHVZ'!$J59)*'2A_PHVZ'!S$72/'2A_PHVZ'!$H$72,0) -> 0 | X56: ='1A_PHVZ'!AC59-SUM(W56,Y56:AG56) -> 0
A57: A.5.3 | C57: ='1A_PHVZ'!C60 -> Ostatní náklady pro zabezpečení stavby | H57: 0 | I57: =SUM(I58:I60,I63:I64) -> 0 | J57: =SUM(J58:J60,J63:J64) -> 0 | K57: =SUM(K58:K60,K63:K64) -> 0 | L57: =SUM(L58:L60,L63:L64) -> 0 | M57: =SUM(M58:M60,M63:M64) -> 0 | N57: 0 | O57: 0 | P57: 0 | Q57: 0 | R57: 0 | S57: 0 | W57: =SUM(W58:W60,W63:W64) -> 0 | X57: =SUM(X58:X60,X63:X64) -> 0 | Y57: =SUM(Y58:Y60,Y63:Y64) -> 0 | Z57: =SUM(Z58:Z60,Z63:Z64) -> 0 | AA57: =SUM(AA58:AA60,AA63:AA64) -> 0 | AB57: 0 | AC57: 0 | AD57: 0 | AE57: 0 | AF57: 0 | AG57: 0
A58: A.5.3.1 | C58: z toho | D58: ='1A_PHVZ'!D61 -> Poplatky | H58: 0 | J58: ='1A_PHVZ'!O61-SUM(I58,K58:S58) -> 0 | K58: =IFERROR(('1A_PHVZ'!$I61+'1A_PHVZ'!$J61)*'2A_PHVZ'!K$72/'2A_PHVZ'!$H$72,0) -> 0 | L58: =IFERROR(('1A_PHVZ'!$I61+'1A_PHVZ'!$J61)*'2A_PHVZ'!L$72/'2A_PHVZ'!$H$72,0) -> 0 | M58: =IFERROR(('1A_PHVZ'!$I61+'1A_PHVZ'!$J61)*'2A_PHVZ'!M$72/'2A_PHVZ'!$H$72,0) -> 0 | N58: =IFERROR(('1A_PHVZ'!$I61+'1A_PHVZ'!$J61)*'2A_PHVZ'!N$72/'2A_PHVZ'!$H$72,0) -> 0 | O58: =IFERROR(('1A_PHVZ'!$I61+'1A_PHVZ'!$J61)*'2A_PHVZ'!O$72/'2A_PHVZ'!$H$72,0) -> 0 | P58: =IFERROR(('1A_PHVZ'!$I61+'1A_PHVZ'!$J61)*'2A_PHVZ'!P$72/'2A_PHVZ'!$H$72,0) -> 0 | Q58: =IFERROR(('1A_PHVZ'!$I61+'1A_PHVZ'!$J61)*'2A_PHVZ'!Q$72/'2A_PHVZ'!$H$72,0) -> 0 | R58: =IFERROR(('1A_PHVZ'!$I61+'1A_PHVZ'!$J61)*'2A_PHVZ'!R$72/'2A_PHVZ'!$H$72,0) -> 0 | S58: =IFERROR(('1A_PHVZ'!$I61+'1A_PHVZ'!$J61)*'2A_PHVZ'!S$72/'2A_PHVZ'!$H$72,0) -> 0 | X58: ='1A_PHVZ'!AC61-SUM(W58,Y58:AG58) -> 0
A59: A.5.3.2 | D59: ='1A_PHVZ'!D62 -> Záchranný archeologický výzkum | H59: 0 | J59: ='1A_PHVZ'!O62-SUM(I59,K59:S59) -> 0 | K59: =IFERROR(('1A_PHVZ'!$I62+'1A_PHVZ'!$J62)*'2A_PHVZ'!K$72/'2A_PHVZ'!$H$72,0) -> 0 | L59: =IFERROR(('1A_PHVZ'!$I62+'1A_PHVZ'!$J62)*'2A_PHVZ'!L$72/'2A_PHVZ'!$H$72,0) -> 0 | M59: =IFERROR(('1A_PHVZ'!$I62+'1A_PHVZ'!$J62)*'2A_PHVZ'!M$72/'2A_PHVZ'!$H$72,0) -> 0 | N59: =IFERROR(('1A_PHVZ'!$I62+'1A_PHVZ'!$J62)*'2A_PHVZ'!N$72/'2A_PHVZ'!$H$72,0) -> 0 | O59: =IFERROR(('1A_PHVZ'!$I62+'1A_PHVZ'!$J62)*'2A_PHVZ'!O$72/'2A_PHVZ'!$H$72,0) -> 0 | P59: =IFERROR(('1A_PHVZ'!$I62+'1A_PHVZ'!$J62)*'2A_PHVZ'!P$72/'2A_PHVZ'!$H$72,0) -> 0 | Q59: =IFERROR(('1A_PHVZ'!$I62+'1A_PHVZ'!$J62)*'2A_PHVZ'!Q$72/'2A_PHVZ'!$H$72,0) -> 0 | R59: =IFERROR(('1A_PHVZ'!$I62+'1A_PHVZ'!$J62)*'2A_PHVZ'!R$72/'2A_PHVZ'!$H$72,0) -> 0 | S59: =IFERROR(('1A_PHVZ'!$I62+'1A_PHVZ'!$J62)*'2A_PHVZ'!S$72/'2A_PHVZ'!$H$72,0) -> 0 | X59: ='1A_PHVZ'!AC62-SUM(W59,Y59:AG59) -> 0
A60: A.5.3.3 | D60: ='1A_PHVZ'!D63 -> Publicita stavby | H60: 0 | I60: =SUM(I61:I62) -> 0 | J60: =SUM(J61:J62) -> 0 | K60: =SUM(K61:K62) -> 0 | L60: =SUM(L61:L62) -> 0 | M60: =SUM(M61:M62) -> 0 | N60: 0 | O60: 0 | P60: 0 | Q60: 0 | R60: 0 | S60: 0 | W60: =SUM(W61:W62) -> 0 | X60: =SUM(X61:X62) -> 0 | Y60: =SUM(Y61:Y62) -> 0 | Z60: =SUM(Z61:Z62) -> 0 | AA60: =SUM(AA61:AA62) -> 0 | AB60: 0 | AC60: 0 | AD60: 0 | AE60: 0 | AF60: 0 | AG60: 0
A61: A.5.3.3.1 | D61: z toho | E61: ='1A_PHVZ'!E64 -> Publicita povinná | H61: 0 | J61: ='1A_PHVZ'!O64-SUM(I61,K61:S61) -> 0 | K61: =IFERROR(('1A_PHVZ'!$I64+'1A_PHVZ'!$J64)*'2A_PHVZ'!K$72/'2A_PHVZ'!$H$72,0) -> 0 | L61: =IFERROR(('1A_PHVZ'!$I64+'1A_PHVZ'!$J64)*'2A_PHVZ'!L$72/'2A_PHVZ'!$H$72,0) -> 0 | M61: =IFERROR(('1A_PHVZ'!$I64+'1A_PHVZ'!$J64)*'2A_PHVZ'!M$72/'2A_PHVZ'!$H$72,0) -> 0 | N61: =IFERROR(('1A_PHVZ'!$I64+'1A_PHVZ'!$J64)*'2A_PHVZ'!N$72/'2A_PHVZ'!$H$72,0) -> 0 | O61: =IFERROR(('1A_PHVZ'!$I64+'1A_PHVZ'!$J64)*'2A_PHVZ'!O$72/'2A_PHVZ'!$H$72,0) -> 0 | P61: =IFERROR(('1A_PHVZ'!$I64+'1A_PHVZ'!$J64)*'2A_PHVZ'!P$72/'2A_PHVZ'!$H$72,0) -> 0 | Q61: =IFERROR(('1A_PHVZ'!$I64+'1A_PHVZ'!$J64)*'2A_PHVZ'!Q$72/'2A_PHVZ'!$H$72,0) -> 0 | R61: =IFERROR(('1A_PHVZ'!$I64+'1A_PHVZ'!$J64)*'2A_PHVZ'!R$72/'2A_PHVZ'!$H$72,0) -> 0 | S61: =IFERROR(('1A_PHVZ'!$I64+'1A_PHVZ'!$J64)*'2A_PHVZ'!S$72/'2A_PHVZ'!$H$72,0) -> 0 | X61: ='1A_PHVZ'!AC64-SUM(W61,Y61:AG61) -> 0
A62: A.5.3.3.2 | E62: ='1A_PHVZ'!E65 -> Publicita nepovinná | H62: 0 | J62: ='1A_PHVZ'!O65-SUM(I62,K62:S62) -> 0 | K62: =IFERROR(('1A_PHVZ'!$I65+'1A_PHVZ'!$J65)*'2A_PHVZ'!K$72/'2A_PHVZ'!$H$72,0) -> 0 | L62: =IFERROR(('1A_PHVZ'!$I65+'1A_PHVZ'!$J65)*'2A_PHVZ'!L$72/'2A_PHVZ'!$H$72,0) -> 0 | M62: =IFERROR(('1A_PHVZ'!$I65+'1A_PHVZ'!$J65)*'2A_PHVZ'!M$72/'2A_PHVZ'!$H$72,0) -> 0 | N62: =IFERROR(('1A_PHVZ'!$I65+'1A_PHVZ'!$J65)*'2A_PHVZ'!N$72/'2A_PHVZ'!$H$72,0) -> 0 | O62: =IFERROR(('1A_PHVZ'!$I65+'1A_PHVZ'!$J65)*'2A_PHVZ'!O$72/'2A_PHVZ'!$H$72,0) -> 0 | P62: =IFERROR(('1A_PHVZ'!$I65+'1A_PHVZ'!$J65)*'2A_PHVZ'!P$72/'2A_PHVZ'!$H$72,0) -> 0 | Q62: =IFERROR(('1A_PHVZ'!$I65+'1A_PHVZ'!$J65)*'2A_PHVZ'!Q$72/'2A_PHVZ'!$H$72,0) -> 0 | R62: =IFERROR(('1A_PHVZ'!$I65+'1A_PHVZ'!$J65)*'2A_PHVZ'!R$72/'2A_PHVZ'!$H$72,0) -> 0 | S62: =IFERROR(('1A_PHVZ'!$I65+'1A_PHVZ'!$J65)*'2A_PHVZ'!S$72/'2A_PHVZ'!$H$72,0) -> 0 | X62: ='1A_PHVZ'!AC65-SUM(W62,Y62:AG62) -> 0
A63: A.5.3.4 | D63: ='1A_PHVZ'!D66 -> Monitoring stavby | H63: ='1A_PHVZ'!O66 -> 0 | J63: ='1A_PHVZ'!O66-SUM(I63,K63:S63) -> 0 | K63: ='1A_PHVZ'!$O$66*SUMIF(hide!$H$74:$H$83,K$4,hide!$L$74:$L$83) -> 0 | L63: ='1A_PHVZ'!$O$66*SUMIF(hide!$H$74:$H$83,L$4,hide!$L$74:$L$83) -> 0 | M63: ='1A_PHVZ'!$O$66*SUMIF(hide!$H$74:$H$83,M$4,hide!$L$74:$L$83) -> 0 | N63: ='1A_PHVZ'!$O$66*SUMIF(hide!$H$74:$H$83,N$4,hide!$L$74:$L$83) -> 0 | O63: ='1A_PHVZ'!$O$66*SUMIF(hide!$H$74:$H$83,O$4,hide!$L$74:$L$83) -> 0 | P63: ='1A_PHVZ'!$O$66*SUMIF(hide!$H$74:$H$83,P$4,hide!$L$74:$L$83) -> 0 | Q63: ='1A_PHVZ'!$O$66*SUMIF(hide!$H$74:$H$83,Q$4,hide!$L$74:$L$83) -> 0 | R63: ='1A_PHVZ'!$O$66*SUMIF(hide!$H$74:$H$83,R$4,hide!$L$74:$L$83) -> 0 | S63: ='1A_PHVZ'!$O$66*SUMIF(hide!$H$74:$H$83,S$4,hide!$L$74:$L$83) -> 0 | X63: ='1A_PHVZ'!AC66-SUM(W63,Y63:AG63) -> 0 | Y63: ='1A_PHVZ'!$O$66*SUMIF(hide!$H$74:$H$83,Y$4,hide!$L$74:$L$83) -> 0 | Z63: ='1A_PHVZ'!$O$66*SUMIF(hide!$H$74:$H$83,Z$4,hide!$L$74:$L$83) -> 0 | AA63: ='1A_PHVZ'!$O$66*SUMIF(hide!$H$74:$H$83,AA$4,hide!$L$74:$L$83) -> 0 | AB63: ='1A_PHVZ'!$O$66*SUMIF(hide!$H$74:$H$83,AB$4,hide!$L$74:$L$83) -> 0 | AC63: ='1A_PHVZ'!$O$66*SUMIF(hide!$H$74:$H$83,AC$4,hide!$L$74:$L$83) -> 0 | AD63: ='1A_PHVZ'!$O$66*SUMIF(hide!$H$74:$H$83,AD$4,hide!$L$74:$L$83) -> 0 | AE63: ='1A_PHVZ'!$O$66*SUMIF(hide!$H$74:$H$83,AE$4,hide!$L$74:$L$83) -> 0 | AF63: ='1A_PHVZ'!$O$66*SUMIF(hide!$H$74:$H$83,AF$4,hide!$L$74:$L$83) -> 0 | AG63: ='1A_PHVZ'!$O$66*SUMIF(hide!$H$74:$H$83,AG$4,hide!$L$74:$L$83) -> 0
A64: A.5.3.5 | D64: ='1A_PHVZ'!D67 -> Vyhodnocení stavby | F64: doba zpracování: | G64: 30 | H64: 0 | J64: ='1A_PHVZ'!O67-SUM(I64,K64:S64) -> 0 | K64: =IF('Krycí list SR'!$G$9<>"",IF(YEAR('Krycí list SR'!$G$9+$G$40+$G$64)=K$4,'1A_PHVZ'!$O67,0),0) -> 0 | L64: =IF('Krycí list SR'!$G$9<>"",IF(YEAR('Krycí list SR'!$G$9+$G$40+$G$64)=L$4,'1A_PHVZ'!$O67,0),0) -> 0 | M64: =IF('Krycí list SR'!$G$9<>"",IF(YEAR('Krycí list SR'!$G$9+$G$40+$G$64)=M$4,'1A_PHVZ'!$O67,0),0) -> 0 | N64: =IF('Krycí list SR'!$G$9<>"",IF(YEAR('Krycí list SR'!$G$9+$G$40+$G$64)=N$4,'1A_PHVZ'!$O67,0),0) -> 0 | O64: =IF('Krycí list SR'!$G$9<>"",IF(YEAR('Krycí list SR'!$G$9+$G$40+$G$64)=O$4,'1A_PHVZ'!$O67,0),0) -> 0 | P64: =IF('Krycí list SR'!$G$9<>"",IF(YEAR('Krycí list SR'!$G$9+$G$40+$G$64)=P$4,'1A_PHVZ'!$O67,0),0) -> 0 | Q64: =IF('Krycí list SR'!$G$9<>"",IF(YEAR('Krycí list SR'!$G$9+$G$40+$G$64)=Q$4,'1A_PHVZ'!$O67,0),0) -> 0 | R64: =IF('Krycí list SR'!$G$9<>"",IF(YEAR('Krycí list SR'!$G$9+$G$40+$G$64)=R$4,'1A_PHVZ'!$O67,0),0) -> 0 | S64: =IF('Krycí list SR'!$G$9<>"",IF(YEAR('Krycí list SR'!$G$9+$G$40+$G$64)>R$4,'1A_PHVZ'!$O67,0),0) -> 0 | X64: ='1A_PHVZ'!AC67-SUM(W64,Y64:AG64) -> 0 | Y64: =IF('Krycí list SR'!$G$9<>"",IF(YEAR('Krycí list SR'!$G$9+$G$40+$G$64)=Y$4,'1A_PHVZ'!$O67,0),0) -> 0 | Z64: =IF('Krycí list SR'!$G$9<>"",IF(YEAR('Krycí list SR'!$G$9+$G$40+$G$64)=Z$4,'1A_PHVZ'!$O67,0),0) -> 0 | AA64: =IF('Krycí list SR'!$G$9<>"",IF(YEAR('Krycí list SR'!$G$9+$G$40+$G$64)=AA$4,'1A_PHVZ'!$O67,0),0) -> 0 | AB64: =IF('Krycí list SR'!$G$9<>"",IF(YEAR('Krycí list SR'!$G$9+$G$40+$G$64)=AB$4,'1A_PHVZ'!$O67,0),0) -> 0 | AC64: =IF('Krycí list SR'!$G$9<>"",IF(YEAR('Krycí list SR'!$G$9+$G$40+$G$64)=AC$4,'1A_PHVZ'!$O67,0),0) -> 0 | AD64: =IF('Krycí list SR'!$G$9<>"",IF(YEAR('Krycí list SR'!$G$9+$G$40+$G$64)=AD$4,'1A_PHVZ'!$O67,0),0) -> 0 | AE64: =IF('Krycí list SR'!$G$9<>"",IF(YEAR('Krycí list SR'!$G$9+$G$40+$G$64)=AE$4,'1A_PHVZ'!$O67,0),0) -> 0 | AF64: =IF('Krycí list SR'!$G$9<>"",IF(YEAR('Krycí list SR'!$G$9+$G$40+$G$64)=AF$4,'1A_PHVZ'!$O67,0),0) -> 0 | AG64: =IF('Krycí list SR'!$G$9<>"",IF(YEAR('Krycí list SR'!$G$9+$G$40+$G$64)>AF$4,'1A_PHVZ'!$O67,0),0) -> 0
A65: A.6 | B65: Náklady na přípravu a celkové zabezpečení stavby celkem včetně inflace | H65: =H67+H66 -> 0 | I65: =I67+I66 -> 0 | J65: 0 | K65: 0 | L65: 0 | M65: 0 | N65: 0 | O65: 0 | P65: 0 | Q65: 0 | R65: 0 | S65: 0 | W65: =W67+W66 -> 0 | X65: 0 | Y65: 0 | Z65: 0 | AA65: 0 | AB65: 0 | AC65: 0 | AD65: 0 | AE65: 0 | AF65: 0 | AG65: 0
A66: z toho | B66: A.6.1 | C66: Náklady na přípravu a celkové zabezpečení stavby bez inflace | H66: =H51+H48+H44+H9+H7 -> 0 | I66: =I51+I48+I44+I9+I7 -> 0 | J66: =J51+J48+J44+J9+J8 -> 0 | K66: =K51+K48+K44+K9+K7+K8 -> 0 | L66: 0 | M66: 0 | N66: 0 | O66: 0 | P66: 0 | Q66: 0 | R66: 0 | S66: 0 | W66: =W51+W48+W44+W9+W7 -> 0 | X66: =X51+X48+X44+X9+X7 -> 0 | Y66: =Y51+Y48+Y44+Y9+Y7+Y8 -> 0 | Z66: 0 | AA66: 0 | AB66: 0 | AC66: 0 | AD66: 0 | AE66: 0 | AF66: 0 | AG66: 0
B67: A.6.2 | C67: Inflace k vybraným nákladům na přípravu stavby | H67: =SUM(I67:S67) -> 0 | J67: =ROUND(IF($Y$4=1,(J10+J21+J32+J35)*(J68-1),IF($Y$4=2,(J21+J32+J35)*(J68-1),0)),0) -> 0 | K67: =ROUND(IF($Y$4=1,(K10+K21+K32+K35)*(($K$68*$J$68)-1),IF($Y$4=2,(K21+K32+K35)*(($K$68*$J$68)-1),0)),0) -> 0 | L67: =ROUND(IF($Y$4=1,(L10+L21+L32+L35)*(($K$68*$J$68*L68)-1),IF($Y$4=2,(L21+L32+L35)*(($K$68*$J$68*L68)-1),0)),0) -> 0 | M67: =ROUND(IF($Y$4=1,(M10+M21+M32+M35)*(($K$68*$J$68*L68*M68)-1),IF($Y$4=2,(M21+M32+M35)*(($K$68*$J$68*L68*M68)-1),0)),0) -> 0 | N67: =ROUND(IF($Y$4=1,(N10+N21+N32+N35)*(($K$68*$J$68*L68*M68*N68)-1),IF($Y$4=2,(N21+N32+N35)*(($K$68*$J$68*L68*M68*N68)-1),0)),0) -> 0 | O67: =ROUND(IF($Y$4=1,(O10+O21+O32+O35)*(($K$68*$J$68*L68*M68*N68*O68)-1),IF($Y$4=2,(O21+O32+O35)*(($K$68*$J$68*L68*M68*N68*O68)-1),0)),0) -> 0 | P67: =ROUND(IF($Y$4=1,(P10+P21+P32+P35)*(($K$68*$J$68*L68*M68*N68*O68*P68)-1),IF($Y$4=2,(P21+P32+P35)*(($K$68*$J$68*L68*M68*N68*O68*P68)-1),0)),0) -> 0 | Q67: =ROUND(IF($Y$4=1,(Q10+Q21+Q32+Q35)*(($K$68*$J$68*L68*M68*N68*O68*P68*Q68)-1),IF($Y$4=2,(Q21+Q32+Q35)*(($K$68*$J$68*L68*M68*N68*O68*P68*Q68)-1),0)),0) -> 0 | R67: =ROUND(IF($Y$4=1,(R10+R21+R32+R35)*(($K$68*$J$68*L68*M68*N68*O68*P68*Q68*R68)-1),IF($Y$4=2,(R21+R32+R35)*(($K$68*$J$68*L68*M68*N68*O68*P68*Q68*R68)-1),0)),0) -> 0 | S67: =ROUND(IF($Y$4=1,(S10+S21+S32+S35)*(($K$68*$J$68*L68*M68*N68*O68*P68*Q68*R68*S68)-1),IF($Y$4=2,(S21+S32+S35)*(($K$68*$J$68*L68*M68*N68*O68*P68*Q68*R68*S68)-1),0)),0) -> 0 | X67: =ROUND(IF($Y$4=1,(X10+X21+X32+X35)*(X68-1),IF($Y$4=2,(X21+X32+X35)*(X68-1),0)),0) -> 0 | Y67: =ROUND(IF($Y$4=1,(Y10+Y21+Y32+Y35)*(($K$68*$J$68)-1),IF($Y$4=2,(Y21+Y32+Y35)*(($K$68*$J$68)-1),0)),0) -> 0 | Z67: =ROUND(IF($Y$4=1,(Z10+Z21+Z32+Z35)*(($L$68*$K$68*$J$68)-1),IF($Y$4=2,(Z21+Z32+Z35)*(($L$68*$K$68*$J$68)-1),0)),0) -> 0 | AA67: =ROUND(IF($Y$4=1,(AA10+AA21+AA32+AA35)*(($M$68*$L$68*$K$68*$J$68)-1),IF($Y$4=2,(AA21+AA32+AA35)*(($M$68*$L$68*$K$68*$J$68)-1),0)),0) -> 0 | AB67: =ROUND(IF($Y$4=1,(AB10+AB21+AB32+AB35)*(($N$68*$M$68*$L$68*$K$68*$J$68)-1),IF($Y$4=2,(AB21+AB32+AB35)*(($N$68*$M$68*$L$68*$K$68*$J$68)-1),0)),0) -> 0 | AC67: =ROUND(IF($Y$4=1,(AC10+AC21+AC32+AC35)*(($O$68*$N$68*$M$68*$L$68*$K$68*$J$68)-1),IF($Y$4=2,(AC21+AC32+AC35)*(($O$68*$N$68*$M$68*$L$68*$K$68*$J$68)-1),0)),0) -> 0 | AD67: =ROUND(IF($Y$4=1,(AD10+AD21+AD32+AD35)*(($P$68*$O$68*$N$68*$M$68*$L$68*$K$68*$J$68)-1),IF($Y$4=2,(AD21+AD32+AD35)*(($P$68*$O$68*$N$68*$M$68*$L$68*$K$68*$J$68)-1),0)),0) -> 0 | AE67: =ROUND(IF($Y$4=1,(AE10+AE21+AE32+AE35)*(($Q$68*$P$68*$O$68*$N$68*$M$68*$L$68*$K$68*$J$68)-1),IF($Y$4=2,(AE21+AE32+AE35)*(($Q$68*$P$68*$O$68*$N$68*$M$68*$L$68*$K$68*$J$68)-1),0)),0) -> 0 | AF67: =ROUND(IF($Y$4=1,(AF10+AF21+AF32+AF35)*(($R$68*$Q$68*$P$68*$O$68*$N$68*$M$68*$L$68*$K$68*$J$68)-1),IF($Y$4=2,(AF21+AF32+AF35)*(($R$68*$Q$68*$P$68*$O$68*$N$68*$M$68*$L$68*$K$68*$J$68)-1),0)),0) -> 0 | AG67: =ROUND(IF($Y$4=1,(AG10+AG21+AG32+AG35)*(($S$68*$R$68*$Q$68*$P$68*$O$68*$N$68*$M$68*$L$68*$K$68*$J$68)-1),IF($Y$4=1,(AG21+AG32+AG35)*(($S$68*$R$68*$Q$68*$P$68*$O$68*$N$68*$M$68*$L$68*$K$68*$J$68)-1),0)),0) -> 0
H68: Koeficient inlace | J68: =J6+1 -> 1.024 | K68: =K6+1 -> 1.021 | L68: 1.02 | M68: 1.02 | N68: 1.02 | O68: 1.02 | P68: 1.02 | Q68: 1.02 | R68: 1.02 | S68: 1.02 | X68: =X6+1 -> 1 | Y68: =Y6+1 -> 1 | Z68: 1 | AA68: 1 | AB68: 1 | AC68: 1 | AD68: 1 | AE68: 1 | AF68: 1 | AG68: 1
G70: Zahájení přípravy | H70: ='1A_PHVZ'!I69 -> 00:00:00 | J70: =DATE(J4,1,1) -> 2025-01-01 | K70: 2026-01-01 | L70: 2027-01-01 | M70: 2028-01-01 | N70: 2029-01-01 | O70: 2030-01-01 | P70: 2031-01-01 | Q70: 2032-01-01 | R70: 2033-01-01
G71: Ukončení přípravy | H71: ='1A_PHVZ'!I70 -> 00:00:00 | J71: =DATE(J4,12,31) -> 2025-12-31 | K71: 2026-12-31 | L71: 2027-12-31 | M71: 2028-12-31 | N71: 2029-12-31 | O71: 2030-12-31 | P71: 2031-12-31 | Q71: 2032-12-31 | R71: 2033-12-31
G72: Počet měsíců | H72: =DATEDIF(H70,H71,"M") -> 0 | J72: =IF(YEAR(J70)>YEAR($H$71),0,IF(YEAR(J71)<YEAR($H$70),0,IF(YEAR(J71)=YEAR($H$70),DATEDIF($H$70,J71,"M")+1,IF(AND(YEAR(J71)>YEAR($H$70),YEAR(J71)<YEAR($H$71)),12,IF(YEAR(J71)=YEAR($H$71),DATEDIF(J70,$H$71,"M")))))) -> 0 | K72: 0 | L72: 0 | M72: 0 | N72: 0 | O72: 0 | P72: 0 | Q72: 0 | R72: 0 | S72: =H72-SUM(J72:R72) -> 0
G73: Kontrolní součet | H73: =SUM(J72:S72) -> 0
G77: Zahájení realizace | H77: =MIN('3SO'!E9,'3PS'!E9) -> 00:00:00 | J77: =DATE(J4,1,1) -> 2025-01-01 | K77: 2026-01-01 | L77: 2027-01-01 | M77: 2028-01-01 | N77: 2029-01-01 | O77: 2030-01-01 | P77: 2031-01-01 | Q77: 2032-01-01 | R77: 2033-01-01
G78: Ukončení realizace | H78: =MAX('3SO'!F9,'3PS'!F9) -> 00:00:00 | J78: =DATE(J4,12,31) -> 2025-12-31 | K78: 2026-12-31 | L78: 2027-12-31 | M78: 2028-12-31 | N78: 2029-12-31 | O78: 2030-12-31 | P78: 2031-12-31 | Q78: 2032-12-31 | R78: 2033-12-31
G79: Počet měsíců | H79: =DATEDIF(H77,H78,"M") -> 0 | J79: =IF(YEAR(J77)>YEAR($H$78),0,IF(YEAR(J78)<YEAR($H$77),0,IF(AND(YEAR(J78)=YEAR($H$77),YEAR(J78)=YEAR($H$78)),DATEDIF($H$77,$H$78,"M"),IF(YEAR(J78)=YEAR($H$77),DATEDIF($H$77,J78,"M")+1,IF(AND(YEAR(J78)>YEAR($H$77),YEAR(J78)<YEAR($H$78)),12,IF(YEAR(J78)=YEAR($H$78),DATEDIF(J77,$H$78,"M"))))))) -> 0 | K79: =IF(YEAR(K77)>YEAR($H$78),0,IF(YEAR(K78)<YEAR($H$77),0,IF(AND(YEAR(K78)=YEAR($H$77),YEAR(K78)=YEAR($H$78)),DATEDIF($H$77,$H$78,"M"),IF(YEAR(K78)=YEAR($H$77),DATEDIF($H$77,K78,"M")+1,IF(AND(YEAR(K78)>YEAR($H$77),YEAR(K78)<YEAR($H$78)),12,IF(YEAR(K78)=YEAR($H$78),DATEDIF(K77,$H$78,"M"))))))) -> 0 | L79: 0 | M79: 0 | N79: 0 | O79: 0 | P79: 0 | Q79: 0 | R79: 0 | S79: =H79-SUM(J79:R79) -> 0 | T79: =DATEDIF(H77,H78,"M") -> 0
G80: Kontrolní součet | H80: =SUM(J79:S79) -> 0

Sheet 1A
A1: =CONCATENATE("Náklady stavby v aktuálním roce: ",IF('Krycí list SR'!H4="","",'Krycí list SR'!H4)) -> Náklady stavby v aktuálním roce: 2025 | K1: Formulář 1.A | L1: ='Krycí list SR'!$H$1 -> SRP/2025/03 | P1: CIN: | R1: ='Krycí list SR'!G13 -> 0 | AK1: náklady A.3 + A.4 | AM1: =K42+K46 -> 0 | AN1: NÁKLADY VÝPOČTEM | AT1: =CONCATENATE("Náklady stavby v aktuálním roce: ",IF('Krycí list SR'!BA4="","",'Krycí list SR'!BA4)) -> Náklady stavby v aktuálním roce: | BD1: Formulář 1.A | BE1: ='Krycí list SR'!$H$1 -> SRP/2025/03
A2: Název stavby: | C2: =IF('Krycí list SR'!B2="","",'Krycí list SR'!B2) ->  | P2: Podklad pro kontrolu výpočtu individuální kalkulace | AK2: předpokládané nestavení náklady | AM2: =AM3*(AO4+AO3) -> 0 | AN2: Teoretický CIN | AO2: =AM1+AM2+AM4+AO3+AO4+AQ3 -> 0 | AP2: rozdíl mezi teoretickým CIM a skutečným | AQ2: ='1A'!AO2/'Krycí list SR'!G13-100% ->  | AT2: Název stavby: | AV2: =IF('Krycí list SR'!AU2="","",'Krycí list SR'!AU2) -> 
A3: ISPROFIN: | C3: =IF('Krycí list SR'!$B$3="","",'Krycí list SR'!$B$3) ->  | E3: Označení (S-kód): | G3: =IF('Krycí list SR'!D3="","",'Krycí list SR'!D3) ->  | I3: =IF('Krycí list SR'!E3="","",'Krycí list SR'!E3) ->  | K3: =IF('Krycí list SR'!F3="<= vybrat Stádium v poli E3","",'Krycí list SR'!F3) ->  | P3: CIN Aktuální rok: | R3: ='1C'!I9 -> 0 | T3: B.1 | U3: =AO3 -> 0 | AM3: =IF(($AO$3+$AO$4)<50000000,23%,IF(($AO$3+AO4)>2000000000,8%,23%-(((($AO$3+AO4)/2000000000)*((23%-8%)))))) -> 0.23 | AN3: B.1 (SO) | AO3: =IF('3SO'!G6=0,0,'1B'!K8) -> 0 | AP3: rezerva | AQ3: ='1B'!K43 -> 0 | AT3: ISPROFIN: | AV3: =IF('Krycí list SR'!$B$3="","",'Krycí list SR'!$B$3) ->  | AX3: Označení (S-kód): | AZ3: =IF('Krycí list SR'!AW3="","",'Krycí list SR'!AW3) ->  | BB3: =IF('Krycí list SR'!AX3="","",'Krycí list SR'!AX3) ->  | BD3: ='Krycí list SR'!AY3 -> 0
A4: Investor: | B4: SŽ | D4: =IF('Krycí list SR'!$B$5="","",'Krycí list SR'!$B$5) ->  | I4: IČO: | J4: ='Krycí list SR'!$D$8 -> 70994234 | K4: DIČ: | L4: ='Krycí list SR'!D9 -> CZ70994234 | T4: B.2 | U4: =AO4 -> 0 | AK4: hodnota z inflace | AM4: ='2B'!H46+'2B'!H48+'2B'!H49 -> 0 | AN4: B.2 (PS) | AO4: =IF('3PS'!G6=0,0,'1B'!K16) -> 0 | AT4: Investor: | AU4: SŽ | AW4: =IF('Krycí list SR'!$B$5="","",'Krycí list SR'!$B$5) ->  | BB4: IČO: | BC4: ='Krycí list SR'!$D$8 -> 70994234 | BD4: DIČ: | BE4: ='Krycí list SR'!AW9 -> 0
A5: Jiný investor: | C5: =IF('Krycí list SR'!$B$7="","neurčen",'Krycí list SR'!$B$7) -> - | F5: Doplňující informace k stanovení nákladů | I5: Náklady dle rozdělení v Kč | P5: Tabulky stanovení nákladů | U5: Rozhraní pro procentní sazby (v mil. Kč) | AB5: =AB29+AB30 -> 0 | AC5: =AC29+AC30 -> 0 | AK5: dolní hranice | AL5: horní hranice | AM5: % stavebních nákladů z rozmezí | AN5: rozdíl min/max | AO5: Kč | AP5: Postupná redukce | AR5: redukce % sazby | AT5: Jiný investor: | AV5: =IF('Krycí list SR'!$B$7="","neurčen",'Krycí list SR'!$B$7) -> - | AY5: Doplňující informace k stanovení nákladů | BB5: Náklady dle rozdělení v Kč
A6: A | B6: Příprava a celkové zabezpečení stavby | F6: Doplňující informace | H6: Stanovení nákladů | I6: Kalkulací Smluvně | J6: Výpočtem | K6: Souhrn nákladů | L6: z toho podíl za Ostatní subjekty | M6: Pole pro pracovní výpočty bez tisku | O6: Součet nákladů | P6: sloupec I | U6: 0 | V6: 50 | W6: 200 | X6: 1000 | Y6: 2000 | Z6: 3000 | AA6: 5000 | AB6: maximální hodnota | AC6: Minimální hodnota | AD6: max % | AE6: min% | AF6: % z B.1 | AG6: % z B.2 | AH6: Kontrola překročení llimitní hranice % sazby | AM6: % stavebních nákladů z rozmezí | AP6: =((AO2/5000000000)) -> 0 | AR6: =IF($AO$2>18000000000,(((18000)-(AA6/1000))^2)/1000000000,(((AO2/1000000)-(AA6/1000))^2)/1000000000) -> 2.5e-08 | AT6: A | AU6: Příprava a celkové zabezpečení stavby | AY6: Doplňující informace | BA6: Stanovení nákladů | BB6: Kalkulací Smluvně | BC6: Výpočtem | BD6: Souhrn nákladů | BE6: z toho podíl za Ostatní subjekty
F7: =IF(T104="Chyba","Nelze stanovit výpočtem DUR a DUSL/DUSP",IF(X104="Chyba","Nelze stanovit výpočtem DUSL/DUSP a DSP","")) ->  | P7: Formáty | Q7: 4 | R7: 1 | S7: 1 | T7: 2 | U7: =IF(U6*1000000=$AK$8,1,IF(U6*1000000=$AL$8,1,0)) -> 1 | V7: 1 | W7: 0 | X7: 0 | Y7: 0 | Z7: 0 | AA7: 0 | AP7: redukce | AQ7: % nad 5 miliard | AR7: nad 18 miliard | AY7: =IF(#REF!="Chyba","Nelze stanovit výpočtem DUR a DUSL/DUSP",IF(#REF!="Chyba","Nelze stanovit výpočtem DUSL/DUSP a DSP","")) -> 
A8: A.1 | B8: Náklady investorsko - inženýrské činnosti ve výstavbě | H8: Nezařazeno | J8: =IF(H8="Výpočtem",AO8,0) -> 0 | K8: =O8 -> 0 | L8: =O8*hide!$D$59 -> 0 | O8: =IF(H8="Nezařazeno",0,IF(H8="Výpočtem",J8,I8)) -> 0 | P8: =IF((IF(H8="Individuálně",1,IF(H8="Smluvně",1,IF(H8="Nezařazeno",2,2))))=1,IF(I8=0,3,1),IF(H8="Výpočtem",4,2)) -> 2 | Q8: Výpočtem | R8: Smluvně | S8: Individuálně | T8: Nezařazeno | U8: 0.08 | V8: 0.08 | W8: 0.07 | X8: 0.05 | Y8: 0.03 | Z8: 0.028 | AA8: 0.02 | AB8: =($U$3*$AF8*AD8+$U$4*$AD8*AG8) -> 0 | AC8: =($U$3*$AF8*AE8+$U$4*$AE8*AG8) -> 0 | AD8: =IF($AO$2>5000000000,AA8,IF($AO$2>2000000000,Y8,IF($AO$2>($X$6*1000000),X8,IF($AO$2>($W$6*1000000),W8,IF($AO$2>($V$6*1000000),V8,U8))))) -> 0.08 | AE8: =IF($AO$2>5000000000,AA8,IF($AO$2>2000000000,Z8,IF($AO$2>($X$6*1000000),Y8,IF($AO$2>($W$6*1000000),X8,IF($AO$2>($V$6*1000000),W8,V8))))) -> 0.08 | AF8: 1 | AG8: 1 | AH8: =IF(I8>AB8,IF(H8="Aktualizace","PŘEKROČENÉ %",IF(H8="Individuálně","PŘEKROČENÉ","OK")),"OK") -> OK | AI8: =IF(AH8="PŘEKROČENÉ %",IF(H8="Výpočtem",0,IF(H8="Smluvně",0,IF(H8="Nezařazeno",0,IF(H8="Individuálně",IF(AH8="PŘEKROČENÉ %",100,1),1)))),0) -> 0 | AJ8: =IF(AH8="PŘEKROČENÉ %",IF(H8="Výpočtem",0,IF(H8="Smluvně",0,IF(H8="Nezařazeno",0,IF(H8="Individuálně",IF(AI8="PŘEKROČENÉ %",0,0),1)))),0) -> 0 | AK8: =IF($AO$2>$Y$6*1000000,$Y$6*1000000,IF($AO$2>($X$6*1000000),$X$6*1000000,IF($AO$2>($W$6*1000000),$W$6*1000000,IF($AO$2>($V$6*1000000),$V$6*1000000,0)))) -> 0 | AL8: =IF($AO$2>$Y$6*1000000,$AA$6*1000000,IF($AO$2>($X$6*1000000),$Y$6*1000000,IF($AO$2>($W$6*1000000),$X$6*1000000,IF($AO$2>($V$6*1000000),$W$6*1000000,$V$6*1000000)))) -> 50000000 | AM8: =IF($AO$2>5000000000,AQ8,IF($AO$2>$AA$6*1000000,AA8,IF($AO$2<Y$6*1000000,(Y8+(((V8-Y8)/($Y$6*1000000))*($Y$6*1000000-$AO$2))),IF($AO$2>$Y$6*1000000,IF($AO$2<$Z$6*1000000,Y8,(AA8+(((Y8-AA8)/($AA$6*1000000))*($AA$6*1000000-$AO$2)))),AA8)))) -> 0.08 | AN8: =IF(AO8=0,0,IF(AM8=0,0,100%-((AB8-AO8)/AB8))) -> 0 | AO8: =ROUND(AM8*(O9+O42+O46+O49+'1B'!I44),0) -> 0 | AP8: =$AA$6*AA8 -> 100 | AQ8: =IF($AO$2>18000000000,AR8,(((AP8-(AP8*$AR$6))*$AP$6/($AO$2/1000000)))) ->  | AR8: 0.013527198 | AT8: A.1 | AU8: Náklady investorsko - inženýrské činnosti ve výstavbě | BA8: Nezařazeno | BC8: =IF(BA8="Výpočtem",CG8,0) -> 0 | BD8: =BG8 -> 0 | BE8: =BG8*hide!$D$59 -> 0
A9: A.2 | B9: Náklady na dokumentace stavby | K9: =O9 -> 0 | L9: =L10+L21+L32+L33+L38 -> 0 | O9: =O10+O21+O32+O33+O38 -> 0 | AI9: =IF(AH9="PŘEKROČENÉ %",IF(H9="Smluvně",0,IF(H9="Nezařazeno",0,IF(H9="Individuálně",IF(AH9="PŘEKROČENÉ %",100,1),1))),0) -> 0 | AJ9: =IF(AH9="PŘEKROČENÉ %",IF(H9="Smluvně",0,IF(H9="Nezařazeno",0,IF(H9="Individuálně",IF(AI9="PŘEKROČENÉ %",0,0),1))),0) -> 0 | AO9: =ROUND(AM9*($AO$3*AF9+$AO$4*AG9),0) -> 0 | AT9: A.2 | AU9: Náklady na dokumentace stavby | BD9: =BG9 -> 0 | BE9: =BE10+BE21+BE32+BE33+BE38 -> 0
A10: A.2.1 | B10: z toho | C10: Náklady na předprojektové dokumentace pro přípravu stavby | J10: =O10 -> 0 | L10: =L11+L17+L20 -> 0 | O10: =O11+O17+O20 -> 0 | AI10: =IF(AH10="PŘEKROČENÉ %",IF(H10="Smluvně",0,IF(H10="Nezařazeno",0,IF(H10="Individuálně",IF(AH10="PŘEKROČENÉ %",100,1),1))),0) -> 0 | AJ10: =IF(AH10="PŘEKROČENÉ %",IF(H10="Smluvně",0,IF(H10="Nezařazeno",0,IF(H10="Individuálně",IF(AI10="PŘEKROČENÉ %",0,0),1))),0) -> 0 | AO10: =ROUND(AM10*($AO$3*AF10+$AO$4*AG10),0) -> 0 | AT10: A.2.1 | AU10: z toho | AV10: Náklady na předprojektové dokumentace pro přípravu stavby | BC10: =BG10 -> 0 | BE10: =BE11+BE17+BE20 -> 0
A11: A.2.1.1 | C11: z toho | D11: Práce prováděné pro zpracování předprojektových dokumentací | J11: =O11 -> 0 | L11: =J11*hide!$D$59 -> 0 | O11: =SUM(O12:O16) -> 0 | AI11: =IF(AH11="PŘEKROČENÉ %",IF(H11="Smluvně",0,IF(H11="Nezařazeno",0,IF(H11="Individuálně",IF(AH11="PŘEKROČENÉ %",100,1),1))),0) -> 0 | AJ11: =IF(AH11="PŘEKROČENÉ %",IF(H11="Smluvně",0,IF(H11="Nezařazeno",0,IF(H11="Individuálně",IF(AI11="PŘEKROČENÉ %",0,0),1))),0) -> 0 | AT11: A.2.1.1 | AV11: z toho | AW11: Práce prováděné pro zpracování předprojektových dokumentací | BC11: =BG11 -> 0 | BE11: =BC11*hide!$D$59 -> 0
A12: A.2.1.1.1 | B12: =IF(P12=4,IF(P23=4,IF($O$28>0,"Výpočtem jen v A.2.2.1.1",""),""),"") ->  | D12: z toho | E12: Geodetické práce a mapové podklady | H12: Nezařazeno | J12: =IF(H12="Výpočtem",(IF($I$3="",0,IF($I$3="Stádium 3",0,IF($I$3="Stádium 2",0,AO12)))),0) -> 0 | K12: =IF($I$3="Stádium 0","",IF($I$3="Stádium 1","",IF($I$3="","",IF(P12=4,CONCATENATE("Nelze ve ",$I$3),"")))) ->  | L12: =O12*hide!$D$59 -> 0 | O12: =IF(H12="Nezařazeno",0,IF(H12="Výpočtem",J12,I12)) -> 0 | P12: =IF((IF(H12="Individuálně",1,IF(H12="Smluvně",1,IF(H12="Nezařazeno",2,2))))=1,IF(I12=0,3,1),IF(H12="Výpočtem",4,2)) -> 2 | R12: Smluvně | S12: Individuálně | T12: Nezařazeno | U12: 0.0038 | V12: 0.0038 | W12: 0.0035 | X12: 0.0021 | Y12: 0.0005 | Z12: 0.0005 | AA12: 0.0005 | AB12: =($U$3*$AF12*AD12+$U$4*$AD12*AG12) -> 0 | AC12: =($U$3*$AF12*AE12+$U$4*$AE12*AG12) -> 0 | AD12: =IF($AO$2>5000000000,AA12,IF($AO$2>2000000000,Y12,IF($AO$2>($X$6*1000000),X12,IF($AO$2>($W$6*1000000),W12,IF($AO$2>($V$6*1000000),V12,U12))))) -> 0.0038 | AE12: =IF($AO$2>5000000000,AA12,IF($AO$2>2000000000,Z12,IF($AO$2>($X$6*1000000),Y12,IF($AO$2>($W$6*1000000),X12,IF($AO$2>($V$6*1000000),W12,V12))))) -> 0.0038 | AF12: 1 | AG12: 1 | AH12: =IF(I12>AB12,IF(H12="Aktualizace","PŘEKROČENÉ %",IF(H12="Individuálně","PŘEKROČENÉ","OK")),"OK") -> OK | AI12: =IF(AH12="PŘEKROČENÉ %",IF(H12="Výpočtem",0,IF(H12="Smluvně",0,IF(H12="Nezařazeno",0,IF(H12="Individuálně",IF(AH12="PŘEKROČENÉ %",100,1),1)))),0) -> 0 | AJ12: =IF(AH12="PŘEKROČENÉ %",IF(H12="Výpočtem",0,IF(H12="Smluvně",0,IF(H12="Nezařazeno",0,IF(H12="Individuálně",IF(AI12="PŘEKROČENÉ %",0,0),1)))),0) -> 0 | AK12: =IF($AO$2>$Y$6*1000000,$Y$6*1000000,IF($AO$2>($X$6*1000000),$X$6*1000000,IF($AO$2>($W$6*1000000),$W$6*1000000,IF($AO$2>($V$6*1000000),$V$6*1000000,0)))) -> 0 | AL12: =IF($AO$2>$Y$6*1000000,$AA$6*1000000,IF($AO$2>($X$6*1000000),$Y$6*1000000,IF($AO$2>($W$6*1000000),$X$6*1000000,IF($AO$2>($V$6*1000000),$W$6*1000000,$V$6*1000000)))) -> 50000000 | AM12: =IF($AO$2>5000000000,AQ12,IF($AO$2>$AA$6*1000000,AA12,IF($AO$2<Y$6*1000000,(Y12+(((V12-Y12)/($Y$6*1000000))*($Y$6*1000000-$AO$2))),IF($AO$2>$Y$6*1000000,IF($AO$2<$Z$6*1000000,Y12,(AA12+(((Y12-AA12)/($AA$6*1000000))*($AA$6*1000000-$AO$2)))),AA12)))) -> 0.0038 | AN12: =IF(AO12=0,0,IF(AM12=0,0,100%-((AB12-AO12)/AB12))) -> 0 | AO12: =ROUND(AM12*($AO$3*AF12+$AO$4*AG12),0) -> 0 | AP12: =$AA$6*AA12 -> 2.5 | AQ12: =IF($AO$2>18000000000,AR12,(((AP12-(AP12*$AR$6))*$AP$6/($AO$2/1000000)))) ->  | AR12: 0.00033817995 | AT12: A.2.1.1.1 | AU12: =IF(BH12=4,IF(BH23=4,IF($O$28>0,"Výpočtem jen v A.2.2.1.1",""),""),"") ->  | AW12: z toho | AX12: Geodetické práce a mapové podklady | BA12: Nezařazeno | BC12: =IF(BA12="Výpočtem",(IF($I$3="",0,IF($I$3="Stádium 3",0,IF($I$3="Stádium 2",0,CG12)))),0) -> 0 | BD12: =IF($I$3="Stádium 0","",IF($I$3="Stádium 1","",IF($I$3="","",IF(BH12=4,CONCATENATE("Nelze ve ",$I$3),"")))) ->  | BE12: =BG12*hide!$D$59 -> 0
A13: A.2.1.1.2 | B13: =IF(P13=4,IF(P24=4,IF($O$28>0,"Výpočtem jen v A.2.2.1.2",""),""),"") ->  | E13: Průzkumné práce pro předprojektové dokumentace | H13: Nezařazeno | J13: =IF(H13="Výpočtem",(IF($I$3="",0,IF($I$3="Stádium 3",0,IF($I$3="Stádium 2",0,AO13)))),0) -> 0 | K13: =IF($I$3="Stádium 0","",IF($I$3="Stádium 1","",IF($I$3="","",IF(P13=4,CONCATENATE("Nelze ve ",$I$3),"")))) ->  | L13: =O13*hide!$D$59 -> 0 | O13: =IF(H13="Nezařazeno",0,IF(H13="Výpočtem",J13,I13)) -> 0 | P13: =IF((IF(H13="Individuálně",1,IF(H13="Smluvně",1,IF(H13="Nezařazeno",2,2))))=1,IF(I13=0,3,1),IF(H13="Výpočtem",4,2)) -> 2 | R13: Smluvně | S13: Individuálně | T13: Nezařazeno | U13: 0.0104 | V13: 0.0104 | W13: 0.0098 | X13: 0.0072 | Y13: 0.0042 | Z13: 0.0042 | AA13: 0.0042 | AB13: =($U$3*$AF13*AD13+$U$4*$AD13*AG13) -> 0 | AC13: =($U$3*$AF13*AE13+$U$4*$AE13*AG13) -> 0 | AD13: =IF($AO$2>5000000000,AA13,IF($AO$2>2000000000,Y13,IF($AO$2>($X$6*1000000),X13,IF($AO$2>($W$6*1000000),W13,IF($AO$2>($V$6*1000000),V13,U13))))) -> 0.0104 | AE13: =IF($AO$2>5000000000,AA13,IF($AO$2>2000000000,Z13,IF($AO$2>($X$6*1000000),Y13,IF($AO$2>($W$6*1000000),X13,IF($AO$2>($V$6*1000000),W13,V13))))) -> 0.0104 | AF13: 1 | AG13: 0.05 | AH13: =IF(I13>AB13,IF(H13="Aktualizace","PŘEKROČENÉ %",IF(H13="Individuálně","PŘEKROČENÉ","OK")),"OK") -> OK | AI13: =IF(AH13="PŘEKROČENÉ %",IF(H13="Výpočtem",0,IF(H13="Smluvně",0,IF(H13="Nezařazeno",0,IF(H13="Individuálně",IF(AH13="PŘEKROČENÉ %",100,1),1)))),0) -> 0 | AJ13: =IF(AH13="PŘEKROČENÉ %",IF(H13="Výpočtem",0,IF(H13="Smluvně",0,IF(H13="Nezařazeno",0,IF(H13="Individuálně",IF(AI13="PŘEKROČENÉ %",0,0),1)))),0) -> 0 | AK13: =IF($AO$2>$Y$6*1000000,$Y$6*1000000,IF($AO$2>($X$6*1000000),$X$6*1000000,IF($AO$2>($W$6*1000000),$W$6*1000000,IF($AO$2>($V$6*1000000),$V$6*1000000,0)))) -> 0 | AL13: =IF($AO$2>$Y$6*1000000,$AA$6*1000000,IF($AO$2>($X$6*1000000),$Y$6*1000000,IF($AO$2>($W$6*1000000),$X$6*1000000,IF($AO$2>($V$6*1000000),$W$6*1000000,$V$6*1000000)))) -> 50000000 | AM13: =IF($AO$2>5000000000,AQ13,IF($AO$2>$AA$6*1000000,AA13,IF($AO$2<Y$6*1000000,(Y13+(((V13-Y13)/($Y$6*1000000))*($Y$6*1000000-$AO$2))),IF($AO$2>$Y$6*1000000,IF($AO$2<$Z$6*1000000,Y13,(AA13+(((Y13-AA13)/($AA$6*1000000))*($AA$6*1000000-$AO$2)))),AA13)))) -> 0.0104 | AN13: =IF(AO13=0,0,IF(AM13=0,0,100%-((AB13-AO13)/AB13))) -> 0 | AO13: =ROUND(AM13*($AO$3*AF13+$AO$4*AG13),0) -> 0 | AP13: =$AA$6*AA13 -> 21 | AQ13: =IF($AO$2>18000000000,AR13,(((AP13-(AP13*$AR$6))*$AP$6/($AO$2/1000000)))) ->  | AR13: 0.00284071158 | AT13: A.2.1.1.2 | AU13: =IF(BH13=4,IF(BH24=4,IF($O$28>0,"Výpočtem jen v A.2.2.1.2",""),""),"") ->  | AX13: Průzkumné práce pro předprojektové dokumentace | BA13: Nezařazeno | BC13: =IF(BA13="Výpočtem",(IF($I$3="",0,IF($I$3="Stádium 3",0,IF($I$3="Stádium 2",0,CG13)))),0) -> 0 | BD13: =IF($I$3="Stádium 0","",IF($I$3="Stádium 1","",IF($I$3="","",IF(BH13=4,CONCATENATE("Nelze ve ",$I$3),"")))) ->  | BE13: =BG13*hide!$D$59 -> 0
A14: A.2.1.1.3 | B14: =IF(O14>0,IF($H$16="Nezařazeno","DUR Nezařazená",""),"") ->  | E14: Posouzení vlivu stavby na životní prostředí | H14: Nezařazeno | L14: =O14*hide!$D$59 -> 0 | O14: =IF(H14="Nezařazeno",0,IF(H14="Výpočtem",J14,I14)) -> 0 | P14: =IF((IF(H14="Předpoklad",1,IF(H14="Smluvně",1,IF(H14="Nezařazeno",2,2))))=1,IF(I14=0,3,1),IF(H14="Výpočtem",4,2)) -> 2 | R14: Smluvně | S14: Předpoklad | T14: Nezařazeno | U14: není určena | AI14: =IF(AH14="PŘEKROČENÉ %",IF(H14="Smluvně",0,IF(H14="Nezařazeno",0,IF(H14="Individuálně",IF(AH14="PŘEKROČENÉ %",100,1),1))),0) -> 0 | AJ14: =IF(AH14="PŘEKROČENÉ %",IF(H14="Smluvně",0,IF(H14="Nezařazeno",0,IF(H14="Individuálně",IF(AI14="PŘEKROČENÉ %",0,0),1))),0) -> 0 | AT14: A.2.1.1.3 | AU14: =IF(BG14>0,IF($H$16="Nezařazeno","DUR Nezařazená",""),"") ->  | AX14: Posouzení vlivu stavby na životní prostředí | BA14: Nezařazeno | BE14: =BG14*hide!$D$59 -> 0
A15: A.2.1.1.4 | B15: =IF(P15=4,IF(P26=4,IF($O$28>0,"Výpočtem jen v A.2.2.1.4",""),""),"") ->  | E15: Inženýrská činnost pro předprojektové dokumentace | H15: Nezařazeno | J15: =IF(H15="Výpočtem",(IF($I$3="",0,IF($I$3="Stádium 3",0,IF($I$3="Stádium 2",0,AO15)))),0) -> 0 | K15: =IF($I$3="Stádium 0","",IF($I$3="Stádium 1","",IF($I$3="","",IF(P15=4,CONCATENATE("Nelze ve ",$I$3),"")))) ->  | L15: =O15*hide!$D$59 -> 0 | O15: =IF(H15="Nezařazeno",0,IF(H15="Výpočtem",J15,I15)) -> 0 | P15: =IF((IF(H15="Individuálně",1,IF(H15="Smluvně",1,IF(H15="Nezařazeno",2,2))))=1,IF(I15=0,3,1),IF(H15="Výpočtem",4,2)) -> 2 | R15: Smluvně | S15: Individuálně | T15: Nezařazeno | U15: 0.0035 | V15: 0.0027 | W15: 0.0026 | X15: 0.002 | Y15: 0.0014 | Z15: 0.0013 | AA15: 0.0012 | AB15: =($U$3*$AF15*AD15+$U$4*$AD15*AG15) -> 0 | AC15: =($U$3*$AF15*AE15+$U$4*$AE15*AG15) -> 0 | AD15: =IF($AO$2>5000000000,AA15,IF($AO$2>2000000000,Y15,IF($AO$2>($X$6*1000000),X15,IF($AO$2>($W$6*1000000),W15,IF($AO$2>($V$6*1000000),V15,U15))))) -> 0.0035 | AE15: =IF($AO$2>5000000000,AA15,IF($AO$2>2000000000,Z15,IF($AO$2>($X$6*1000000),Y15,IF($AO$2>($W$6*1000000),X15,IF($AO$2>($V$6*1000000),W15,V15))))) -> 0.0027 | AF15: 1 | AG15: 0.7 | AH15: =IF(I15>AB15,IF(H15="Aktualizace","PŘEKROČENÉ %",IF(H15="Individuálně","PŘEKROČENÉ","OK")),"OK") -> OK | AI15: =IF(AH15="PŘEKROČENÉ %",IF(H15="Výpočtem",0,IF(H15="Smluvně",0,IF(H15="Nezařazeno",0,IF(H15="Individuálně",IF(AH15="PŘEKROČENÉ %",100,1),1)))),0) -> 0 | AJ15: =IF(AH15="PŘEKROČENÉ %",IF(H15="Výpočtem",0,IF(H15="Smluvně",0,IF(H15="Nezařazeno",0,IF(H15="Individuálně",IF(AI15="PŘEKROČENÉ %",0,0),1)))),0) -> 0 | AK15: =IF($AO$2>$Y$6*1000000,$Y$6*1000000,IF($AO$2>($X$6*1000000),$X$6*1000000,IF($AO$2>($W$6*1000000),$W$6*1000000,IF($AO$2>($V$6*1000000),$V$6*1000000,0)))) -> 0 | AL15: =IF($AO$2>$Y$6*1000000,$AA$6*1000000,IF($AO$2>($X$6*1000000),$Y$6*1000000,IF($AO$2>($W$6*1000000),$X$6*1000000,IF($AO$2>($V$6*1000000),$W$6*1000000,$V$6*1000000)))) -> 50000000 | AM15: =IF($AO$2>5000000000,AQ15,IF($AO$2>$AA$6*1000000,AA15,IF($AO$2<Y$6*1000000,(Y15+(((V15-Y15)/($Y$6*1000000))*($Y$6*1000000-$AO$2))),IF($AO$2>$Y$6*1000000,IF($AO$2<$Z$6*1000000,Y15,(AA15+(((Y15-AA15)/($AA$6*1000000))*($AA$6*1000000-$AO$2)))),AA15)))) -> 0.0027 | AN15: =IF(AO15=0,0,IF(AM15=0,0,100%-((AB15-AO15)/AB15))) -> 0 | AO15: =ROUND(AM15*($AO$3*AF15+$AO$4*AG15),0) -> 0 | AP15: =$AA$6*AA15 -> 6 | AQ15: =IF($AO$2>18000000000,AR15,(((AP15-(AP15*$AR$6))*$AP$6/($AO$2/1000000)))) ->  | AT15: A.2.1.1.4 | AU15: =IF(BH15=4,IF(BH26=4,IF($O$28>0,"Výpočtem jen v A.2.2.1.4",""),""),"") ->  | AX15: Inženýrská činnost pro předprojektové dokumentace | BA15: Nezařazeno | BC15: =IF(BA15="Výpočtem",(IF($I$3="",0,IF($I$3="Stádium 3",0,IF($I$3="Stádium 2",0,CG15)))),0) -> 0 | BD15: =IF($I$3="Stádium 0","",IF($I$3="Stádium 1","",IF($I$3="","",IF(BH15=4,CONCATENATE("Nelze ve ",$I$3),"")))) ->  | BE15: =BG15*hide!$D$59 -> 0
A16: A.2.1.1.5 | E16: Ostatní náklady pro předprojektové dokumentace | H16: Nezařazeno | K16: =IF($I$3="Stádium 1","",IF($I$3="","",IF(P16=4,"Nelze Výpočtem v stádiu",""))) ->  | L16: =O16*hide!$D$59 -> 0 | O16: =IF(H16="Nezařazeno",0,IF(H16="Výpočtem",J16,I16)) -> 0 | P16: =IF((IF(H16="Individuálně",1,IF(H16="Smluvně",1,IF(H16="Nezařazeno",2,2))))=1,IF(I16=0,3,1),IF(H16="Výpočtem",4,2)) -> 2 | R16: Smluvně | S16: Individuálně | T16: Nezařazeno | U16: není určena | AI16: =IF(AH16="PŘEKROČENÉ %",IF(H16="Smluvně",0,IF(H16="Nezařazeno",0,IF(H16="Individuálně",IF(AH16="PŘEKROČENÉ %",100,1),1))),0) -> 0 | AJ16: =IF(AH16="PŘEKROČENÉ %",IF(H16="Smluvně",0,IF(H16="Nezařazeno",0,IF(H16="Individuálně",IF(AI16="PŘEKROČENÉ %",0,0),1))),0) -> 0 | AT16: A.2.1.1.5 | AX16: Ostatní náklady pro předprojektové dokumentace | BA16: Nezařazeno | BD16: =IF($I$3="Stádium 1","",IF($I$3="","",IF(BH16=4,"Nelze Výpočtem v stádiu",""))) ->  | BE16: =BG16*hide!$D$59 -> 0
A17: A.2.1.2 | D17: Záměr projektu | J17: =O17 -> 0 | K17: =IF($I$3="Stádium 1","",IF($I$3="","",IF(P17=4,"Nelze Výpočtem v stádiu",""))) ->  | L17: =SUM(L18:L19) -> 0 | O17: =SUM(O18:O19) -> 0 | AI17: =IF(AH17="PŘEKROČENÉ %",IF(H17="Smluvně",0,IF(H17="Nezařazeno",0,IF(H17="Individuálně",IF(AH17="PŘEKROČENÉ %",100,1),1))),0) -> 0 | AJ17: =IF(AH17="PŘEKROČENÉ %",IF(H17="Smluvně",0,IF(H17="Nezařazeno",0,IF(H17="Individuálně",IF(AI17="PŘEKROČENÉ %",0,0),1))),0) -> 0 | AT17: A.2.1.2 | AW17: Záměr projektu | BC17: =BG17 -> 0 | BD17: =IF($I$3="Stádium 1","",IF($I$3="","",IF(BH17=4,"Nelze Výpočtem v stádiu",""))) ->  | BE17: =SUM(BE18:BE19) -> 0
A18: A.2.1.2.1 | D18: z toho | E18: Záměr projektu, povinný obsah | G18: ZP | H18: Nezařazeno | J18: =IF(H18="Výpočtem",(IF($I$3="",0,IF($I$3="Stádium 3",0,IF($I$3="Stádium 2",0,AO18)))),0) -> 0 | K18: =IF($I$3="Stádium 0","",IF($I$3="Stádium 1","",IF($I$3="","",IF(P18=4,CONCATENATE("Nelze ve ",$I$3),"")))) ->  | L18: =O18*hide!$D$59 -> 0 | O18: =IF(H18="Nezařazeno",0,IF(H18="Výpočtem",J18,I18)) -> 0 | P18: =IF((IF(H18="Individuálně",1,IF(H18="Smluvně",1,IF(H18="Nezařazeno",2,2))))=1,IF(I18=0,3,1),IF(H18="Výpočtem",4,2)) -> 2 | Q18: Výpočtem | R18: Smluvně | S18: Individuálně | T18: Nezařazeno | V18: 0.0025 | W18: 0.0015 | X18: 0.001 | Y18: 0.0008 | Z18: 0.0008 | AA18: 0.0005 | AB18: =($U$3*$AF18*AD18+$U$4*$AD18*AG18) -> 0 | AC18: =($U$3*$AF18*AE18+$U$4*$AE18*AG18) -> 0 | AD18: =IF($AO$2>5000000000,AA18,IF($AO$2>2000000000,Y18,IF($AO$2>($X$6*1000000),X18,IF($AO$2>($W$6*1000000),W18,IF($AO$2>($V$6*1000000),V18,V18))))) -> 0.0025 | AE18: =IF($AO$2>5000000000,AA18,IF($AO$2>2000000000,Z18,IF($AO$2>($X$6*1000000),Y18,IF($AO$2>($W$6*1000000),X18,IF($AO$2>($V$6*1000000),W18,V18))))) -> 0.0025 | AF18: 1 | AG18: 1 | AH18: =IF(I18>AB18,IF(H18="Aktualizace","PŘEKROČENÉ %",IF(H18="Individuálně","PŘEKROČENÉ","OK")),"OK") -> OK | AI18: =IF(AH18="PŘEKROČENÉ %",IF(H18="Smluvně",0,IF(H18="Nezařazeno",0,IF(H18="Individuálně",IF(AH18="PŘEKROČENÉ %",100,1),1))),0) -> 0 | AJ18: =IF(AH18="PŘEKROČENÉ %",IF(H18="Smluvně",0,IF(H18="Nezařazeno",0,IF(H18="Individuálně",IF(AI18="PŘEKROČENÉ %",0,0),1))),0) -> 0 | AK18: =IF($AO$2>$Y$6*1000000,$Y$6*1000000,IF($AO$2>($X$6*1000000),$X$6*1000000,IF($AO$2>($W$6*1000000),$W$6*1000000,IF($AO$2>($V$6*1000000),$V$6*1000000,0)))) -> 0 | AL18: =IF($AO$2>$Y$6*1000000,$AA$6*1000000,IF($AO$2>($X$6*1000000),$Y$6*1000000,IF($AO$2>($W$6*1000000),$X$6*1000000,IF($AO$2>($V$6*1000000),$W$6*1000000,$V$6*1000000)))) -> 50000000 | AM18: =IF($AO$2>5000000000,AQ18,IF($AO$2>$AA$6*1000000,AA18,IF($AO$2<Y$6*1000000,(Y18+(((V18-Y18)/($Y$6*1000000))*($Y$6*1000000-$AO$2))),IF($AO$2>$Y$6*1000000,IF($AO$2<$Z$6*1000000,Y18,(AA18+(((Y18-AA18)/($AA$6*1000000))*($AA$6*1000000-$AO$2)))),AA18)))) -> 0.0025 | AN18: =IF(AO18=0,0,IF(AM18=0,0,100%-((AB18-AO18)/AB18))) -> 0 | AO18: =ROUND(AM18*($AO$3*AF18+$AO$4*AG18),0) -> 0 | AP18: =$AA$6*AA18 -> 2.5 | AQ18: =IF($AO$2>18000000000,AR18,(((AP18-(AP18*$AR$6))*$AP$6/($AO$2/1000000)))) ->  | AR18: 0.00033817995 | AT18: A.2.1.2.1 | AW18: z toho | AX18: Záměr projektu, povinný obsah | AZ18: ZP | BA18: Nezařazeno | BC18: =IF(BA18="Výpočtem",(IF($I$3="",0,IF($I$3="Stádium 3",0,IF($I$3="Stádium 2",0,CG18)))),0) -> 0 | BD18: =IF($I$3="Stádium 0","",IF($I$3="Stádium 1","",IF($I$3="","",IF(BH18=4,CONCATENATE("Nelze ve ",$I$3),"")))) ->  | BE18: =BG18*hide!$D$59 -> 0
A19: A.2.1.2.2 | E19: Doprovodná dokumentace | G19: DD | H19: Nezařazeno | L19: =O19*hide!$D$59 -> 0 | O19: =IF(H19="Nezařazeno",0,IF(H19="Výpočtem",J19,I19)) -> 0 | P19: =IF((IF(H19="Předpoklad",1,IF(H19="Smluvně",1,IF(H19="Nezařazeno",2,2))))=1,IF(I19=0,3,1),IF(H19="Výpočtem",4,2)) -> 2 | R19: Smluvně | S19: Předpoklad | T19: Nezařazeno | U19: není určena | AI19: =IF(AH19="PŘEKROČENÉ %",IF(H19="Smluvně",0,IF(H19="Nezařazeno",0,IF(H19="Individuálně",IF(AH19="PŘEKROČENÉ %",100,1),1))),0) -> 0 | AJ19: =IF(AH19="PŘEKROČENÉ %",IF(H19="Smluvně",0,IF(H19="Nezařazeno",0,IF(H19="Individuálně",IF(AI19="PŘEKROČENÉ %",0,0),1))),0) -> 0 | AT19: A.2.1.2.2 | AX19: Doprovodná dokumentace | AZ19: DD | BA19: Nezařazeno | BE19: =BG19*hide!$D$59 -> 0
A20: A.2.1.3 | C20: =IF($T$104="Chyba","=>","") ->  | D20: Dokumentace pro územní řízení | G20: DUR | H20: Nezařazeno | J20: =IF(T104="Chyba",0,IF(H20="Výpočtem",(IF($I$3="",0,IF($I$3="Stádium 3",0,IF($I$3="Stádium 2",0,AO20)))),0)) -> 0 | K20: =IF($I$3="Stádium 0","",IF($I$3="Stádium 1","",IF($I$3="","",IF(P20=4,CONCATENATE("Nelze ve ",$I$3),"")))) ->  | L20: =O20*hide!$D$59 -> 0 | O20: =IF(H20="Nezařazeno",0,IF(H20="Výpočtem",J20,I20)) -> 0 | P20: =IF((IF(H20="Individuálně",1,IF(H20="Smluvně",1,IF(H20="Nezařazeno",2,2))))=1,IF(I20=0,3,1),IF(H20="Výpočtem",4,2)) -> 2 | R20: Smluvně | S20: Individuálně | T20: Nezařazeno | U20: 0.03 | V20: =V68 -> 0.022 | W20: =W68 -> 0.018 | X20: =X68 -> 0.012 | Y20: 0.008 | Z20: 0.007 | AA20: 0.006 | AB20: =($U$3*$AF20*AD20+$U$4*$AD20*AG20) -> 0 | AC20: =($U$3*$AF20*AE20+$U$4*$AE20*AG20) -> 0 | AD20: =IF($AO$2>5000000000,AA20,IF($AO$2>2000000000,Y20,IF($AO$2>($X$6*1000000),X20,IF($AO$2>($W$6*1000000),W20,IF($AO$2>($V$6*1000000),V20,U20))))) -> 0.03 | AE20: =IF($AO$2>5000000000,AA20,IF($AO$2>2000000000,Z20,IF($AO$2>($X$6*1000000),Y20,IF($AO$2>($W$6*1000000),X20,IF($AO$2>($V$6*1000000),W20,V20))))) -> 0.022 | AF20: 1 | AG20: 1 | AH20: =IF(I20>AB20,IF(H20="Aktualizace","PŘEKROČENÉ %",IF(H20="Individuálně","PŘEKROČENÉ","OK")),"OK") -> OK | AI20: =IF(AH20="PŘEKROČENÉ %",IF(H20="Výpočtem",0,IF(H20="Smluvně",0,IF(H20="Nezařazeno",0,IF(H20="Individuálně",IF(AH20="PŘEKROČENÉ %",100,1),1)))),0) -> 0 | AJ20: =IF(AH20="PŘEKROČENÉ %",IF(H20="Výpočtem",0,IF(H20="Smluvně",0,IF(H20="Nezařazeno",0,IF(H20="Individuálně",IF(AI20="PŘEKROČENÉ %",0,0),1)))),0) -> 0 | AK20: =IF($AO$2>$Y$6*1000000,$Y$6*1000000,IF($AO$2>($X$6*1000000),$X$6*1000000,IF($AO$2>($W$6*1000000),$W$6*1000000,IF($AO$2>($V$6*1000000),$V$6*1000000,0)))) -> 0 | AL20: =IF($AO$2>$Y$6*1000000,$AA$6*1000000,IF($AO$2>($X$6*1000000),$Y$6*1000000,IF($AO$2>($W$6*1000000),$X$6*1000000,IF($AO$2>($V$6*1000000),$W$6*1000000,$V$6*1000000)))) -> 50000000 | AM20: =IF($AO$2>5000000000,AQ20,IF($AO$2>$AA$6*1000000,AA20,IF($AO$2<Y$6*1000000,(Y20+(((V20-Y20)/($Y$6*1000000))*($Y$6*1000000-$AO$2))),IF($AO$2>$Y$6*1000000,IF($AO$2<$Z$6*1000000,Y20,(AA20+(((Y20-AA20)/($AA$6*1000000))*($AA$6*1000000-$AO$2)))),AA20)))) -> 0.022 | AN20: =IF(AO20=0,0,IF(AM20=0,0,100%-((AB20-AO20)/AB20))) -> 0 | AO20: =ROUND(AM20*($AO$3*AF20+$AO$4*AG20),0) -> 0 | AP20: =$AA$6*AA20 -> 30 | AQ20: =IF($AO$2>18000000000,AR20,(((AP20-(AP20*$AR$6))*$AP$6/($AO$2/1000000)))) ->  | AR20: 0.0040581594 | AT20: A.2.1.3 | AV20: =IF($T$104="Chyba","=>","") ->  | AW20: Dokumentace pro územní řízení | AZ20: DUR | BA20: Nezařazeno | BC20: =IF(BL104="Chyba",0,IF(BA20="Výpočtem",(IF($I$3="",0,IF($I$3="Stádium 3",0,IF($I$3="Stádium 2",0,CG20)))),0)) -> 0 | BD20: =IF($I$3="Stádium 0","",IF($I$3="Stádium 1","",IF($I$3="","",IF(BH20=4,CONCATENATE("Nelze ve ",$I$3),"")))) ->  | BE20: =BG20*hide!$D$59 -> 0
A21: A.2.2 | C21: Náklady na projektové dokumentace | J21: =O21 -> 0 | L21: =L22+L28+L29+L30+L31 -> 0 | O21: =O22+O28+O29+O30+O31 -> 0 | AI21: =IF(AH21="PŘEKROČENÉ %",IF(H21="Smluvně",0,IF(H21="Nezařazeno",0,IF(H21="Individuálně",IF(AH21="PŘEKROČENÉ %",100,1),1))),0) -> 0 | AJ21: =IF(AH21="PŘEKROČENÉ %",IF(H21="Smluvně",0,IF(H21="Nezařazeno",0,IF(H21="Individuálně",IF(AI21="PŘEKROČENÉ %",0,0),1))),0) -> 0 | AT21: A.2.2 | AV21: Náklady na projektové dokumentace | BC21: =BG21 -> 0 | BE21: =BE22+BE28+BE29+BE30+BE31 -> 0
A22: A.2.2.1 | C22: z toho | D22: Práce prováděné pro zpracování projektových dokumentací | J22: =O22 -> 0 | L22: =SUM(L23:L27) -> 0 | O22: =SUM(O23:O27) -> 0 | AI22: =IF(AH22="PŘEKROČENÉ %",IF(H22="Smluvně",0,IF(H22="Nezařazeno",0,IF(H22="Individuálně",IF(AH22="PŘEKROČENÉ %",100,1),1))),0) -> 0 | AJ22: =IF(AH22="PŘEKROČENÉ %",IF(H22="Smluvně",0,IF(H22="Nezařazeno",0,IF(H22="Individuálně",IF(AI22="PŘEKROČENÉ %",0,0),1))),0) -> 0 | AT22: A.2.2.1 | AV22: z toho | AW22: Práce prováděné pro zpracování projektových dokumentací | BC22: =BG22 -> 0 | BE22: =SUM(BE23:BE27) -> 0
A23: A.2.2.1.1 | B23: =IF(P12=4,IF(P23=4,IF($O$28>0,"=>",""),""),"") ->  | D23: z toho | E23: Geodetické práce a mapové podklady | H23: Nezařazeno | J23: =IF(H23="Výpočtem",(IF($I$3="",0,IF($I$3="Stádium 3",0,AO23))),0) -> 0 | K23: =IF(U107="ANO",IF(P23=4,"Nelze výpočtem",""),"") ->  | L23: =O23*hide!$D$59 -> 0 | O23: =IF(H23="Nezařazeno",0,IF(H23="Výpočtem",J23,I23)) -> 0 | P23: =IF((IF(H23="Individuálně",1,IF(H23="Smluvně",1,IF(H23="Nezařazeno",2,2))))=1,IF(I23=0,3,1),IF(H23="Výpočtem",4,2)) -> 2 | Q23: Výpočtem | R23: Smluvně | S23: Individuálně | T23: Nezařazeno | U23: =U94 -> 0.005 | V23: =V94 -> 0.005 | W23: 0.0046 | X23: 0.0028 | Y23: 0.0007 | Z23: 0.0007 | AA23: 0.0007 | AB23: =($U$3*$AF23*AD23+$U$4*$AD23*AG23) -> 0 | AC23: =($U$3*$AF23*AE23+$U$4*$AE23*AG23) -> 0 | AD23: =IF($AO$2>5000000000,AA23,IF($AO$2>2000000000,Y23,IF($AO$2>($X$6*1000000),X23,IF($AO$2>($W$6*1000000),W23,IF($AO$2>($V$6*1000000),V23,U23))))) -> 0.005 | AE23: =IF($AO$2>5000000000,AA23,IF($AO$2>2000000000,Z23,IF($AO$2>($X$6*1000000),Y23,IF($AO$2>($W$6*1000000),X23,IF($AO$2>($V$6*1000000),W23,V23))))) -> 0.005 | AF23: 1 | AG23: 1 | AH23: =IF(I23>AB23,IF(H23="Aktualizace","PŘEKROČENÉ %",IF(H23="Individuálně","PŘEKROČENÉ","OK")),"OK") -> OK | AI23: =IF(AH23="PŘEKROČENÉ %",IF(H23="Výpočtem",0,IF(H23="Smluvně",0,IF(H23="Nezařazeno",0,IF(H23="Individuálně",IF(AH23="PŘEKROČENÉ %",100,1),1)))),0) -> 0 | AJ23: =IF(AH23="PŘEKROČENÉ %",IF(H23="Výpočtem",0,IF(H23="Smluvně",0,IF(H23="Nezařazeno",0,IF(H23="Individuálně",IF(AI23="PŘEKROČENÉ %",0,0),1)))),0) -> 0 | AK23: =IF($AO$2>$Y$6*1000000,$Y$6*1000000,IF($AO$2>($X$6*1000000),$X$6*1000000,IF($AO$2>($W$6*1000000),$W$6*1000000,IF($AO$2>($V$6*1000000),$V$6*1000000,0)))) -> 0 | AL23: =IF($AO$2>$Y$6*1000000,$AA$6*1000000,IF($AO$2>($X$6*1000000),$Y$6*1000000,IF($AO$2>($W$6*1000000),$X$6*1000000,IF($AO$2>($V$6*1000000),$W$6*1000000,$V$6*1000000)))) -> 50000000 | AM23: =IF($AO$2>5000000000,AQ23,IF($AO$2>$AA$6*1000000,AA23,IF($AO$2<Y$6*1000000,(Y23+(((V23-Y23)/($Y$6*1000000))*($Y$6*1000000-$AO$2))),IF($AO$2>$Y$6*1000000,IF($AO$2<$Z$6*1000000,Y23,(AA23+(((Y23-AA23)/($AA$6*1000000))*($AA$6*1000000-$AO$2)))),AA23)))) -> 0.005 | AN23: =IF(AO23=0,0,IF(AM23=0,0,100%-((AB23-AO23)/AB23))) -> 0 | AO23: =ROUND(AM23*($AO$3*AF23+$AO$4*AG23),0) -> 0 | AP23: =$AA$6*AA23 -> 3.5 | AQ23: =IF($AO$2>18000000000,AR23,(((AP23-(AP23*$AR$6))*$AP$6/($AO$2/1000000)))) ->  | AR23: 0.00047345193 | AT23: A.2.2.1.1 | AU23: =IF(BH12=4,IF(BH23=4,IF($O$28>0,"=>",""),""),"") ->  | AW23: z toho | AX23: Geodetické práce a mapové podklady | BA23: Nezařazeno | BC23: =IF(BA23="Výpočtem",(IF($I$3="",0,IF($I$3="Stádium 3",0,CG23))),0) -> 0 | BD23: =IF(BM107="ANO",IF(BH23=4,"Nelze výpočtem",""),"") ->  | BE23: =BG23*hide!$D$59 -> 0
A24: A.2.2.1.2 | B24: =IF(P13=4,IF(P24=4,IF($O$28>0,"=>",""),""),"") ->  | E24: Geotechnický průzkum | H24: Nezařazeno | J24: =IF(H24="Výpočtem",(IF($I$3="",0,IF($I$3="Stádium 3",0,AO24))),0) -> 0 | K24: =IF(U108="ANO",IF(P24=4,"Nelze výpočtem",""),"") ->  | L24: =O24*hide!$D$59 -> 0 | O24: 0 | P24: 2 | Q24: Výpočtem | R24: Smluvně | S24: Individuálně | T24: Nezařazeno | U24: =U95 -> 0.02 | V24: 0.016 | W24: 0.015 | X24: 0.0111 | Y24: 0.0064 | Z24: 0.0045 | AA24: 0.0045 | AB24: =($U$3*$AF24*AD24+$U$4*$AD24*AG24) -> 0 | AC24: =($U$3*$AF24*AE24+$U$4*$AE24*AG24) -> 0 | AD24: =IF($AO$2>5000000000,AA24,IF($AO$2>2000000000,Y24,IF($AO$2>($X$6*1000000),X24,IF($AO$2>($W$6*1000000),W24,IF($AO$2>($V$6*1000000),V24,U24))))) -> 0.02 | AE24: =IF($AO$2>5000000000,AA24,IF($AO$2>2000000000,Z24,IF($AO$2>($X$6*1000000),Y24,IF($AO$2>($W$6*1000000),X24,IF($AO$2>($V$6*1000000),W24,V24))))) -> 0.016 | AF24: 1 | AG24: 0.05 | AH24: =IF(I24>AB24,IF(H24="Aktualizace","PŘEKROČENÉ %",IF(H24="Individuálně","PŘEKROČENÉ","OK")),"OK") -> OK | AI24: =IF(AH24="PŘEKROČENÉ %",IF(H24="Výpočtem",0,IF(H24="Smluvně",0,IF(H24="Nezařazeno",0,IF(H24="Individuálně",IF(AH24="PŘEKROČENÉ %",100,1),1)))),0) -> 0 | AJ24: =IF(AH24="PŘEKROČENÉ %",IF(H24="Výpočtem",0,IF(H24="Smluvně",0,IF(H24="Nezařazeno",0,IF(H24="Individuálně",IF(AI24="PŘEKROČENÉ %",0,0),1)))),0) -> 0 | AK24: 0 | AL24: 50000000 | AM24: 0.016 | AN24: =IF(AO24=0,0,IF(AM24=0,0,100%-((AB24-AO24)/AB24))) -> 0 | AO24: 0 | AP24: 22.5 | AQ24: =IF($AO$2>18000000000,AR24,(((AP24-(AP24*$AR$6))*$AP$6/($AO$2/1000000)))) ->  | AR24: 0.00304361955 | AT24: A.2.2.1.2 | AU24: =IF(BH13=4,IF(BH24=4,IF($O$28>0,"=>",""),""),"") ->  | AX24: Geotechnický průzkum | BA24: Nezařazeno | BC24: =IF(BA24="Výpočtem",(IF($I$3="",0,IF($I$3="Stádium 3",0,CG24))),0) -> 0 | BD24: =IF(BM108="ANO",IF(BH24=4,"Nelze výpočtem",""),"") ->  | BE24: =BG24*hide!$D$59 -> 0
A25: A.2.2.1.3 | E25: Ostatní průzkumné práce | H25: Nezařazeno | J25: =IF(H25="Výpočtem",(IF($I$3="",0,IF($I$3="Stádium 3",0,AO25))),0) -> 0 | K25: =IF($I$3="Stádium 3",IF($I$3="","",IF(P25=4,CONCATENATE("Nelze ve ",$I$3),"")),"") ->  | L25: =O25*hide!$D$59 -> 0 | O25: 0 | P25: 2 | Q25: Výpočtem | R25: Smluvně | S25: Individuálně | T25: Nezařazeno | U25: 0.02 | V25: 0.012 | W25: 0.01 | X25: 0.008 | Y25: 0.005 | Z25: 0.005 | AA25: 0.005 | AB25: =(PN!L20+PN!L23+PN!L26+PN!L27/2)*AD25 -> 0 | AC25: =(PN!L20+PN!L23+PN!L26+PN!L27/2)*AE25 -> 0 | AD25: =IF($AO$2>5000000000,AA25,IF($AO$2>2000000000,Y25,IF($AO$2>($X$6*1000000),X25,IF($AO$2>($W$6*1000000),W25,IF($AO$2>($V$6*1000000),V25,U25))))) -> 0.02 | AE25: =IF($AO$2>5000000000,AA25,IF($AO$2>2000000000,Z25,IF($AO$2>($X$6*1000000),Y25,IF($AO$2>($W$6*1000000),X25,IF($AO$2>($V$6*1000000),W25,V25))))) -> 0.012 | AH25: =IF(I25>AB25,IF(H25="Aktualizace","PŘEKROČENÉ %",IF(H25="Individuálně","PŘEKROČENÉ","OK")),"OK") -> OK | AI25: =IF(AH25="PŘEKROČENÉ %",IF(H25="Výpočtem",0,IF(H25="Smluvně",0,IF(H25="Nezařazeno",0,IF(H25="Individuálně",IF(AH25="PŘEKROČENÉ %",100,1),1)))),0) -> 0 | AJ25: =IF(AH25="PŘEKROČENÉ %",IF(H25="Výpočtem",0,IF(H25="Smluvně",0,IF(H25="Nezařazeno",0,IF(H25="Individuálně",IF(AI25="PŘEKROČENÉ %",0,0),1)))),0) -> 0 | AK25: 0 | AL25: 50000000 | AM25: 0.012 | AN25: =IF(AO25=0,0,IF(AM25=0,0,100%-((AB25-AO25)/AB25))) -> 0 | AO25: =ROUND(AM25*(PN!L20+PN!L23+PN!L26+PN!L27/2),0) -> 0 | AP25: 25 | AQ25: =IF($AO$2>18000000000,AR25,(((AP25-(AP25*$AR$6))*$AP$6/($AO$2/1000000)))) ->  | AR25: 0.0033817995 | AT25: A.2.2.1.3 | AX25: Ostatní průzkumné práce | BA25: Nezařazeno | BC25: =IF(BA25="Výpočtem",(IF($I$3="",0,IF($I$3="Stádium 3",0,CG25))),0) -> 0 | BD25: =IF($I$3="Stádium 3",IF($I$3="","",IF(BH25=4,CONCATENATE("Nelze ve ",$I$3),"")),"") ->  | BE25: =BG25*hide!$D$59 -> 0
A26: A.2.2.1.4 | B26: =IF(P15=4,IF(P26=4,IF($O$28>0,"=>",""),""),"") ->  | E26: Inženýrská činnost pro projektové dokumentace | H26: Nezařazeno | J26: =IF(H26="Výpočtem",(IF($I$3="",0,IF($I$3="Stádium 3",0,AO26))),0) -> 0 | K26: =IF(U109="ANO",IF(P26=4,"Nelze výpočtem",""),"") ->  | L26: =O26*hide!$D$59 -> 0 | O26: 0 | P26: 2 | Q26: Výpočtem | R26: Smluvně | S26: Individuálně | T26: Nezařazeno | U26: =U96 -> 0.0058 | V26: =V96 -> 0.0045 | W26: 0.0043 | X26: 0.0034 | Y26: 0.0023 | Z26: 0.0023 | AA26: 0.0023 | AB26: =($U$3*$AF26*AD26+$U$4*$AD26*AG26) -> 0 | AC26: =($U$3*$AF26*AE26+$U$4*$AE26*AG26) -> 0 | AD26: =IF($AO$2>5000000000,AA26,IF($AO$2>2000000000,Y26,IF($AO$2>($X$6*1000000),X26,IF($AO$2>($W$6*1000000),W26,IF($AO$2>($V$6*1000000),V26,U26))))) -> 0.0058 | AE26: =IF($AO$2>5000000000,AA26,IF($AO$2>2000000000,Z26,IF($AO$2>($X$6*1000000),Y26,IF($AO$2>($W$6*1000000),X26,IF($AO$2>($V$6*1000000),W26,V26))))) -> 0.0045 | AF26: 1 | AG26: 0.7 | AH26: =IF(I26>AB26,IF(H26="Aktualizace","PŘEKROČENÉ %",IF(H26="Individuálně","PŘEKROČENÉ","OK")),"OK") -> OK | AI26: =IF(AH26="PŘEKROČENÉ %",IF(H26="Výpočtem",0,IF(H26="Smluvně",0,IF(H26="Nezařazeno",0,IF(H26="Individuálně",IF(AH26="PŘEKROČENÉ %",100,1),1)))),0) -> 0 | AJ26: =IF(AH26="PŘEKROČENÉ %",IF(H26="Výpočtem",0,IF(H26="Smluvně",0,IF(H26="Nezařazeno",0,IF(H26="Individuálně",IF(AI26="PŘEKROČENÉ %",0,0),1)))),0) -> 0 | AK26: 0 | AL26: 50000000 | AM26: 0.0045 | AN26: =IF(AO26=0,0,IF(AM26=0,0,100%-((AB26-AO26)/AB26))) -> 0 | AO26: =ROUND(AM26*($AO$3*AF26+$AO$4*AG26),0) -> 0 | AP26: 11.5 | AQ26: =IF($AO$2>18000000000,AR26,(((AP26-(AP26*$AR$6))*$AP$6/($AO$2/1000000)))) ->  | AR26: 0.00155562777 | AT26: A.2.2.1.4 | AU26: =IF(BH15=4,IF(BH26=4,IF($O$28>0,"=>",""),""),"") ->  | AX26: Inženýrská činnost pro projektové dokumentace | BA26: Nezařazeno | BC26: =IF(BA26="Výpočtem",(IF($I$3="",0,IF($I$3="Stádium 3",0,CG26))),0) -> 0 | BD26: =IF(BM109="ANO",IF(BH26=4,"Nelze výpočtem",""),"") ->  | BE26: =BG26*hide!$D$59 -> 0
A27: A.2.2.1.5 | E27: Ostatní náklady pro projektové dokumentace | H27: Nezařazeno | L27: =O27*hide!$D$59 -> 0 | O27: 0 | P27: 2 | R27: Smluvně | S27: Individuálně | T27: Nezařazeno | U27: není určena | AI27: =IF(AH27="PŘEKROČENÉ %",IF(H27="Smluvně",0,IF(H27="Nezařazeno",0,IF(H27="Individuálně",IF(AH27="PŘEKROČENÉ %",100,1),1))),0) -> 0 | AJ27: =IF(AH27="PŘEKROČENÉ %",IF(H27="Smluvně",0,IF(H27="Nezařazeno",0,IF(H27="Individuálně",IF(AI27="PŘEKROČENÉ %",0,0),1))),0) -> 0 | AT27: A.2.2.1.5 | AX27: Ostatní náklady pro projektové dokumentace | BA27: Nezařazeno | BE27: =BG27*hide!$D$59 -> 0
A28: A.2.2.2 | B28: =IF(B23="",IF(B24="",IF(B26="","","DUSP/L"),"DUSP/L"),"DUSP/L") ->  | C28: =IF($T$104="Chyba","=>","") ->  | D28: Projektová dokumentace společné povolení | G28: DPS | H28: Nezařazeno | J28: =IF(T104="Chyba",0,IF(X104="Chyba",0,IF(H28="Výpočtem",AO28,0))) -> 0 | K28: =IF($V$103="Výpočtem",IF($X$104="Chyba","Nelze výpočtem",IF($T$104="Chyba","Nelze výpočtem","")),"") ->  | L28: =O28*hide!$D$59 -> 0 | O28: 0 | P28: 2 | Q28: =IF(G28="DUSL/DUSP","",IF(G28="DUSP","","Výpočtem")) -> Výpočtem | R28: Smluvně | S28: Individuálně | T28: Nezařazeno | U28: =U97 -> 0 | V28: =V97 -> 0 | W28: 0 | X28: 0 | Y28: 0 | Z28: 0 | AA28: 0 | AB28: =($U$3*$AF28*AD28+$U$4*$AD28*AG28) -> 0 | AC28: =($U$3*$AF28*AE28+$U$4*$AE28*AG28) -> 0 | AD28: =IF($AO$2>5000000000,AA28,IF($AO$2>2000000000,Y28,IF($AO$2>($X$6*1000000),X28,IF($AO$2>($W$6*1000000),W28,IF($AO$2>($V$6*1000000),V28,U28))))) -> 0 | AE28: =IF($AO$2>5000000000,AA28,IF($AO$2>2000000000,Z28,IF($AO$2>($X$6*1000000),Y28,IF($AO$2>($W$6*1000000),X28,IF($AO$2>($V$6*1000000),W28,V28))))) -> 0 | AF28: 0.6 | AG28: 0.6 | AH28: =IF(I28>AB28,IF(H28="Aktualizace","PŘEKROČENÉ %",IF(H28="Individuálně","PŘEKROČENÉ","OK")),"OK") -> OK | AI28: =IF(AH28="PŘEKROČENÉ %",IF(H28="Výpočtem",0,IF(H28="Smluvně",0,IF(H28="Nezařazeno",0,IF(H28="Individuálně",IF(AH28="PŘEKROČENÉ %",100,1),1)))),0) -> 0 | AJ28: =IF(AH28="PŘEKROČENÉ %",IF(H28="Výpočtem",0,IF(H28="Smluvně",0,IF(H28="Nezařazeno",0,IF(H28="Individuálně",IF(AI28="PŘEKROČENÉ %",0,0),1)))),0) -> 0 | AK28: =IF($AO$2>$Y$6*1000000,$Y$6*1000000,IF($AO$2>($X$6*1000000),$X$6*1000000,IF($AO$2>($W$6*1000000),$W$6*1000000,IF($AO$2>($V$6*1000000),$V$6*1000000,0)))) -> 0 | AL28: =IF($AO$2>$Y$6*1000000,$AA$6*1000000,IF($AO$2>($X$6*1000000),$Y$6*1000000,IF($AO$2>($W$6*1000000),$X$6*1000000,IF($AO$2>($V$6*1000000),$W$6*1000000,$V$6*1000000)))) -> 50000000 | AM28: =IF($AO$2>5000000000,AQ28,IF($AO$2>$AA$6*1000000,AA28,IF($AO$2<Y$6*1000000,(Y28+(((V28-Y28)/($Y$6*1000000))*($Y$6*1000000-$AO$2))),IF($AO$2>$Y$6*1000000,IF($AO$2<$Z$6*1000000,Y28,(AA28+(((Y28-AA28)/($AA$6*1000000))*($AA$6*1000000-$AO$2)))),AA28)))) -> 0 | AN28: =IF(AO28=0,0,IF(AM28=0,0,100%-((AB28-AO28)/AB28))) -> 0 | AO28: =ROUND((AM28*($AO$3*AF28+$AO$4*AG28)),0) -> 0 | AP28: =$AA$6*AA28 -> 0 | AQ28: =IF($AO$2>18000000000,AR28,(((AP28-(AP28*$AR$6))*$AP$6/($AO$2/1000000)))) ->  | AR28: 0.0162326376 | AS28: DUSL/DPS | AT28: A.2.2.2 | AU28: =IF(AU23="",IF(AU24="",IF(AU26="","","DUSP/L"),"DUSP/L"),"DUSP/L") ->  | AV28: =IF($T$104="Chyba","=>","") ->  | AW28: Projektová dokumentace společné povolení | AZ28: - | BA28: Nezařazeno | BC28: =IF(BL104="Chyba",0,IF(BP104="Chyba",0,IF(BA28="Výpočtem",CG28,0))) -> 0 | BD28: =IF($V$103="Výpočtem",IF($X$104="Chyba","Nelze výpočtem",IF($T$104="Chyba","Nelze výpočtem","")),"") ->  | BE28: =BG28*hide!$D$59 -> 0
A29: A.2.2.3 | D29: Projektová dokumentace pro stavební povolení | G29: DSP | H29: Nezařazeno | J29: =IF(H29="Výpočtem",(IF($I$3="",0,IF($I$3="Stádium 3",0,AO29))),0) -> 0 | K29: =IF($T$104="Chyba","",(IF($I$3="Stádium 3",IF($I$3="","",IF(P29=4,CONCATENATE("Nelze ve ",$I$3),"")),""))) ->  | L29: =O29*hide!$D$59 -> 0 | O29: 0 | P29: 2 | R29: Smluvně | S29: Individuálně | T29: Nezařazeno | U29: 0.09 | V29: =V69 -> 0.072 | W29: =W69 -> 0.068 | X29: =X69 -> 0.055 | Y29: 0.04 | Z29: 0.03 | AA29: 0.02 | AB29: =($U$3*$AF29*AD29+$U$4*$AD29*AG29) -> 0 | AC29: =($U$3*$AF29*AE29+$U$4*$AE29*AG29) -> 0 | AD29: =IF($AO$2>5000000000,AA29,IF($AO$2>2000000000,Y29,IF($AO$2>($X$6*1000000),X29,IF($AO$2>($W$6*1000000),W29,IF($AO$2>($V$6*1000000),V29,U29))))) -> 0.09 | AE29: =IF($AO$2>5000000000,AA29,IF($AO$2>2000000000,Z29,IF($AO$2>($X$6*1000000),Y29,IF($AO$2>($W$6*1000000),X29,IF($AO$2>($V$6*1000000),W29,V29))))) -> 0.072 | AF29: 0.6 | AG29: 0.6 | AH29: =IF(I29>AB29,IF(H29="Aktualizace","PŘEKROČENÉ %",IF(H29="Individuálně","PŘEKROČENÉ","OK")),"OK") -> OK | AI29: =IF(AH29="PŘEKROČENÉ %",IF(H29="Výpočtem",0,IF(H29="Smluvně",0,IF(H29="Nezařazeno",0,IF(H29="Individuálně",IF(AH29="PŘEKROČENÉ %",100,1),1)))),0) -> 0 | AJ29: =IF(AH29="PŘEKROČENÉ %",IF(H29="Výpočtem",0,IF(H29="Smluvně",0,IF(H29="Nezařazeno",0,IF(H29="Individuálně",IF(AI29="PŘEKROČENÉ %",0,0),1)))),0) -> 0 | AK29: 0 | AL29: 50000000 | AM29: 0.072 | AN29: =IF(AO29=0,0,IF(AM29=0,0,100%-((AB29-AO29)/AB29))) -> 0 | AO29: =ROUND(AM29*($AO$3*AF29+$AO$4*AG29),0) -> 0 | AP29: 100 | AQ29: =IF($AO$2>18000000000,AR29,(((AP29-(AP29*$AR$6))*$AP$6/($AO$2/1000000)))) ->  | AR29: 0.013527198 | AT29: A.2.2.3 | AW29: Projektová dokumentace pro stavební povolení | AZ29: DSP | BA29: Nezařazeno | BC29: =IF(BA29="Výpočtem",(IF($I$3="",0,IF($I$3="Stádium 3",0,CG29))),0) -> 0 | BD29: =IF($T$104="Chyba","",(IF($I$3="Stádium 3",IF($I$3="","",IF(BH29=4,CONCATENATE("Nelze ve ",$I$3),"")),""))) ->  | BE29: =BG29*hide!$D$59 -> 0
A30: A.2.2.4 | D30: Projektová dokumentace pro provádění stavby | G30: PDPS | H30: Nezařazeno | J30: =IF(H30="Výpočtem",(IF($I$3="",0,IF($I$3="Stádium 3",0,AO30))),0) -> 0 | K30: =IF($I$3="Stádium 3",IF($I$3="","",IF(P30=4,CONCATENATE("Nelze ve ",$I$3),"")),"") ->  | L30: =O30*hide!$D$59 -> 0 | O30: 0 | P30: 2 | Q30: Výpočtem | R30: Smluvně | S30: Individuálně | T30: Nezařazeno | U30: =U98 -> 0.1212 | V30: =V98 -> 0.11808 | W30: 0.1098 | X30: 0.0774 | Y30: 0.0522 | Z30: 0.036 | AA30: 0.036 | AB30: =($U$3*$AF30*AD30+$U$4*$AD30*AG30) -> 0 | AC30: =($U$3*$AF30*AE30+$U$4*$AE30*AG30) -> 0 | AD30: =IF($AO$2>5000000000,AA30,IF($AO$2>2000000000,Y30,IF($AO$2>($X$6*1000000),X30,IF($AO$2>($W$6*1000000),W30,IF($AO$2>($V$6*1000000),V30,U30))))) -> 0.1212 | AE30: =IF($AO$2>5000000000,AA30,IF($AO$2>2000000000,Z30,IF($AO$2>($X$6*1000000),Y30,IF($AO$2>($W$6*1000000),X30,IF($AO$2>($V$6*1000000),W30,V30))))) -> 0.11808 | AF30: =IF(S98="PDPS samostatně",0.6,0.4) -> 0.4 | AG30: =IF(S98="PDPS samostatně",0.4,0.2) -> 0.2 | AH30: =IF(I30>AB30,IF(H30="Aktualizace","PŘEKROČENÉ %",IF(H30="Individuálně","PŘEKROČENÉ","OK")),"OK") -> OK | AI30: =IF(AH30="PŘEKROČENÉ %",IF(H30="Výpočtem",0,IF(H30="Smluvně",0,IF(H30="Nezařazeno",0,IF(H30="Individuálně",IF(AH30="PŘEKROČENÉ %",100,1),1)))),0) -> 0 | AJ30: =IF(AH30="PŘEKROČENÉ %",IF(H30="Výpočtem",0,IF(H30="Smluvně",0,IF(H30="Nezařazeno",0,IF(H30="Individuálně",IF(AI30="PŘEKROČENÉ %",0,0),1)))),0) -> 0 | AK30: 0 | AL30: 50000000 | AM30: 0.11808 | AN30: =IF(AO30=0,0,IF(AM30=0,0,100%-((AB30-AO30)/AB30))) -> 0 | AO30: =ROUND(AM30*($AO$3*AF30+$AO$4*AG30),0) -> 0 | AP30: 180 | AQ30: =IF($AO$2>18000000000,AR30,(((AP30-(AP30*$AR$6))*$AP$6/($AO$2/1000000)))) ->  | AR30: =IF(S98="PDPS samostatně",3.66%,2.43489564%) -> 0.0243489564 | AS30: PDPS | AT30: A.2.2.4 | AW30: Projektová dokumentace pro provádění stavby | AZ30: PDPS | BA30: Nezařazeno | BC30: =IF(BA30="Výpočtem",(IF($I$3="",0,IF($I$3="Stádium 3",0,CG30))),0) -> 0 | BD30: =IF($I$3="Stádium 3",IF($I$3="","",IF(BH30=4,CONCATENATE("Nelze ve ",$I$3),"")),"") ->  | BE30: =BG30*hide!$D$59 -> 0
A31: A.2.2.5 | D31: Ostatní náklady na základní služby | H31: Nezařazeno | J31: =IF(H31="Výpočtem",AO31,0) -> 0 | L31: =O31*hide!$D$59 -> 0 | O31: 0 | P31: 2 | Q31: Výpočtem | R31: Smluvně | S31: Individuálně | T31: Nezařazeno | U31: 0.005 | V31: 0.005 | W31: 0.004 | X31: 0.003 | Y31: 0.002 | Z31: 0.002 | AA31: 0.002 | AB31: =($U$3*$AF31*AD31+$U$4*$AD31*AG31) -> 0 | AC31: =($U$3*$AF31*AE31+$U$4*$AE31*AG31) -> 0 | AD31: =IF($AO$2>5000000000,AA31,IF($AO$2>2000000000,Y31,IF($AO$2>($X$6*1000000),X31,IF($AO$2>($W$6*1000000),W31,IF($AO$2>($V$6*1000000),V31,U31))))) -> 0.005 | AE31: =IF($AO$2>5000000000,AA31,IF($AO$2>2000000000,Z31,IF($AO$2>($X$6*1000000),Y31,IF($AO$2>($W$6*1000000),X31,IF($AO$2>($V$6*1000000),W31,V31))))) -> 0.005 | AF31: 1 | AG31: 1 | AH31: =IF(I31>AB31,IF(H31="Aktualizace","PŘEKROČENÉ %",IF(H31="Individuálně","PŘEKROČENÉ","OK")),"OK") -> OK | AI31: =IF(AH31="PŘEKROČENÉ %",IF(H31="Smluvně",0,IF(H31="Nezařazeno",0,IF(H31="Individuálně",IF(AH31="PŘEKROČENÉ %",100,1),1))),0) -> 0 | AJ31: =IF(AH31="PŘEKROČENÉ %",IF(H31="Smluvně",0,IF(H31="Nezařazeno",0,IF(H31="Individuálně",IF(AI31="PŘEKROČENÉ %",0,0),1))),0) -> 0 | AK31: 0 | AL31: 50000000 | AM31: 0.005 | AN31: 0 | AO31: 0 | AP31: 10 | AQ31: =IF($AO$2>18000000000,AR31,(((AP31-(AP31*$AR$6))*$AP$6/($AO$2/1000000)))) ->  | AR31: 0.0013527198 | AT31: A.2.2.5 | AW31: Ostatní náklady na základní služby | BA31: Nezařazeno | BC31: =IF(BA31="Výpočtem",CG31,0) -> 0 | BE31: =BG31*hide!$D$59 -> 0
A32: A.2.3 | C32: Dozor projektanta | E32: =IF(I3="Stádium 3","smluvní počet hodin:",IF(O32=0,"",CONCATENATE("předpokládaný počet: ",ROUND((O32/1000),0)," hod"))) ->  | H32: Nezařazeno | J32: =IF(H32="Výpočtem",AO32,0) -> 0 | L32: =O32*hide!$D$59 -> 0 | O32: 0 | P32: 2 | Q32: Výpočtem | R32: Smluvně | S32: Individuálně | T32: Nezařazeno | U32: 0.02 | V32: 0.02 | W32: 0.01 | X32: 0.006 | Y32: 0.004 | Z32: 0.003 | AA32: 0.002 | AB32: =($U$3*$AF32*AD32+$U$4*$AD32*AG32) -> 0 | AC32: =($U$3*$AF32*AE32+$U$4*$AE32*AG32) -> 0 | AD32: =IF($AO$2>5000000000,AA32,IF($AO$2>2000000000,Y32,IF($AO$2>($X$6*1000000),X32,IF($AO$2>($W$6*1000000),W32,IF($AO$2>($V$6*1000000),V32,U32))))) -> 0.02 | AE32: =IF($AO$2>5000000000,AA32,IF($AO$2>2000000000,Z32,IF($AO$2>($X$6*1000000),Y32,IF($AO$2>($W$6*1000000),X32,IF($AO$2>($V$6*1000000),W32,V32))))) -> 0.02 | AF32: 1 | AG32: 0.5 | AH32: =IF(I32>AB32,IF(H32="Aktualizace","PŘEKROČENÉ %",IF(H32="Individuálně","PŘEKROČENÉ","OK")),"OK") -> OK | AI32: =IF(AH32="PŘEKROČENÉ %",IF(H32="Výpočtem",0,IF(H32="Smluvně",0,IF(H32="Nezařazeno",0,IF(H32="Individuálně",IF(AH32="PŘEKROČENÉ %",100,1),1)))),0) -> 0 | AJ32: =IF(AH32="PŘEKROČENÉ %",IF(H32="Výpočtem",0,IF(H32="Smluvně",0,IF(H32="Nezařazeno",0,IF(H32="Individuálně",IF(AI32="PŘEKROČENÉ %",0,0),1)))),0) -> 0 | AK32: 0 | AL32: 50000000 | AM32: 0.02 | AN32: 0 | AO32: 0 | AP32: 10 | AQ32: =IF($AO$2>18000000000,AR32,(((AP32-(AP32*$AR$6))*$AP$6/($AO$2/1000000)))) ->  | AR32: 0.0013527198 | AT32: A.2.3 | AV32: Dozor projektanta | AX32: =IF(BB3="Stádium 3","smluvní počet hodin:",IF(BG32=0,"",CONCATENATE("předpokládaný počet: ",ROUND((BG32/1000),0)," hod"))) ->  | BA32: Nezařazeno | BC32: =IF(BA32="Výpočtem",CG32,0) -> 0 | BE32: =BG32*hide!$D$59 -> 0
A33: A.2.4 | C33: Ostatní náklady pro přípravu stavby | J33: =O33 -> 0 | L33: =SUM(L34:L37) -> 0 | O33: =SUM(O34:O37) -> 0 | AI33: =IF(AH33="PŘEKROČENÉ %",IF(H33="Smluvně",0,IF(H33="Nezařazeno",0,IF(H33="Individuálně",IF(AH33="PŘEKROČENÉ %",100,1),1))),0) -> 0 | AJ33: =IF(AH33="PŘEKROČENÉ %",IF(H33="Smluvně",0,IF(H33="Nezařazeno",0,IF(H33="Individuálně",IF(AI33="PŘEKROČENÉ %",0,0),1))),0) -> 0 | AT33: A.2.4 | AV33: Ostatní náklady pro přípravu stavby | BC33: =BG33 -> 0 | BE33: =SUM(BE34:BE37) -> 0
A34: A.2.4.1 | C34: z toho | D34: Osvědčení o shodě notifikovanou osobou v přípravě | H34: Nezařazeno | J34: =IF(H34="Výpočtem",AO34,0) -> 0 | L34: =O34*hide!$D$59 -> 0 | O34: =IF(H34="Nezařazeno",0,IF(H34="Výpočtem",J34,I34)) -> 0 | P34: =IF((IF(H34="Individuálně",1,IF(H34="Smluvně",1,IF(H34="Nezařazeno",2,2))))=1,IF(I34=0,3,1),IF(H34="Výpočtem",4,2)) -> 2 | Q34: Výpočtem | R34: Smluvně | S34: Individuálně | T34: Nezařazeno | U34: 0.003 | V34: 0.003 | W34: 0.002 | X34: 0.0013 | Y34: 0.001 | Z34: 0.0008 | AA34: 0.0008 | AB34: =($U$3*$AF34*AD34+$U$4*$AD34*AG34) -> 0 | AC34: =($U$3*$AF34*AE34+$U$4*$AE34*AG34) -> 0 | AD34: =IF($AO$2>5000000000,AA34,IF($AO$2>2000000000,Y34,IF($AO$2>($X$6*1000000),X34,IF($AO$2>($W$6*1000000),W34,IF($AO$2>($V$6*1000000),V34,U34))))) -> 0.003 | AE34: =IF($AO$2>5000000000,AA34,IF($AO$2>2000000000,Z34,IF($AO$2>($X$6*1000000),Y34,IF($AO$2>($W$6*1000000),X34,IF($AO$2>($V$6*1000000),W34,V34))))) -> 0.003 | AF34: 1 | AG34: 1 | AH34: =IF(I34>AB34,IF(H34="Aktualizace","PŘEKROČENÉ %",IF(H34="Individuálně","PŘEKROČENÉ","OK")),"OK") -> OK | AI34: =IF(AH34="PŘEKROČENÉ %",IF(H34="Výpočtem",0,IF(H34="Smluvně",0,IF(H34="Nezařazeno",0,IF(H34="Individuálně",IF(AH34="PŘEKROČENÉ %",100,1),1)))),0) -> 0 | AJ34: =IF(AH34="PŘEKROČENÉ %",IF(H34="Výpočtem",0,IF(H34="Smluvně",0,IF(H34="Nezařazeno",0,IF(H34="Individuálně",IF(AI34="PŘEKROČENÉ %",0,0),1)))),0) -> 0 | AK34: =IF($AO$2>$Y$6*1000000,$Y$6*1000000,IF($AO$2>($X$6*1000000),$X$6*1000000,IF($AO$2>($W$6*1000000),$W$6*1000000,IF($AO$2>($V$6*1000000),$V$6*1000000,0)))) -> 0 | AL34: =IF($AO$2>$Y$6*1000000,$AA$6*1000000,IF($AO$2>($X$6*1000000),$Y$6*1000000,IF($AO$2>($W$6*1000000),$X$6*1000000,IF($AO$2>($V$6*1000000),$W$6*1000000,$V$6*1000000)))) -> 50000000 | AM34: 0.003 | AN34: 0 | AO34: =ROUND(AM34*($AO$3*AF34+$AO$4*AG34),0) -> 0 | AP34: =$AA$6*AA34 -> 4 | AQ34: =IF($AO$2>18000000000,AR34,(((AP34-(AP34*$AR$6))*$AP$6/($AO$2/1000000)))) ->  | AR34: 0.00054108792 | AT34: A.2.4.1 | AV34: z toho | AW34: Osvědčení o shodě notifikovanou osobou v přípravě | BA34: Nezařazeno | BC34: =IF(BA34="Výpočtem",CG34,0) -> 0 | BE34: =BG34*hide!$D$59 -> 0
A35: A.2.4.2 | D35: Koordinátor BOZP v přípravě | H35: Nezařazeno | J35: =IF(H35="Výpočtem",AO35,0) -> 0 | L35: =O35*hide!$D$59 -> 0 | O35: =IF(H35="Nezařazeno",0,IF(H35="Výpočtem",J35,I35)) -> 0 | P35: =IF((IF(H35="Individuálně",1,IF(H35="Smluvně",1,IF(H35="Nezařazeno",2,2))))=1,IF(I35=0,3,1),IF(H35="Výpočtem",4,2)) -> 2 | Q35: Výpočtem | R35: Smluvně | S35: Individuálně | T35: Nezařazeno | U35: 0.0012 | V35: 0.0012 | W35: 0.0009 | X35: 0.0008 | Y35: 0.0005 | Z35: 0.0005 | AA35: 0.0004 | AB35: 0 | AC35: 0 | AD35: 0.0012 | AE35: 0.0012 | AF35: 1 | AG35: 1 | AH35: =IF(I35>AB35,IF(H35="Aktualizace","PŘEKROČENÉ %",IF(H35="Individuálně","PŘEKROČENÉ","OK")),"OK") -> OK | AI35: =IF(AH35="PŘEKROČENÉ %",IF(H35="Výpočtem",0,IF(H35="Smluvně",0,IF(H35="Nezařazeno",0,IF(H35="Individuálně",IF(AH35="PŘEKROČENÉ %",100,1),1)))),0) -> 0 | AJ35: =IF(AH35="PŘEKROČENÉ %",IF(H35="Výpočtem",0,IF(H35="Smluvně",0,IF(H35="Nezařazeno",0,IF(H35="Individuálně",IF(AI35="PŘEKROČENÉ %",0,0),1)))),0) -> 0 | AK35: 0 | AL35: 50000000 | AM35: 0.0012 | AN35: 0 | AO35: 0 | AP35: 2 | AQ35: =IF($AO$2>18000000000,AR35,(((AP35-(AP35*$AR$6))*$AP$6/($AO$2/1000000)))) ->  | AR35: 0.00027054396 | AT35: A.2.4.2 | AW35: Koordinátor BOZP v přípravě | BA35: Nezařazeno | BC35: =IF(BA35="Výpočtem",CG35,0) -> 0 | BE35: =BG35*hide!$D$59 -> 0
A36: A.2.4.3 | D36: Zpracování žádosti o spolufinancování stavby | H36: Nezařazeno | J36: =IF(H36="Výpočtem",AO36,0) -> 0 | L36: =O36*hide!$D$59 -> 0 | O36: =IF(H36="Nezařazeno",0,IF(H36="Výpočtem",J36,I36)) -> 0 | P36: =IF((IF(H36="Individuálně",1,IF(H36="Smluvně",1,IF(H36="Nezařazeno",2,2))))=1,IF(I36=0,3,1),IF(H36="Výpočtem",4,2)) -> 2 | Q36: Výpočtem | R36: Smluvně | S36: Individuálně | T36: Nezařazeno | U36: 0.0008 | V36: 0.0008 | W36: 0.0006 | X36: 0.0003 | Y36: 0.00012 | Z36: 0.0001 | AA36: 0.0001 | AB36: 0 | AC36: 0 | AD36: 0.0008 | AE36: 0.0008 | AF36: 1 | AG36: 1 | AH36: =IF(I36>AB36,IF(H36="Aktualizace","PŘEKROČENÉ %",IF(H36="Individuálně","PŘEKROČENÉ","OK")),"OK") -> OK | AI36: =IF(AH36="PŘEKROČENÉ %",IF(H36="Výpočtem",0,IF(H36="Smluvně",0,IF(H36="Nezařazeno",0,IF(H36="Individuálně",IF(AH36="PŘEKROČENÉ %",100,1),1)))),0) -> 0 | AJ36: =IF(AH36="PŘEKROČENÉ %",IF(H36="Výpočtem",0,IF(H36="Smluvně",0,IF(H36="Nezařazeno",0,IF(H36="Individuálně",IF(AI36="PŘEKROČENÉ %",0,0),1)))),0) -> 0 | AK36: 0 | AL36: 50000000 | AM36: 0.0008 | AN36: 0 | AO36: 0 | AP36: 0.5 | AQ36: =IF($AO$2>18000000000,AR36,(((AP36-(AP36*$AR$6))*$AP$6/($AO$2/1000000)))) ->  | AR36: 6.763599e-05 | AT36: A.2.4.3 | AW36: Zpracování žádosti o spolufinancování stavby | BA36: Nezařazeno | BC36: =IF(BA36="Výpočtem",CG36,0) -> 0 | BE36: =BG36*hide!$D$59 -> 0
A37: A.2.4.4 | D37: Zpracování v režimu BIM | F37: Příprava/Realizace | G37: =IF(F37="Příprava/Realizace",CONCATENATE("v realizaci ",T38, "%"),IF(F37="Realizace",CONCATENATE("v realizaci 100%"),"")) -> v realizaci 0% | H37: Nezařazeno | J37: =IF(H37="Výpočtem",AO37,0) -> 0 | L37: =O37*hide!$D$59 -> 0 | O37: =IF(H37="Nezařazeno",0,IF(H37="Výpočtem",J37,I37)) -> 0 | P37: =IF((IF(H37="Individuálně",1,IF(H37="Smluvně",1,IF(H37="Nezařazeno",2,2))))=1,IF(I37=0,3,1),IF(H37="Výpočtem",4,2)) -> 2 | Q37: Výpočtem | R37: Smluvně | S37: Předpoklad | T37: Nezařazeno | U37: =IF($F$37="Realizace",0.8%,1.85%) -> 0.0185 | V37: =IF($F$37="Realizace",0.8%,1.85%) -> 0.0185 | W37: =IF($F$37="Realizace",0.7%,1.7%) -> 0.017 | X37: =IF($F$37="Realizace",0.5%,1.3%) -> 0.013 | Y37: =IF($F$37="Realizace",0.4%,1%) -> 0.01 | Z37: =IF($F$37="Realizace",0.3%,0.7%) -> 0.007 | AA37: =IF($F$37="Realizace",0.3%,0.7%) -> 0.007 | AB37: =($U$3*$AF37*AD37+$U$4*$AD37*AG37) -> 0 | AC37: =($U$3*$AF37*AE37+$U$4*$AE37*AG37) -> 0 | AD37: 0.0185 | AE37: 0.0185 | AF37: 1 | AG37: 1 | AH37: =IF(I37>AB37,IF(H37="Aktualizace","PŘEKROČENÉ %",IF(H37="Individuálně","PŘEKROČENÉ","OK")),"OK") -> OK | AI37: =IF(AH37="PŘEKROČENÉ %",IF(H37="Výpočtem",0,IF(H37="Smluvně",0,IF(H37="Nezařazeno",0,IF(H37="Individuálně",IF(AH37="PŘEKROČENÉ %",100,1),1)))),0) -> 0 | AJ37: =IF(AH37="PŘEKROČENÉ %",IF(H37="Výpočtem",0,IF(H37="Smluvně",0,IF(H37="Nezařazeno",0,IF(H37="Individuálně",IF(AI37="PŘEKROČENÉ %",0,0),1)))),0) -> 0 | AK37: 0 | AL37: 50000000 | AM37: 0.0185 | AN37: 0 | AO37: =ROUND(AM37*($AO$3*AF37+$AO$4*AG37),0) -> 0 | AP37: 35 | AQ37: =IF($AO$2>18000000000,AR37,(((AP37-(AP37*$AR$6))*$AP$6/($AO$2/1000000)))) ->  | AR37: 0.0047345193 | AT37: A.2.4.4 | AW37: Zpracování v režimu BIM | AY37: Příprava/Realizace | AZ37: =IF(AY37="Příprava/Realizace",CONCATENATE("v realizaci ",BL38, "%"),IF(AY37="Realizace",CONCATENATE("v realizaci 100%"),"")) -> v realizaci % | BA37: Nezařazeno | BC37: =IF(BA37="Výpočtem",CG37,0) -> 0 | BE37: =BG37*hide!$D$59 -> 0
A38: A.2.5 | C38: Dokumentace skutečného provedení | F38: DSPS | G38: - | J38: =O38 -> 0 | L38: =SUM(L39:L41) -> 0 | O38: =SUM(O39:O41) -> 0 | Q38: do řádku BIM | T38: =IF(AO37=0,0,ROUND((AO38/AO37)*100,0)) -> 0 | U38: 0.008 | V38: 0.008 | W38: 0.007 | X38: 0.005 | Y38: 0.004 | Z38: 0.003 | AA38: 0.003 | AB38: =($U$3*$AF38+$U$4*$AG38)*AD38 -> 0 | AC38: =($U$3*$AF38+$U$4*$AG38)*AE38 -> 0 | AD38: 0.008 | AE38: 0.008 | AF38: 1 | AG38: 1 | AI38: =IF(AH38="PŘEKROČENÉ %",IF(H38="Smluvně",0,IF(H38="Nezařazeno",0,IF(H38="Individuálně",IF(AH38="PŘEKROČENÉ %",100,1),1))),0) -> 0 | AJ38: =IF(AH38="PŘEKROČENÉ %",IF(H38="Smluvně",0,IF(H38="Nezařazeno",0,IF(H38="Individuálně",IF(AI38="PŘEKROČENÉ %",0,0),1))),0) -> 0 | AK38: =IF($AO$2>5000000000,$Y$6*1000000,IF($AO$2>($X$6*1000000),$X$6*1000000,IF($AO$2>($W$6*1000000),$W$6*1000000,IF($AO$2>($V$6*1000000),$V$6*1000000,0)))) -> 0 | AL38: =IF($AO$2>5000000000,5000000000,IF($AO$2>($X$6*1000000),$Y$6*1000000,IF($AO$2>($W$6*1000000),$X$6*1000000,IF($AO$2>($V$6*1000000),$W$6*1000000,$V$6*1000000)))) -> 50000000 | AM38: =IF($AO$2<Y$6*1000000,(Y38+(((V38-Y38)/($Y$6*1000000))*($Y$6*1000000-$AO$2))),IF($AO$2<$Z$6*1000000,Z38,AA38)) -> 0.008 | AN38: 0 | AO38: =ROUND(AM38*($AO$3*AF38+$AO$4*AG38),0) -> 0 | AP38: 15 | AQ38: =AP38/($AO$2/1000000) ->  | AR38: 0.0008335648791 | AT38: A.2.5 | AV38: Dokumentace skutečného provedení | AY38: DSPS | AZ38: - | BC38: =BG38 -> 0 | BE38: =SUM(BE39:BE41) -> 0
A39: A.2.5.1 | C39: z toho | D39: Dokumentace skutečného provedení stavby, geodetická část | H39: Nezařazeno | J39: =IF(H39="Výpočtem",AO39,0) -> 0 | L39: =O39*hide!$D$59 -> 0 | O39: =IF(H39="Nezařazeno",0,IF(H39="Výpočtem",J39,I39)) -> 0 | P39: =IF((IF(H39="Individuálně",1,IF(H39="Smluvně",1,IF(H39="Nezařazeno",2,2))))=1,IF(I39=0,3,1),IF(H39="Výpočtem",4,2)) -> 2 | Q39: Výpočtem | R39: Smluvně | S39: Individuálně | T39: Nezařazeno | U39: 0.0085 | V39: 0.008 | W39: 0.007 | X39: 0.0055 | Y39: 0.0035 | Z39: 0.003 | AA39: 0.003 | AB39: =($U$3*$AF39*AD39+$U$4*$AD39*AG39) -> 0 | AC39: =($U$3*$AF39*AE39+$U$4*$AE39*AG39) -> 0 | AD39: 0.0085 | AE39: 0.008 | AF39: 1 | AG39: 1 | AH39: =IF(I39>AB39,IF(H39="Aktualizace","PŘEKROČENÉ %",IF(H39="Individuálně","PŘEKROČENÉ","OK")),"OK") -> OK | AI39: =IF(AH39="PŘEKROČENÉ %",IF(H39="Výpočtem",0,IF(H39="Smluvně",0,IF(H39="Nezařazeno",0,IF(H39="Individuálně",IF(AH39="PŘEKROČENÉ %",100,1),1)))),0) -> 0 | AJ39: =IF(AH39="PŘEKROČENÉ %",IF(H39="Výpočtem",0,IF(H39="Smluvně",0,IF(H39="Nezařazeno",0,IF(H39="Individuálně",IF(AI39="PŘEKROČENÉ %",0,0),1)))),0) -> 0 | AK39: =IF($AO$2>$Y$6*1000000,$Y$6*1000000,IF($AO$2>($X$6*1000000),$X$6*1000000,IF($AO$2>($W$6*1000000),$W$6*1000000,IF($AO$2>($V$6*1000000),$V$6*1000000,0)))) -> 0 | AL39: 50000000 | AM39: 0.008 | AN39: 0 | AO39: =ROUND(AM39*($AO$3*AF39+$AO$4*AG39),0) -> 0 | AP39: 15 | AQ39: =IF($AO$2>18000000000,AR39,(((AP39-(AP39*$AR$6))*$AP$6/($AO$2/1000000)))) ->  | AR39: 0.0020290797 | AT39: A.2.5.1 | AV39: z toho | AW39: Dokumentace skutečného provedení stavby, geodetická část | BA39: Nezařazeno | BC39: =IF(BA39="Výpočtem",CG39,0) -> 0 | BE39: =BG39*hide!$D$59 -> 0
A40: A.2.5.2 | D40: Dokumentace skutečného provedení stavby, technická část | H40: Nezařazeno | J40: =IF(H40="Výpočtem",AO40,0) -> 0 | L40: =O40*hide!$D$59 -> 0 | O40: =IF(H40="Nezařazeno",0,IF(H40="Výpočtem",J40,I40)) -> 0 | P40: =IF((IF(H40="Individuálně",1,IF(H40="Smluvně",1,IF(H40="Nezařazeno",2,2))))=1,IF(I40=0,3,1),IF(H40="Výpočtem",4,2)) -> 2 | Q40: Výpočtem | R40: Smluvně | S40: Individuálně | T40: Nezařazeno | U40: 0.009 | V40: 0.009 | W40: 0.008 | X40: 0.0062 | Y40: 0.0045 | Z40: 0.003 | AA40: 0.003 | AB40: 0 | AC40: 0 | AD40: 0.009 | AE40: 0.009 | AF40: 1 | AG40: 1 | AH40: =IF(I40>AB40,IF(H40="Aktualizace","PŘEKROČENÉ %",IF(H40="Individuálně","PŘEKROČENÉ","OK")),"OK") -> OK | AI40: =IF(AH40="PŘEKROČENÉ %",IF(H40="Výpočtem",0,IF(H40="Smluvně",0,IF(H40="Nezařazeno",0,IF(H40="Individuálně",IF(AH40="PŘEKROČENÉ %",100,1),1)))),0) -> 0 | AJ40: =IF(AH40="PŘEKROČENÉ %",IF(H40="Výpočtem",0,IF(H40="Smluvně",0,IF(H40="Nezařazeno",0,IF(H40="Individuálně",IF(AI40="PŘEKROČENÉ %",0,0),1)))),0) -> 0 | AK40: 0 | AL40: 50000000 | AM40: 0.009 | AN40: 0 | AO40: 0 | AP40: 15 | AQ40: =IF($AO$2>18000000000,AR40,(((AP40-(AP40*$AR$6))*$AP$6/($AO$2/1000000)))) ->  | AR40: 0.0020290797 | AT40: A.2.5.2 | AW40: Dokumentace skutečného provedení stavby, technická část | BA40: Nezařazeno | BC40: =IF(BA40="Výpočtem",CG40,0) -> 0 | BE40: =BG40*hide!$D$59 -> 0
A41: A.2.5.3 | D41: Dokumentace skutečného provedení stavby, dokladová část | H41: Nezařazeno | J41: =IF(H41="Výpočtem",AO41,0) -> 0 | L41: =O41*hide!$D$59 -> 0 | O41: =IF(H41="Nezařazeno",0,IF(H41="Výpočtem",J41,I41)) -> 0 | P41: =IF((IF(H41="Individuálně",1,IF(H41="Smluvně",1,IF(H41="Nezařazeno",2,2))))=1,IF(I41=0,3,1),IF(H41="Výpočtem",4,2)) -> 2 | Q41: Výpočtem | R41: Smluvně | S41: Individuálně | T41: Nezařazeno | U41: 0.002 | V41: 0.002 | W41: 0.0018 | X41: 0.0015 | Y41: 0.0009 | Z41: 0.0009 | AA41: 0.0009 | AB41: 0 | AC41: 0 | AD41: 0.002 | AE41: 0.002 | AF41: 1 | AG41: 1 | AH41: =IF(I41>AB41,IF(H41="Aktualizace","PŘEKROČENÉ %",IF(H41="Individuálně","PŘEKROČENÉ","OK")),"OK") -> OK | AI41: =IF(AH41="PŘEKROČENÉ %",IF(H41="Výpočtem",0,IF(H41="Smluvně",0,IF(H41="Nezařazeno",0,IF(H41="Individuálně",IF(AH41="PŘEKROČENÉ %",100,1),1)))),0) -> 0 | AJ41: =IF(AH41="PŘEKROČENÉ %",IF(H41="Výpočtem",0,IF(H41="Smluvně",0,IF(H41="Nezařazeno",0,IF(H41="Individuálně",IF(AI41="PŘEKROČENÉ %",0,0),1)))),0) -> 0 | AK41: 0 | AL41: 50000000 | AM41: 0.002 | AN41: 0 | AO41: 0 | AP41: 4.5 | AQ41: =IF($AO$2>18000000000,AR41,(((AP41-(AP41*$AR$6))*$AP$6/($AO$2/1000000)))) ->  | AR41: 0.00060872391 | AT41: A.2.5.3 | AW41: Dokumentace skutečného provedení stavby, dokladová část | BA41: Nezařazeno | BC41: =IF(BA41="Výpočtem",CG41,0) -> 0 | BE41: =BG41*hide!$D$59 -> 0
A42: A.3 | B42: Výkupy a zatížení nemovitých věcí | K42: =O42 -> 0 | L42: =SUM(L43:L45) -> 0 | O42: =O43+O44+O45 -> 0 | AI42: =IF(AH42="PŘEKROČENÉ %",IF(H42="Smluvně",0,IF(H42="Nezařazeno",0,IF(H42="Individuálně",IF(AH42="PŘEKROČENÉ %",100,1),1))),0) -> 0 | AJ42: =IF(AH42="PŘEKROČENÉ %",IF(H42="Smluvně",0,IF(H42="Nezařazeno",0,IF(H42="Individuálně",IF(AI42="PŘEKROČENÉ %",0,0),1))),0) -> 0 | AT42: A.3 | AU42: Výkupy a zatížení nemovitých věcí | BD42: =BG42 -> 0 | BE42: =SUM(BE43:BE45) -> 0
A43: A.3.1 | B43: z toho | C43: Výkupy pozemků | G43: - | H43: Nezařazeno | L43: =O43 -> 0 | O43: =IF(H43="Nezařazeno",0,IF(H43="Výpočtem",J43,I43)) -> 0 | P43: =IF((IF(H43="Předpoklad",1,IF(H43="Smluvně",1,IF(H43="Nezařazeno",2,2))))=1,IF(I43=0,3,1),IF(H43="Výpočtem",4,2)) -> 2 | R43: Smluvně | S43: Předpoklad | T43: Nezařazeno | U43: není určena | AI43: 0 | AJ43: 0 | AT43: A.3.1 | AU43: z toho | AV43: Výkupy pozemků | AZ43: - | BA43: Nezařazeno | BE43: =BG43 -> 0
A44: A.3.2 | C44: Výkupy staveb | G44: - | H44: Nezařazeno | L44: =O44 -> 0 | O44: =IF(H44="Nezařazeno",0,IF(H44="Výpočtem",J44,I44)) -> 0 | P44: =IF((IF(H44="Předpoklad",1,IF(H44="Smluvně",1,IF(H44="Nezařazeno",2,2))))=1,IF(I44=0,3,1),IF(H44="Výpočtem",4,2)) -> 2 | R44: Smluvně | S44: Předpoklad | T44: Nezařazeno | U44: není určena | AI44: 0 | AJ44: 0 | AT44: A.3.2 | AV44: Výkupy staveb | AZ44: - | BA44: Nezařazeno | BE44: =BG44 -> 0
A45: A.3.3 | C45: Věcná břemena a služebnosti | G45: - | H45: Nezařazeno | L45: =O45 -> 0 | O45: =IF(H45="Nezařazeno",0,IF(H45="Výpočtem",J45,I45)) -> 0 | P45: =IF((IF(H45="Předpoklad",1,IF(H45="Smluvně",1,IF(H45="Nezařazeno",2,2))))=1,IF(I45=0,3,1),IF(H45="Výpočtem",4,2)) -> 2 | R45: Smluvně | S45: Předpoklad | T45: Nezařazeno | U45: není určena | AI45: 0 | AJ45: 0 | AT45: A.3.3 | AV45: Věcná břemena a služebnosti | AZ45: - | BA45: Nezařazeno | BE45: =BG45 -> 0
A46: A.4 | B46: Nájmy pro účely stavby | K46: =O46 -> 0 | L46: =SUM(L47:L48) -> 0 | O46: =O47+O48 -> 0 | AI46: 0 | AJ46: 0 | AT46: A.4 | AU46: Nájmy pro účely stavby | BD46: =BG46 -> 0 | BE46: =SUM(BE47:BE48) -> 0
A47: A.4.1 | B47: z toho | C47: Nájmy hrazené investorem přímo | H47: Nezařazeno | L47: =O47 -> 0 | O47: =IF(H47="Nezařazeno",0,IF(H47="Výpočtem",J47,I47)) -> 0 | P47: =IF((IF(H47="Předpoklad",1,IF(H47="Smluvně",1,IF(H47="Nezařazeno",2,2))))=1,IF(I47=0,3,1),IF(H47="Výpočtem",4,2)) -> 2 | R47: Smluvně | S47: Předpoklad | T47: Nezařazeno | U47: není určena | AI47: 0 | AJ47: 0 | AT47: A.4.1 | AU47: z toho | AV47: Nájmy hrazené investorem přímo | BA47: Nezařazeno | BE47: =BG47 -> 0
A48: A.4.2 | C48: Nájmy hrazené zhotovitelem stavby | G48: =IF(O48>0,"Všeobecný objekt","-") -> - | H48: Nezařazeno | L48: =O48 -> 0 | O48: =IF(H48="Nezařazeno",0,IF(H48="Výpočtem",J48,I48)) -> 0 | P48: =IF((IF(H48="Předpoklad",1,IF(H48="Smluvně",1,IF(H48="Nezařazeno",2,2))))=1,IF(I48=0,3,1),IF(H48="Výpočtem",4,2)) -> 2 | R48: Smluvně | S48: Předpoklad | T48: Nezařazeno | U48: není určena | AI48: 0 | AJ48: 0 | AT48: A.4.2 | AV48: Nájmy hrazené zhotovitelem stavby | AZ48: =IF(BG48>0,"Všeobecný objekt","-") -> - | BA48: Nezařazeno | BE48: =BG48 -> 0
A49: A.5 | B49: Jiné náklady přípravy a zabezpečení stavby | K49: =O49 -> 0 | L49: =L50+L54+L55 -> 0 | O49: =O50+O54+O55 -> 0 | AI49: 0 | AJ49: 0 | AT49: A.5 | AU49: Jiné náklady přípravy a zabezpečení stavby | BD49: =BG49 -> 0 | BE49: =BE50+BE54+BE55 -> 0
A50: A.5.1 | B50: z toho | C50: Poradenské firmy pro přípravu a zabezpečení stavby | J50: =O50 -> 0 | L50: =SUM(L51:L53) -> 0 | O50: =SUM(O51:O53) -> 0 | AI50: 0 | AJ50: 0 | AT50: A.5.1 | AU50: z toho | AV50: Poradenské firmy pro přípravu a zabezpečení stavby | BC50: =BG50 -> 0 | BE50: =SUM(BE51:BE53) -> 0
A51: A.5.1.1 | C51: z toho | D51: Technická podpora investora | H51: Nezařazeno | J51: =IF(H51="Výpočtem",AO51,0) -> 0 | L51: =O51*hide!$D$59 -> 0 | O51: =IF(H51="Nezařazeno",0,IF(H51="Výpočtem",J51,I51)) -> 0 | P51: =IF((IF(H51="Individuálně",1,IF(H51="Smluvně",1,IF(H51="Nezařazeno",2,2))))=1,IF(I51=0,3,1),IF(H51="Výpočtem",4,2)) -> 2 | Q51: Výpočtem | R51: Smluvně | S51: Individuálně | T51: Nezařazeno | U51: 0.0025 | V51: 0.0025 | W51: 0.0023 | X51: 0.002 | Y51: 0.0018 | Z51: 0.0018 | AA51: 0.001 | AB51: =($U$3*$AF51*AD51+$U$4*$AD51*AG51) -> 0 | AC51: =($U$3*$AF51*AE51+$U$4*$AE51*AG51) -> 0 | AD51: =IF($AO$2>5000000000,AA51,IF($AO$2>2000000000,Y51,IF($AO$2>($X$6*1000000),X51,IF($AO$2>($W$6*1000000),W51,IF($AO$2>($V$6*1000000),V51,U51))))) -> 0.0025 | AE51: =IF($AO$2>5000000000,AA51,IF($AO$2>2000000000,Z51,IF($AO$2>($X$6*1000000),Y51,IF($AO$2>($W$6*1000000),X51,IF($AO$2>($V$6*1000000),W51,V51))))) -> 0.0025 | AF51: 1 | AG51: 0.5 | AH51: =IF(I51>AB51,IF(H51="Aktualizace","PŘEKROČENÉ %",IF(H51="Individuálně","PŘEKROČENÉ","OK")),"OK") -> OK | AI51: 0 | AJ51: 0 | AK51: =IF($AO$2>$Y$6*1000000,$Y$6*1000000,IF($AO$2>($X$6*1000000),$X$6*1000000,IF($AO$2>($W$6*1000000),$W$6*1000000,IF($AO$2>($V$6*1000000),$V$6*1000000,0)))) -> 0 | AL51: =IF($AO$2>$Y$6*1000000,$AA$6*1000000,IF($AO$2>($X$6*1000000),$Y$6*1000000,IF($AO$2>($W$6*1000000),$X$6*1000000,IF($AO$2>($V$6*1000000),$W$6*1000000,$V$6*1000000)))) -> 50000000 | AM51: =IF($AO$2>5000000000,AQ51,IF($AO$2>$AA$6*1000000,AA51,IF($AO$2<Y$6*1000000,(Y51+(((V51-Y51)/($Y$6*1000000))*($Y$6*1000000-$AO$2))),IF($AO$2>$Y$6*1000000,IF($AO$2<$Z$6*1000000,Y51,(AA51+(((Y51-AA51)/($AA$6*1000000))*($AA$6*1000000-$AO$2)))),AA51)))) -> 0.0025 | AN51: =IF(AM51=0,0,100%-((AB51-AO51)/AB51)) ->  | AO51: =ROUND(AM51*($AO$3*AF51+$AO$4*AG51),0) -> 0 | AP51: =$AA$6*AA51 -> 5 | AQ51: =IF($AO$2>18000000000,AR51,(((AP51-(AP51*$AR$6))*$AP$6/($AO$2/1000000)))) ->  | AR51: 0.0006763599 | AT51: A.5.1.1 | AV51: z toho | AW51: Technická podpora investora | BA51: Nezařazeno | BC51: =IF(BA51="Výpočtem",CG51,0) -> 0 | BE51: =BG51*hide!$D$59 -> 0
A52: A.5.1.2 | D52: Poradenské firmy pro geotechnický průzkum | H52: Nezařazeno | J52: =IF(H52="Výpočtem",AO52,0) -> 0 | L52: =O52*hide!$D$59 -> 0 | O52: =IF(H52="Nezařazeno",0,IF(H52="Výpočtem",J52,I52)) -> 0 | P52: =IF((IF(H52="Individuálně",1,IF(H52="Smluvně",1,IF(H52="Nezařazeno",2,2))))=1,IF(I52=0,3,1),IF(H52="Výpočtem",4,2)) -> 2 | Q52: Výpočtem | R52: Smluvně | S52: Individuálně | T52: Nezařazeno | U52: 0.006 | V52: 0.006 | W52: 0.005 | X52: 0.004 | Y52: 0.002 | Z52: 0.002 | AA52: 0.0018 | AB52: 0 | AC52: 0 | AD52: =IF($AO$2>5000000000,AA52,IF($AO$2>2000000000,Y52,IF($AO$2>($X$6*1000000),X52,IF($AO$2>($W$6*1000000),W52,IF($AO$2>($V$6*1000000),V52,U52))))) -> 0.006 | AE52: =IF($AO$2>5000000000,AA52,IF($AO$2>2000000000,Z52,IF($AO$2>($X$6*1000000),Y52,IF($AO$2>($W$6*1000000),X52,IF($AO$2>($V$6*1000000),W52,V52))))) -> 0.006 | AF52: 1 | AG52: 0.05 | AH52: =IF(I52>AB52,IF(H52="Aktualizace","PŘEKROČENÉ %",IF(H52="Individuálně","PŘEKROČENÉ","OK")),"OK") -> OK | AI52: =IF(AH52="PŘEKROČENÉ %",IF(H52="Výpočtem",0,IF(H52="Smluvně",0,IF(H52="Nezařazeno",0,IF(H52="Individuálně",IF(AH52="PŘEKROČENÉ %",100,1),1)))),0) -> 0 | AJ52: =IF(AH52="PŘEKROČENÉ %",IF(H52="Výpočtem",0,IF(H52="Smluvně",0,IF(H52="Nezařazeno",0,IF(H52="Individuálně",IF(AI52="PŘEKROČENÉ %",0,0),1)))),0) -> 0 | AK52: =IF($AO$2>$Y$6*1000000,$Y$6*1000000,IF($AO$2>($X$6*1000000),$X$6*1000000,IF($AO$2>($W$6*1000000),$W$6*1000000,IF($AO$2>($V$6*1000000),$V$6*1000000,0)))) -> 0 | AL52: 50000000 | AM52: 0.006 | AN52: =IF(AM52=0,0,100%-((AB52-AO52)/AB52)) ->  | AO52: 0 | AP52: 9 | AQ52: =IF($AO$2>18000000000,AR52,(((AP52-(AP52*$AR$6))*$AP$6/($AO$2/1000000)))) ->  | AR52: 0.00121744782 | AT52: A.5.1.2 | AW52: Poradenské firmy pro geotechnický průzkum | BA52: Nezařazeno | BC52: =IF(BA52="Výpočtem",CG52,0) -> 0 | BE52: =BG52*hide!$D$59 -> 0
A53: A.5.1.3 | D53: Ostatní poradenské firmy | H53: Nezařazeno | J53: =IF(H53="Výpočtem",AO53,0) -> 0 | L53: =O53*hide!$D$59 -> 0 | O53: =IF(H53="Nezařazeno",0,IF(H53="Výpočtem",J53,I53)) -> 0 | P53: =IF((IF(H53="Individuálně",1,IF(H53="Smluvně",1,IF(H53="Nezařazeno",2,2))))=1,IF(I53=0,3,1),IF(H53="Výpočtem",4,2)) -> 2 | Q53: Výpočtem | R53: Smluvně | S53: Individuálně | T53: Nezařazeno | U53: 0.0033 | V53: =0.18%+0.15% -> 0.0033 | W53: =0.15%+0.12% -> 0.0027 | X53: =0.11%+0.1% -> 0.0021 | Y53: 0.0018 | Z53: 0.0018 | AA53: 0.0015 | AB53: 0 | AC53: 0 | AD53: =IF($AO$2>5000000000,AA53,IF($AO$2>2000000000,Y53,IF($AO$2>($X$6*1000000),X53,IF($AO$2>($W$6*1000000),W53,IF($AO$2>($V$6*1000000),V53,U53))))) -> 0.0033 | AE53: =IF($AO$2>5000000000,AA53,IF($AO$2>2000000000,Z53,IF($AO$2>($X$6*1000000),Y53,IF($AO$2>($W$6*1000000),X53,IF($AO$2>($V$6*1000000),W53,V53))))) -> 0.0033 | AF53: 1 | AG53: 1 | AH53: =IF(I53>AB53,IF(H53="Aktualizace","PŘEKROČENÉ %",IF(H53="Individuálně","PŘEKROČENÉ","OK")),"OK") -> OK | AI53: =IF(AH53="PŘEKROČENÉ %",IF(H53="Výpočtem",0,IF(H53="Smluvně",0,IF(H53="Nezařazeno",0,IF(H53="Individuálně",IF(AH53="PŘEKROČENÉ %",100,1),1)))),0) -> 0 | AJ53: =IF(AH53="PŘEKROČENÉ %",IF(H53="Výpočtem",0,IF(H53="Smluvně",0,IF(H53="Nezařazeno",0,IF(H53="Individuálně",IF(AI53="PŘEKROČENÉ %",0,0),1)))),0) -> 0 | AK53: 0 | AL53: 50000000 | AM53: 0.0033 | AN53: =IF(AM53=0,0,100%-((AB53-AO53)/AB53)) ->  | AO53: 0 | AP53: 7.5 | AQ53: =IF($AO$2>18000000000,AR53,(((AP53-(AP53*$AR$6))*$AP$6/($AO$2/1000000)))) ->  | AR53: 0.00101453985 | AT53: A.5.1.3 | AW53: Ostatní poradenské firmy | BA53: Nezařazeno | BC53: =IF(BA53="Výpočtem",CG53,0) -> 0 | BE53: =BG53*hide!$D$59 -> 0
A54: A.5.2 | C54: Soutěže a zadávací řízení | H54: Nezařazeno | J54: =IF(H54="Výpočtem",AO54,0) -> 0 | L54: =O54*hide!$D$59 -> 0 | O54: =IF(H54="Nezařazeno",0,IF(H54="Výpočtem",J54,I54)) -> 0 | P54: =IF((IF(H54="Individuálně",1,IF(H54="Smluvně",1,IF(H54="Nezařazeno",2,2))))=1,IF(I54=0,3,1),IF(H54="Výpočtem",4,2)) -> 2 | Q54: Výpočtem | R54: Smluvně | S54: Individuálně | T54: Nezařazeno | U54: 0.00055 | V54: 0.00055 | W54: 0.0003 | X54: 0.00016 | Y54: 0.0001 | Z54: 0.0001 | AA54: 5e-05 | AB54: 0 | AC54: 0 | AD54: =IF($AO$2>5000000000,AA54,IF($AO$2>2000000000,Y54,IF($AO$2>($X$6*1000000),X54,IF($AO$2>($W$6*1000000),W54,IF($AO$2>($V$6*1000000),V54,U54))))) -> 0.00055 | AE54: =IF($AO$2>5000000000,AA54,IF($AO$2>2000000000,Z54,IF($AO$2>($X$6*1000000),Y54,IF($AO$2>($W$6*1000000),X54,IF($AO$2>($V$6*1000000),W54,V54))))) -> 0.00055 | AF54: 1 | AG54: 1 | AH54: =IF(I54>AB54,IF(H54="Aktualizace","PŘEKROČENÉ %",IF(H54="Individuálně","PŘEKROČENÉ","OK")),"OK") -> OK | AI54: =IF(AH54="PŘEKROČENÉ %",IF(H54="Výpočtem",0,IF(H54="Smluvně",0,IF(H54="Nezařazeno",0,IF(H54="Individuálně",IF(AH54="PŘEKROČENÉ %",100,1),1)))),0) -> 0 | AJ54: =IF(AH54="PŘEKROČENÉ %",IF(H54="Výpočtem",0,IF(H54="Smluvně",0,IF(H54="Nezařazeno",0,IF(H54="Individuálně",IF(AI54="PŘEKROČENÉ %",0,0),1)))),0) -> 0 | AK54: 0 | AL54: 50000000 | AM54: 0.00055 | AN54: =IF(AM54=0,0,100%-((AB54-AO54)/AB54)) ->  | AO54: 0 | AP54: 0.25 | AQ54: =IF($AO$2>18000000000,AR54,(((AP54-(AP54*$AR$6))*$AP$6/($AO$2/1000000)))) ->  | AR54: 3.3817995e-05 | AT54: A.5.2 | AV54: Soutěže a zadávací řízení | BA54: Nezařazeno | BC54: =IF(BA54="Výpočtem",CG54,0) -> 0 | BE54: =BG54*hide!$D$59 -> 0
A55: A.5.3 | C55: Ostatní náklady pro zabezpečení stavby | J55: =O55 -> 0 | L55: =SUM(L56:L58,L61:L62) -> 0 | O55: =O56+O57+O58+O61+O62 -> 0 | AI55: =IF(AH55="PŘEKROČENÉ %",IF(H55="Smluvně",0,IF(H55="Nezařazeno",0,IF(H55="Individuálně",IF(AH55="PŘEKROČENÉ %",100,1),1))),0) -> 0 | AJ55: =IF(AH55="PŘEKROČENÉ %",IF(H55="Smluvně",0,IF(H55="Nezařazeno",0,IF(H55="Individuálně",IF(AI55="PŘEKROČENÉ %",0,0),1))),0) -> 0 | AT55: A.5.3 | AV55: Ostatní náklady pro zabezpečení stavby | BC55: =BG55 -> 0 | BE55: =SUM(BE56:BE58,BE61:BE62) -> 0
A56: A.5.3.1 | C56: z toho | D56: Poplatky | H56: Nezařazeno | L56: =O56*hide!$D$59 -> 0 | O56: =IF(H56="Nezařazeno",0,IF(H56="Výpočtem",J56,I56)) -> 0 | P56: =IF((IF(H56="Individuálně",1,IF(H56="Smluvně",1,IF(H56="Nezařazeno",2,2))))=1,IF(I56=0,3,1),IF(H56="Výpočtem",4,2)) -> 2 | R56: Smluvně | S56: Individuálně | T56: Nezařazeno | U56: není určena | AI56: =IF(AH56="PŘEKROČENÉ %",IF(H56="Smluvně",0,IF(H56="Nezařazeno",0,IF(H56="Individuálně",IF(AH56="PŘEKROČENÉ %",100,1),1))),0) -> 0 | AJ56: =IF(AH56="PŘEKROČENÉ %",IF(H56="Smluvně",0,IF(H56="Nezařazeno",0,IF(H56="Individuálně",IF(AI56="PŘEKROČENÉ %",0,0),1))),0) -> 0 | AT56: A.5.3.1 | AV56: z toho | AW56: Poplatky | BA56: Nezařazeno | BE56: =BG56*hide!$D$59 -> 0
A57: A.5.3.2 | D57: Záchranný archeologický výzkum | H57: Nezařazeno | L57: =O57*hide!$D$59 -> 0 | O57: =IF(H57="Nezařazeno",0,IF(H57="Výpočtem",J57,I57)) -> 0 | P57: =IF((IF(H57="Předpoklad",1,IF(H57="Smluvně",1,IF(H57="Nezařazeno",2,2))))=1,IF(I57=0,3,1),IF(H57="Výpočtem",4,2)) -> 2 | R57: Smluvně | S57: Předpoklad | T57: Nezařazeno | U57: není určena | AI57: =IF(AH57="PŘEKROČENÉ %",IF(H57="Smluvně",0,IF(H57="Nezařazeno",0,IF(H57="Individuálně",IF(AH57="PŘEKROČENÉ %",100,1),1))),0) -> 0 | AJ57: =IF(AH57="PŘEKROČENÉ %",IF(H57="Smluvně",0,IF(H57="Nezařazeno",0,IF(H57="Individuálně",IF(AI57="PŘEKROČENÉ %",0,0),1))),0) -> 0 | AT57: A.5.3.2 | AW57: Záchranný archeologický výzkum | BA57: Nezařazeno | BE57: =BG57*hide!$D$59 -> 0
A58: A.5.3.3 | D58: Publicita stavby | F58: z toho zhotovitel v realizaci (Všeobecný objekt): | H58: =I59 -> 0 | J58: =O58 -> 0 | L58: =SUM(L59:L60) -> 0 | O58: =SUM(O59:O60) -> 0 | AI58: =IF(AH58="PŘEKROČENÉ %",IF(H59="Smluvně",0,IF(H59="Nezařazeno",0,IF(H59="Individuálně",IF(AH58="PŘEKROČENÉ %",100,1),1))),0) -> 0 | AJ58: =IF(AH58="PŘEKROČENÉ %",IF(H59="Smluvně",0,IF(H59="Nezařazeno",0,IF(H59="Individuálně",IF(AI58="PŘEKROČENÉ %",0,0),1))),0) -> 0 | AT58: A.5.3.3 | AW58: Publicita stavby | AY58: z toho zhotovitel v realizaci (Všeobecný objekt): | BA58: 1500000 | BC58: =BG58 -> 0 | BE58: =SUM(BE59:BE60) -> 0
